Workbook

Sheet Cal Sheet-Percentage Impr (hidden)
A1: Project: | C1: 29 | G1: =CONCATENATE("Rounte ","from ",C8," MP ",C9," to MP ",C10," and "," from ",E8," MP ",E9," to ",E10) -> Rounte from 1 MP 2 to MP and from MP to
A2: County:
A3: Township | C3: Burlington | BK3: ERROR-1
A4: Designer's Initial | C4: NSK | BK4: ERROR-2
A5: PROJECT DATA
A6: INPUT | G6: NB | K6: SB
A7: Direction | C7: NB! | D7: SB! | H7: Miles | I7: # of Lots | J7: %age Exclusions | L7: Miles | M7: # of Lots | N7: %age Exclusions
A8: MP Begin | C8: 1
A9: MP End | C9: 2 | G9: =IF('Localized Factor Worksheet'!F49="","",CONCATENATE("Lane - ",'Localized Factor Worksheet'!F49)) -> Lane - 1 | H9: 1.37 | I9: =IF(G9="",0,'Localized Factor Worksheet'!F73) -> 1 | J9: =IF(G9="",0,(IF(H9=0,(IF(I9=0,BK3,(IF(I9*5280/52.8>H9*'Ai factors'!$H$12,BK4,I9*5280/(H9*52.8))))),IF(I9*5280/52.8>H9*'Ai factors'!$H$12,BK4,I9*5280/(H9*52.8))))) -> ERROR-2 | K9: =IF('Localized Factor Worksheet'!T49="","",CONCATENATE("Lane - ",'Localized Factor Worksheet'!T49)) -> Lane - 1 | L9: 4.55 | M9: =IF(K9="",0,'Localized Factor Worksheet'!T73) -> 0 | N9: =IF(K9="",0,(IF(L9=0,(IF(M9=0,BK3,(IF(M9*5280/52.8>L9*'Ai factors'!$H$12,BK4,M9*5280/(L9*52.8))))),IF(M9*5280/52.8>L9*'Ai factors'!$H$12,BK4,M9*5280/(L9*52.8))))) -> 0
A10: No. of Lanes | G10: =IF('Localized Factor Worksheet'!G49="","",CONCATENATE("Lane - ",'Localized Factor Worksheet'!G49)) ->  | H10: 2.09 | I10: =IF(G10="",0,'Localized Factor Worksheet'!G607) -> 0 | J10: =IF(G10="",0,(IF(H10=0,(IF(I10=0,BK3,(IF(I10*5280/52.8>H10*'Ai factors'!$H$12,BK4,I10*5280/(H10*52.8))))),IF(I10*5280/52.8>H10*'Ai factors'!$H$12,BK4,I10*5280/(H10*52.8))))) -> 0 | K10: =IF('Localized Factor Worksheet'!U49="","",CONCATENATE("Lane - ",'Localized Factor Worksheet'!U49)) ->  | L10: 0 | M10: =IF(K10="",0,'Localized Factor Worksheet'!U73) -> 0 | N10: =IF(K10="",0,(IF(L10=0,(IF(M10=0,BK3,(IF(M10*5280/52.8>L10*'Ai factors'!$H$12,BK4,M10*5280/(L10*52.8))))),IF(M10*5280/52.8>L10*'Ai factors'!$H$12,BK4,M10*5280/(L10*52.8))))) -> 0
G11: =IF('Localized Factor Worksheet'!H49="","",CONCATENATE("Lane - ",'Localized Factor Worksheet'!H49)) ->  | H11: 0 | I11: =IF(G11="",0,'Localized Factor Worksheet'!H73) -> 0 | J11: =IF(G11="",0,(IF(H11=0,(IF(I11=0,BK3,(IF(I11*5280/52.8>H11*'Ai factors'!$H$12,BK4,I11*5280/(H11*52.8))))),IF(I11*5280/52.8>H11*'Ai factors'!$H$12,BK4,I11*5280/(H11*52.8))))) -> 0 | K11: =IF('Localized Factor Worksheet'!V49="","",CONCATENATE("Lane - ",'Localized Factor Worksheet'!V49)) ->  | L11: 0 | M11: =IF(K11="",0,'Localized Factor Worksheet'!V73) -> 0 | N11: =IF(K11="",0,(IF(L11=0,(IF(M11=0,BK3,(IF(M11*5280/52.8>L11*'Ai factors'!$H$12,BK4,M11*5280/(L11*52.8))))),IF(M11*5280/52.8>L11*'Ai factors'!$H$12,BK4,M11*5280/(L11*52.8))))) -> 0
A12: GENERALIZED FACTORS | G12: =IF('Localized Factor Worksheet'!I49="","",CONCATENATE("Lane - ",'Localized Factor Worksheet'!I49)) ->  | H12: 0 | I12: =IF(G12="",0,'Localized Factor Worksheet'!I73) -> 0 | J12: =IF(G12="",0,(IF(H12=0,(IF(I12=0,BK3,(IF(I12*5280/52.8>H12*'Ai factors'!$H$12,BK4,I12*5280/(H12*52.8))))),IF(I12*5280/52.8>H12*'Ai factors'!$H$12,BK4,I12*5280/(H12*52.8))))) -> 0 | K12: =IF('Localized Factor Worksheet'!W49="","",CONCATENATE("Lane - ",'Localized Factor Worksheet'!W49)) ->  | L12: 0 | M12: =IF(K12="",0,'Localized Factor Worksheet'!W73) -> 0 | N12: =IF(K12="",0,(IF(L12=0,(IF(M12=0,BK3,(IF(M12*5280/52.8>L12*'Ai factors'!$H$12,BK4,M12*5280/(L12*52.8))))),IF(M12*5280/52.8>L12*'Ai factors'!$H$12,BK4,M12*5280/(L12*52.8))))) -> 0
G13: =IF('Localized Factor Worksheet'!J49="","",CONCATENATE("Lane - ",'Localized Factor Worksheet'!J49)) ->  | H13: 0 | I13: =IF(G13="",0,'Localized Factor Worksheet'!FJ9) -> 0 | J13: =IF(G13="",0,(IF(H13=0,(IF(I13=0,BK3,(IF(I13*5280/52.8>H13*'Ai factors'!$H$12,BK4,I13*5280/(H13*52.8))))),IF(I13*5280/52.8>H13*'Ai factors'!$H$12,BK4,I13*5280/(H13*52.8))))) -> 0 | K13: =IF('Localized Factor Worksheet'!X49="","",CONCATENATE("Lane - ",'Localized Factor Worksheet'!X49)) ->  | L13: 0 | M13: =IF(K13="",0,'Localized Factor Worksheet'!X73) -> 0 | N13: =IF(K13="",0,(IF(L13=0,(IF(M13=0,BK3,(IF(M13*5280/52.8>L13*'Ai factors'!$H$12,BK4,M13*5280/(L13*52.8))))),IF(M13*5280/52.8>L13*'Ai factors'!$H$12,BK4,M13*5280/(L13*52.8))))) -> 0
A14: INPUT | G14: Total Lane Miles | H14: =SUM(H9:H13) -> 3.46 | I14: =SUM(I9:I13) -> 1 | L14: =SUM(L9:L13) -> 4.55 | M14: =SUM(M9:M13) -> 0
A15: Direction | C15: NB | D15: SB | G15: ERROR 1-Lane and Exclusions input are not consistant. Check your input. ERROR-2-Percentage of Exclusions are exceeding the threshold value. Contact SME.
A16: Type of Project | C16: Re-constructio or New Construction | G16: LIMITS OF EXCLUSIONS CALCULATION
A17: Pre-Construction | G17: NB | K17: SB
A18: Existing IRI | C18: 93 | D18: 200 | G18: TO BE TESTED | I18: NOT TO BE TESTED | K18: TO BE TESTED | M18: NOT TO BE TESTED
G19: Lane 1 | K19: Lane 1
A20: Perecentage Improvement | C20: 0 | D20: 0.4 | G20: MP 6.63 - MP 8 | K20: MP 3.1 - MP 0.553
A21: Target IRI | C21: =C18*(1-C20) -> 93 | D21: =D18*(1-D20) -> 120 | G21: Lane 2 | K21: MP 1 - MP 3
G22: MP 0 - MP 2.086
A23: PAY ADJUSTMENT EQUATIONS
A24: Maximum +ve Pay Adjustment(A) | C24: 10 | D24: 50 | AG24: Default Factors for PA
A25: IRI difference between lower limit of zero band and max +ve PA (B) | C25: 20 | D25: 20 | AG25: 50 | AH25: 50
A26: Zero Band | B26: L1 | C26: 5 | D26: 5 | AG26: 20 | AH26: 20
B27: L2 | C27: 5 | D27: 5 | AG27: 5 | AH27: 5
A28: IRI difference between upper limit of zero band and max -ve PA ( C) | C28: 70 | D28: 70 | AG28: 5 | AH28: 5
AG29: 70 | AH29: 70
A30: Maximum -Ve Pay Adjustment (D) | C30: -100 | D30: -500 | AG30: -500 | AH30: -500
A31: Slope of Positive adjustment (E) | C31: =C24/C25 -> 0.5 | D31: =D24/D25 -> 2.5
A32: Slope of Negative Adjustment (F) | C32: =ROUND(C30/C28,4) -> -1.4286 | D32: =ROUND(D30/D28,4) -> -7.1429
A34: NB | C34: SB
A35: =CONCATENATE("IRI <",C21-C26-C25) -> IRI <68 | B35: =CONCATENATE("PA = ",C24) -> PA = 10 | C35: =CONCATENATE("IRI <",D21-D26-D25) -> IRI <95 | D35: =CONCATENATE("PA = ",D24) -> PA = 50
A36: =CONCATENATE(C21-C26-C25,"<= IRI < ",C21-C26) -> 68<= IRI < 88 | B36: =CONCATENATE("PA = ",C31*(C21-C26)," - (",C31," X "," IRI)") -> PA = 44 - (0.5 X IRI) | C36: =CONCATENATE(D21-D26-D25,"<= IRI < ",D21-D26) -> 95<= IRI < 115 | D36: =CONCATENATE("PA = ",D31*(D21-D26)," - (",D31," X "," IRI)") -> PA = 287.5 - (2.5 X IRI)
A37: =CONCATENATE(C21-C26," <= IRI <= ",C21+C27) -> 88 <= IRI <= 98 | B37: PA= $0 | C37: =CONCATENATE(D21-D26," <= IRI <= ",D21+D27) -> 115 <= IRI <= 125 | D37: PA= $0 | Q37: =CONCATENATE("Route ",C1," ",C7," from MP ",C8," to MP ",C9) -> Route 29 NB! from MP 1 to MP 2 | R37: =CONCATENATE("Route ",D1," ",D7," from MP ",D8," to MP ",D9) -> Route SB! from MP to MP
A38: =CONCATENATE(C21+C27," < IRI <= ",C21+C28+C27) -> 98 < IRI <= 168 | B38: =CONCATENATE("PA = ( IRI - ",C21+C27," ) X (",C32,")") -> PA = ( IRI - 98 ) X (-1.4286) | C38: =CONCATENATE(D21+D27," < IRI <= ",D21+D28+D27) -> 125 < IRI <= 195 | D38: =CONCATENATE("PA = ( IRI - ",D21+D27," ) X (",D32,")") -> PA = ( IRI - 125 ) X (-7.1429)
A39: =CONCATENATE("IRI > ",C21+C28+C27) -> IRI > 168 | B39: Remove & Replace | C39: =CONCATENATE("IRI > ",D21+D28+D27) -> IRI > 195 | D39: Remove & Replace
A51: 0 | B51: =C24 -> 10
A52: =C21-C26-C25 -> 68 | B52: =C24 -> 10
A53: =C21-C26 -> 88 | B53: 0
A54: =C21 -> 93 | B54: 0
A55: =C21+C27 -> 98 | B55: 0
A56: =C21+C27+C28 -> 168 | B56: =C30 -> -100
A57: =A56+30 -> 198 | B57: =C30 -> -100
A60: 0 | B60: =C24 -> 10
A61: =D21-D26-D25 -> 95
A62: =D21-D26 -> 115 | B62: 0
A63: =D21 -> 120 | B63: 0
A64: =D21+D27 -> 125 | B64: 0
A65: =D21+D27+D28 -> 195 | B65: =D30 -> -500
A66: =A65+30 -> 225 | B66: =D30 -> -500
A128: 1
A200: 23 | B200: 23 | C200: 22 | D200: 22
A201: 19 | B201: 19 | C201: 19 | D201: 19
A202: =MAX(A200:B200) -> 23 | C202: =MAX(C200:D200) -> 22

Sheet Calculation sheet (hidden)
A1: Route | G1: =CONCATENATE("Rounte ","from ",C8," MP ",C9," to MP ",C10," and "," from ",E8," MP ",E9," to ",E10) -> Rounte from MP to MP and from MP to | Y1: =P1 -> 0 | AA1: =Q1 -> 0 | AI1: Highway Classification | AT1: Type of Project
A2: County: | AI2: ='Ai factors'!H27 -> Freeways/Limited Access Highways | AR2: ='Ai factors'!K27 -> 50 | AT2: Re-surfacing
A3: Township | AI3: ='Ai factors'!H29 -> Highways Other Than Freeways /Limited Access (Speed Limit below 35 MPH) | AR3: ='Ai factors'!K28 -> 60 | AT3: Full Pavement Box Construction | BK3: ERROR-1
A4: Highway Classification | C4: Freeways/Limited Access Highways | Y4: =P2 -> 0 | AC4: =R2 -> 0 | AI4: ='Ai factors'!H28 -> Highways Other Than Freeways /Limited Access (Speed Limit 35 MPH or above) | AR4: ='Ai factors'!K29 -> 70 | AT4: Pavement box over Rubblization | BK4: ERROR-2
A5: Designer's Initial | G5: SUMMARY OF EXCLUSIONS AND LANE TO BE TESTED | Q5: compositefactor | R5: =IF(C22="Yes",IF(C23="yes",1,1.05),1) -> 1 | T5: =IF(E22="Yes",IF(E23="yes",1,1.05),1) -> 1 | Y5: =P3 -> 0 | AC5: =R3 -> 0 | AI5: Base IRI | AR5: =IF(C4=AI2,AR2,(IF(C4=AI4,AR3,AR4))) -> 50 | AT5: MicroSurfacing/Slurry Seal
A6: PROJECT DATA | G6: NB | K6: SB | Q6: Resurfacing | R6: =ROUND(R5*IF(R8=AW10,AW11,IF(R8=AX10,AX11,(IF(R8=AY10,AY11,AZ11)))),0) ->  | T6: =ROUND(T5*IF(T8=AW10,AW11,IF(T8=AX10,AX11,(IF(T8=AY10,AY11,AZ11)))),0) ->  | Y6: PROJECT REPORT | AL6: =CONCATENATE(MIN(C9,C10),MAX(E9,E10)) -> 00 | AT6: Diamond Grinding
A7: INPUT | H7: Miles | I7: # of Lots | J7: %age Exclusions | L7: Miles | M7: # of Lots | N7: %age Exclusions | Q7: Rubblization | R7: =ROUND(1.05*IF(R8=BI10,BI11,IF(R8=BJ10,BJ11,(IF(R8=BK10,BK11,BL11)))),0) -> 56 | T7: =ROUND(1.05*IF(T8=BI10,BI11,IF(T8=BJ10,BJ11,(IF(T8=BK10,BK11,BL11)))),0) -> 56 | AN7: =DAY(TODAY()) -> 14 | DY7: ='Ai factors'!K27 -> 50
A8: Direction | R8: =IF(C16=BI9,C21,IF(C20="Yes",IF(C21=AZ10,4,C21+1),C21)) -> 0 | T8: =IF(C16=BI9,E21,IF(E20="Yes",IF(E21=AZ10,4,E21+1),E21)) -> 0 | U8: =MIN(R8,T8) -> 0 | Y8: Direction | AA8: =C8 -> 0 | AC8: =E8 -> 0 | AN8: =MONTH(TODAY()) -> 5 | DY8: ='Ai factors'!K28 -> 60
A9: MP Begin | G9: =IF('Localized Factor Worksheet'!F49="","",CONCATENATE("Lane - ",'Localized Factor Worksheet'!F49)) -> Lane - 1 | H9: 1.15 | I9: =IF(G9="",0,'Localized Factor Worksheet'!F73) -> 1 | J9: =IF(G9="",(IF(H9>0,($BK$4),IF(I9*0.01>H9*'Ai factors'!$H$12,$BK$3,I9*0.01/H9))),IF(H9>0,IF(I9*0.01>H9*'Ai factors'!$H$12,$BK$3,I9*0.01/H9),$BK$3)) -> 0.008695652174 | K9: =IF('Localized Factor Worksheet'!T49="","",CONCATENATE("Lane - ",'Localized Factor Worksheet'!T49)) -> Lane - 1 | L9: 1.15 | M9: =IF(K9="",0,'Localized Factor Worksheet'!T73) -> 0 | N9: =IF(K9="",(IF(L9>0,($BK$4),IF(M9*0.01>L9*'Ai factors'!$H$12,$BK$3,M9*0.01/L9))),IF(L9>0,IF(M9*0.01>L9*'Ai factors'!$H$12,$BK$3,M9*0.01/L9),$BK$3)) -> 0 | P9: =IF(J9=$BK$3,1,IF(J9=$BK$4,2,0)) -> 0 | Q9: =IF(N9=$BK$3,1,IF(N9=$BK$4,2,0)) -> 0 | R9: =IF(C16=AY9,R6,(IF(C16=BI9,R7,IF(C16=BM9,BM11,BP11)))) ->  | S9: =ROUND(AS5*N94*N95*N96,0) -> 0 | T9: =IF(C16=AY9,T6,(IF(C16=BI9,T7,IF(C16=BM9,BM11,BP11)))) ->  | Y9: IRI Specified | AA9: =R9 ->  | AC9: =T9 ->  | AN9: =YEAR(TODAY()) -> 2019 | AY9: Re-surfacing | BE9: Full Pavement Box Construction | BI9: Pavement box over Rubblization | BM9: MicroSurfacing/Slurry Seal | BP9: Diamond Grinding
A10: MP End | G10: ='Cal Sheet-Percentage Impr'!G10 ->  | H10: 3.21 | I10: =IF(G10="",0,'Localized Factor Worksheet'!G73) -> 0 | J10: =IF(G10="",(IF(H10>0,($BK$4),IF(I10*0.01>H10*'Ai factors'!$H$12,$BK$3,I10*0.01/H10))),IF(H10>0,IF(I10*0.01>H10*'Ai factors'!$H$12,$BK$3,I10*0.01/H10),$BK$3)) -> ERROR-2 | K10: =IF('Localized Factor Worksheet'!U49="","",CONCATENATE("Lane - ",'Localized Factor Worksheet'!U49)) ->  | L10: 2.81 | M10: =IF(K10="",0,'Localized Factor Worksheet'!U73) -> 0 | N10: =IF(K10="",(IF(L10>0,($BK$4),IF(M10*0.01>L10*'Ai factors'!$H$12,$BK$3,M10*0.01/L10))),IF(L10>0,IF(M10*0.01>L10*'Ai factors'!$H$12,$BK$3,M10*0.01/L10),$BK$3)) -> ERROR-2 | P10: =IF(J10=$BK$3,1,IF(J10=$BK$4,2,0)) -> 2 | Q10: =IF(N10=$BK$3,1,IF(N10=$BK$4,2,0)) -> 2 | R10: =IF(C4='Ai factors'!H27,IF('Calculation sheet'!C29>'Ai factors'!L27+0.5,0,1),IF(C4='Ai factors'!H28,IF('Calculation sheet'!C29>'Ai factors'!L28+0.5,0,1),IF('Calculation sheet'!C29>'Ai factors'!L29+0.5,0,1))) ->  | T10: =IF(C4='Ai factors'!H27,IF('Calculation sheet'!E29>'Ai factors'!L27+0.5,0,1),IF(C4='Ai factors'!H28,IF('Calculation sheet'!E29>'Ai factors'!L28+0.5,0,1),IF('Calculation sheet'!E29>'Ai factors'!L29+0.5,0,1))) ->  | Y10: % Localized | AW10: 1 | AX10: 2 | AY10: 3 | AZ10: 4 and More | BA10: 1 | BB10: 2 | BC10: 3 | BD10: 4 and More | BI10: 1 | BJ10: 2 | BK10: 3 | BL10: 4 and More
A11: No. of Lanes | G11: =IF('Localized Factor Worksheet'!H49="","",CONCATENATE("Lane - ",'Localized Factor Worksheet'!H49)) ->  | H11: 0.25 | I11: =IF(G11="",0,'Localized Factor Worksheet'!H73) -> 0 | J11: =IF(G11="",(IF(H11>0,($BK$4),IF(I11*0.01>H11*'Ai factors'!$H$12,$BK$3,I11*0.01/H11))),IF(H11>0,IF(I11*0.01>H11*'Ai factors'!$H$12,$BK$3,I11*0.01/H11),$BK$3)) -> ERROR-2 | K11: =IF('Localized Factor Worksheet'!V49="","",CONCATENATE("Lane - ",'Localized Factor Worksheet'!V49)) ->  | L11: 0.25 | M11: =IF(K11="",0,'Localized Factor Worksheet'!V73) -> 0 | N11: =IF(K11="",(IF(L11>0,($BK$4),IF(M11*0.01>L11*'Ai factors'!$H$12,$BK$3,M11*0.01/L11))),IF(L11>0,IF(M11*0.01>L11*'Ai factors'!$H$12,$BK$3,M11*0.01/L11),$BK$3)) -> ERROR-2 | P11: 2 | Q11: 2 | Y11: # of 52.8' segments discounted | AU11: Target | AV11: =AI2 -> Freeways/Limited Access Highways | AW11: =IF($C$4=$AV$11,VLOOKUP($C$19,'Ai factors'!$Z$5:$AL$685,2),IF($C$4=$AV$12,VLOOKUP($C$19,'Ai factors'!$Z$5:$AL$685,6),VLOOKUP($C$19,'Ai factors'!$Z$5:$AL$685,10))) ->  | AX11: =IF($C$4=$AV$11,VLOOKUP($C$19,'Ai factors'!$Z$5:$AL$685,3),IF($C$4=$AV$12,VLOOKUP($C$19,'Ai factors'!$Z$5:$AL$685,7),VLOOKUP($C$19,'Ai factors'!$Z$5:$AL$685,11))) ->  | AY11: =IF($C$4=$AV$11,VLOOKUP($C$19,'Ai factors'!$Z$5:$AL$685,4),IF($C$4=$AV$12,VLOOKUP($C$19,'Ai factors'!$Z$5:$AL$685,8),VLOOKUP($C$19,'Ai factors'!$Z$5:$AL$685,12))) ->  | AZ11: =IF($C$4=$AV$11,VLOOKUP($C$19,'Ai factors'!$Z$5:$AL$685,5),IF($C$4=$AV$12,VLOOKUP($C$19,'Ai factors'!$Z$5:$AL$685,9),VLOOKUP($C$19,'Ai factors'!$Z$5:$AL$685,13))) ->  | BA11: =IF($C$4=$AV$11,VLOOKUP($E$19,'Ai factors'!$Z$5:$AL$685,2),IF($C$4=$AV$12,VLOOKUP($E$19,'Ai factors'!$Z$5:$AL$685,6),VLOOKUP($E$19,'Ai factors'!$Z$5:$AL$685,10))) ->  | BB11: =IF($C$4=$AV$11,VLOOKUP($E$19,'Ai factors'!$Z$5:$AL$685,3),IF($C$4=$AV$12,VLOOKUP($E$19,'Ai factors'!$Z$5:$AL$685,7),VLOOKUP($E$19,'Ai factors'!$Z$5:$AL$685,11))) ->  | BC11: =IF($C$4=$AV$11,VLOOKUP($E$19,'Ai factors'!$Z$5:$AL$685,4),IF($C$4=$AV$12,VLOOKUP($E$19,'Ai factors'!$Z$5:$AL$685,8),VLOOKUP($E$19,'Ai factors'!$Z$5:$AL$685,12))) ->  | BD11: =IF($C$4=$AV$11,VLOOKUP($E$19,'Ai factors'!$Z$5:$AL$685,5),IF($E$4=$AV$12,VLOOKUP($E$19,'Ai factors'!$Z$5:$AL$685,9),VLOOKUP($E$19,'Ai factors'!$Z$5:$AL$685,13))) ->  | BE11: =IF('Calculation sheet'!C4='Ai factors'!V3,'Ai factors'!V4,IF('Calculation sheet'!C4='Ai factors'!X3,'Ai factors'!X4,'Ai factors'!Y4)) -> 50 | BI11: ='Ai factors'!AA271 -> 183 | BJ11: ='Ai factors'!AB271 -> 60 | BK11: ='Ai factors'!AC271 -> 58 | BL11: ='Ai factors'!AD271 -> 53 | BM11: =IF(C4=AV11,VLOOKUP(C19,'Ai factors'!Z5:AU685,16),(IF(C4=AV12,VLOOKUP(C19,'Ai factors'!Z5:AU685,17),VLOOKUP(C19,'Ai factors'!Z5:AU685,18)))) ->  | BP11: =IF(C4=AV11,VLOOKUP(C19,'Ai factors'!Z5:AU685,20),(IF(C4=AV12,VLOOKUP(C19,'Ai factors'!Z5:AU685,21),VLOOKUP(C19,'Ai factors'!Z5:AU685,22)))) -> 
G12: =IF('Localized Factor Worksheet'!I49="","",CONCATENATE("Lane - ",'Localized Factor Worksheet'!I49)) ->  | H12: 3.21 | I12: =IF(G12="",0,'Localized Factor Worksheet'!I73) -> 0 | J12: =IF(G12="",(IF(H12>0,($BK$4),IF(I12*0.01>H12*'Ai factors'!$H$12,$BK$3,I12*0.01/H12))),IF(H12>0,IF(I12*0.01>H12*'Ai factors'!$H$12,$BK$3,I12*0.01/H12),$BK$3)) -> ERROR-2 | K12: =IF('Localized Factor Worksheet'!W49="","",CONCATENATE("Lane - ",'Localized Factor Worksheet'!W49)) ->  | L12: 3.21 | M12: =IF(K12="",0,'Localized Factor Worksheet'!W73) -> 0 | N12: =IF(K12="",(IF(L12>0,($BK$4),IF(M12*0.01>L12*'Ai factors'!$H$12,$BK$3,M12*0.01/L12))),IF(L12>0,IF(M12*0.01>L12*'Ai factors'!$H$12,$BK$3,M12*0.01/L12),$BK$3)) -> ERROR-2 | P12: 2 | Q12: 2 | AJ12: Designer | AL12: =C5 -> 0 | AV12: =AI3 -> Highways Other Than Freeways /Limited Access (Speed Limit below 35 MPH)
A13: GENERALIZED FACTORS | G13: ='Cal Sheet-Percentage Impr'!G13 ->  | H13: 2.85 | I13: =IF(G13="",0,'Localized Factor Worksheet'!J73) -> 0 | J13: =IF(G13="",(IF(H13>0,($BK$4),IF(I13*0.01>H13*'Ai factors'!$H$12,$BK$3,I13*0.01/H13))),IF(H13>0,IF(I13*0.01>H13*'Ai factors'!$H$12,$BK$3,I13*0.01/H13),$BK$3)) -> ERROR-2 | K13: =IF('Localized Factor Worksheet'!X49="","",CONCATENATE("Lane - ",'Localized Factor Worksheet'!X49)) ->  | L13: 2.85 | M13: =IF(K13="",0,'Localized Factor Worksheet'!X73) -> 0 | N13: =IF(K13="",(IF(L13>0,($BK$4),IF(M13*0.01>L13*'Ai factors'!$H$12,$BK$3,M13*0.01/L13))),IF(L13>0,IF(M13*0.01>L13*'Ai factors'!$H$12,$BK$3,M13*0.01/L13),$BK$3)) -> ERROR-2 | P13: 2 | Q13: 2 | AV13: =AI4 -> Highways Other Than Freeways /Limited Access (Speed Limit 35 MPH or above)
G14: Total Lane Miles | H14: =SUM(H9:H13) -> 10.67 | I14: =SUM(I9:I13) -> 1 | L14: =SUM(L9:L13) -> 10.27 | M14: =SUM(M9:M13) -> 0 | P14: =SUM(P9:P13) -> 8 | Q14: =SUM(Q9:Q13) -> 8 | AJ14: File Name | AL14: =CONCATENATE("IRI_","Rt ",C1,"_","MP ",MIN(C9,C10),"-","MP",MAX(E9,E10),"_",AN8,AN7,AN9,"_",AL12) -> IRI_Rt _MP 0-MP0_5142019_0 | BM14: =VLOOKUP(C19,'Ai factors'!Z5:AU685,16) -> 
A15: INPUT | G15: ERROR-1-Percentage of Exclusions are exceeding the threshold value. Contact SME. ERROR 2-Lane and Exclusions input are not consistant. Check your input.
A16: Type of Project | C16: Re-surfacing | G16: LIMITS OF EXCLUSION CALCULATION
A17: Direction | C17: =C8 -> 0 | E17: =E8 -> 0 | G17: NB | K17: SB | Q17: For Freeway/Limited access Highway having Existing IRI>285 and # of Opertions=1, PA=0, If IRI< or = Target | T17: IRI Specified | Y17: PAY EQUATIONS | CH17: =AA8 -> 0
A18: Pre-Construction | G18: TO BE TESTED | I18: NOT TO BE TESTED | K18: TO BE TESTED | M18: NOT TO BE TESTED
A19: Existing IRI | P19: Zero Band | Q19: L1 | T19: (positive number=less bonus) | AH19: 1 | AI19: 35 | AJ19: Yes | AO19: =CONCATENATE(C1," ",C8," from MP ",C9," To MP ",C10," and ",E8," from MP ",E9," To MP ",E10) -> from MP To MP and from MP To MP | CI19: IRI < | CJ19: =C42 -> 0 | CK19: PA= | CL19: =#REF! -> 
A20: Milling Proposed | AH20: 2 | AI20: 40 | AJ20: No | CH20: =C42 -> 0 | CI20: <= IRI < | CJ20: =C45-E35 ->  | CK20: PA= | CL20: =CONCATENATE(C43,"- ($",C44," x IRI)") -> - ($ x IRI)
A21: Number of Lifts | Q21: L2 | T21: (positive number=less penalty) | AH21: 3 | AI21: 45 | BF21: Check for missing Information | CH21: =CJ20 ->  | CI21: <= IRI <= | CJ21: =C45+E39 ->  | CK21: PA= | CL21: 0
A22: Composite? | AH22: 4 and More | AI22: 50 | CH22: =CJ21 ->  | CI22: < IRI <= | CJ22: =C47 -> 0 | CK22: PA= | CL22: =CONCATENATE("(IRI -",CH22,") ","x ( $",ROUND(C48,4),")") -> 
A23: Will the composite pavement have final HMA thickness >=8" AND joints sealed AND joints stabilized? | AI23: 55 | BF23: Form 4 | CH23: =CJ22 -> 0 | CI23: < IRI | CK23: PA= | CL23: Remove and Replace
AI24: 60
AI26: 65
A27: OUTPUT
A28: Direction | C28: =C17 -> 0 | E28: =E17 -> 0
A29: IRISpecified | C29: =R9 ->  | E29: =T9 ->  | BD29: Primary Direction | BE29: Secondary | CH29: =AC8 -> 0
A30: =IF(C16="Re-surfacing",IF(U8=1,IF((AND(OR(C19>285,E19>285),C4=AI2)),Q17,2),""),"") -> 
A31: Table 401.03.03-7
B32: Excluded Lots | C32: Pay Equation (s)
A33: =CONCATENATE("Route ",C1," ",C8," from MP ",C9," to MP ",C10) -> Route from MP to MP | B33: =IF(P75="",IF(P74="",IF(P73="",IF(P72="",CONCATENATE("Lane 1- ",Q71),CONCATENATE("Lane 1- ",Q71,", Lane 2- ",Q72)),CONCATENATE("Lane 1- ",Q71,", Lane 2- ",Q72,", Lane 3- ",Q73)),CONCATENATE("Lane 1- ",Q71,", Lane 2- ",Q72,", Lane 3- ",Q73,", Lane 4- ",Q74)),CONCATENATE("Lane 1- ",Q71,", Lane 2- ",Q72,", Lane 3- ",Q73,", Lane 4- ",Q74,", Lane 5- ",Q75)) -> Lane 1- 1 | C33: PA on Lots of 0.01 mile length
C34: A | E34: A | BC34: Direction | BD34: =IF(C8="","",C8) ->  | BE34: =IF(E8="","",E8) ->  | BF34: =IF(BD34="",IF(BE34="","Enter Primary and Secondary Directions","Enter Primary Direction"),IF(BE34="","Enter Secondary Direction","")) -> Enter Primary and Secondary Directions | CI34: IRI < | CJ34: =E42 -> 0 | CK34: PA= | CL34: =#REF! -> 
C35: =-ROUND(LN(C29)*37.75347,4)+194.87 ->  | E35: =CONCATENATE("-37.75347","*Ln(IRI)","+",194.87) -> -37.75347*Ln(IRI)+194.87 | P35: D5 | BC35: Milepost From | BD35: =IF(C9="","",C9) ->  | BE35: =IF(E9="","",E9) ->  | BF35: =IF(BD35="",IF(BE35="","Enter Primary and Secondary Beginning MP","Enter Primary Beginning MP"),IF(BE35="","Enter Beginning MP","")) -> Enter Primary and Secondary Beginning MP | CH35: =CJ34 -> 0 | CI35: <= IRI < | CJ35: =E45-#REF! ->  | CK35: PA= | CL35: =CONCATENATE(E43,"- ($",E44," x IRI)") -> - ($ x IRI)
A37: =CONCATENATE("Route ",C1," ",E8," from MP ",E9," to MP ",E10) -> Route from MP to MP | B37: =IF(R75="",IF(R74="",IF(R73="",IF(R72="",CONCATENATE("Lane 1- ",S71),CONCATENATE("Lane 1- ",S71,", Lane 2- ",S72)),CONCATENATE("Lane 1- ",S71,", Lane 2- ",S72,", Lane 3- ",S73)),CONCATENATE("Lane 1- ",S71,", Lane 2- ",S72,", Lane 3- ",S73,", Lane 4- ",S74)),CONCATENATE("Lane 1- ",S71,", Lane 2- ",S72,", Lane 3- ",S73,", Lane 4- ",S74,", Lane 5- ",S75)) -> Lane 1- 0
C38: A | D38: - | E38: A | BC38: Mile Post To | BD38: =IF(C10="","",C10) ->  | BE38: =IF(E10="","",E10) ->  | BF38: =IF(BD38="",IF(BE38="","Enter Primary and Secondary Ending MP","Enter Primary Ending MP"),IF(BE38="","Enter Secondary Ending MP","")) -> Enter Primary and Secondary Ending MP | CH38: =CJ35 ->  | CI38: <= IRI <= | CJ38: =E45+#REF! ->  | CK38: PA= | CL38: 0
C39: =-ROUND(LN(E29)*37.75347,4)+194.87 ->  | E39: =CONCATENATE("-37.75347","*Ln(IRI)","+",194.87) -> -37.75347*Ln(IRI)+194.87 | BB39: =IF(BF34="",(IF(BF35="",(IF(BF38="","")),1)),1) -> 1 | CH39: =CJ38 ->  | CI39: < IRI <= | CJ39: =E47 -> 0 | CK39: PA= | CL39: =CONCATENATE("(IRI -",CH39,") ","x ( $",ROUND(E48,4),")") -> 
AY40: Form 5 | CH40: =CJ39 -> 0 | CI40: < IRI | CK40: PA= | CL40: Remove and Replace
B41: M= Bide Price of Milling, SY | AY41: =A21 -> Number of Lifts | AZ41: =IF(C21="","",C21) ->  | BA41: =IF(E21="","",E21) ->  | BB41: =IF(AZ41="",IF(BA41="","Enter # of Operations in Primary and Secondary Directions","Enter # of Operations in Primary Direction"),IF(BA41="","Enter # of Operations in Secondary Direction","")) -> Enter # of Operations in Primary and Secondary Directions
B42: N= Bid Price of last lift of the pavement structure to be evaluated, Ton. | AY42: =A19 -> Existing IRI | AZ42: =IF(C19="","",C19) ->  | BA42: =IF(E19="","",E19) ->  | BB42: =IF(AZ42="",IF(BA42="","Enter Existing IRI in Primary and Secondary Directions","Enter Existing IRI in Primary Direction"),IF(BA42="","Enter Existing IRI in Secondary Direction","")) -> Enter Existing IRI in Primary and Secondary Directions
B43: D= Average thickness of last lift to be evaluated, Inch | AY43: #of Lanes | AZ43: =IF(C11<1,"",C11) ->  | BA43: =IF(E11<1,"",E11) ->  | BB43: =IF(AZ43="",IF(BA43="","Enter Existing IRI in Primary and Secondary Directions","Enter Existing IRI in Primary Direction"),IF(BA43="","Enter Existing IRI in Secondary Direction","")) -> Enter Existing IRI in Primary and Secondary Directions
BB44: =IF(BB41="",(IF(BB42="",(IF(BB43="","",1)),1)),1) -> 1
A45: NOTES:-
BB46: Pay Equations for Diamond Grinding/Concrete Surface Course
BC47: IRI < | BD47: 30 | BE47: PA= | BF47: 50
BB48: 30 | BC48: <= IRI < | BD48: 50 | BE48: PA= | BF48: 125- ($2.5 x IRI)
BB49: 50 | BC49: <= IRI <= | BD49: 60 | BE49: PA= | BF49: 0
BB50: 60 | BC50: < IRI <= | BD50: 130 | BE50: PA= | BF50: (IRI -60) x ( $-7.1429)
BB51: 130 | BC51: < IRI | BE51: PA= | BF51: Remove and Replace
P53: MODULE 3 | X53: MODULE 4
G55: 0
K56: MODULE 2
AH57: Maximum Allowable Limit of Target IRI
AH58: =AI2 -> Freeways/Limited Access Highways | AP58: ='Ai factors'!L27 -> 63
AH59: =AI3 -> Highways Other Than Freeways /Limited Access (Speed Limit below 35 MPH) | AP59: ='Ai factors'!L28 -> 90
AH60: =AI4 -> Highways Other Than Freeways /Limited Access (Speed Limit 35 MPH or above) | AP60: ='Ai factors'!L29 -> 100
AH66: Error Messages
AH67: .
K68: LOCALIZED FACTORS (From "Localized Factor Worksheet")
K69: INPUT | Q69: Exclusions
K70: Direction | M70: =C8 -> 0 | N70: =E8 -> 0 | Q70: =+M70 -> 0 | R70: =N70 -> 0 | AH70: =CONCATENATE("The target IRI of", AH58,"is greater than ",AP58," Inch/Mile. Please check your input or change number of operations.") -> The target IRI ofFreeways/Limited Access Highwaysis greater than 63 Inch/Mile. Please check your input or change number of operations.
K71: Impediments | P71: ='Localized Factor Worksheet'!F49 -> 1 | Q71: ='Localized Factor Worksheet'!F73 -> 1 | R71: ='Localized Factor Worksheet'!T49 -> 1 | S71: =IF(R71="","",'Localized Factor Worksheet'!T73) -> 0 | AH71: =CONCATENATE("The target IRI of", AH59,"is greater than ",AP59," Inch/Mile. Please check your input or change number of operations.") -> The target IRI ofHighways Other Than Freeways /Limited Access (Speed Limit below 35 MPH)is greater than 90 Inch/Mile. Please check your input or change number of operations.
K72: Exclusion (Ft.) | M72: ='Localized Factor Worksheet'!I41 -> 0 | N72: ='Localized Factor Worksheet'!X41 -> 0 | P72: ='Localized Factor Worksheet'!G49 ->  | Q72: =IF(P72="","",'Localized Factor Worksheet'!G73) ->  | R72: ='Localized Factor Worksheet'!U49 ->  | S72: =IF(R72="","",'Localized Factor Worksheet'!U73) ->  | AH72: =CONCATENATE("The target IRI of", AH60,"is greater than ",AP60," Inch/Mile. Please check your input or change number of operations.") -> The target IRI ofHighways Other Than Freeways /Limited Access (Speed Limit 35 MPH or above)is greater than 100 Inch/Mile. Please check your input or change number of operations.
K73: # of Occurrence | M73: ='Localized Factor Worksheet'!I42 -> 0 | N73: ='Localized Factor Worksheet'!X42 -> 0 | P73: ='Localized Factor Worksheet'!H49 ->  | Q73: =IF(P73="","",'Localized Factor Worksheet'!H73) ->  | R73: ='Localized Factor Worksheet'!V49 ->  | S73: =IF(R73="","",'Localized Factor Worksheet'!V73) -> 
K74: Average Exclusion (Ft.) | M74: ='Localized Factor Worksheet'!I43 -> 0 | N74: ='Localized Factor Worksheet'!X43 -> 0 | P74: ='Localized Factor Worksheet'!I49 ->  | Q74: =IF(P74="","",'Localized Factor Worksheet'!I73) ->  | R74: ='Localized Factor Worksheet'!W49 ->  | S74: =IF(R74="","",'Localized Factor Worksheet'!W73) -> 
K75: Structures | P75: ='Localized Factor Worksheet'!J49 ->  | Q75: =IF(P75="","",'Localized Factor Worksheet'!J73) ->  | R75: ='Localized Factor Worksheet'!X49 ->  | S75: =IF(R75="","",'Localized Factor Worksheet'!X73) ->  | AH75: Results
AH76: =AA8 -> 0
K77: Exclusion (Ft.) | M77: ='Localized Factor Worksheet'!J41 -> 0 | N77: ='Localized Factor Worksheet'!Y41 -> 0 | AH77: =IF(C4=AI2,(IF(AA9>AP58,AH70,"")),IF(C4=AI3,(IF(AA9>AP59,AH71,"")),IF(C4=AI4,(IF(AA9>AP60,AH72,"")),""))) -> 
K78: # of Occurrence | M78: ='Localized Factor Worksheet'!J42 -> 0 | N78: ='Localized Factor Worksheet'!Y42 -> 0
K79: Average Exclusion (Ft.) | M79: ='Localized Factor Worksheet'!J43 -> 0 | N79: ='Localized Factor Worksheet'!Y43 -> 0
K80: Short Segments
K82: Exclusion (Ft.) | M82: ='Localized Factor Worksheet'!K41 -> 0 | N82: ='Localized Factor Worksheet'!Z41 -> 0
K83: # of Occurrence | M83: ='Localized Factor Worksheet'!K42 -> 0 | N83: ='Localized Factor Worksheet'!Z42 -> 0
K84: Average Exclusion (Ft.) | M84: ='Localized Factor Worksheet'!K43 -> 0 | N84: ='Localized Factor Worksheet'!Z43 -> 0 | AH84: =AC8 -> 0
K85: PROJECT DATA | AH85: =IF(C4=AI2,(IF(AC9>AP58,AH70,"")),IF(C4=AI3,(IF(AC9>AP59,AH71,"")),IF(C4=AI4,(IF(AC9>AP60,AH72,"")),""))) -> 
K86: OUTPUT
K87: Direction | M87: =C8 -> 0 | N87: =E8 -> 0
K88: Project Length (ft.) | M88: =ABS((C9-C10)*C11*5280) -> 0 | N88: =ABS((E9-E10)*E11*5280) -> 0
K89: # of 52.8' Segments | M89: =M88/52.8 -> 0 | N89: =N88/52.8 -> 0
K91: No of Ops | M91: =IF(C20="yes",C21+1,C21) -> 0 | N91: =IF(E20="yes",E21+1,E21) -> 0
K92: OUTPUT
K93: Direction | M93: =C8 -> 0 | N93: =E8 -> 0
K94: AS | M94: 1 | N94: 1
K95: AO . AE | M95: =INDEX('Ai factors'!A17:E1460,MATCH(C19,'Ai factors'!A18:A1461,0),(M91+1)) -> 0 | N95: =INDEX('Ai factors'!A17:E1460,MATCH(E19,'Ai factors'!A18:A1461,0),(N91+1)) -> 0
K96: AC | M96: =IF(C22="no",1,IF(C23="no",1.05,1)) -> 1 | N96: =IF(E22="no",1,IF(E23="no",1.05,1)) -> 1
K98: Discrete Pay Adjustment ($) | N98: =R12 -> 0
K99: IRI | N99: PA
K100: =MIN(CJ19,CJ34) -> 0 | N100: =IF(K100>$C$47,"",(IF(K100<=$C$42,#REF!,IF(AND(K100>=$C$42,K100< ($C$45-$E$35)),($C$43-($C$44*K100)),IF(AND(K100>=($C$45-$E$35),K100<=($C$45+$E$39)),0,IF(AND(K100>($C$45+$E$39),K100<=$C$47),((K100-($C$45+$E$39))*($C$48)),"R&R")))))) -> 
K101: 30 | N101: =IF(K101>$C$47,"",(IF(K101<=$C$42,#REF!,IF(AND(K101>=$C$42,K101< ($C$45-$E$35)),($C$43-($C$44*K101)),IF(AND(K101>=($C$45-$E$35),K101<=($C$45+$E$39)),0,IF(AND(K101>($C$45+$E$39),K101<=$C$47),((K101-($C$45+$E$39))*($C$48)),"R&R")))))) -> 
K102: =ROUND(K103-(K104-K100)/4,0) ->  | N102: =IF(K102>$C$47,"",(IF(K102<=$C$42,#REF!,IF(AND(K102>=$C$42,K102< ($C$45-$E$35)),($C$43-($C$44*K102)),IF(AND(K102>=($C$45-$E$35),K102<=($C$45+$E$39)),0,IF(AND(K102>($C$45+$E$39),K102<=$C$47),((K102-($C$45+$E$39))*($C$48)),"R&R")))))) -> 
K103: =ROUND((K104-(K104-K100)/4),0) ->  | N103: =IF(K103>$C$47,"",(IF(K103<=$C$42,#REF!,IF(AND(K103>=$C$42,K103< ($C$45-$E$35)),($C$43-($C$44*K103)),IF(AND(K103>=($C$45-$E$35),K103<=($C$45+$E$39)),0,IF(AND(K103>($C$45+$E$39),K103<=$C$47),((K103-($C$45+$E$39))*($C$48)),"R&R")))))) -> 
K104: =MIN(CH21,CH38) ->  | N104: =IF(K104>$C$47,"",(IF(K104<=$C$42,#REF!,IF(AND(K104>=$C$42,K104< ($C$45-$E$35)),($C$43-($C$44*K104)),IF(AND(K104>=($C$45-$E$35),K104<=($C$45+$E$39)),0,IF(AND(K104>($C$45+$E$39),K104<=$C$47),((K104-($C$45+$E$39))*($C$48)),"R&R")))))) -> 
K105: =MAX(CJ38,CJ21) ->  | N105: =IF(K105>$C$47,"",(IF(K105<=$C$42,#REF!,IF(AND(K105>=$C$42,K105< ($C$45-$E$35)),($C$43-($C$44*K105)),IF(AND(K105>=($C$45-$E$35),K105<=($C$45+$E$39)),0,IF(AND(K105>($C$45+$E$39),K105<=$C$47),((K105-($C$45+$E$39))*($C$48)),"R&R")))))) -> 
K106: =ROUND(K105+((K109-K105)/4),0) ->  | N106: =IF(K106>$C$47,"",(IF(K106<=$C$42,#REF!,IF(AND(K106>=$C$42,K106< ($C$45-$E$35)),($C$43-($C$44*K106)),IF(AND(K106>=($C$45-$E$35),K106<=($C$45+$E$39)),0,IF(AND(K106>($C$45+$E$39),K106<=$C$47),((K106-($C$45+$E$39))*($C$48)),"R&R")))))) -> 
K107: =ROUND(K106+(K109-K105)/4,0) ->  | N107: =IF(K107>$C$47,"",(IF(K107<=$C$42,#REF!,IF(AND(K107>=$C$42,K107< ($C$45-$E$35)),($C$43-($C$44*K107)),IF(AND(K107>=($C$45-$E$35),K107<=($C$45+$E$39)),0,IF(AND(K107>($C$45+$E$39),K107<=$C$47),((K107-($C$45+$E$39))*($C$48)),"R&R")))))) -> 
K108: =MIN(CH23,CH40) -> 0 | N108: =IF(K108>$C$47,"",(IF(K108<=$C$42,#REF!,IF(AND(K108>=$C$42,K108< ($C$45-$E$35)),($C$43-($C$44*K108)),IF(AND(K108>=($C$45-$E$35),K108<=($C$45+$E$39)),0,IF(AND(K108>($C$45+$E$39),K108<=$C$47),((K108-($C$45+$E$39))*($C$48)),"R&R")))))) -> 
K109: =MAX(CH40,CH23) -> 0 | N109: =IF(K109>$C$47,"",(IF(K109<=$C$42,#REF!,IF(AND(K109>=$C$42,K109< ($C$45-$E$35)),($C$43-($C$44*K109)),IF(AND(K109>=($C$45-$E$35),K109<=($C$45+$E$39)),0,IF(AND(K109>($C$45+$E$39),K109<=$C$47),((K109-($C$45+$E$39))*($C$48)),"R&R")))))) -> 
B155: Version: | C155: 3.00W
B156: Information last updated on: | C156: April 30, 2014
B158: =CONCATENATE(B155," ",C155) -> Version: 3.00W
B159: =CONCATENATE(B156," ",(C156)) -> Information last updated on: April 30, 2014
B177: =TODAY() -> 2019-05-14
A200: 30 | B200: 30 | C200: 30 | D200: 30
A201: 19 | B201: 19 | C201: 19 | D201: 19
A202: =MAX(A200:B200) -> 30 | C202: =MAX(C200:D200) -> 30

Sheet Impediments (hidden)
V1: 1
A2: IM- Enter total number of manholes/inlets/utilities. | V2: 2
A3: SR and BDO: Enter total number structures not overlaid or overlaid in SR and BDO respectively. 100 ft will be excluded for each structure. Actual limits of Structure not paved will be determined during pay adjustment calculation by vedio review and actual length will be excluded. For Bridge Deck Overlay (BDO), Equation in table "B" of the spec will be used for pay adjustment calculations. Actaul limits/length of paved surface will be determined during pay adjustment calculation by Video review. | V3: 3
V4: 4
V5: 5
A6: SAVE YOUR SURVEY SHEETS (LOCATION OF IMPEDIMENTS) FOR REVIEW | S6: NOTES
A7: =CONCATENATE('Calculation sheet'!C1," from milepost ",'Calculation sheet'!C9," to milepost ",'Calculation sheet'!C10," ",'Calculation sheet'!C8) -> from milepost to milepost | J7: =CONCATENATE('Calculation sheet'!C1," from milepost ",'Calculation sheet'!E9," to milepost ",'Calculation sheet'!E10," ",'Calculation sheet'!E8) -> from milepost to milepost
A8: Number of Lanes | C8: 1 | J8: Number of Lanes | L8: 1
A9: IM | J9: IM
A10: Types of Localized Factors | D10: Number of manholes/Inlet | J10: Types of Localized Factors | M10: Number of manholes/Inlet
A11: Lane No. from left in the dir of traffic | D11: =IF($C$8>1,1,1) -> 1 | E11: =IF($C$8=1,"",(IF($C$8>1,2,""))) ->  | F11: =IF($C$8<3,"",(IF($C$8>3,3,3))) ->  | G11: =IF($C$8<4,"",(IF($C$8>4,4,4))) ->  | H11: =IF($C$8<5,"",(IF($C$8>5,5,5))) ->  | J11: Lane No. from left in the dir of traffic | M11: =IF($L$8>1,1,1) -> 1 | N11: =IF($L$8=1,"",(IF($L$8>1,2,""))) ->  | O11: =IF($L$8<3,"",(IF($L$8>3,3,3))) ->  | P11: =IF($L$8<4,"",(IF($L$8>4,4,4))) ->  | Q11: =IF($L$8<5,"",(IF($L$8>5,5,5))) -> 
A12: IM-# of Occurances | J12: IM-# of Occurances
A13: Total Exclusions for IM | D13: =IF(D11=1,(ROUNDUP(D12*'Ai factors'!$I$20*2/52.8,0)),"") -> 0 | E13: =IF(E11=2,(ROUNDUP(E12*'Ai factors'!$I$20*2/52.8,0)),"") ->  | F13: =IF(F11=3,(ROUNDUP(F12*'Ai factors'!$I$20*2/52.8,0)),"") ->  | G13: =IF(G11=4,(ROUNDUP(G12*'Ai factors'!$I$20*2/52.8,0)),"") ->  | H13: =IF(H11=5,(ROUNDUP(H12*'Ai factors'!$I$20*2/52.8,0)),"") ->  | J13: Total Exclusions for IM | M13: =IF(M11=1,(ROUNDUP(M12*'Ai factors'!$I$20*2/52.8,0)),"") -> 0 | N13: =IF(N11=2,(ROUNDUP(N12*'Ai factors'!$I$20*2/52.8,0)),"") ->  | O13: =IF(O11=3,(ROUNDUP(O12*'Ai factors'!$I$20*2/52.8,0)),"") ->  | P13: =IF(P11=4,(ROUNDUP(P12*'Ai factors'!$I$20*2/52.8,0)),"") ->  | Q13: =IF(Q11=5,(ROUNDUP(Q12*'Ai factors'!$I$20*2/52.8,0)),"") -> 
A15: SHORT SECTIONS (SS) | J15: SHORT SECTIONS (SS)
A16: Types of Localized Factors | D16: Total length of Short Section | J16: Types of Localized Factors | M16: Total length of Short Section
A17: Lane No. from left in the dir of traffic | D17: =IF($C$8>1,1,1) -> 1 | E17: =IF($C$8=1,"",(IF($C$8>1,2,""))) ->  | F17: =IF($C$8<3,"",(IF($C$8>3,3,3))) ->  | G17: =IF($C$8<4,"",(IF($C$8>4,4,4))) ->  | H17: =IF($C$8<5,"",(IF($C$8>5,5,5))) ->  | J17: Lane No. from left in the dir of traffic | M17: =IF($L$8>1,1,1) -> 1 | N17: =IF($L$8=1,"",(IF($L$8>1,2,""))) ->  | O17: =IF($L$8<3,"",(IF($L$8>3,3,3))) ->  | P17: =IF($L$8<4,"",(IF($L$8>4,4,4))) ->  | Q17: =IF($L$8<5,"",(IF($L$8>5,5,5))) -> 
A18: SS, ft | J18: SS, ft
A19: Number of short Sections | J19: Number of short Sections
A20: Total Exclusions for SS | D20: =IF(D17=1,(ROUNDUP((D19*'Ai factors'!$I$21+D18)/52.8,0)),"") -> 0 | E20: =IF(E17=2,(ROUNDUP((E19*'Ai factors'!$I$21+E18)/52.8,0)),"") ->  | F20: =IF(F17=3,(ROUNDUP((F19*'Ai factors'!$I$21+F18)/52.8,0)),"") ->  | G20: =IF(G17=4,(ROUNDUP((G19*'Ai factors'!$I$21+G18)/52.8,0)),"") ->  | H20: =IF(H17=5,(ROUNDUP((H19*'Ai factors'!$I$21+H18)/52.8,0)),"") ->  | J20: Total Exclusions for SS | M20: =IF(M17=1,(ROUNDUP((M19*'Ai factors'!$I$21+M18)/52.8,0)),"") -> 0 | N20: =IF(N17=2,(ROUNDUP((N19*'Ai factors'!$I$21+N18)/52.8,0)),"") ->  | O20: =IF(O17=3,(ROUNDUP((O19*'Ai factors'!$I$21+O18)/52.8,0)),"") ->  | P20: =IF(P17=4,(ROUNDUP((P19*'Ai factors'!$I$21+P18)/52.8,0)),"") ->  | Q20: =IF(Q17=5,(ROUNDUP((Q19*'Ai factors'!$I$21+Q18)/52.8,0)),"") -> 
A22: STRUCTURES (SR) | J22: STRUCTURES (SR)
A23: Types of Localized Factors | D23: Number of Structures not Overlaid | J23: Types of Localized Factors | M23: Number of Structures not Overlaid
A24: Lane No. from left in the dir of traffic | D24: =IF($C$8>1,1,1) -> 1 | E24: =IF($C$8=1,"",(IF($C$8>1,2,""))) ->  | F24: =IF($C$8<3,"",(IF($C$8>3,3,3))) ->  | G24: =IF($C$8<4,"",(IF($C$8>4,4,4))) ->  | H24: =IF($C$8<5,"",(IF($C$8>5,5,5))) ->  | J24: Lane No. from left in the dir of traffic | M24: =IF($L$8>1,1,1) -> 1 | N24: =IF($L$8=1,"",(IF($L$8>1,2,""))) ->  | O24: =IF($L$8<3,"",(IF($L$8>3,3,3))) ->  | P24: =IF($L$8<4,"",(IF($L$8>4,4,4))) ->  | Q24: =IF($L$8<5,"",(IF($L$8>5,5,5))) -> 
A25: # of Strs with Bared concrete deck | J25: # of Strs with Bared concrete deck
A26: Total Exclusions for Str Not overlaid | D26: =IF(D24=1,(ROUNDUP(D25*'Ai factors'!$I$22*2/52.8,0)),"") -> 0 | E26: =IF(E24=2,(ROUNDUP(E25*'Ai factors'!$I$22*2/52.8,0)),"") ->  | F26: =IF(F24=3,(ROUNDUP(F25*'Ai factors'!$I$22*2/52.8,0)),"") ->  | G26: =IF(G24=4,(ROUNDUP(G25*'Ai factors'!$I$22*2/52.8,0)),"") ->  | H26: =IF(H24=5,(ROUNDUP(H25*'Ai factors'!$I$22*2/52.8,0)),"") ->  | J26: Total Exclusions for Str Not overlaid | M26: =IF(M24=1,(ROUNDUP(M25*'Ai factors'!$I$22*2/52.8,0)),"") -> 0 | N26: =IF(N24=2,(ROUNDUP(N25*'Ai factors'!$I$22*2/52.8,0)),"") ->  | O26: =IF(O24=3,(ROUNDUP(O25*'Ai factors'!$I$22*2/52.8,0)),"") ->  | P26: =IF(P24=4,(ROUNDUP(P25*'Ai factors'!$I$22*2/52.8,0)),"") ->  | Q26: =IF(Q24=5,(ROUNDUP(Q25*'Ai factors'!$I$22*2/52.8,0)),"") -> 
A28: BRIDGE DECK OVERLAY (BDO) | J28: BRIDGE DECK OVERLAY (BDO)
A29: Types of Localized Factors | D29: Number of Structures Overlaid | J29: Types of Localized Factors | M29: Number of Structures Overlaid
A30: Lane No. from left in the dir of traffic | D30: =IF($C$8>1,1,1) -> 1 | E30: =IF($C$8=1,"",(IF($C$8>1,2,""))) ->  | F30: =IF($C$8<3,"",(IF($C$8>3,3,3))) ->  | G30: =IF($C$8<4,"",(IF($C$8>4,4,4))) ->  | H30: =IF($C$8<5,"",(IF($C$8>5,5,5))) ->  | J30: Lane No. from left in the dir of traffic | M30: =IF($L$8>1,1,1) -> 1 | N30: =IF($L$8=1,"",(IF($L$8>1,2,""))) ->  | O30: =IF($L$8<3,"",(IF($L$8>3,3,3))) ->  | P30: =IF($L$8<4,"",(IF($L$8>4,4,4))) ->  | Q30: =IF($L$8<5,"",(IF($L$8>5,5,5))) -> 
A31: Number of Structures Overlaid | D31: 0 | E31: 0 | F31: 0 | G31: 0 | H31: 0 | J31: Number of Structures Overlaid | M31: 0 | N31: 0 | O31: 0 | P31: 0 | Q31: 0
A32: Total Exclusions for Str Overlaid | D32: =IF(D30=1,(ROUNDUP(D31*'Ai factors'!$I$23*2/52.8,0)),"") -> 0 | E32: =IF(E30=2,(ROUNDUP(E31*'Ai factors'!$I$23*2/52.8,0)),"") ->  | F32: =IF(F30=3,(ROUNDUP(F31*'Ai factors'!$I$23*2/52.8,0)),"") ->  | G32: =IF(G30=4,(ROUNDUP(G31*'Ai factors'!$I$23*2/52.8,0)),"") ->  | H32: =IF(H30=5,(ROUNDUP(H31*'Ai factors'!$I$23*2/52.8,0)),"") ->  | J32: Total Exclusions for IM | M32: =IF(M30=1,(ROUNDUP(M31*'Ai factors'!$I$23*2/52.8,0)),"") -> 0 | N32: =IF(N30=2,(ROUNDUP(N31*'Ai factors'!$I$23*2/52.8,0)),"") ->  | O32: =IF(O30=3,(ROUNDUP(O31*'Ai factors'!$I$23*2/52.8,0)),"") ->  | P32: =IF(P30=4,(ROUNDUP(P31*'Ai factors'!$I$23*2/52.8,0)),"") ->  | Q32: =IF(Q30=5,(ROUNDUP(Q31*'Ai factors'!$I$23*2/52.8,0)),"") -> 
A33: SUMMARY
A35: TOTAL EXCLUSIONS | J35: TOTAL EXCLUSIONS
A36: =A7 -> from milepost to milepost | J36: =J7 -> from milepost to milepost
A37: Lane No. from left in the dir of traffic | D37: =D17 -> 1 | E37: =E17 ->  | F37: =F17 ->  | G37: =G17 ->  | H37: =H17 ->  | J37: Lane No. from left in the dir of traffic | M37: =M17 -> 1 | N37: =N17 ->  | O37: =O17 ->  | P37: =P17 ->  | Q37: =Q17 -> 
A38: IM (Manholes, Inlets) | B38: # of Occurances | D38: =IF(D37=1,D12,"-") -> 0 | E38: =IF(E37=2,E12,"-") -> - | F38: =IF(F37=3,F12,"-") -> - | G38: =IF(G37=4,G12,"-") -> - | H38: =IF(H37=5,H12,"-") -> - | J38: IM (Manholes, Inlets) | K38: # of Occurances | M38: =IF(M37=1,M12,"-") -> 0 | N38: =IF(N37=2,N12,"-") -> - | O38: =IF(O37=3,O12,"-") -> - | P38: =IF(P37=4,P12,"") ->  | Q38: =IF(Q37=5,Q12,"-") -> -
B39: Exclusions | D39: =IF(D37=1,D13,"-") -> 0 | E39: =IF(E37=2,E13,"-") -> - | F39: =IF(F37=3,F13,"-") -> - | G39: =IF(G37=4,G13,"-") -> - | H39: =IF(H37=5,H13,"-") -> - | K39: Exclusions | M39: =IF(M37=1,M13,"-") -> 0 | N39: =IF(N37=2,N13,"-") -> - | O39: =IF(O37=3,O13,"-") -> - | P39: =IF(P37=4,P13,"-") -> - | Q39: =IF(Q37=5,Q13,"-") -> -
A40: SS (Short Sections) | B40: # of Occurances | D40: =IF(D37=1,D19,"-") -> 0 | E40: =IF(E37=2,E19,"-") -> - | F40: =IF(F37=3,F19,"-") -> - | G40: =IF(G37=4,G19,"-") -> - | H40: =IF(H37=5,H19,"-") -> - | J40: SS (Short Sections) | K40: # of Occurances | M40: =IF(M37=1,M19,"-") -> 0 | N40: =IF(N37=2,N19,"-") -> - | O40: =IF(O37=3,O19,"-") -> - | P40: =IF(P37=4,P19,"-") -> - | Q40: =IF(Q37=5,Q19,"-") -> -
B41: Exclusions | D41: =IF(D37=1,D20,"-") -> 0 | E41: =IF(E37=2,E20,"-") -> - | F41: =IF(F37=3,F20,"-") -> - | G41: =IF(G37=4,G20,"-") -> - | H41: =IF(H37=5,H20,"-") -> - | K41: Exclusions | M41: =IF(M37=1,M20,"-") -> 0 | N41: =IF(N37=2,N20,"-") -> - | O41: =IF(O37=3,O20,"-") -> - | P41: =IF(P37=4,P20,"-") -> - | Q41: =IF(Q37=5,Q20,"-") -> -
A42: SR (Structure) | B42: # of Occurances | D42: =IF(D37=1,D25,"") -> 0 | E42: =IF(E37=2,E25,"-") -> - | F42: =IF(F37=3,F25,"-") -> - | G42: =IF(G37=4,G25,"-") -> - | H42: =IF(H37=5,H25,"-") -> - | J42: SR (Structure) | K42: # of Occurances | M42: =IF(M37=1,M25,"-") -> 0 | N42: =IF(N37=2,N25,"-") -> - | O42: =IF(O37=3,O25,"-") -> - | P42: =IF(P37=4,P25,"-") -> - | Q42: =IF(Q37=5,Q25,"-") -> -
B43: Exclusions | D43: =IF(D37=1,D26,"-") -> 0 | E43: =IF(E37=2,E26,"-") -> - | F43: =IF(F37=3,F26,"-") -> - | G43: =IF(G37=4,G26,"-") -> - | H43: =IF(H37=5,H26,"-") -> - | K43: Exclusions | M43: =IF(M37=1,M26,"-") -> 0 | N43: =IF(N37=2,N26,"-") -> - | O43: =IF(O37=3,O26,"-") -> - | P43: =IF(P37=4,P26,"-") -> - | Q43: =IF(Q37=5,Q26,"-") -> -
A44: BDO (Bridge Deck Overlay) | B44: # of Occurances | D44: =IF(D37=1,D31,"") -> 0 | E44: =IF(E37=2,E31,"") ->  | F44: =IF(F37=3,F31,"") ->  | G44: =IF(G37=4,G31,"") ->  | H44: =IF(H37=5,H31,"") ->  | J44: BDO (Bridge Deck Overlay) | K44: # of Occurances | M44: =IF(M37=1,M31,"") -> 0 | N44: =IF(N37=2,N31,"") ->  | O44: =IF(O37=3,O31,"") ->  | P44: =IF(P37=4,P31,"") ->  | Q44: =IF(Q37=5,Q31,"") -> 
B45: Exclusions | D45: =IF(D37=1,D32,"-") -> 0 | E45: =IF(E37=2,E32,"-") -> - | F45: =IF(F37=3,F32,"-") -> - | G45: =IF(G37=4,G32,"-") -> - | H45: =IF(H37=5,H32,"-") -> - | K45: Exclusions | M45: =IF(M37=1,M32,"-") -> 0 | N45: =IF(N37=2,N32,"-") -> - | O45: =IF(O37=3,O32,"") ->  | P45: =IF(P37=4,P32,"") ->  | Q45: =IF(Q37=5,Q32,"") -> 
A46: TOTAL EXCLUSIONS | D46: =IF(D37=1,D39+D41+D43+1,"-") -> 1 | E46: =IF(E37=2,E39+E41+E43+1,"-") -> - | F46: =IF(F37=3,F39+F41+F43+1,"-") -> - | G46: =IF(G37=4,G39+G41+G43+1,"-") -> - | H46: =IF(H37=5,H39+H41+H43+1,"-") -> - | J46: TOTAL EXCLUSIONS | M46: =IF(M37=1,M39+M41+M43+1,"-") -> 1 | N46: =IF(N37=2,N39+N41+N43+1,"-") -> - | O46: =IF(O37=3,O39+O41+O43+1,"-") -> - | P46: =IF(P37=4,P39+P41+P43+1,"-") -> - | Q46: =IF(Q37=5,Q39+Q41+Q43+1,"-") -> -

Sheet Localized Factor Worksheet (hidden)
B1: Types of Localized Factors | D1: Localized Factor | F1: MILE | Q1: Types of Localized Factors | T1: Localized Factor | AE1: =B12 -> 0 | AK1: =Q12 -> 0 | GS1: 1 | GU1: 1 | GV1: 1 | GZ1: Number of Lanes from Lane | IC1: =C48 -> Exclusion Distribution in Lanes
B2: Impediment | D2: IM | F2: FT | Q2: Impediment | T2: IM | AE2: =H14 -> TJ | AF2: =I14 -> IM | AG2: =J14 -> SR | AH2: =K14 -> SS | AI2: =M14 -> RR | AK2: =W14 -> TJ | AL2: =X14 -> IM | AM2: =Y14 -> SR | AN2: =Z14 -> SS | AO2: =AA14 -> RR | GS2: 2 | GU2: =IF(GU6>1,2,"") ->  | GV2: =IF(GV6>1,2,"") ->  | GZ2: Primary | HA2: Sec | HZ2: Lane | IA2: =F49 -> 1 | IB2: =G49 ->  | IC2: =H49 ->  | ID2: =I49 ->  | IE2: =J49 ->  | IH2: =T49 -> 1 | II2: =U49 ->  | IJ2: =V49 ->  | IK2: =W49 ->  | IL2: =X49 -> 
B3: Structures | D3: SR | Q3: Structures | T3: SR | AE3: =H41 -> 0 | AF3: =I41 -> 0 | AG3: 0 | AH3: =K41 -> 0 | AI3: =M41 -> 0 | AK3: =W41 -> 0 | AL3: 0 | AM3: 0 | AN3: 0 | AO3: =AB41 -> 0 | AP3: =Q42 -> # of Occurrence | GS3: 3 | GU3: =IF(GU6>2,3,"") ->  | GV3: =IF(GV6>2,3,"") ->  | GZ3: =Lane!Q16 -> 5 | HZ3: IM | IA3: =F56 -> 0 | IB3: =G56 -> - | IC3: =H56 -> - | ID3: =I56 -> - | IE3: =J56 -> - | IH3: =T56 -> 0 | II3: =U56 -> - | IJ3: =V56 -> - | IK3: =W56 -> - | IL3: =X56 -> -
A4: 3 | B4: Short Segments | D4: SS | Q4: Short Segments | T4: SS | AE4: =H42 -> 0 | AF4: =I42 -> 0 | AG4: 0 | AH4: 0 | AI4: =M42 -> 0 | AK4: 0 | AL4: 0 | AM4: 0 | AN4: 0 | AO4: =AB42 -> 0 | AP4: =Q43 -> Average Exclusion (Ft.) | GS4: 4 | GU4: =IF(GU6>3,4,"") ->  | GV4: =IF(GV6>3,4,"") ->  | GZ4: =Lane!Q17 -> 5 | HZ4: SR | IA4: =F60 -> 0 | IB4: =G60 -> - | IC4: =H60 -> - | ID4: =I60 -> - | IE4: =J60 -> - | IH4: =T60 -> 0 | II4: =U60 -> - | IJ4: =V60 -> - | IK4: =W60 -> - | IL4: =X60 -> -
B5: Rail Road | D5: RR | Q5: Rail Road | T5: RR | GS5: 5 | GU5: =IF(GU6>4,5,"") ->  | GV5: =IF(GV6>4,5,"") ->  | HZ5: SS | IA5: =T68 -> 0 | IB5: =U68 -> - | IC5: =V68 -> - | ID5: =W68 -> - | IE5: =X68 -> - | IH5: =T68 -> 0 | II5: =U68 -> - | IJ5: =V68 -> - | IK5: =W68 -> - | IL5: =X68 -> -
B6: Transverse Joint | D6: TJ | Q6: Transverse Joint | T6: TJ | GU6: =MAX(E15:E39) -> 0 | GV6: =MAX(T15:T39) -> 0 | HZ6: BDO | IA6: =F64 -> 0 | IB6: =G64 -> 0 | IC6: =H64 -> 0 | ID6: =I64 -> 0 | IE6: =J64 -> 0 | IH6: =T64 -> 0 | II6: =U64 -> 0 | IJ6: =V64 -> 0 | IK6: =W64 -> 0 | IL6: =X64 -> 0
AE7: =F50+G50+H50+I50+J50 -> 52 | AF7: =F54+G54+H54+I54+J54 -> 0 | AG7: =F58+G58+H58+I58+J58 -> 0 | AH7: =SUM(F66:J66) -> 0 | AI7: =SUM(F70:J70) -> 0 | AK7: =SUM(T50:X50) -> 0 | AL7: =SUM(T54:X54) -> 0 | AM7: =SUM(T58:X58) -> 0 | AN7: =SUM(T66:X66) -> 0 | AO7: =SUM(T70:X70) -> 0 | GY7: ='Localized Factor Worksheet'!J38 ->  | HA7: ='Ai factors'!I24 -> 52 | HZ7: TOTAL | IA7: =F73 -> 1 | IB7: =G73 ->  | IC7: =H73 ->  | ID7: =I73 ->  | IE7: =J73 ->  | IH7: =T73 -> 0 | II7: =U73 ->  | IJ7: =V73 ->  | IK7: =W73 ->  | IL7: =X73 -> 
B8: Measurements Miles (Mi) or Feet (Ft) | Q8: Measurements Miles (Mi) or Feet (Ft) | AE8: =F51+G51+H51+I51+J51 -> 1 | AF8: =F55+G55+H55+I55+J55 -> 0 | AG8: =F59+G59+H59+I59+J59 -> 0 | AH8: =SUM(F67:J67) -> 0 | AI8: =SUM(F71:J71) -> 0 | AK8: =SUM(T51:X51) -> 0 | AL8: =SUM(T55:X55) -> 0 | AM8: =SUM(T59:X59) -> 0 | AN8: =SUM(T67:X67) -> 0 | AO8: =SUM(T71:X71) -> 0
B9: Measurements in: | E9: FT | Q9: Measurements in: | T9: MILE | GZ9: =GT16 -> 0 | NG9: Do not use "+" sign for Station. For example- 203+50 , input 20350.
B10: =IF(E9="FT",NG9,"") -> Do not use "+" sign for Station. For example- 203+50 , input 20350. | Q10: =IF(T9="FT",NG9,"") -> 
B12: ='Calculation sheet'!C8 -> 0 | N12: Remarks | Q12: ='Calculation sheet'!E8 -> 0 | AC12: Remarks | GO12: =GS15 -> 
B13: Localized Factor | C13: From | D13: To | E13: Lane | F13: Threshold (Ft) | G13: Exclusion (Ft) | H13: Localized Factor Summary | Q13: Localized Factor | R13: From | S13: To | T13: Lane | U13: Threshold (Ft) | V13: Exclusion (Ft) | W13: Localized Factor Summary | GO13: North Bound | HO13: =Q12 -> 0
H14: TJ | I14: IM | J14: SR | K14: SS | L14: =D5 -> RR | M14: RR | W14: TJ | X14: IM | Y14: SR | Z14: SS | AA14: =T5 -> RR | AB14: RR | GO14: RR | GT14: IM | GY14: SR | HD14: SS | HI14: TJ | HO14: IM | HT14: SR | HY14: SS | ID14: TJ | II14: RR
GO15: =GU1 -> 1 | GP15: =GU2 ->  | GQ15: =GU3 ->  | GR15: =GU4 ->  | GS15: =GU5 ->  | GT15: =GU1 -> 1 | GU15: =GU2 ->  | GV15: =GU3 ->  | GW15: =GU4 ->  | GX15: =GU5 ->  | GY15: =GU1 -> 1 | GZ15: =GU2 ->  | HA15: =GU3 ->  | HB15: =GU4 ->  | HC15: =GU5 ->  | HD15: =GU1 -> 1 | HE15: =GU2 ->  | HF15: =GU3 ->  | HG15: =GU4 ->  | HH15: =GU5 ->  | HI15: =GU1 -> 1 | HJ15: =GU2 ->  | HK15: =GU3 ->  | HL15: =GU4 ->  | HM15: =GU5 ->  | HO15: =GV1 -> 1 | HP15: =GV2 ->  | HQ15: =GV3 ->  | HR15: =GV4 ->  | HS15: =GV5 ->  | HT15: =GV1 -> 1 | HU15: =GV2 ->  | HV15: =GV3 ->  | HW15: =GV4 ->  | HX15: =GV5 ->  | HY15: =GV1 -> 1 | HZ15: =GV2 ->  | IA15: =GV3 ->  | IB15: =GV4 ->  | IC15: =GV5 ->  | ID15: =GV1 -> 1 | IE15: =GV2 ->  | IF15: =GV3 ->  | IG15: =GV4 ->  | IH15: =GV5 ->  | II15: =GV1 -> 1 | IJ15: =GV2 ->  | IK15: =GV3 ->  | IL15: =GV4 ->  | IM15: =GV5 -> 
B16: TJ | C16: All Lanes | F16: =IF(B16="IM",'Ai factors'!$I$20,(IF(B16="SR",'Ai factors'!$I$22,(IF(B16="ss",'Ai factors'!$I$21,(IF(B16="rr",'Ai factors'!$I$23,IF(B16="tj",'Ai factors'!$I$24,0)))))))) -> 52 | G16: =IF($E$9="FT",(IF(B16="ss",2*F16+ABS(C16-D16),IF(B16="RR",2*F16+ABS(C16-D16),F16))),((IF(B16="ss",2*F16+5280*ABS(C16-D16),IF(B16="RR",2*F16+5280*ABS(C16-D16),F16))))) -> 52 | H16: =IF(B16="TJ",G16,"") -> 52 | I16: =IF(B16="IM",G16,"") ->  | J16: =IF(B16="SR",G16,"") ->  | K16: =IF(B16="SS",G16,"") ->  | L16: =IF(C16="SS",H16,"") ->  | M16: =IF(B16="RR",G16,"") ->  | N16: Transverse Joint at the begiining and end of project. | Q16: TJ | R16: All Lanes | U16: =IF(Q16="IM",'Ai factors'!$I$20,(IF(Q16="SR",'Ai factors'!$I$22,(IF(Q16="ss",'Ai factors'!$I$21,(IF(Q16="rr",'Ai factors'!$I$23,IF(Q16="tj",'Ai factors'!$I$24,0)))))))) -> 52 | V16: =IF($T$9="FT",(IF(Q16="ss",2*U16+ABS(R16-S16),IF(Q16="RR",2*U16+ABS(R16-S16),U16))),((IF(Q16="ss",2*U16+5280*ABS(R16-S16),IF(Q16="RR",2*U16+5280*ABS(R16-S16),U16))))) -> 52 | W16: =IF(Q16="TJ",V16,"") -> 52 | X16: =IF(Q16="IM",V16,"") ->  | Y16: =IF(Q16="SR",V16,"") ->  | Z16: =IF(Q16="SS",V16,"") ->  | AA16: =IF(R16="SS",W16,"") ->  | AB16: =IF(Q16="RR",V16,"") ->  | AC16: Transverse Joint at begiining and end of project. | GO16: =IF($E16=$GO$15,$M16,0) -> 0 | GP16: =IF($E16=$GP$15,$M16,0) ->  | GQ16: =IF($E16=$GQ$15,$M16,0) ->  | GR16: =IF($E16=$GR$15,$M16,0) ->  | GS16: =IF($E16=$GS$15,$M16,0) ->  | GT16: =IF($GU$1=$E16,$I16,0) -> 0 | GU16: =IF($GU$2=$E16,$I16,0) ->  | GV16: =IF($GU$3=$E16,$I16,0) ->  | GW16: =IF($GU$4=$E16,$I16,0) ->  | GX16: =IF($GU$5=$E16,$I16,0) ->  | GY16: =IF(E16=$GY$15,J16,0) -> 0 | GZ16: =IF(E16=$GZ$15,J16,0) ->  | HA16: =IF(E16=$HA$15,J16,0) ->  | HB16: =IF(E16=$HB$15,J16,0) ->  | HC16: =IF(E16=$HC$15,J16,0) ->  | HD16: =IF($E16=$HD$15,$K16,0) -> 0 | HE16: =IF($E16=$HE$15,$K16,0) ->  | HF16: =IF($E16=$HF$15,$K16,0) ->  | HG16: =IF($E16=$HG$15,$K16,0) ->  | HH16: =IF($E16=$HH$15,$K16,0) ->  | HI16: ='Ai factors'!I24 -> 52 | HJ16: =IF($GU$6>1,'Ai factors'!I24,0) -> 0 | HK16: =IF($GU$6>2,'Ai factors'!I24,0) -> 0 | HL16: =IF($GU$6>3,'Ai factors'!I24,0) -> 0 | HM16: =IF($GU$5=5,'Ai factors'!I24,0) -> 0 | HO16: =IF(T16=$HO$15,X16,0) -> 0 | HP16: =IF(T16=$HP$15,X16,0) ->  | HQ16: =IF(T16=$HQ$15,X16,0) ->  | HR16: =IF(T16=$HR$15,X16,0) ->  | HS16: =IF(T16=$HS$15,X16,0) ->  | HT16: =IF(T16=$HT$15,Y16,0) -> 0 | HU16: =IF(T16=$HU$15,Y16,0) ->  | HV16: =IF(T16=$HV$15,Y16,0) ->  | HW16: =IF(T16=$HW$15,Y16,0) ->  | HX16: =IF(T16=$HX$15,Y16,0) ->  | HY16: =IF($T16=$HY$15,$Z16,0) -> 0 | HZ16: =IF($T16=$HZ$15,$Z16,0) ->  | IA16: =IF($T16=$IA$15,$Z16,0) ->  | IB16: =IF($T16=$IB$15,$Z16,0) ->  | IC16: =IF($T16=$IC$15,$Z16,0) ->  | ID16: =IF($GV$6>1,'Ai factors'!I24,0) -> 0 | IE16: =IF($GV$6>1,'Ai factors'!I24,0) -> 0 | IF16: =IF($GV$6>2,'Ai factors'!I24,0) -> 0 | IG16: =IF($GV$6>3,'Ai factors'!I24,0) -> 0 | IH16: =IF($GV$6=5,'Ai factors'!I24,0) -> 0 | II16: =IF($T15=II$15,$AB15,0) -> 0 | IJ16: =IF($T15=IJ$15,$AB15,0) -> 0 | IK16: =IF($T15=IK$15,$AB15,0) -> 0 | IL16: =IF($T15=IL$15,$AB15,0) -> 0 | IM16: =IF($T15=IM$15,$AB15,0) -> 0
F17: =IF(B17="IM",'Ai factors'!$I$20,(IF(B17="SR",'Ai factors'!$I$22,(IF(B17="ss",'Ai factors'!$I$21,(IF(B17="rr",'Ai factors'!$I$23,IF(B17="tj",'Ai factors'!$I$24,0)))))))) -> 0 | G17: =IF($E$9="FT",(IF(B17="ss",2*F17+ABS(C17-D17),IF(B17="RR",2*F17+ABS(C17-D17),F17))),((IF(B17="ss",2*F17+5280*ABS(C17-D17),IF(B17="RR",2*F17+5280*ABS(C17-D17),F17))))) -> 0 | H17: =IF(B17="TJ",G17,"") ->  | I17: =IF(B17="IM",G17,"") ->  | J17: =IF(B17="SR",G17,"") ->  | K17: =IF(B17="SS",G17,"") ->  | L17: =IF(C17="SS",H17,"") ->  | M17: =IF(B17="RR",G17,"") ->  | U17: =IF(Q17="IM",'Ai factors'!$I$20,(IF(Q17="SR",'Ai factors'!$I$22,(IF(Q17="ss",'Ai factors'!$I$21,(IF(Q17="rr",'Ai factors'!$I$23,IF(Q17="tj",'Ai factors'!$I$24,0)))))))) -> 0 | V17: 0 | W17: =IF(Q17="TJ",V17,"") ->  | X17: =IF(Q17="IM",V17,"") ->  | Y17: =IF(Q17="SR",V17,"") ->  | Z17: =IF(Q17="SS",V17,"") ->  | AB17: =IF(Q17="RR",V17,"") ->  | GO17: =IF($E17=$GO$15,$M17,0) -> 0 | GP17: =IF($E17=$GP$15,$M17,0) ->  | GQ17: =IF($E17=$GQ$15,$M17,0) ->  | GR17: =IF($E17=$GR$15,$M17,0) ->  | GS17: =IF($E17=$GS$15,$M17,0) ->  | GT17: =IF($GU$1=$E17,$I17,0) -> 0 | GU17: =IF($GU$2=$E17,$I17,0) ->  | GV17: =IF($GU$3=$E17,$I17,0) ->  | GW17: =IF($GU$4=$E17,$I17,0) ->  | GX17: =IF($GU$5=$E17,$I17,0) ->  | GY17: =IF(E17=$GY$15,J17,0) -> 0 | GZ17: =IF(E17=$GZ$15,J17,0) ->  | HA17: =IF(E17=$HA$15,J17,0) ->  | HB17: =IF(E17=$HB$15,J17,0) ->  | HC17: =IF(E17=$HC$15,J17,0) ->  | HD17: 0 | HI17: =IF($E17=HI$15,H17,0) -> 0 | HJ17: =IF($E17=HJ$15,H17,0) ->  | HK17: =IF($E17=HK$15,H17,0) ->  | HL17: =IF($E17=HL$15,H17,0) ->  | HM17: =IF($E17=HM$15,$H17,0) ->  | HO17: =IF(T17=$HO$15,X17,0) -> 0 | HP17: =IF(T17=$HP$15,X17,0) ->  | HQ17: =IF(T17=$HQ$15,X17,0) ->  | HR17: =IF(T17=$HR$15,X17,0) ->  | HS17: =IF(T17=$HS$15,X17,0) ->  | HT17: =IF(T17=$HT$15,Y17,0) -> 0 | HU17: =IF(T17=$HU$15,Y17,0) ->  | HV17: =IF(T17=$HV$15,Y17,0) ->  | HW17: =IF(T17=$HW$15,Y17,0) ->  | HX17: =IF(T17=$HX$15,Y17,0) ->  | HY17: 0 | ID17: =IF($T17=$ID$15,$W17,0) -> 0 | IE17: =IF($T17=$IE$15,$W17,0) ->  | IF17: =IF($T17=$IF$15,$W17,0) ->  | IG17: =IF($T17=$IG$15,$W17,0) ->  | IH17: =IF($T17=$IH$15,$W17,0) ->  | II17: =IF($T16=II$15,$AB16,0) -> 0 | IJ17: =IF($T16=IJ$15,$AB16,0) ->  | IK17: =IF($T16=IK$15,$AB16,0) ->  | IL17: =IF($T16=IL$15,$AB16,0) ->  | IM17: =IF($T16=IM$15,$AB16,0) -> 
F18: =IF(B18="IM",'Ai factors'!$I$20,(IF(B18="SR",'Ai factors'!$I$22,(IF(B18="ss",'Ai factors'!$I$21,(IF(B18="rr",'Ai factors'!$I$23,IF(B18="tj",'Ai factors'!$I$24,0)))))))) -> 0 | G18: =IF($E$9="FT",(IF(B18="ss",2*F18+ABS(C18-D18),IF(B18="RR",2*F18+ABS(C18-D18),F18))),((IF(B18="ss",2*F18+5280*ABS(C18-D18),IF(B18="RR",2*F18+5280*ABS(C18-D18),F18))))) -> 0 | H18: =IF(B18="TJ",G18,"") ->  | I18: =IF(B18="IM",G18,"") ->  | J18: =IF(B18="SR",G18,"") ->  | K18: =IF(B18="SS",G18,"") ->  | L18: =IF(C18="SS",H18,"") ->  | M18: =IF(B18="RR",G18,"") ->  | U18: =IF(Q18="IM",'Ai factors'!$I$20,(IF(Q18="SR",'Ai factors'!$I$22,(IF(Q18="ss",'Ai factors'!$I$21,(IF(Q18="rr",'Ai factors'!$I$23,IF(Q18="tj",'Ai factors'!$I$24,0)))))))) -> 0 | V18: 0 | GO18: 0 | GT18: 0 | GY18: 0 | HD18: 0 | HI18: =IF($E18=HI$15,H18,0) -> 0 | HJ18: =IF($E18=HJ$15,H18,0) ->  | HK18: =IF($E18=HK$15,H18,0) ->  | HL18: =IF($E18=HL$15,H18,0) ->  | HM18: =IF($E18=HM$15,$H18,0) ->  | HO18: 0 | HT18: 0 | HY18: 0 | ID18: =IF($T18=$ID$15,$W18,0) -> 0 | IE18: =IF($T18=$IE$15,$W18,0) ->  | IF18: =IF($T18=$IF$15,$W18,0) ->  | IG18: =IF($T18=$IG$15,$W18,0) ->  | IH18: =IF($T18=$IH$15,$W18,0) ->  | II18: 0
F19: =IF(B19="IM",'Ai factors'!$I$20,(IF(B19="SR",'Ai factors'!$I$22,(IF(B19="ss",'Ai factors'!$I$21,(IF(B19="rr",'Ai factors'!$I$23,IF(B19="tj",'Ai factors'!$I$24,0)))))))) -> 0 | G19: 0 | U19: =IF(Q19="IM",'Ai factors'!$I$20,(IF(Q19="SR",'Ai factors'!$I$22,(IF(Q19="ss",'Ai factors'!$I$21,(IF(Q19="rr",'Ai factors'!$I$23,IF(Q19="tj",'Ai factors'!$I$24,0)))))))) -> 0 | V19: 0 | AD19: Medium Opening | GO19: 0 | GT19: 0 | GY19: 0 | HD19: 0 | HI19: 0 | HO19: 0 | HT19: 0 | HY19: 0 | ID19: 0 | II19: 0
F20: =IF(B20="IM",'Ai factors'!$I$20,(IF(B20="SR",'Ai factors'!$I$22,(IF(B20="ss",'Ai factors'!$I$21,(IF(B20="rr",'Ai factors'!$I$23,IF(B20="tj",'Ai factors'!$I$24,0)))))))) -> 0 | G20: 0 | U20: =IF(Q20="IM",'Ai factors'!$I$20,(IF(Q20="SR",'Ai factors'!$I$22,(IF(Q20="ss",'Ai factors'!$I$21,(IF(Q20="rr",'Ai factors'!$I$23,IF(Q20="tj",'Ai factors'!$I$24,0)))))))) -> 0 | V20: 0 | GO20: 0 | GT20: 0 | GY20: 0 | HD20: 0 | HI20: 0 | HO20: 0 | HT20: 0 | HY20: 0 | ID20: 0 | II20: 0
F21: =IF(B21="IM",'Ai factors'!$I$20,(IF(B21="SR",'Ai factors'!$I$22,(IF(B21="ss",'Ai factors'!$I$21,(IF(B21="rr",'Ai factors'!$I$23,IF(B21="tj",'Ai factors'!$I$24,0)))))))) -> 0 | G21: 0 | U21: =IF(Q21="IM",'Ai factors'!$I$20,(IF(Q21="SR",'Ai factors'!$I$22,(IF(Q21="ss",'Ai factors'!$I$21,(IF(Q21="rr",'Ai factors'!$I$23,IF(Q21="tj",'Ai factors'!$I$24,0)))))))) -> 0 | V21: 0 | GO21: 0 | GT21: 0 | GY21: 0 | HD21: 0 | HI21: 0 | HO21: 0 | HT21: 0 | HY21: 0 | ID21: 0 | II21: 0
F22: =IF(B22="IM",'Ai factors'!$I$20,(IF(B22="SR",'Ai factors'!$I$22,(IF(B22="ss",'Ai factors'!$I$21,(IF(B22="rr",'Ai factors'!$I$23,IF(B22="tj",'Ai factors'!$I$24,0)))))))) -> 0 | G22: 0 | U22: =IF(Q22="IM",'Ai factors'!$I$20,(IF(Q22="SR",'Ai factors'!$I$22,(IF(Q22="ss",'Ai factors'!$I$21,(IF(Q22="rr",'Ai factors'!$I$23,IF(Q22="tj",'Ai factors'!$I$24,0)))))))) -> 0 | V22: 0 | GO22: 0 | GT22: 0 | GY22: 0 | HD22: 0 | HI22: 0 | HO22: 0 | HT22: 0 | HY22: 0 | ID22: 0 | II22: 0
F23: =IF(B23="IM",'Ai factors'!$I$20,(IF(B23="SR",'Ai factors'!$I$22,(IF(B23="ss",'Ai factors'!$I$21,(IF(B23="rr",'Ai factors'!$I$23,IF(B23="tj",'Ai factors'!$I$24,0)))))))) -> 0 | G23: 0 | U23: =IF(Q23="IM",'Ai factors'!$I$20,(IF(Q23="SR",'Ai factors'!$I$22,(IF(Q23="ss",'Ai factors'!$I$21,(IF(Q23="rr",'Ai factors'!$I$23,IF(Q23="tj",'Ai factors'!$I$24,0)))))))) -> 0 | V23: 0 | AD23: Medium Opening | GO23: 0 | GT23: 0 | GY23: 0 | HD23: 0 | HI23: 0 | HO23: 0 | HT23: 0 | HY23: 0 | ID23: 0 | II23: 0
F24: =IF(B24="IM",'Ai factors'!$I$20,(IF(B24="SR",'Ai factors'!$I$22,(IF(B24="ss",'Ai factors'!$I$21,(IF(B24="rr",'Ai factors'!$I$23,IF(B24="tj",'Ai factors'!$I$24,0)))))))) -> 0 | G24: =IF($E$9="FT",(IF(B24="ss",2*F24+ABS(C24-D24),IF(B24="RR",2*F24+ABS(C24-D24),F24))),((IF(B24="ss",2*F24+5280*ABS(C24-D24),IF(B24="RR",2*F24+5280*ABS(C24-D24),F24))))) -> 0 | H24: =IF(B24="TJ",G24,"") ->  | I24: =IF(B24="IM",G24,"") ->  | J24: =IF(B24="SR",G24,"") ->  | K24: =IF(B24="SS",G24,"") ->  | L24: =IF(C24="SS",H24,"") ->  | M24: =IF(B24="RR",G24,"") ->  | U24: =IF(Q24="IM",'Ai factors'!$I$20,(IF(Q24="SR",'Ai factors'!$I$22,(IF(Q24="ss",'Ai factors'!$I$21,(IF(Q24="rr",'Ai factors'!$I$23,IF(Q24="tj",'Ai factors'!$I$24,0)))))))) -> 0 | V24: 0 | W24: =IF(Q24="TJ",V24,"") ->  | X24: =IF(Q24="IM",V24,"") ->  | Y24: =IF(Q24="SR",V24,"") ->  | Z24: =IF(Q24="SS",V24,"") ->  | AA24: =IF(R24="SS",W24,"") ->  | AB24: =IF(Q24="RR",V24,"") ->  | GO24: 0 | GT24: 0 | GY24: =IF(E24=$GY$15,J24,0) -> 0 | GZ24: =IF(E24=$GZ$15,J24,0) ->  | HA24: =IF(E24=$HA$15,J24,0) ->  | HB24: =IF(E24=$HB$15,J24,0) ->  | HC24: =IF(E24=$HC$15,J24,0) ->  | HD24: 0 | HI24: =IF($E24=HI$15,H24,0) -> 0 | HJ24: =IF($E24=HJ$15,H24,0) ->  | HK24: =IF($E24=HK$15,H24,0) ->  | HL24: =IF($E24=HL$15,H24,0) ->  | HO24: =IF(T24=$HO$15,X24,0) -> 0 | HP24: =IF(T24=$HP$15,X24,0) ->  | HQ24: =IF(T24=$HQ$15,X24,0) ->  | HR24: =IF(T24=$HR$15,X24,0) ->  | HS24: =IF(T24=$HS$15,X24,0) ->  | HT24: =IF(T24=$HT$15,Y24,0) -> 0 | HU24: =IF(T24=$HU$15,Y24,0) ->  | HV24: =IF(T24=$HV$15,Y24,0) ->  | HW24: =IF(T24=$HW$15,Y24,0) ->  | HX24: =IF(T24=$HX$15,Y24,0) ->  | HY24: 0 | ID24: 0 | II24: =IF($T22=II$15,$AB22,0) -> 0
F25: =IF(B25="IM",'Ai factors'!$I$20,(IF(B25="SR",'Ai factors'!$I$22,(IF(B25="ss",'Ai factors'!$I$21,(IF(B25="rr",'Ai factors'!$I$23,IF(B25="tj",'Ai factors'!$I$24,0)))))))) -> 0 | G25: =IF($E$9="FT",(IF(B25="ss",2*F25+ABS(C25-D25),IF(B25="RR",2*F25+ABS(C25-D25),F25))),((IF(B25="ss",2*F25+5280*ABS(C25-D25),IF(B25="RR",2*F25+5280*ABS(C25-D25),F25))))) -> 0 | H25: =IF(B25="TJ",G25,"") ->  | I25: =IF(B25="IM",G25,"") ->  | J25: =IF(B25="SR",G25,"") ->  | K25: =IF(B25="SS",G25,"") ->  | L25: =IF(C25="SS",H25,"") ->  | M25: =IF(B25="RR",G25,"") ->  | U25: =IF(Q25="IM",'Ai factors'!$I$20,(IF(Q25="SR",'Ai factors'!$I$22,(IF(Q25="ss",'Ai factors'!$I$21,(IF(Q25="rr",'Ai factors'!$I$23,IF(Q25="tj",'Ai factors'!$I$24,0)))))))) -> 0 | V25: 0 | W25: =IF(Q25="TJ",V25,"") ->  | X25: =IF(Q25="IM",V25,"") ->  | Y25: =IF(Q25="SR",V25,"") ->  | Z25: =IF(Q25="SS",V25,"") ->  | AA25: =IF(R25="SS",W25,"") ->  | AB25: =IF(Q25="RR",V25,"") ->  | GO25: 0 | GT25: 0 | GY25: =IF(E25=$GY$15,J25,0) -> 0 | GZ25: =IF(E25=$GZ$15,J25,0) ->  | HA25: =IF(E25=$HA$15,J25,0) ->  | HB25: =IF(E25=$HB$15,J25,0) ->  | HC25: =IF(E25=$HC$15,J25,0) ->  | HD25: 0 | HI25: =IF($E25=HI$15,H25,0) -> 0 | HJ25: =IF($E25=HJ$15,H25,0) ->  | HL25: =IF($E25=HL$15,H25,0) ->  | HO25: =IF(T25=$HO$15,X25,0) -> 0 | HP25: =IF(T25=$HP$15,X25,0) ->  | HQ25: =IF(T25=$HQ$15,X25,0) ->  | HR25: =IF(T25=$HR$15,X25,0) ->  | HS25: =IF(T25=$HS$15,X25,0) ->  | HT25: =IF(T25=$HT$15,Y25,0) -> 0 | HU25: =IF(T25=$HU$15,Y25,0) ->  | HV25: =IF(T25=$HV$15,Y25,0) ->  | HW25: =IF(T25=$HW$15,Y25,0) ->  | HX25: =IF(T25=$HX$15,Y25,0) ->  | HY25: 0 | ID25: 0 | II25: 0
F26: =IF(B26="IM",'Ai factors'!$I$20,(IF(B26="SR",'Ai factors'!$I$22,(IF(B26="ss",'Ai factors'!$I$21,(IF(B26="rr",'Ai factors'!$I$23,IF(B26="tj",'Ai factors'!$I$24,0)))))))) -> 0 | G26: =IF($E$9="FT",(IF(B26="ss",2*F26+ABS(C26-D26),IF(B26="RR",2*F26+ABS(C26-D26),F26))),((IF(B26="ss",2*F26+5280*ABS(C26-D26),IF(B26="RR",2*F26+5280*ABS(C26-D26),F26))))) -> 0 | H26: =IF(B26="TJ",G26,"") ->  | I26: =IF(B26="IM",G26,"") ->  | J26: =IF(B26="SR",G26,"") ->  | K26: =IF(B26="SS",G26,"") ->  | L26: =IF(C26="SS",H26,"") ->  | M26: =IF(B26="RR",G26,"") ->  | U26: =IF(Q26="IM",'Ai factors'!$I$20,(IF(Q26="SR",'Ai factors'!$I$22,(IF(Q26="ss",'Ai factors'!$I$21,(IF(Q26="rr",'Ai factors'!$I$23,IF(Q26="tj",'Ai factors'!$I$24,0)))))))) -> 0 | V26: 0 | W26: =IF(Q26="TJ",V26,"") ->  | X26: =IF(Q26="IM",V26,"") ->  | Y26: =IF(Q26="SR",V26,"") ->  | Z26: =IF(Q26="SS",V26,"") ->  | AA26: =IF(R26="SS",W26,"") ->  | AB26: =IF(Q26="RR",V26,"") ->  | GO26: 0 | GT26: 0 | GY26: =IF(E26=$GY$15,J26,0) -> 0 | GZ26: =IF(E26=$GZ$15,J26,0) ->  | HA26: =IF(E26=$HA$15,J26,0) ->  | HB26: =IF(E26=$HB$15,J26,0) ->  | HC26: =IF(E26=$HC$15,J26,0) ->  | HD26: 0 | HI26: =IF($E26=HI$15,H26,0) -> 0 | HJ26: =IF($E26=HJ$15,H26,0) ->  | HL26: =IF($E26=HL$15,H26,0) ->  | HO26: =IF(T26=$HO$15,X26,0) -> 0 | HP26: =IF(T26=$HP$15,X26,0) ->  | HQ26: =IF(T26=$HQ$15,X26,0) ->  | HR26: =IF(T26=$HR$15,X26,0) ->  | HS26: =IF(T26=$HS$15,X26,0) ->  | HT26: =IF(T26=$HT$15,Y26,0) -> 0 | HU26: =IF(T26=$HU$15,Y26,0) ->  | HV26: =IF(T26=$HV$15,Y26,0) ->  | HW26: =IF(T26=$HW$15,Y26,0) ->  | HX26: =IF(T26=$HX$15,Y26,0) ->  | HY26: 0 | ID26: 0 | II26: 0
F27: =IF(B27="IM",'Ai factors'!$I$20,(IF(B27="SR",'Ai factors'!$I$22,(IF(B27="ss",'Ai factors'!$I$21,(IF(B27="rr",'Ai factors'!$I$23,IF(B27="tj",'Ai factors'!$I$24,0)))))))) -> 0 | G27: =IF($E$9="FT",(IF(B27="ss",2*F27+ABS(C27-D27),IF(B27="RR",2*F27+ABS(C27-D27),F27))),((IF(B27="ss",2*F27+5280*ABS(C27-D27),IF(B27="RR",2*F27+5280*ABS(C27-D27),F27))))) -> 0 | H27: =IF(B27="TJ",G27,"") ->  | I27: =IF(B27="IM",G27,"") ->  | J27: =IF(B27="SR",G27,"") ->  | K27: =IF(B27="SS",G27,"") ->  | L27: =IF(C27="SS",H27,"") ->  | M27: =IF(B27="RR",G27,"") ->  | U27: =IF(Q27="IM",'Ai factors'!$I$20,(IF(Q27="SR",'Ai factors'!$I$22,(IF(Q27="ss",'Ai factors'!$I$21,(IF(Q27="rr",'Ai factors'!$I$23,IF(Q27="tj",'Ai factors'!$I$24,0)))))))) -> 0 | V27: =IF($T9="FT",(IF(Q27="ss",2*U27+ABS(R27-S27),IF(Q27="RR",2*U27+ABS(R27-S27),U27))),((IF(Q27="ss",2*U27+5280*ABS(R27-S27),IF(Q27="RR",2*U27+5280*ABS(R27-S27),U27))))) -> 0 | W27: =IF(Q27="TJ",V27,"") ->  | X27: =IF(Q27="IM",V27,"") ->  | Y27: =IF(Q27="SR",V27,"") ->  | Z27: =IF(Q27="SS",V27,"") ->  | AA27: =IF(R27="SS",W27,"") ->  | AB27: =IF(Q27="RR",V27,"") ->  | GO27: 0 | GT27: 0 | GY27: =IF(E27=$GY$15,J27,0) -> 0 | GZ27: =IF(E27=$GZ$15,J27,0) ->  | HA27: =IF(E27=$HA$15,J27,0) ->  | HB27: =IF(E27=$HB$15,J27,0) ->  | HC27: =IF(E27=$HC$15,J27,0) ->  | HD27: 0 | HI27: =IF($E27=HI$15,H27,0) -> 0 | HJ27: =IF($E27=HJ$15,H27,0) ->  | HL27: =IF($E27=HL$15,H27,0) ->  | HO27: =IF(T27=$HO$15,X27,0) -> 0 | HP27: =IF(T27=$HP$15,X27,0) ->  | HQ27: =IF(T27=$HQ$15,X27,0) ->  | HR27: =IF(T27=$HR$15,X27,0) ->  | HS27: =IF(T27=$HS$15,X27,0) ->  | HT27: =IF(T27=$HT$15,Y27,0) -> 0 | HU27: =IF(T27=$HU$15,Y27,0) ->  | HV27: =IF(T27=$HV$15,Y27,0) ->  | HW27: =IF(T27=$HW$15,Y27,0) ->  | HX27: =IF(T27=$HX$15,Y27,0) ->  | HY27: 0 | ID27: 0 | II27: 0
F28: =IF(B28="IM",'Ai factors'!$I$20,(IF(B28="SR",'Ai factors'!$I$22,(IF(B28="ss",'Ai factors'!$I$21,(IF(B28="rr",'Ai factors'!$I$23,IF(B28="tj",'Ai factors'!$I$24,0)))))))) -> 0 | G28: =IF($E$9="FT",(IF(B28="ss",2*F28+ABS(C28-D28),IF(B28="RR",2*F28+ABS(C28-D28),F28))),((IF(B28="ss",2*F28+5280*ABS(C28-D28),IF(B28="RR",2*F28+5280*ABS(C28-D28),F28))))) -> 0 | H28: =IF(B28="TJ",G28,"") ->  | I28: =IF(B28="IM",G28,"") ->  | J28: =IF(B28="SR",G28,"") ->  | K28: =IF(B28="SS",G28,"") ->  | L28: =IF(C28="SS",H28,"") ->  | M28: =IF(B28="RR",G28,"") ->  | U28: =IF(Q28="IM",'Ai factors'!$I$20,(IF(Q28="SR",'Ai factors'!$I$22,(IF(Q28="ss",'Ai factors'!$I$21,(IF(Q28="rr",'Ai factors'!$I$23,IF(Q28="tj",'Ai factors'!$I$24,0)))))))) -> 0 | V28: =IF($T$9="FT",(IF(Q28="ss",2*U28+ABS(R28-S28),IF(Q28="RR",2*U28+ABS(R28-S28),U28))),((IF(Q28="ss",2*U28+5280*ABS(R28-S28),IF(Q28="RR",2*U28+5280*ABS(R28-S28),U28))))) -> 0 | W28: =IF(Q28="TJ",V28,"") ->  | X28: =IF(Q28="IM",V28,"") ->  | Y28: =IF(Q28="SR",V28,"") ->  | Z28: =IF(Q28="SS",V28,"") ->  | AA28: =IF(R28="SS",W28,"") ->  | AB28: =IF(Q28="RR",V28,"") ->  | GO28: 0 | GT28: 0 | GY28: =IF(E28=$GY$15,J28,0) -> 0 | GZ28: =IF(E28=$GZ$15,J28,0) ->  | HA28: =IF(E28=$HA$15,J28,0) ->  | HB28: =IF(E28=$HB$15,J28,0) ->  | HC28: =IF(E28=$HC$15,J28,0) ->  | HD28: 0 | HI28: =IF($E28=HI$15,H28,0) -> 0 | HJ28: =IF($E28=HJ$15,H28,0) ->  | HL28: =IF($E28=HL$15,H28,0) ->  | HO28: =IF(T28=$HO$15,X28,0) -> 0 | HP28: =IF(T28=$HP$15,X28,0) ->  | HQ28: =IF(T28=$HQ$15,X28,0) ->  | HR28: =IF(T28=$HR$15,X28,0) ->  | HS28: =IF(T28=$HS$15,X28,0) ->  | HT28: =IF(T28=$HT$15,Y28,0) -> 0 | HU28: =IF(T28=$HU$15,Y28,0) ->  | HV28: =IF(T28=$HV$15,Y28,0) ->  | HW28: =IF(T28=$HW$15,Y28,0) ->  | HX28: =IF(T28=$HX$15,Y28,0) ->  | HY28: 0 | ID28: 0 | II28: 0
F29: =IF(B29="IM",'Ai factors'!$I$20,(IF(B29="SR",'Ai factors'!$I$22,(IF(B29="ss",'Ai factors'!$I$21,(IF(B29="rr",'Ai factors'!$I$23,IF(B29="tj",'Ai factors'!$I$24,0)))))))) -> 0 | G29: =IF($E$9="FT",(IF(B29="ss",2*F29+ABS(C29-D29),IF(B29="RR",2*F29+ABS(C29-D29),F29))),((IF(B29="ss",2*F29+5280*ABS(C29-D29),IF(B29="RR",2*F29+5280*ABS(C29-D29),F29))))) -> 0 | H29: =IF(B29="TJ",G29,"") ->  | I29: =IF(B29="IM",G29,"") ->  | J29: =IF(B29="SR",G29,"") ->  | K29: =IF(B29="SS",G29,"") ->  | L29: =IF(C29="SS",H29,"") ->  | M29: =IF(B29="RR",G29,"") ->  | U29: =IF(Q29="IM",'Ai factors'!$I$20,(IF(Q29="SR",'Ai factors'!$I$22,(IF(Q29="ss",'Ai factors'!$I$21,(IF(Q29="rr",'Ai factors'!$I$23,IF(Q29="tj",'Ai factors'!$I$24,0)))))))) -> 0 | V29: 0 | W29: =IF(Q29="TJ",V29,"") ->  | X29: =IF(Q29="IM",V29,"") ->  | Y29: =IF(Q29="SR",V29,"") ->  | Z29: =IF(Q29="SS",V29,"") ->  | AA29: =IF(R29="SS",W29,"") ->  | AB29: =IF(Q29="RR",V29,"") ->  | GO29: 0 | GT29: 0 | GY29: =IF(E29=$GY$15,J29,0) -> 0 | GZ29: =IF(E29=$GZ$15,J29,0) ->  | HA29: =IF(E29=$HA$15,J29,0) ->  | HB29: =IF(E29=$HB$15,J29,0) ->  | HC29: =IF(E29=$HC$15,J29,0) ->  | HD29: 0 | HI29: =IF($E29=HI$15,H29,0) -> 0 | HJ29: =IF($E29=HJ$15,H29,0) ->  | HL29: =IF($E29=HL$15,H29,0) ->  | HO29: =IF(T29=$HO$15,X29,0) -> 0 | HP29: =IF(T29=$HP$15,X29,0) ->  | HQ29: =IF(T29=$HQ$15,X29,0) ->  | HR29: =IF(T29=$HR$15,X29,0) ->  | HS29: =IF(T29=$HS$15,X29,0) ->  | HT29: =IF(T29=$HT$15,Y29,0) -> 0 | HU29: =IF(T29=$HU$15,Y29,0) ->  | HV29: =IF(T29=$HV$15,Y29,0) ->  | HW29: =IF(T29=$HW$15,Y29,0) ->  | HX29: =IF(T29=$HX$15,Y29,0) ->  | HY29: 0 | ID29: 0 | II29: 0
F30: =IF(B30="IM",'Ai factors'!$I$20,(IF(B30="SR",'Ai factors'!$I$22,(IF(B30="ss",'Ai factors'!$I$21,(IF(B30="rr",'Ai factors'!$I$23,IF(B30="tj",'Ai factors'!$I$24,0)))))))) -> 0 | G30: =IF($E$9="FT",(IF(B30="ss",2*F30+ABS(C30-D30),IF(B30="RR",2*F30+ABS(C30-D30),F30))),((IF(B30="ss",2*F30+5280*ABS(C30-D30),IF(B30="RR",2*F30+5280*ABS(C30-D30),F30))))) -> 0 | H30: =IF(B30="TJ",G30,"") ->  | I30: =IF(B30="IM",G30,"") ->  | J30: =IF(B30="SR",G30,"") ->  | K30: =IF(B30="SS",G30,"") ->  | L30: =IF(C30="SS",H30,"") ->  | M30: =IF(B30="RR",G30,"") ->  | U30: =IF(Q30="IM",'Ai factors'!$I$20,(IF(Q30="SR",'Ai factors'!$I$22,(IF(Q30="ss",'Ai factors'!$I$21,(IF(Q30="rr",'Ai factors'!$I$23,IF(Q30="tj",'Ai factors'!$I$24,0)))))))) -> 0 | V30: 0 | W30: =IF(Q30="TJ",V30,"") ->  | X30: =IF(Q30="IM",V30,"") ->  | Y30: =IF(Q30="SR",V30,"") ->  | Z30: =IF(Q30="SS",V30,"") ->  | AA30: =IF(R30="SS",W30,"") ->  | AB30: =IF(Q30="RR",V30,"") ->  | GO30: 0 | GT30: 0 | GY30: =IF(E30=$GY$15,J30,0) -> 0 | GZ30: =IF(E30=$GZ$15,J30,0) ->  | HA30: =IF(E30=$HA$15,J30,0) ->  | HB30: =IF(E30=$HB$15,J30,0) ->  | HC30: =IF(E30=$HC$15,J30,0) ->  | HD30: 0 | HI30: =IF($E30=HI$15,H30,0) -> 0 | HJ30: =IF($E30=HJ$15,H30,0) ->  | HL30: =IF($E30=HL$15,H30,0) ->  | HO30: =IF(T30=$HO$15,X30,0) -> 0 | HP30: =IF(T30=$HP$15,X30,0) ->  | HQ30: =IF(T30=$HQ$15,X30,0) ->  | HR30: =IF(T30=$HR$15,X30,0) ->  | HS30: =IF(T30=$HS$15,X30,0) ->  | HT30: =IF(T30=$HT$15,Y30,0) -> 0 | HU30: =IF(T30=$HU$15,Y30,0) ->  | HV30: =IF(T30=$HV$15,Y30,0) ->  | HW30: =IF(T30=$HW$15,Y30,0) ->  | HX30: =IF(T30=$HX$15,Y30,0) ->  | HY30: 0 | ID30: 0 | II30: 0
F31: =IF(B31="IM",'Ai factors'!$I$20,(IF(B31="SR",'Ai factors'!$I$22,(IF(B31="ss",'Ai factors'!$I$21,(IF(B31="rr",'Ai factors'!$I$23,IF(B31="tj",'Ai factors'!$I$24,0)))))))) -> 0 | G31: =IF($E$9="FT",(IF(B31="ss",2*F31+ABS(C31-D31),IF(B31="RR",2*F31+ABS(C31-D31),F31))),((IF(B31="ss",2*F31+5280*ABS(C31-D31),IF(B31="RR",2*F31+5280*ABS(C31-D31),F31))))) -> 0 | H31: =IF(B31="TJ",G31,"") ->  | I31: =IF(B31="IM",G31,"") ->  | J31: =IF(B31="SR",G31,"") ->  | K31: =IF(B31="SS",G31,"") ->  | L31: =IF(C31="SS",H31,"") ->  | M31: =IF(B31="RR",G31,"") ->  | U31: =IF(Q31="IM",'Ai factors'!$I$20,(IF(Q31="SR",'Ai factors'!$I$22,(IF(Q31="ss",'Ai factors'!$I$21,(IF(Q31="rr",'Ai factors'!$I$23,IF(Q31="tj",'Ai factors'!$I$24,0)))))))) -> 0 | V31: 0 | W31: =IF(Q31="TJ",V31,"") ->  | X31: =IF(Q31="IM",V31,"") ->  | Y31: =IF(Q31="SR",V31,"") ->  | Z31: =IF(Q31="SS",V31,"") ->  | AA31: =IF(R31="SS",W31,"") ->  | AB31: =IF(Q31="RR",V31,"") ->  | GO31: 0 | GT31: 0 | GY31: =IF(E31=$GY$15,J31,0) -> 0 | GZ31: =IF(E31=$GZ$15,J31,0) ->  | HA31: =IF(E31=$HA$15,J31,0) ->  | HB31: =IF(E31=$HB$15,J31,0) ->  | HC31: =IF(E31=$HC$15,J31,0) ->  | HD31: 0 | HI31: =IF($E31=HI$15,H31,0) -> 0 | HJ31: =IF($E31=HJ$15,H31,0) ->  | HL31: =IF($E31=HL$15,H31,0) ->  | HO31: =IF(T31=$HO$15,X31,0) -> 0 | HP31: =IF(T31=$HP$15,X31,0) ->  | HQ31: =IF(T31=$HQ$15,X31,0) ->  | HR31: =IF(T31=$HR$15,X31,0) ->  | HS31: =IF(T31=$HS$15,X31,0) ->  | HT31: =IF(T31=$HT$15,Y31,0) -> 0 | HU31: =IF(T31=$HU$15,Y31,0) ->  | HV31: =IF(T31=$HV$15,Y31,0) ->  | HW31: =IF(T31=$HW$15,Y31,0) ->  | HX31: =IF(T31=$HX$15,Y31,0) ->  | HY31: 0 | ID31: 0 | II31: 0
F32: =IF(B32="IM",'Ai factors'!$I$20,(IF(B32="SR",'Ai factors'!$I$22,(IF(B32="ss",'Ai factors'!$I$21,(IF(B32="rr",'Ai factors'!$I$23,IF(B32="tj",'Ai factors'!$I$24,0)))))))) -> 0 | G32: =IF($E$9="FT",(IF(B32="ss",2*F32+ABS(C32-D32),IF(B32="RR",2*F32+ABS(C32-D32),F32))),((IF(B32="ss",2*F32+5280*ABS(C32-D32),IF(B32="RR",2*F32+5280*ABS(C32-D32),F32))))) -> 0 | H32: =IF(B32="TJ",G32,"") ->  | I32: =IF(B32="IM",G32,"") ->  | J32: =IF(B32="SR",G32,"") ->  | K32: =IF(B32="SS",G32,"") ->  | L32: =IF(C32="SS",H32,"") ->  | M32: =IF(B32="RR",G32,"") ->  | U32: =IF(Q32="IM",'Ai factors'!$I$20,(IF(Q32="SR",'Ai factors'!$I$22,(IF(Q32="ss",'Ai factors'!$I$21,(IF(Q32="rr",'Ai factors'!$I$23,IF(Q32="tj",'Ai factors'!$I$24,0)))))))) -> 0 | V32: 0 | W32: =IF(Q32="TJ",V32,"") ->  | X32: =IF(Q32="IM",V32,"") ->  | Y32: =IF(Q32="SR",V32,"") ->  | Z32: =IF(Q32="SS",V32,"") ->  | AA32: =IF(R32="SS",W32,"") ->  | AB32: =IF(Q32="RR",V32,"") ->  | GO32: 0 | GT32: 0 | GY32: =IF(E32=$GY$15,J32,0) -> 0 | GZ32: =IF(E32=$GZ$15,J32,0) ->  | HA32: =IF(E32=$HA$15,J32,0) ->  | HB32: =IF(E32=$HB$15,J32,0) ->  | HC32: =IF(E32=$HC$15,J32,0) ->  | HD32: 0 | HI32: =IF($E32=HI$15,H32,0) -> 0 | HJ32: =IF($E32=HJ$15,H32,0) ->  | HL32: =IF($E32=HL$15,H32,0) ->  | HO32: =IF(T32=$HO$15,X32,0) -> 0 | HP32: =IF(T32=$HP$15,X32,0) ->  | HQ32: =IF(T32=$HQ$15,X32,0) ->  | HR32: =IF(T32=$HR$15,X32,0) ->  | HS32: =IF(T32=$HS$15,X32,0) ->  | HT32: =IF(T32=$HT$15,Y32,0) -> 0 | HU32: =IF(T32=$HU$15,Y32,0) ->  | HV32: =IF(T32=$HV$15,Y32,0) ->  | HW32: =IF(T32=$HW$15,Y32,0) ->  | HX32: =IF(T32=$HX$15,Y32,0) ->  | HY32: 0 | ID32: 0 | II32: 0
F33: =IF(B33="IM",'Ai factors'!$I$20,(IF(B33="SR",'Ai factors'!$I$22,(IF(B33="ss",'Ai factors'!$I$21,(IF(B33="rr",'Ai factors'!$I$23,IF(B33="tj",'Ai factors'!$I$24,0)))))))) -> 0 | G33: =IF($E$9="FT",(IF(B33="ss",2*F33+ABS(C33-D33),IF(B33="RR",2*F33+ABS(C33-D33),F33))),((IF(B33="ss",2*F33+5280*ABS(C33-D33),IF(B33="RR",2*F33+5280*ABS(C33-D33),F33))))) -> 0 | H33: =IF(B33="TJ",G33,"") ->  | I33: =IF(B33="IM",G33,"") ->  | J33: =IF(B33="SR",G33,"") ->  | K33: =IF(B33="SS",G33,"") ->  | L33: =IF(C33="SS",H33,"") ->  | M33: =IF(B33="RR",G33,"") ->  | U33: =IF(Q33="IM",'Ai factors'!$I$20,(IF(Q33="SR",'Ai factors'!$I$22,(IF(Q33="ss",'Ai factors'!$I$21,(IF(Q33="rr",'Ai factors'!$I$23,IF(Q33="tj",'Ai factors'!$I$24,0)))))))) -> 0 | V33: 0 | W33: =IF(Q33="TJ",V33,"") ->  | X33: =IF(Q33="IM",V33,"") ->  | Y33: =IF(Q33="SR",V33,"") ->  | Z33: =IF(Q33="SS",V33,"") ->  | AA33: =IF(R33="SS",W33,"") ->  | AB33: =IF(Q33="RR",V33,"") ->  | GO33: 0 | GT33: 0 | GY33: =IF(E33=$GY$15,J33,0) -> 0 | GZ33: =IF(E33=$GZ$15,J33,0) ->  | HA33: =IF(E33=$HA$15,J33,0) ->  | HB33: =IF(E33=$HB$15,J33,0) ->  | HC33: =IF(E33=$HC$15,J33,0) ->  | HD33: 0 | HI33: =IF($E33=HI$15,H33,0) -> 0 | HJ33: =IF($E33=HJ$15,H33,0) ->  | HL33: =IF($E33=HL$15,H33,0) ->  | HO33: =IF(T33=$HO$15,X33,0) -> 0 | HP33: =IF(T33=$HP$15,X33,0) ->  | HQ33: =IF(T33=$HQ$15,X33,0) ->  | HR33: =IF(T33=$HR$15,X33,0) ->  | HS33: =IF(T33=$HS$15,X33,0) ->  | HT33: =IF(T33=$HT$15,Y33,0) -> 0 | HU33: =IF(T33=$HU$15,Y33,0) ->  | HV33: =IF(T33=$HV$15,Y33,0) ->  | HW33: =IF(T33=$HW$15,Y33,0) ->  | HX33: =IF(T33=$HX$15,Y33,0) ->  | HY33: 0 | ID33: 0 | II33: 0
F34: =IF(B34="IM",'Ai factors'!$I$20,(IF(B34="SR",'Ai factors'!$I$22,(IF(B34="ss",'Ai factors'!$I$21,(IF(B34="rr",'Ai factors'!$I$23,IF(B34="tj",'Ai factors'!$I$24,0)))))))) -> 0 | G34: =IF($E$9="FT",(IF(B34="ss",2*F34+ABS(C34-D34),IF(B34="RR",2*F34+ABS(C34-D34),F34))),((IF(B34="ss",2*F34+5280*ABS(C34-D34),IF(B34="RR",2*F34+5280*ABS(C34-D34),F34))))) -> 0 | H34: =IF(B34="TJ",G34,"") ->  | I34: =IF(B34="IM",G34,"") ->  | J34: =IF(B34="SR",G34,"") ->  | K34: =IF(B34="SS",G34,"") ->  | L34: =IF(C34="SS",H34,"") ->  | M34: =IF(B34="RR",G34,"") ->  | U34: =IF(Q34="IM",'Ai factors'!$I$20,(IF(Q34="SR",'Ai factors'!$I$22,(IF(Q34="ss",'Ai factors'!$I$21,(IF(Q34="rr",'Ai factors'!$I$23,IF(Q34="tj",'Ai factors'!$I$24,0)))))))) -> 0 | V34: 0 | W34: =IF(Q34="TJ",V34,"") ->  | X34: =IF(Q34="IM",V34,"") ->  | Y34: =IF(Q34="SR",V34,"") ->  | Z34: =IF(Q34="SS",V34,"") ->  | AA34: =IF(R34="SS",W34,"") ->  | AB34: =IF(Q34="RR",V34,"") ->  | GO34: 0 | GT34: 0 | GY34: =IF(E34=$GY$15,J34,0) -> 0 | GZ34: =IF(E34=$GZ$15,J34,0) ->  | HA34: =IF(E34=$HA$15,J34,0) ->  | HB34: =IF(E34=$HB$15,J34,0) ->  | HC34: =IF(E34=$HC$15,J34,0) ->  | HD34: 0 | HI34: =IF($E34=HI$15,H34,0) -> 0 | HJ34: =IF($E34=HJ$15,H34,0) ->  | HL34: =IF($E34=HL$15,H34,0) ->  | HO34: =IF(T34=$HO$15,X34,0) -> 0 | HP34: =IF(T34=$HP$15,X34,0) ->  | HQ34: =IF(T34=$HQ$15,X34,0) ->  | HR34: =IF(T34=$HR$15,X34,0) ->  | HS34: =IF(T34=$HS$15,X34,0) ->  | HT34: =IF(T34=$HT$15,Y34,0) -> 0 | HU34: =IF(T34=$HU$15,Y34,0) ->  | HV34: =IF(T34=$HV$15,Y34,0) ->  | HW34: =IF(T34=$HW$15,Y34,0) ->  | HX34: =IF(T34=$HX$15,Y34,0) ->  | HY34: 0 | ID34: 0 | II34: 0
F35: =IF(B35="IM",'Ai factors'!$I$20,(IF(B35="SR",'Ai factors'!$I$22,(IF(B35="ss",'Ai factors'!$I$21,(IF(B35="rr",'Ai factors'!$I$23,IF(B35="tj",'Ai factors'!$I$24,0)))))))) -> 0 | G35: =IF($E$9="FT",(IF(B35="ss",2*F35+ABS(C35-D35),IF(B35="RR",2*F35+ABS(C35-D35),F35))),((IF(B35="ss",2*F35+5280*ABS(C35-D35),IF(B35="RR",2*F35+5280*ABS(C35-D35),F35))))) -> 0 | H35: =IF(B35="TJ",G35,"") ->  | I35: =IF(B35="IM",G35,"") ->  | J35: =IF(B35="SR",G35,"") ->  | K35: =IF(B35="SS",G35,"") ->  | L35: =IF(C35="SS",H35,"") ->  | M35: =IF(B35="RR",G35,"") ->  | U35: =IF(Q35="IM",'Ai factors'!$I$20,(IF(Q35="SR",'Ai factors'!$I$22,(IF(Q35="ss",'Ai factors'!$I$21,(IF(Q35="rr",'Ai factors'!$I$23,IF(Q35="tj",'Ai factors'!$I$24,0)))))))) -> 0 | V35: 0 | W35: =IF(Q35="TJ",V35,"") ->  | X35: =IF(Q35="IM",V35,"") ->  | Y35: =IF(Q35="SR",V35,"") ->  | Z35: =IF(Q35="SS",V35,"") ->  | AA35: =IF(R35="SS",W35,"") ->  | AB35: =IF(Q35="RR",V35,"") ->  | GO35: 0 | GT35: 0 | GY35: =IF(E35=$GY$15,J35,0) -> 0 | GZ35: =IF(E35=$GZ$15,J35,0) ->  | HA35: =IF(E35=$HA$15,J35,0) ->  | HB35: =IF(E35=$HB$15,J35,0) ->  | HC35: =IF(E35=$HC$15,J35,0) ->  | HD35: 0 | HI35: =IF($E35=HI$15,H35,0) -> 0 | HJ35: =IF($E35=HJ$15,H35,0) ->  | HK35: =IF($E35=HK$15,H35,0) ->  | HL35: =IF($E35=HL$15,H35,0) ->  | HO35: =IF(T35=$HO$15,X35,0) -> 0 | HP35: =IF(T35=$HP$15,X35,0) ->  | HQ35: =IF(T35=$HQ$15,X35,0) ->  | HR35: =IF(T35=$HR$15,X35,0) ->  | HS35: =IF(T35=$HS$15,X35,0) ->  | HT35: =IF(T35=$HT$15,Y35,0) -> 0 | HU35: =IF(T35=$HU$15,Y35,0) ->  | HV35: =IF(T35=$HV$15,Y35,0) ->  | HW35: =IF(T35=$HW$15,Y35,0) ->  | HX35: =IF(T35=$HX$15,Y35,0) ->  | HY35: 0 | ID35: 0 | II35: 0
F36: =IF(B36="IM",'Ai factors'!$I$20,(IF(B36="SR",'Ai factors'!$I$22,(IF(B36="ss",'Ai factors'!$I$21,(IF(B36="rr",'Ai factors'!$I$23,IF(B36="tj",'Ai factors'!$I$24,0)))))))) -> 0 | G36: =IF($E$9="FT",(IF(B36="ss",2*F36+ABS(C36-D36),IF(B36="RR",2*F36+ABS(C36-D36),F36))),((IF(B36="ss",2*F36+5280*ABS(C36-D36),IF(B36="RR",2*F36+5280*ABS(C36-D36),F36))))) -> 0 | H36: =IF(B36="TJ",G36,"") ->  | I36: =IF(B36="IM",G36,"") ->  | J36: =IF(B36="SR",G36,"") ->  | K36: =IF(B36="SS",G36,"") ->  | L36: =IF(C36="SS",H36,"") ->  | M36: =IF(B36="RR",G36,"") ->  | U36: =IF(Q36="IM",'Ai factors'!$I$20,(IF(Q36="SR",'Ai factors'!$I$22,(IF(Q36="ss",'Ai factors'!$I$21,(IF(Q36="rr",'Ai factors'!$I$23,IF(Q36="tj",'Ai factors'!$I$24,0)))))))) -> 0 | V36: 0 | W36: =IF(Q36="TJ",V36,"") ->  | X36: =IF(Q36="IM",V36,"") ->  | Y36: =IF(Q36="SR",V36,"") ->  | Z36: =IF(Q36="SS",V36,"") ->  | AA36: =IF(R36="SS",W36,"") ->  | AB36: =IF(Q36="RR",V36,"") ->  | GO36: 0 | GT36: 0 | GY36: =IF(E36=$GY$15,J36,0) -> 0 | GZ36: =IF(E36=$GZ$15,J36,0) ->  | HA36: =IF(E36=$HA$15,J36,0) ->  | HB36: =IF(E36=$HB$15,J36,0) ->  | HC36: =IF(E36=$HC$15,J36,0) ->  | HD36: 0 | HI36: =IF($E36=HI$15,H36,0) -> 0 | HJ36: =IF($E36=HJ$15,H36,0) ->  | HK36: =IF($E36=HK$15,H36,0) ->  | HL36: =IF($E36=HL$15,H36,0) ->  | HO36: =IF(T36=$HO$15,X36,0) -> 0 | HP36: =IF(T36=$HP$15,X36,0) ->  | HQ36: =IF(T36=$HQ$15,X36,0) ->  | HR36: =IF(T36=$HR$15,X36,0) ->  | HS36: =IF(T36=$HS$15,X36,0) ->  | HT36: =IF(T36=$HT$15,Y36,0) -> 0 | HU36: =IF(T36=$HU$15,Y36,0) ->  | HV36: =IF(T36=$HV$15,Y36,0) ->  | HW36: =IF(T36=$HW$15,Y36,0) ->  | HX36: =IF(T36=$HX$15,Y36,0) ->  | HY36: 0 | ID36: 0 | II36: 0
F37: =IF(B37="IM",'Ai factors'!$I$20,(IF(B37="SR",'Ai factors'!$I$22,(IF(B37="ss",'Ai factors'!$I$21,(IF(B37="rr",'Ai factors'!$I$23,IF(B37="tj",'Ai factors'!$I$24,0)))))))) -> 0 | G37: =IF($E$9="FT",(IF(B37="ss",2*F37+ABS(C37-D37),IF(B37="RR",2*F37+ABS(C37-D37),F37))),((IF(B37="ss",2*F37+5280*ABS(C37-D37),IF(B37="RR",2*F37+5280*ABS(C37-D37),F37))))) -> 0 | H37: =IF(B37="TJ",G37,"") ->  | I37: =IF(B37="IM",G37,"") ->  | J37: =IF(B37="SR",G37,"") ->  | K37: =IF(B37="SS",G37,"") ->  | L37: =IF(C37="SS",H37,"") ->  | M37: =IF(B37="RR",G37,"") ->  | U37: =IF(Q37="IM",'Ai factors'!$I$20,(IF(Q37="SR",'Ai factors'!$I$22,(IF(Q37="ss",'Ai factors'!$I$21,(IF(Q37="rr",'Ai factors'!$I$23,IF(Q37="tj",'Ai factors'!$I$24,0)))))))) -> 0 | V37: 0 | W37: =IF(Q37="TJ",V37,"") ->  | X37: =IF(Q37="IM",V37,"") ->  | Y37: =IF(Q37="SR",V37,"") ->  | Z37: =IF(Q37="SS",V37,"") ->  | AA37: =IF(R37="SS",W37,"") ->  | AB37: =IF(Q37="RR",V37,"") ->  | GO37: 0 | GT37: 0 | GY37: =IF(E37=$GY$15,J37,0) -> 0 | GZ37: =IF(E37=$GZ$15,J37,0) ->  | HA37: =IF(E37=$HA$15,J37,0) ->  | HB37: =IF(E37=$HB$15,J37,0) ->  | HC37: =IF(E37=$HC$15,J37,0) ->  | HD37: 0 | HI37: =IF($E37=HI$15,H37,0) -> 0 | HJ37: =IF($E37=HJ$15,H37,0) ->  | HK37: =IF($E37=HK$15,H37,0) ->  | HL37: =IF($E37=HL$15,H37,0) ->  | HO37: =IF(T37=$HO$15,X37,0) -> 0 | HP37: =IF(T37=$HP$15,X37,0) ->  | HQ37: =IF(T37=$HQ$15,X37,0) ->  | HR37: =IF(T37=$HR$15,X37,0) ->  | HS37: =IF(T37=$HS$15,X37,0) ->  | HT37: =IF(T37=$HT$15,Y37,0) -> 0 | HU37: =IF(T37=$HU$15,Y37,0) ->  | HV37: =IF(T37=$HV$15,Y37,0) ->  | HW37: =IF(T37=$HW$15,Y37,0) ->  | HX37: =IF(T37=$HX$15,Y37,0) ->  | HY37: 0 | ID37: 0 | II37: 0
F38: =IF(B38="IM",'Ai factors'!$I$20,(IF(B38="SR",'Ai factors'!$I$22,(IF(B38="ss",'Ai factors'!$I$21,(IF(B38="rr",'Ai factors'!$I$23,IF(B38="tj",'Ai factors'!$I$24,0)))))))) -> 0 | G38: 0 | U38: =IF(Q38="IM",'Ai factors'!$I$20,(IF(Q38="SR",'Ai factors'!$I$22,(IF(Q38="ss",'Ai factors'!$I$21,(IF(Q38="rr",'Ai factors'!$I$23,IF(Q38="tj",'Ai factors'!$I$24,0)))))))) -> 0 | V38: 0 | GO38: 0 | GT38: 0 | GY38: 0 | HD38: 0 | HI38: 0 | HO38: 0 | HT38: 0 | HY38: 0 | ID38: 0 | II38: =IF($T23=II$15,$AB23,0) -> 0 | IJ38: =IF($T23=IJ$15,$AB23,0) ->  | IK38: =IF($T23=IK$15,$AB23,0) ->  | IL38: =IF($T23=IL$15,$AB23,0) ->  | IM38: =IF($T23=IM$15,$AB23,0) -> 
B40: Localized Factor Summary | Q40: Localized Factor Summary
B41: Exclusion (Ft) | H41: =ROUND(GU6*'Ai factors'!$I$24+SUM(H17:H39),0) -> 0 | I41: =ROUND(SUM(I15:I39),0) -> 0 | J41: =ROUND(SUM(J15:J39),0) -> 0 | K41: =ROUND(SUM(K15:K39),0) -> 0 | M41: =ROUND(SUM(M15:M39),0) -> 0 | Q41: Exclusion (Ft) | W41: =ROUND('Ai factors'!$I$24*GV6+SUM(W17:W39),0) -> 0 | X41: =ROUND(SUM(X15:X39),0) -> 0 | Y41: =ROUND(SUM(Y15:Y39),0) -> 0 | Z41: =ROUND(SUM(Z15:Z39),0) -> 0 | AB41: =ROUND(SUM(AB15:AB39),0) -> 0
B42: # of Occurrence | H42: =GU6+COUNTIF(H17:H39,">0") -> 0 | I42: =COUNTIF(I15:I39,">0") -> 0 | J42: =COUNTIF(J15:J39,">0") -> 0 | K42: =COUNTIF(K15:K39,">0") -> 0 | M42: =COUNTIF(M15:M39,">0") -> 0 | Q42: # of Occurrence | W42: =GV6+COUNTIF(W17:W39,">0") -> 0 | X42: =COUNTIF(X15:X39,">0") -> 0 | Y42: =COUNTIF(Y15:Y39,">0") -> 0 | Z42: =COUNTIF(Z15:Z39,">0") -> 0 | AB42: =COUNTIF(AB15:AB39,">0") -> 0
B43: Average Exclusion (Ft.) | H43: =IF(H42=0,0,ROUND(H41/H42,0)) -> 0 | I43: =IF(I42=0,0,ROUND(I41/I42,0)) -> 0 | J43: =IF(J42=0,0,ROUND(J41/J42,0)) -> 0 | K43: =IF(K42=0,0,ROUND(K41/K42,0)) -> 0 | M43: =IF(M42=0,0,ROUND(M41/M42,0)) -> 0 | Q43: Average Exclusion (Ft.) | W43: =IF(W42=0,0,ROUND(W41/W42,1)) -> 0 | X43: =IF(X42=0,0,ROUND(X41/X42,1)) -> 0 | Y43: =IF(Y42=0,0,ROUND(Y41/Y42,1)) -> 0 | Z43: =IF(Z42=0,0,ROUND(Z41/Z42,1)) -> 0 | AB43: =IF(AB42=0,0,ROUND(AB41/AB42,1)) -> 0
GO46: =SUM(GO16:GO45) -> 0 | GP46: =SUM(GP16:GP45) -> 0 | GQ46: 0 | GR46: 0 | GS46: 0 | GT46: 0 | GU46: 0 | GV46: 0 | GW46: 0 | GX46: 0 | GY46: 0 | GZ46: 0 | HA46: 0 | HB46: 0 | HC46: 0 | HD46: 0 | HE46: 0 | HF46: 0 | HG46: 0 | HH46: 0 | HI46: 52 | HJ46: 0 | HK46: 0 | HL46: 0 | HM46: 0 | HO46: 0 | HP46: 0 | HQ46: 0 | HR46: 0 | HS46: 0 | HT46: 0 | HU46: 0 | HV46: 0 | HW46: 0 | HX46: 0 | HY46: 0 | HZ46: 0 | IA46: 0 | IB46: 0 | IC46: 0 | ID46: 0 | IE46: 0 | IF46: 0 | IG46: 0 | IH46: 0 | II46: 0 | IJ46: 0 | IK46: 0 | IL46: 0 | IM46: 0
GL47: TOTAL # of Lots
C48: Exclusion Distribution in Lanes | Q48: Exclusion Distribution in Lanes
C49: Lane | F49: =GU1 -> 1 | G49: =GU2 ->  | H49: =GU3 ->  | I49: =GU4 ->  | J49: =GU5 ->  | Q49: Lane | T49: =GV1 -> 1 | U49: =GV2 ->  | V49: =GV3 ->  | W49: =GV4 ->  | X49: =GV5 ->  | GO49: RR | GT49: IM | GY49: SR | HD49: SS | HI49: TJ | HO49: IM | HT49: SR | HY49: SS | ID49: TJ | II49: RR
C50: TJ | D50: Exclusion (FT) | F50: =IF(F49=1,ROUND(HI46,0),0) -> 52 | G50: =IF(G49=2,ROUND(HJ46,0),0) -> 0 | H50: =IF(H49=3,ROUND(HK46,0),0) -> 0 | I50: =IF(I49=4,ROUND(HL46,0),0) -> 0 | J50: =IF(J49=5,ROUND(HM46,0),0) -> 0 | Q50: TJ | R50: Exclusion (FT) | T50: =IF(T49=1,ROUND(ID46,0),0) -> 0 | U50: =IF(U49=2,ROUND(IE46,0),0) -> 0 | V50: =IF(V49=3,ROUND(IF46,0),0) -> 0 | W50: =IF(W49=4,ROUND(IG46,0),0) -> 0 | X50: =IF(X49=5,ROUND(IH46,0),0) -> 0 | GO50: =B12 -> 0 | HO50: =Q12 -> 0
D51: # of Occurrence | F51: =IF(F49=1,HI51,0) -> 1 | G51: =IF(G49=2,HJ51,0) -> 0 | H51: =IF(H49=3,HK51,0) -> 0 | I51: =IF(I49=4,HL51,0) -> 0 | J51: =IF(J49=5,HM51,0) -> 0 | R51: # of Occurrence | T51: =IF(T49="",0,ID51) -> 0 | U51: =IF(U49="",0,IE51) -> 0 | V51: =IF(V49="",0,IF51) -> 0 | W51: =IF(W49="",0,IG51) -> 0 | X51: =IF(X49="",0,IH51) -> 0 | GL51: # of Occassions | GO51: =COUNTIF(GO16:GO45,">0") -> 0 | GP51: 0 | GQ51: 0 | GR51: 0 | GS51: 0 | GT51: 0 | GU51: 0 | GV51: 0 | GW51: 0 | GX51: 0 | GY51: 0 | GZ51: 0 | HA51: 0 | HB51: 0 | HC51: 0 | HD51: 0 | HE51: 0 | HF51: 0 | HG51: 0 | HH51: 0 | HI51: 1 | HJ51: 0 | HK51: 0 | HL51: 0 | HM51: 0 | HO51: =COUNTIF(HO16:HO45,">0") -> 0 | HP51: 0 | HQ51: 0 | HR51: 0 | HS51: 0 | HT51: 0 | HU51: 0 | HV51: 0 | HW51: 0 | HX51: 0 | HY51: 0 | HZ51: 0 | IA51: 0 | IB51: 0 | IC51: 0 | ID51: 0 | IE51: 0 | IF51: 0 | IG51: 0 | IH51: 0 | II51: 0 | IJ51: 0 | IK51: 0 | IL51: 0 | IM51: 0
D52: # of Lots | F52: =IF(F$49="","-",(ROUNDUP(F50/52.8,0)+0)) -> 1 | G52: =IF(G49="","-",(ROUNDUP(G50/52.8,0)+0)) -> - | H52: =IF(H49="","-",(ROUNDUP(H50/52.8,0)+0)) -> - | I52: =IF(I49="","-",(ROUNDUP(I50/52.8,0)+0)) -> - | J52: =IF(J49="",0,(ROUNDUP(J50/52.8,0)+0)) -> 0 | R52: # of Lots | T52: =IF(T$49="","-",(ROUNDUP(T50/52.8,0)+0)) -> 0 | U52: =IF(U$49="","-",(ROUNDUP(U50/52.8,0)+0)) -> - | V52: =IF(V$49="","-",(ROUNDUP(V50/52.8,0)+0)) -> - | W52: =IF(W$49="","-",(ROUNDUP(W50/52.8,0)+0)) -> - | X52: =IF(X$49="","-",(ROUNDUP(X50/52.8,0)+0)) -> -
C54: IM | D54: Exclusion (FT) | F54: =IF(F49=1,ROUND(GT46,0),0) -> 0 | G54: =IF(G49=2,ROUND(GU46,0),0) -> 0 | H54: =IF(H49=3,ROUND(GV46,0),0) -> 0 | I54: =IF(I49=4,ROUND(GW46,0),0) -> 0 | J54: =IF(J49=5,ROUND(GX46,0),0) -> 0 | Q54: IM | R54: Exclusion (ft) | T54: =IF(T49=1,ROUND(HO46,0),0) -> 0 | U54: =IF(U49=2,ROUND(HP46,0),0) -> 0 | V54: =IF(V49=3,ROUND(HQ46,0),0) -> 0 | W54: =IF(W49=4,ROUND(HR46,0),0) -> 0 | X54: =IF(X49=5,ROUND(HS46,0),0) -> 0
D55: # of Occurrence | F55: =IF(F49=1,GT51,0) -> 0 | G55: =IF(G49=2,GU51,0) -> 0 | H55: =IF(H49=3,GV51,0) -> 0 | I55: =IF(I49=4,GW51,0) -> 0 | J55: =IF(J49=5,GX51,0) -> 0 | R55: # of Occurrence | T55: =IF(T49=1,HO51,0) -> 0 | U55: =IF(U49=2,HP51,0) -> 0 | V55: =IF(V49=3,HQ51,0) -> 0 | W55: =IF(W49=4,HR51,0) -> 0 | X55: =IF(X49=5,HS51,0) -> 0
D56: # of Lots | F56: =IF(F$49="","-",(ROUNDUP(F54/52.8,0)+0)) -> 0 | G56: =IF(G49="","-",(ROUNDUP(G54/52.8,0)+0)) -> - | H56: =IF(H49="","-",(ROUNDUP(H54/52.8,0)+0)) -> - | I56: =IF(I49="","-",(ROUNDUP(I54/52.8,0)+0)) -> - | J56: =IF(J49="","-",(ROUNDUP(J54/52.8,0)+0)) -> - | R56: # of Lots | T56: =IF(T49="","-",ROUNDUP(T54/52.8,0)+0) -> 0 | U56: =IF(U49="","-",ROUNDUP(U54/52.8,0)+0) -> - | V56: =IF(V49="","-",ROUNDUP(V54/52.8,0)+0) -> - | W56: =IF(W49="","-",ROUNDUP(W54/52.8,0)+0) -> - | X56: =IF(X49="","-",ROUNDUP(X54/52.8,0)+0) -> -
C58: SR | D58: Exclusion (FT) | F58: =IF(F49=1,ROUND(GY46,0),0) -> 0 | G58: =IF(G49=2,ROUND(GZ46,0),0) -> 0 | H58: =IF(H49=3,ROUND(HA46,0),0) -> 0 | I58: =IF(I49=4,ROUND(HB46,0),0) -> 0 | J58: =IF(J49=5,ROUND(HC46,0),0) -> 0 | Q58: SR | R58: Exclusion (ft) | T58: =IF(T49="",0,ROUND(HT46,0)) -> 0 | U58: =IF(U49="",0,ROUND(HU46,0)) -> 0 | V58: =IF(V49="",0,ROUND(HV46,0)) -> 0 | W58: =IF(W49="",0,ROUND(HW46,0)) -> 0 | X58: =IF(X49="",0,ROUND(HX46,0)) -> 0
D59: # of Occurrence | F59: =IF(F49=1,GY51,0) -> 0 | G59: =IF(G49=2,GZ51,0) -> 0 | H59: =IF(H49=3,HA51,0) -> 0 | I59: =IF(I49=4,HB51,0) -> 0 | J59: =IF(J49=5,HC51,0) -> 0 | R59: # of Occurrence | T59: =IF(T49=1,HT51,0) -> 0 | U59: =IF(U49=2,HU51,0) -> 0 | V59: =IF(V49=3,HV51,0) -> 0 | W59: =IF(W49=4,HW51,0) -> 0 | X59: =IF(X49=5,HX51,0) -> 0 | HX59: North
D60: # of Lots | F60: =IF(F$49="","-",(ROUNDUP(F58/52.8,0)+0)) -> 0 | G60: =IF(G$49="","-",(ROUNDUP(G58/52.8,0)+0)) -> - | H60: =IF(H$49="","-",(ROUNDUP(H58/52.8,0)+0)) -> - | I60: =IF(I$49="","-",(ROUNDUP(I58/52.8,0)+0)) -> - | J60: =IF(J$49="","-",(ROUNDUP(J58/52.8,0)+0)) -> - | R60: # of Lots | T60: =IF(T49="","-",ROUNDUP(T58/52.8,0)+0) -> 0 | U60: =IF(U49="","-",ROUNDUP(U58/52.8,0)+0) -> - | V60: =IF(V49="","-",ROUNDUP(V58/52.8,0)+0) -> - | W60: =IF(W49="","-",ROUNDUP(W58/52.8,0)+0) -> - | X60: =IF(X49="","-",ROUNDUP(X58/52.8,0)+0) -> -
C62: =D5 -> RR | D62: Exclusion (FT) | N62: PLEASE CLICK "UPLOAD EXCLUSIONS" FIRST BEFORE CLICKING "SEE PAY EQUATIONS" | Q62: =C62 -> RR | R62: Exclusion (FT)
D63: # of Occurrence | R63: # of Occurrence
D64: # of Lots | F64: =IF(F$49="",0,(ROUNDUP(F62/52.8,0)+0)) -> 0 | G64: =IF(G$49="",0,(ROUNDUP(G62/52.8,0)+0)) -> 0 | H64: =IF(H$49="",0,(ROUNDUP(H62/52.8,0)+0)) -> 0 | I64: =IF(I$49="",0,(ROUNDUP(I62/52.8,0)+0)) -> 0 | J64: =IF(J$49="",0,(ROUNDUP(J62/52.8,0)+0)) -> 0 | R64: # of Lots | T64: =IF(T$49="",0,(ROUNDUP(T62/52.8,0)+0)) -> 0 | U64: =IF(U$49="",0,(ROUNDUP(U62/52.8,0)+0)) -> 0 | V64: =IF(V$49="",0,(ROUNDUP(V62/52.8,0)+0)) -> 0 | W64: =IF(W$49="",0,(ROUNDUP(W62/52.8,0)+0)) -> 0 | X64: =IF(X$49="",0,(ROUNDUP(X62/52.8,0)+0)) -> 0
C66: SS | D66: Exclusion (FT) | F66: =IF(F49=1,ROUND(HD46,0),0) -> 0 | G66: =IF(G49=2,ROUND(HE46,0),0) -> 0 | H66: =IF(H49=3,ROUND(HF46,0),0) -> 0 | I66: =IF(I49=4,ROUND(HG46,0),0) -> 0 | J66: =IF(J49=5,ROUND(HH46,0),0) -> 0 | Q66: SS | R66: Exclusion (ft) | T66: =IF(T49="",0,ROUND(HY46,0)) -> 0 | U66: =IF(U49="",0,ROUND(HZ46,0)) -> 0 | V66: =IF(V49="",0,ROUND(IA46,0)) -> 0 | W66: =IF(W49="",0,ROUND(IB46,0)) -> 0 | X66: =IF(X49="",0,ROUND(IC46,0)) -> 0
D67: # of Occurrence | F67: =IF(F49=1,HD51,0) -> 0 | G67: =IF(G49=2,HE51,0) -> 0 | H67: =IF(H49=3,HF51,0) -> 0 | I67: =IF(I49=4,HG51,0) -> 0 | J67: =IF(J49=5,HH51,0) -> 0 | R67: # of Occurrence | T67: =IF(T49="",0,HY51) -> 0 | U67: =IF(U49="",0,HZ51) -> 0 | V67: =IF(V49="",0,IA51) -> 0 | W67: =IF(W49="",0,IB51) -> 0 | X67: =IF(X49="",0,IC51) -> 0
D68: # of Lots | F68: =IF(F49="","-",ROUNDUP(F66/52.8,0)) -> 0 | G68: =IF(G49="","-",ROUNDUP(G66/52.8,0)) -> - | H68: =IF(H49="","-",ROUNDUP(H66/52.8,0)) -> - | I68: =IF(I49="","-",ROUNDUP(I66/52.8,0)) -> - | J68: =IF(J49="","-",ROUNDUP(J66/52.8,0)) -> - | R68: # of Lots | T68: =IF(T49="","-",ROUNDUP(T66/52.8,0)) -> 0 | U68: =IF(U49="","-",ROUNDUP(U66/52.8,0)) -> - | V68: =IF(V49="","-",ROUNDUP(V66/52.8,0)) -> - | W68: =IF(W49="","-",ROUNDUP(W66/52.8,0)) -> - | X68: =IF(X49="","-",ROUNDUP(X66/52.8,0)) -> -
C70: RR | D70: Exclusion (FT) | F70: =IF(F49=1,ROUND(GO46,0),0) -> 0 | G70: =IF(G49=2,ROUND(GP46,0),0) -> 0 | H70: =IF(H49=3,ROUND(GQ46,0),0) -> 0 | I70: =IF(I49=4,ROUND(GR46,0),0) -> 0 | J70: =IF(J49=5,ROUND(GS46,0),0) -> 0 | Q70: RR | R70: Exclusion (FT) | T70: =IF(T49=1,ROUND(II46,0),0) -> 0 | U70: =IF(U49=2,ROUND(IJ46,0),0) -> 0 | V70: =IF(V49=3,ROUND(IK46,0),0) -> 0 | W70: =IF(W49=4,ROUND(IL46,0),0) -> 0 | X70: =IF(X49=5,ROUND(IM46,0),0) -> 0
D71: # of Occurrence | F71: =IF(F49=1,GO51,0) -> 0 | G71: =IF(G49=2,GP51,0) -> 0 | H71: =IF(H49=3,GQ51,0) -> 0 | I71: =IF(I49=4,GR51,0) -> 0 | J71: =IF(J49=5,GS51,0) -> 0 | R71: # of Occurrence | T71: =IF(T49="",0,II51) -> 0 | U71: =IF(U49="",0,IJ51) -> 0 | V71: =IF(V49="",0,IK51) -> 0 | W71: =IF(W49="",0,IL51) -> 0 | X71: =IF(X49="",0,IM51) -> 0
D72: # of Lots | F72: =IF(F$49="","-",(ROUNDUP(F70/52.8,0)+0)) -> 0 | G72: =IF(G49="","-",(ROUNDUP(G70/52.8,0)+0)) -> - | H72: =IF(H49="","-",(ROUNDUP(H70/52.8,0)+0)) -> - | I72: =IF(I49="","-",(ROUNDUP(I70/52.8,0)+0)) -> - | J72: =IF(J49="","-",(ROUNDUP(J70/52.8,0)+0)) -> - | R72: # of Lots | T72: =IF(T$49="","-",(ROUNDUP(T70/52.8,0)+0)) -> 0 | U72: =IF(U49="","-",(ROUNDUP(U70/52.8,0)+0)) -> - | V72: =IF(V49="","-",(ROUNDUP(V70/52.8,0)+0)) -> - | W72: =IF(W49="","-",(ROUNDUP(W70/52.8,0)+0)) -> - | X72: =IF(X49="","-",(ROUNDUP(X70/52.8,0)+0)) -> -
C73: TOTAL | D73: # of Lots | F73: =IF(F49="","",F56+F60+F68+F64+F52+F72) -> 1 | G73: =IF(G49="","",G56+G60+G68+G64+G52+G72) ->  | H73: =IF(H49="","",H56+H60+H68+H64+H52+H72) ->  | I73: =IF(I49="","",I56+I60+I68+I64+I52+I72) ->  | J73: =IF(J49="","",J56+J60+J68+J64+J52+J72) ->  | Q73: TOTAL | R73: # of Lots | T73: =IF(T49="","",T56+T60+T68+T64+T52+T72) -> 0 | U73: =IF(U49="","",U56+U60+U68+U64+U52+U72) ->  | V73: =IF(V49="","",V56+V60+V68+V64+V52+V72) ->  | W73: =IF(W49="","",W56+W60+W68+W64+W52+W72) ->  | X73: =IF(X49="","",X56+X60+X68+X64+X52+X72) -> 
B81: TJ | C81: Exclusion (FT) | E81: =SUM(F50:J50) -> 52 | P81: TJ | Q81: Exclusion (FT) | S81: =SUM(T50:X50) -> 0
C82: # of Occurrence | E82: =SUM(F51:J51) -> 1 | Q82: # of Occurrence | S82: =SUM(T51:X51) -> 0
C83: # of Lots | Q83: # of Lots
B85: IM | C85: Exclusion (FT) | E85: =SUM(F54:J54) -> 0 | P85: IM | Q85: Exclusion (FT) | S85: =SUM(T54:X54) -> 0
C86: # of Occurrence | E86: =SUM(F55:J55) -> 0 | Q86: # of Occurrence | S86: =SUM(T55:X55) -> 0
C87: # of Lots | Q87: # of Lots
B89: SR | C89: Exclusion (FT) | E89: =SUM(F58:J58) -> 0 | P89: SR | Q89: Exclusion (FT) | S89: =SUM(T58:X58) -> 0
C90: # of Occurrence | E90: =SUM(F59:J59) -> 0 | Q90: # of Occurrence | S90: =SUM(T59:X59) -> 0
C91: # of Lots | Q91: # of Lots
B93: =C66 -> SS | C93: Exclusion (FT) | E93: =SUM(F66:J66) -> 0 | P93: =Q66 -> SS | Q93: Exclusion (FT) | S93: =SUM(T66:X66) -> 0
C94: # of Occurrence | E94: =SUM(F67:J67) -> 0 | Q94: # of Occurrence | S94: =SUM(T67:X67) -> 0
C95: # of Lots | Q95: # of Lots
B97: =C70 -> RR | C97: Exclusion (FT) | E97: =SUM(F70:J70) -> 0 | P97: =Q70 -> RR | Q97: Exclusion (FT) | S97: =SUM(T70:X70) -> 0
C98: # of Occurrence | E98: =SUM(F71:J71) -> 0 | Q98: # of Occurrence | S98: =SUM(T71:X71) -> 0
C99: # of Lots | Q99: # of Lots
A104: 107 | C104: Error
A105: Primary= | B105: 106 | C105: =IF(A107-(B105+1)<1,0,CONCATENATE(A107-B105-1," Errors")) -> 0
A106: NB | C106: =IF(B107-(B106+1)<1,0,CONCATENATE(B107-B106-1," Errors")) -> 0
AA111: =SUM(T62:X62) -> 0
HO113: 1 | HP113: 2 | HQ113: 3 | HR113: 4 | HS113: 5 | HT113: 1 | HU113: 2 | HV113: 3 | HW113: 4 | HX113: 5 | HY113: 1 | HZ113: 2 | IA113: 3 | IB113: 4 | IC113: 5
G126: ERROR

Sheet Error Check (hidden)
A1: Error Report | O1: Cal Sheet | P1: 0
A2: Calculation Sheet | O2: Localized | P2: 1
A3: =IF(P1=1,"","No Error Check Run.") -> No Error Check Run.
O4: Errors
O5: ='Localized Factor Worksheet'!A109 -> 0 | P5: ='Localized Factor Worksheet'!C105 -> 0
O6: ='Localized Factor Worksheet'!A138 -> 0 | P6: ='Localized Factor Worksheet'!C106 -> 0
T7: Errors in Localized Sheet
A8: Localized Factor Worksheet | O8: =CONCATENATE("No errors found in ",O5," direction") -> No errors found in 0 direction | T8: ='Localized Factor Worksheet'!A109 -> 0
A9: =IF(P5=0,IF(P6=0,"No error found in both directions",O11),IF(P6>0,O12,O8)) -> No error found in both directions | O9: =CONCATENATE("No errors found in ",O6," direction") -> No errors found in 0 direction | T9: ='Localized Factor Worksheet'!A110 -> 0
O10: =CONCATENATE(P5," errors found in ",O5," direction") -> 0 errors found in 0 direction | T10: ='Localized Factor Worksheet'!A111 -> 0
O11: =CONCATENATE(P6," errors found in ",O6," direction") -> 0 errors found in 0 direction | T11: ='Localized Factor Worksheet'!A112 -> 0
T12: ='Localized Factor Worksheet'!A113 -> 0
T13: ='Localized Factor Worksheet'!A114 -> 0
T14: ='Localized Factor Worksheet'!A115 -> 0
T15: ='Localized Factor Worksheet'!A116 -> 0
T16: ='Localized Factor Worksheet'!A117 -> 0
T17: ='Localized Factor Worksheet'!A118 -> 0
T18: ='Localized Factor Worksheet'!A119 -> 0
T19: ='Localized Factor Worksheet'!A120 -> 0
T20: ='Localized Factor Worksheet'!A121 -> 0
T21: ='Localized Factor Worksheet'!A122 -> 0
T22: ='Localized Factor Worksheet'!A123 -> 0
T23: ='Localized Factor Worksheet'!A124 -> 0
T24: ='Localized Factor Worksheet'!A125 -> 0
T25: ='Localized Factor Worksheet'!A126 -> 0
T26: ='Localized Factor Worksheet'!A127 -> 0
T27: ='Localized Factor Worksheet'!A128 -> 0
T28: ='Localized Factor Worksheet'!A129 -> 0
T29: ='Localized Factor Worksheet'!A130 -> 0
T30: ='Localized Factor Worksheet'!A131 -> 0
T31: ='Localized Factor Worksheet'!A132 -> 0
T32: ='Localized Factor Worksheet'!A133 -> 0
T33: ='Localized Factor Worksheet'!A134 -> 0
T34: ='Localized Factor Worksheet'!A135 -> 0
T35: ='Localized Factor Worksheet'!A136 -> 0
T36: ='Localized Factor Worksheet'!A137 -> 0
T37: ='Localized Factor Worksheet'!A138 -> 0
T38: ='Localized Factor Worksheet'!A139 -> 0
T39: ='Localized Factor Worksheet'!A140 -> 0
T40: ='Localized Factor Worksheet'!A141 -> 0
T41: ='Localized Factor Worksheet'!A142 -> 0
T42: ='Localized Factor Worksheet'!A143 -> 0
T43: ='Localized Factor Worksheet'!A144 -> 0
T44: ='Localized Factor Worksheet'!A145 -> 0
T45: ='Localized Factor Worksheet'!A146 -> 0
T46: ='Localized Factor Worksheet'!A147 -> 0
T47: ='Localized Factor Worksheet'!A148 -> 0
T48: ='Localized Factor Worksheet'!A149 -> 0
T49: ='Localized Factor Worksheet'!A150 -> 0
T50: ='Localized Factor Worksheet'!A151 -> 0
T51: ='Localized Factor Worksheet'!A152 -> 0
T52: ='Localized Factor Worksheet'!A153 -> 0
T53: ='Localized Factor Worksheet'!A154 -> 0
T54: ='Localized Factor Worksheet'!A155 -> 0
T55: ='Localized Factor Worksheet'!A156 -> 0
T56: ='Localized Factor Worksheet'!A157 -> 0
T57: ='Localized Factor Worksheet'!A158 -> 0
T58: ='Localized Factor Worksheet'!A159 -> 0
T59: ='Localized Factor Worksheet'!A160 -> 0
T60: ='Localized Factor Worksheet'!A161 -> 0
T61: ='Localized Factor Worksheet'!A162 -> 0
T62: ='Localized Factor Worksheet'!A163 -> 0
T63: ='Localized Factor Worksheet'!A164 -> 0
T64: ='Localized Factor Worksheet'!A165 -> 0
T65: ='Localized Factor Worksheet'!A166 -> 0
T66: ='Localized Factor Worksheet'!A167 -> 0
T67: ='Localized Factor Worksheet'!A168 -> 0
T68: ='Localized Factor Worksheet'!A169 -> 0
T69: ='Localized Factor Worksheet'!A170 -> 0
T70: ='Localized Factor Worksheet'!A171 -> 0
T71: ='Localized Factor Worksheet'!A172 -> 0
T72: ='Localized Factor Worksheet'!A173 -> 0
T73: ='Localized Factor Worksheet'!A174 -> 0
T74: ='Localized Factor Worksheet'!A175 -> 0
T75: ='Localized Factor Worksheet'!A176 -> 0
T76: ='Localized Factor Worksheet'!A177 -> 0
T77: ='Localized Factor Worksheet'!A178 -> 0
T78: ='Localized Factor Worksheet'!A179 -> 0
T79: ='Localized Factor Worksheet'!A180 -> 0
T80: ='Localized Factor Worksheet'!A181 -> 0
T81: ='Localized Factor Worksheet'!A182 -> 0
T82: ='Localized Factor Worksheet'!A183 -> 0
T83: ='Localized Factor Worksheet'!A184 -> 0
T84: ='Localized Factor Worksheet'!A185 -> 0
T85: ='Localized Factor Worksheet'!A186 -> 0
T86: ='Localized Factor Worksheet'!A187 -> 0
T87: ='Localized Factor Worksheet'!A188 -> 0
T88: ='Localized Factor Worksheet'!A189 -> 0
T89: ='Localized Factor Worksheet'!A190 -> 0
T90: ='Localized Factor Worksheet'!A191 -> 0
T91: ='Localized Factor Worksheet'!A192 -> 0
T92: ='Localized Factor Worksheet'!A193 -> 0
T93: ='Localized Factor Worksheet'!A194 -> 0
T94: ='Localized Factor Worksheet'!A195 -> 0
T95: ='Localized Factor Worksheet'!A196 -> 0
T96: ='Localized Factor Worksheet'!A197 -> 0
T97: ='Localized Factor Worksheet'!A198 -> 0
T98: ='Localized Factor Worksheet'!A199 -> 0
T99: ='Localized Factor Worksheet'!A200 -> 0
T100: ='Localized Factor Worksheet'!A201 -> 0
T101: ='Localized Factor Worksheet'!A202 -> 0
T102: ='Localized Factor Worksheet'!A203 -> 0
T103: ='Localized Factor Worksheet'!A204 -> 0
T104: ='Localized Factor Worksheet'!A205 -> 0
T105: ='Localized Factor Worksheet'!A206 -> 0
T106: ='Localized Factor Worksheet'!A207 -> 0
T107: ='Localized Factor Worksheet'!A208 -> 0
T108: ='Localized Factor Worksheet'!A209 -> 0
T109: ='Localized Factor Worksheet'!A210 -> 0
T110: ='Localized Factor Worksheet'!A211 -> 0
T111: ='Localized Factor Worksheet'!A212 -> 0
T112: ='Localized Factor Worksheet'!A213 -> 0
T113: ='Localized Factor Worksheet'!A214 -> 0
T114: ='Localized Factor Worksheet'!A215 -> 0
T115: ='Localized Factor Worksheet'!A216 -> 0
T116: ='Localized Factor Worksheet'!A217 -> 0
T117: ='Localized Factor Worksheet'!A218 -> 0
T118: ='Localized Factor Worksheet'!A219 -> 0
T119: ='Localized Factor Worksheet'!A220 -> 0
T120: ='Localized Factor Worksheet'!A221 -> 0
T121: ='Localized Factor Worksheet'!A222 -> 0
T122: ='Localized Factor Worksheet'!A223 -> 0
T123: ='Localized Factor Worksheet'!A224 -> 0
T124: ='Localized Factor Worksheet'!A225 -> 0
T125: ='Localized Factor Worksheet'!A226 -> 0
T126: ='Localized Factor Worksheet'!A227 -> 0
T127: ='Localized Factor Worksheet'!A228 -> 0
T128: ='Localized Factor Worksheet'!A229 -> 0
T129: ='Localized Factor Worksheet'!A230 -> 0
T130: ='Localized Factor Worksheet'!A231 -> 0
T131: ='Localized Factor Worksheet'!A232 -> 0
T132: ='Localized Factor Worksheet'!A233 -> 0
T133: ='Localized Factor Worksheet'!A234 -> 0
T134: ='Localized Factor Worksheet'!A235 -> 0
T135: ='Localized Factor Worksheet'!A236 -> 0
T136: ='Localized Factor Worksheet'!A237 -> 0
T137: ='Localized Factor Worksheet'!A238 -> 0
T138: ='Localized Factor Worksheet'!A239 -> 0
T139: ='Localized Factor Worksheet'!A240 -> 0
T140: ='Localized Factor Worksheet'!A241 -> 0
T141: ='Localized Factor Worksheet'!A242 -> 0
T142: ='Localized Factor Worksheet'!A243 -> 0
T143: ='Localized Factor Worksheet'!A244 -> 0
T144: ='Localized Factor Worksheet'!A245 -> 0
T145: ='Localized Factor Worksheet'!A246 -> 0
T146: ='Localized Factor Worksheet'!A247 -> 0
T147: ='Localized Factor Worksheet'!A248 -> 0
T148: ='Localized Factor Worksheet'!A249 -> 0
T149: ='Localized Factor Worksheet'!A250 -> 0
T150: ='Localized Factor Worksheet'!A251 -> 0
T151: ='Localized Factor Worksheet'!A252 -> 0
T152: ='Localized Factor Worksheet'!A253 -> 0
T153: ='Localized Factor Worksheet'!A254 -> 0
T154: ='Localized Factor Worksheet'!A255 -> 0
T155: ='Localized Factor Worksheet'!A256 -> 0
T156: ='Localized Factor Worksheet'!A257 -> 0
T157: ='Localized Factor Worksheet'!A258 -> 0
T158: ='Localized Factor Worksheet'!A259 -> 0
T159: ='Localized Factor Worksheet'!A260 -> 0
T160: ='Localized Factor Worksheet'!A261 -> 0
T161: ='Localized Factor Worksheet'!A262 -> 0
T162: ='Localized Factor Worksheet'!A263 -> 0
T163: ='Localized Factor Worksheet'!A264 -> 0
T164: ='Localized Factor Worksheet'!A265 -> 0
T165: ='Localized Factor Worksheet'!A266 -> 0
T166: ='Localized Factor Worksheet'!A267 -> 0
T167: ='Localized Factor Worksheet'!A268 -> 0
T168: ='Localized Factor Worksheet'!A269 -> 0
T169: ='Localized Factor Worksheet'!A270 -> 0
T170: ='Localized Factor Worksheet'!A271 -> 0
T171: ='Localized Factor Worksheet'!A272 -> 0
T172: ='Localized Factor Worksheet'!A273 -> 0
T173: ='Localized Factor Worksheet'!A274 -> 0
T174: ='Localized Factor Worksheet'!A275 -> 0
T175: ='Localized Factor Worksheet'!A276 -> 0
T176: ='Localized Factor Worksheet'!A277 -> 0
T177: ='Localized Factor Worksheet'!A278 -> 0
T178: ='Localized Factor Worksheet'!A279 -> 0
T179: ='Localized Factor Worksheet'!A280 -> 0
T180: ='Localized Factor Worksheet'!A281 -> 0
T181: ='Localized Factor Worksheet'!A282 -> 0
T182: ='Localized Factor Worksheet'!A283 -> 0
T183: ='Localized Factor Worksheet'!A284 -> 0
T184: ='Localized Factor Worksheet'!A285 -> 0
T185: ='Localized Factor Worksheet'!A286 -> 0
T186: ='Localized Factor Worksheet'!A287 -> 0
T187: ='Localized Factor Worksheet'!A288 -> 0
T188: ='Localized Factor Worksheet'!A289 -> 0
T189: ='Localized Factor Worksheet'!A290 -> 0
T190: ='Localized Factor Worksheet'!A291 -> 0
T191: ='Localized Factor Worksheet'!A292 -> 0
T192: ='Localized Factor Worksheet'!A293 -> 0
T193: ='Localized Factor Worksheet'!A294 -> 0
T194: ='Localized Factor Worksheet'!A295 -> 0
T195: ='Localized Factor Worksheet'!A296 -> 0
T196: ='Localized Factor Worksheet'!A297 -> 0
T197: ='Localized Factor Worksheet'!A298 -> 0
T198: ='Localized Factor Worksheet'!A299 -> 0
T199: ='Localized Factor Worksheet'!A300 -> 0
T200: ='Localized Factor Worksheet'!A301 -> 0
... 316 more rows

Sheet Macro
A5: PAVEMENT DESIGN
A6: =[1]Instructions!A2 -> RIDE QUALITY REQUIREMENTS (RQR) SOFTWARE
A7: =Instructions!$A$3 -> Version: 3.00W
A8: =Instructions!$A$4 -> Information last updated on: April 30, 2014
A22: How to enable MACRO?
A25: For any question, send email to RQSPECSUPPORT@DOT.STATE.NJ.US
A54: PREVIOUS | L54: NEXT
A77: PREVIOUS | L77: NEXT
A102: PREVIOUS

Sheet Ai factors (hidden)
A1: Version- | C1: 3.00W | Z1: HMA 401-03-03-8 | AO1: Microsurfacing & Slurry Sill | AS1: Diamond Grading
A2: Last Updated on- | C2: 2018-09-14
A3: AE . AL Factor | V3: Freeways/Limited Access Highways | W3: Highways Other Than Freeways /Limited Access (Speed Limit below 35 MPH) | X3: Highways Other Than Freeways /Limited Access (Speed Limit 35 MPH or above) | Z3: IRI | AA3: Freeways/Limited Access Highways | AE3: Highways Other Than Freeways /Limited Access (Speed Limit below 35 MPH) | AI3: Highways Other Than Freeways /Limited Access (Speed Limit 35 MPH or above) | AO3: Freeways/Limited Access Highways | AP3: Highways Other Than Freeways /Limited Access (Speed Limit below 35 MPH) | AQ3: Highways Other Than Freeways /Limited Access (Speed Limit 35 MPH or above) | AS3: Freeways/Limited Access Highways | AT3: Highways Other Than Freeways /Limited Access (Speed Limit below 35 MPH) | AU3: Highways Other Than Freeways /Limited Access (Speed Limit 35 MPH or above)
V4: 50 | X4: 60 | Y4: 70 | AA4: 1 | AB4: 2 | AC4: 3 | AD4: 4 | AE4: 1 | AF4: 2 | AG4: 3 | AH4: 4 | AI4: 1 | AJ4: 2 | AK4: 3 | AL4: 4 | AO4: Target IRI | AP4: Target IRI | AQ4: Target IRI | AS4: Target IRI | AT4: Target IRI | AU4: Target IRI
C5: # of Operations | H5: Composite? | J5: AC | Z5: 20 | AA5: 50 | AB5: 50 | AC5: 50 | AD5: 50 | AE5: 60 | AF5: 60 | AG5: 60 | AH5: 60 | AI5: 70 | AJ5: 70 | AK5: 70 | AL5: 70 | AO5: 50 | AP5: 60 | AQ5: 70 | AS5: =IF(Z5*0.45<$V$4,$V$4,ROUND(0.45*Z5,0)) -> 50 | AT5: =IF(Z5*0.5<$X$4,$X$4,ROUND(0.5*Z5,0)) -> 60 | AU5: =IF(Z5*0.6<$Y$4,$Y$4,ROUND(0.6*Z5,0)) -> 70
C6: 1 | D6: 2 | E6: 3 | F6: 4 | H6: No | J6: 1 | Z6: 21 | AA6: 50 | AB6: 50 | AC6: 50 | AD6: 50 | AE6: 60 | AF6: 60 | AG6: 60 | AH6: 60 | AI6: 70 | AJ6: 70 | AK6: 70 | AL6: 70 | AO6: 50 | AP6: 60 | AQ6: 70 | AS6: =IF(Z6*0.45<$V$4,$V$4,ROUND(0.45*Z6,0)) -> 50 | AT6: =IF(Z6*0.5<$X$4,$X$4,ROUND(0.5*Z6,0)) -> 60 | AU6: =IF(Z6*0.6<$Y$4,$Y$4,ROUND(0.6*Z6,0)) -> 70
A7: initial IRI | B7: < 60 | C7: 1 | D7: 1 | E7: 1 | F7: 1 | H7: Yes | J7: 1.05 | Z7: 22 | AA7: 50 | AB7: 50 | AC7: 50 | AD7: 50 | AE7: 60 | AF7: 60 | AG7: 60 | AH7: 60 | AI7: 70 | AJ7: 70 | AK7: 70 | AL7: 70 | AO7: 50 | AP7: 60 | AQ7: 70 | AS7: 50 | AT7: 60 | AU7: 70
B8: 60 to <95 | C8: 1.05 | D8: 1 | E8: 1 | F8: 1 | Z8: 23 | AA8: 50 | AB8: 50 | AC8: 50 | AD8: 50 | AE8: 60 | AF8: 60 | AG8: 60 | AH8: 60 | AI8: 70 | AJ8: 70 | AK8: 70 | AL8: 70 | AO8: 50 | AP8: 60 | AQ8: 70 | AS8: 50 | AT8: 60 | AU8: 70
B9: 95 to <170 | C9: 1.1 | D9: 1.05 | E9: 1 | F9: 1 | Z9: 24 | AA9: 50 | AB9: 50 | AC9: 50 | AD9: 50 | AE9: 60 | AF9: 60 | AG9: 60 | AH9: 60 | AI9: 70 | AJ9: 70 | AK9: 70 | AL9: 70 | AO9: 50 | AP9: 60 | AQ9: 70 | AS9: 50 | AT9: 60 | AU9: 70
B10: 170 to <200 | C10: 1.15 | D10: 1.1 | E10: 1.05 | F10: 1 | Z10: 25 | AA10: 50 | AB10: 50 | AC10: 50 | AD10: 50 | AE10: 60 | AF10: 60 | AG10: 60 | AH10: 60 | AI10: 70 | AJ10: 70 | AK10: 70 | AL10: 70 | AO10: 50 | AP10: 60 | AQ10: 70 | AS10: 50 | AT10: 60 | AU10: 70
B11: 200 to <285 | C11: 1.2 | D11: 1.15 | E11: 1.1 | F11: 1 | H11: Limits for Exclusions | Z11: 26 | AA11: 50 | AB11: 50 | AC11: 50 | AD11: 50 | AE11: 60 | AF11: 60 | AG11: 60 | AH11: 60 | AI11: 70 | AJ11: 70 | AK11: 70 | AL11: 70 | AO11: 50 | AP11: 60 | AQ11: 70 | AS11: 50 | AT11: 60 | AU11: 70
B12: >285 | C12: 1.25 | D12: 1.2 | E12: 1.15 | F12: 1.05 | H12: 0.2 | Z12: 27 | AA12: 50 | AB12: 50 | AC12: 50 | AD12: 50 | AE12: 60 | AF12: 60 | AG12: 60 | AH12: 60 | AI12: 70 | AJ12: 70 | AK12: 70 | AL12: 70 | AO12: 50 | AP12: 60 | AQ12: 70 | AS12: 50 | AT12: 60 | AU12: 70
Z13: 28 | AA13: 50 | AB13: 50 | AC13: 50 | AD13: 50 | AE13: 60 | AF13: 60 | AG13: 60 | AH13: 60 | AI13: 70 | AJ13: 70 | AK13: 70 | AL13: 70 | AO13: 50 | AP13: 60 | AQ13: 70 | AS13: 50 | AT13: 60 | AU13: 70
Z14: 29 | AA14: 50 | AB14: 50 | AC14: 50 | AD14: 50 | AE14: 60 | AF14: 60 | AG14: 60 | AH14: 60 | AI14: 70 | AJ14: 70 | AK14: 70 | AL14: 70 | AO14: 50 | AP14: 60 | AQ14: 70 | AS14: 50 | AT14: 60 | AU14: 70
Z15: 30 | AA15: 50 | AB15: 50 | AC15: 50 | AD15: 50 | AE15: 60 | AF15: 60 | AG15: 60 | AH15: 60 | AI15: 70 | AJ15: 70 | AK15: 70 | AL15: 70 | AO15: 50 | AP15: 60 | AQ15: 70 | AS15: 50 | AT15: 60 | AU15: 70
Z16: 31 | AA16: 50 | AB16: 50 | AC16: 50 | AD16: 50 | AE16: 60 | AF16: 60 | AG16: 60 | AH16: 60 | AI16: 70 | AJ16: 70 | AK16: 70 | AL16: 70 | AO16: 50 | AP16: 60 | AQ16: 70 | AS16: 50 | AT16: 60 | AU16: 70
Z17: 32 | AA17: 50 | AB17: 50 | AC17: 50 | AD17: 50 | AE17: 60 | AF17: 60 | AG17: 60 | AH17: 60 | AI17: 70 | AJ17: 70 | AK17: 70 | AL17: 70 | AO17: 50 | AP17: 60 | AQ17: 70 | AS17: 50 | AT17: 60 | AU17: 70
A18: IRI | B18: Number of Lifts | Z18: 33 | AA18: 50 | AB18: 50 | AC18: 50 | AD18: 50 | AE18: 60 | AF18: 60 | AG18: 60 | AH18: 60 | AI18: 70 | AJ18: 70 | AK18: 70 | AL18: 70 | AO18: 50 | AP18: 60 | AQ18: 70 | AS18: 50 | AT18: 60 | AU18: 70
B19: 1 | C19: 2 | D19: 3 | E19: 4 | H19: Exclusion threshold value | Z19: 34 | AA19: 50 | AB19: 50 | AC19: 50 | AD19: 50 | AE19: 60 | AF19: 60 | AG19: 60 | AH19: 60 | AI19: 70 | AJ19: 70 | AK19: 70 | AL19: 70 | AO19: 50 | AP19: 60 | AQ19: 70 | AS19: 50 | AT19: 60 | AU19: 70
A20: 0 | B20: 1 | C20: 1 | D20: 1 | E20: 1 | H20: IM | I20: 50 | Z20: 35 | AA20: 50 | AB20: 50 | AC20: 50 | AD20: 50 | AE20: 60 | AF20: 60 | AG20: 60 | AH20: 60 | AI20: 70 | AJ20: 70 | AK20: 70 | AL20: 70 | AO20: 50 | AP20: 60 | AQ20: 70 | AS20: 50 | AT20: 60 | AU20: 70
A21: 1 | B21: 1 | C21: 1 | D21: 1 | E21: 1 | H21: SS | I21: 25 | Z21: 36 | AA21: 50 | AB21: 50 | AC21: 50 | AD21: 50 | AE21: 60 | AF21: 60 | AG21: 60 | AH21: 60 | AI21: 70 | AJ21: 70 | AK21: 70 | AL21: 70 | AO21: 50 | AP21: 60 | AQ21: 70 | AS21: 50 | AT21: 60 | AU21: 70
A22: 2 | B22: 1 | C22: 1 | D22: 1 | E22: 1 | H22: SR | I22: 100 | Z22: 37 | AA22: 50 | AB22: 50 | AC22: 50 | AD22: 50 | AE22: 60 | AF22: 60 | AG22: 60 | AH22: 60 | AI22: 70 | AJ22: 70 | AK22: 70 | AL22: 70 | AO22: 50 | AP22: 60 | AQ22: 70 | AS22: 50 | AT22: 60 | AU22: 70
A23: 3 | B23: 1 | C23: 1 | D23: 1 | E23: 1 | H23: RR | I23: 25 | Z23: 38 | AA23: 50 | AB23: 50 | AC23: 50 | AD23: 50 | AE23: 60 | AF23: 60 | AG23: 60 | AH23: 60 | AI23: 70 | AJ23: 70 | AK23: 70 | AL23: 70 | AO23: 50 | AP23: 60 | AQ23: 70 | AS23: 50 | AT23: 60 | AU23: 70
A24: 4 | B24: 1 | C24: 1 | D24: 1 | E24: 1 | H24: TJ | I24: 52 | Z24: 39 | AA24: 50 | AB24: 50 | AC24: 50 | AD24: 50 | AE24: 60 | AF24: 60 | AG24: 60 | AH24: 60 | AI24: 70 | AJ24: 70 | AK24: 70 | AL24: 70 | AO24: 50 | AP24: 60 | AQ24: 70 | AS24: 50 | AT24: 60 | AU24: 70
A25: 5 | B25: 1 | C25: 1 | D25: 1 | E25: 1 | H25: BASE IRI | Z25: 40 | AA25: 50 | AB25: 50 | AC25: 50 | AD25: 50 | AE25: 60 | AF25: 60 | AG25: 60 | AH25: 60 | AI25: 70 | AJ25: 70 | AK25: 70 | AL25: 70 | AO25: 50 | AP25: 60 | AQ25: 70 | AS25: 50 | AT25: 60 | AU25: 70
A26: 6 | B26: 1 | C26: 1 | D26: 1 | E26: 1 | H26: Classification | K26: Base IRI, Inch/Mile | L26: Max Limit for Traget IRI | Z26: 41 | AA26: 50 | AB26: 50 | AC26: 50 | AD26: 50 | AE26: 60 | AF26: 60 | AG26: 60 | AH26: 60 | AI26: 70 | AJ26: 70 | AK26: 70 | AL26: 70 | AO26: 50 | AP26: 60 | AQ26: 70 | AS26: 50 | AT26: 60 | AU26: 70
A27: 7 | B27: 1 | C27: 1 | D27: 1 | E27: 1 | H27: Freeways/Limited Access Highways | K27: 50 | L27: 63 | Z27: 42 | AA27: 50 | AB27: 50 | AC27: 50 | AD27: 50 | AE27: 60 | AF27: 60 | AG27: 60 | AH27: 60 | AI27: 70 | AJ27: 70 | AK27: 70 | AL27: 70 | AO27: 50 | AP27: 60 | AQ27: 70 | AS27: 50 | AT27: 60 | AU27: 70
A28: 8 | B28: 1 | C28: 1 | D28: 1 | E28: 1 | H28: Highways Other Than Freeways /Limited Access (Speed Limit 35 MPH or above) | K28: 60 | L28: 90 | Z28: 43 | AA28: 50 | AB28: 50 | AC28: 50 | AD28: 50 | AE28: 60 | AF28: 60 | AG28: 60 | AH28: 60 | AI28: 70 | AJ28: 70 | AK28: 70 | AL28: 70 | AO28: 50 | AP28: 60 | AQ28: 70 | AS28: 50 | AT28: 60 | AU28: 70
A29: 9 | B29: 1 | C29: 1 | D29: 1 | E29: 1 | H29: Highways Other Than Freeways /Limited Access (Speed Limit below 35 MPH) | K29: 70 | L29: 100 | Z29: 44 | AA29: 50 | AB29: 50 | AC29: 50 | AD29: 50 | AE29: 60 | AF29: 60 | AG29: 60 | AH29: 60 | AI29: 70 | AJ29: 70 | AK29: 70 | AL29: 70 | AO29: 50 | AP29: 60 | AQ29: 70 | AS29: 50 | AT29: 60 | AU29: 70
A30: 10 | B30: 1 | C30: 1 | D30: 1 | E30: 1 | Z30: 45 | AA30: 50 | AB30: 50 | AC30: 50 | AD30: 50 | AE30: 60 | AF30: 60 | AG30: 60 | AH30: 60 | AI30: 70 | AJ30: 70 | AK30: 70 | AL30: 70 | AO30: 50 | AP30: 60 | AQ30: 70 | AS30: 50 | AT30: 60 | AU30: 70
A31: 11 | B31: 1 | C31: 1 | D31: 1 | E31: 1 | Z31: 46 | AA31: 50 | AB31: 50 | AC31: 50 | AD31: 50 | AE31: 60 | AF31: 60 | AG31: 60 | AH31: 60 | AI31: 70 | AJ31: 70 | AK31: 70 | AL31: 70 | AO31: 50 | AP31: 60 | AQ31: 70 | AS31: 50 | AT31: 60 | AU31: 70
A32: 12 | B32: 1 | C32: 1 | D32: 1 | E32: 1 | H32: Pay Adjustment DEFAULT FACTORS | Z32: 47 | AA32: 50 | AB32: 50 | AC32: 50 | AD32: 50 | AE32: 60 | AF32: 60 | AG32: 60 | AH32: 60 | AI32: 70 | AJ32: 70 | AK32: 70 | AL32: 70 | AO32: 50 | AP32: 60 | AQ32: 70 | AS32: 50 | AT32: 60 | AU32: 70
A33: 13 | B33: 1 | C33: 1 | D33: 1 | E33: 1 | H33: Maximum +ve Pay Adjustment(D0) | M33: 50 | Z33: 48 | AA33: 50 | AB33: 50 | AC33: 50 | AD33: 50 | AE33: 60 | AF33: 60 | AG33: 60 | AH33: 60 | AI33: 70 | AJ33: 70 | AK33: 70 | AL33: 70 | AO33: 50 | AP33: 60 | AQ33: 70 | AS33: 50 | AT33: 60 | AU33: 70
A34: 14 | B34: 1 | C34: 1 | D34: 1 | E34: 1 | H34: IRI difference between lower limit of zero band and max +ve PA | M34: 20 | Z34: 49 | AA34: 50 | AB34: 50 | AC34: 50 | AD34: 50 | AE34: 60 | AF34: 60 | AG34: 60 | AH34: 60 | AI34: 70 | AJ34: 70 | AK34: 70 | AL34: 70 | AO34: 50 | AP34: 60 | AQ34: 70 | AS34: 50 | AT34: 60 | AU34: 70
A35: 15 | B35: 1 | C35: 1 | D35: 1 | E35: 1 | H35: Zero Band | J35: L1 | M35: 5 | Z35: 50 | AA35: 50 | AB35: 50 | AC35: 50 | AD35: 50 | AE35: 60 | AF35: 60 | AG35: 60 | AH35: 60 | AI35: 70 | AJ35: 70 | AK35: 70 | AL35: 70 | AO35: 50 | AP35: 60 | AQ35: 70 | AS35: 50 | AT35: 60 | AU35: 70
A36: 16 | B36: 1 | C36: 1 | D36: 1 | E36: 1 | J36: L2 | M36: 5 | Z36: 51 | AA36: 50 | AB36: 50 | AC36: 50 | AD36: 50 | AE36: 60 | AF36: 60 | AG36: 60 | AH36: 60 | AI36: 70 | AJ36: 70 | AK36: 70 | AL36: 70 | AO36: 51 | AP36: 60 | AQ36: 70 | AS36: 50 | AT36: 60 | AU36: 70
A37: 17 | B37: 1 | C37: 1 | D37: 1 | E37: 1 | H37: IRI difference between upper limit of zero band and max -ve PA | M37: 70 | Z37: 52 | AA37: 50 | AB37: 50 | AC37: 50 | AD37: 50 | AE37: 60 | AF37: 60 | AG37: 60 | AH37: 60 | AI37: 70 | AJ37: 70 | AK37: 70 | AL37: 70 | AO37: 52 | AP37: 60 | AQ37: 70 | AS37: 50 | AT37: 60 | AU37: 70
A38: 18 | B38: 1 | C38: 1 | D38: 1 | E38: 1 | H38: Maximum -Ve Pay Adjustment | M38: -500 | Z38: 53 | AA38: 50 | AB38: 50 | AC38: 50 | AD38: 50 | AE38: 60 | AF38: 60 | AG38: 60 | AH38: 60 | AI38: 70 | AJ38: 70 | AK38: 70 | AL38: 70 | AO38: 53 | AP38: 60 | AQ38: 70 | AS38: 50 | AT38: 60 | AU38: 70
A39: 19 | B39: 1 | C39: 1 | D39: 1 | E39: 1 | Z39: 54 | AA39: 50 | AB39: 50 | AC39: 50 | AD39: 50 | AE39: 60 | AF39: 60 | AG39: 60 | AH39: 60 | AI39: 70 | AJ39: 70 | AK39: 70 | AL39: 70 | AO39: 54 | AP39: 60 | AQ39: 70 | AS39: 50 | AT39: 60 | AU39: 70
A40: 20 | B40: 1 | C40: 1 | D40: 1 | E40: 1 | Z40: 55 | AA40: 50 | AB40: 50 | AC40: 50 | AD40: 50 | AE40: 60 | AF40: 60 | AG40: 60 | AH40: 60 | AI40: 70 | AJ40: 70 | AK40: 70 | AL40: 70 | AO40: 55 | AP40: 60 | AQ40: 70 | AS40: 50 | AT40: 60 | AU40: 70
A41: 21 | B41: 1 | C41: 1 | D41: 1 | E41: 1 | Z41: 56 | AA41: 50 | AB41: 50 | AC41: 50 | AD41: 50 | AE41: 60 | AF41: 60 | AG41: 60 | AH41: 60 | AI41: 70 | AJ41: 70 | AK41: 70 | AL41: 70 | AO41: 56 | AP41: 60 | AQ41: 70 | AS41: 50 | AT41: 60 | AU41: 70
A42: 22 | B42: 1 | C42: 1 | D42: 1 | E42: 1 | Z42: 57 | AA42: 50 | AB42: 50 | AC42: 50 | AD42: 50 | AE42: 60 | AF42: 60 | AG42: 60 | AH42: 60 | AI42: 70 | AJ42: 70 | AK42: 70 | AL42: 70 | AO42: 57 | AP42: 60 | AQ42: 70 | AS42: 50 | AT42: 60 | AU42: 70
A43: 23 | B43: 1 | C43: 1 | D43: 1 | E43: 1 | Z43: 58 | AA43: 50 | AB43: 50 | AC43: 50 | AD43: 50 | AE43: 60 | AF43: 60 | AG43: 60 | AH43: 60 | AI43: 70 | AJ43: 70 | AK43: 70 | AL43: 70 | AO43: 58 | AP43: 60 | AQ43: 70 | AS43: 50 | AT43: 60 | AU43: 70
A44: 24 | B44: 1 | C44: 1 | D44: 1 | E44: 1 | Z44: 59 | AA44: 50 | AB44: 50 | AC44: 50 | AD44: 50 | AE44: 60 | AF44: 60 | AG44: 60 | AH44: 60 | AI44: 70 | AJ44: 70 | AK44: 70 | AL44: 70 | AO44: 59 | AP44: 60 | AQ44: 70 | AS44: 50 | AT44: 60 | AU44: 70
A45: 25 | B45: 1 | C45: 1 | D45: 1 | E45: 1 | Z45: 60 | AA45: 50 | AB45: 50 | AC45: 50 | AD45: 50 | AE45: 60 | AF45: 60 | AG45: 60 | AH45: 60 | AI45: 70 | AJ45: 70 | AK45: 70 | AL45: 70 | AO45: 60 | AP45: 60 | AQ45: 70 | AS45: 50 | AT45: 60 | AU45: 70
A46: 26 | B46: 1 | C46: 1 | D46: 1 | E46: 1 | Z46: 61 | AA46: 53 | AB46: 50 | AC46: 50 | AD46: 50 | AE46: 63 | AF46: 60 | AG46: 60 | AH46: 60 | AI46: 74 | AJ46: 70 | AK46: 70 | AL46: 70 | AO46: 61 | AP46: 61 | AQ46: 70 | AS46: 50 | AT46: 60 | AU46: 70
A47: 27 | B47: 1 | C47: 1 | D47: 1 | E47: 1 | Z47: 62 | AA47: 53 | AB47: 50 | AC47: 50 | AD47: 50 | AE47: 63 | AF47: 60 | AG47: 60 | AH47: 60 | AI47: 74 | AJ47: 70 | AK47: 70 | AL47: 70 | AO47: 62 | AP47: 62 | AQ47: 70 | AS47: 50 | AT47: 60 | AU47: 70
A48: 28 | B48: 1 | C48: 1 | D48: 1 | E48: 1 | Z48: 63 | AA48: 53 | AB48: 50 | AC48: 50 | AD48: 50 | AE48: 63 | AF48: 60 | AG48: 60 | AH48: 60 | AI48: 74 | AJ48: 70 | AK48: 70 | AL48: 70 | AO48: 63 | AP48: 63 | AQ48: 70 | AS48: 50 | AT48: 60 | AU48: 70
A49: 29 | B49: 1 | C49: 1 | D49: 1 | E49: 1 | Z49: 64 | AA49: 53 | AB49: 50 | AC49: 50 | AD49: 50 | AE49: 63 | AF49: 60 | AG49: 60 | AH49: 60 | AI49: 74 | AJ49: 70 | AK49: 70 | AL49: 70 | AO49: 64 | AP49: 64 | AQ49: 70 | AS49: 50 | AT49: 60 | AU49: 70
A50: 30 | B50: 1 | C50: 1 | D50: 1 | E50: 1 | Z50: 65 | AA50: 53 | AB50: 50 | AC50: 50 | AD50: 50 | AE50: 63 | AF50: 60 | AG50: 60 | AH50: 60 | AI50: 74 | AJ50: 70 | AK50: 70 | AL50: 70 | AO50: 65 | AP50: 65 | AQ50: 70 | AS50: 50 | AT50: 60 | AU50: 70
A51: 31 | B51: 1 | C51: 1 | D51: 1 | E51: 1 | Z51: 66 | AA51: 53 | AB51: 50 | AC51: 50 | AD51: 50 | AE51: 63 | AF51: 60 | AG51: 60 | AH51: 60 | AI51: 74 | AJ51: 70 | AK51: 70 | AL51: 70 | AO51: 66 | AP51: 66 | AQ51: 70 | AS51: 50 | AT51: 60 | AU51: 70
A52: 32 | B52: 1 | C52: 1 | D52: 1 | E52: 1 | Z52: 67 | AA52: 53 | AB52: 50 | AC52: 50 | AD52: 50 | AE52: 63 | AF52: 60 | AG52: 60 | AH52: 60 | AI52: 74 | AJ52: 70 | AK52: 70 | AL52: 70 | AO52: 67 | AP52: 67 | AQ52: 70 | AS52: 50 | AT52: 60 | AU52: 70
A53: 33 | B53: 1 | C53: 1 | D53: 1 | E53: 1 | Z53: 68 | AA53: 53 | AB53: 50 | AC53: 50 | AD53: 50 | AE53: 63 | AF53: 60 | AG53: 60 | AH53: 60 | AI53: 74 | AJ53: 70 | AK53: 70 | AL53: 70 | AO53: 68 | AP53: 68 | AQ53: 70 | AS53: 50 | AT53: 60 | AU53: 70
A54: 34 | B54: 1 | C54: 1 | D54: 1 | E54: 1 | Z54: 69 | AA54: 53 | AB54: 50 | AC54: 50 | AD54: 50 | AE54: 63 | AF54: 60 | AG54: 60 | AH54: 60 | AI54: 74 | AJ54: 70 | AK54: 70 | AL54: 70 | AO54: 69 | AP54: 69 | AQ54: 70 | AS54: 50 | AT54: 60 | AU54: 70
A55: 35 | B55: 1 | C55: 1 | D55: 1 | E55: 1 | Z55: 70 | AA55: 53 | AB55: 50 | AC55: 50 | AD55: 50 | AE55: 63 | AF55: 60 | AG55: 60 | AH55: 60 | AI55: 74 | AJ55: 70 | AK55: 70 | AL55: 70 | AO55: 70 | AP55: 70 | AQ55: 70 | AS55: 50 | AT55: 60 | AU55: 70
A56: 36 | B56: 1 | C56: 1 | D56: 1 | E56: 1 | Z56: 71 | AA56: 53 | AB56: 50 | AC56: 50 | AD56: 50 | AE56: 63 | AF56: 60 | AG56: 60 | AH56: 60 | AI56: 74 | AJ56: 70 | AK56: 70 | AL56: 70 | AO56: 71 | AP56: 71 | AQ56: 71 | AS56: 50 | AT56: 60 | AU56: 70
A57: 37 | B57: 1 | C57: 1 | D57: 1 | E57: 1 | Z57: 72 | AA57: 53 | AB57: 50 | AC57: 50 | AD57: 50 | AE57: 63 | AF57: 60 | AG57: 60 | AH57: 60 | AI57: 74 | AJ57: 70 | AK57: 70 | AL57: 70 | AO57: 72 | AP57: 72 | AQ57: 72 | AS57: 50 | AT57: 60 | AU57: 70
A58: 38 | B58: 1 | C58: 1 | D58: 1 | E58: 1 | Z58: 73 | AA58: 53 | AB58: 50 | AC58: 50 | AD58: 50 | AE58: 63 | AF58: 60 | AG58: 60 | AH58: 60 | AI58: 74 | AJ58: 70 | AK58: 70 | AL58: 70 | AO58: 73 | AP58: 73 | AQ58: 73 | AS58: 50 | AT58: 60 | AU58: 70
A59: 39 | B59: 1 | C59: 1 | D59: 1 | E59: 1 | H59: Projects for Standard Specification | Z59: 74 | AA59: 53 | AB59: 50 | AC59: 50 | AD59: 50 | AE59: 63 | AF59: 60 | AG59: 60 | AH59: 60 | AI59: 74 | AJ59: 70 | AK59: 70 | AL59: 70 | AO59: 74 | AP59: 74 | AQ59: 74 | AS59: 50 | AT59: 60 | AU59: 70
A60: 40 | B60: 1 | C60: 1 | D60: 1 | E60: 1 | H60: All construction, reconstruction and resurfacing projects | Z60: 75 | AA60: 53 | AB60: 50 | AC60: 50 | AD60: 50 | AE60: 63 | AF60: 60 | AG60: 60 | AH60: 60 | AI60: 74 | AJ60: 70 | AK60: 70 | AL60: 70 | AO60: 75 | AP60: 75 | AQ60: 75 | AS60: 50 | AT60: 60 | AU60: 70
A61: 41 | B61: 1 | C61: 1 | D61: 1 | E61: 1 | Z61: 76 | AA61: 53 | AB61: 50 | AC61: 50 | AD61: 50 | AE61: 63 | AF61: 60 | AG61: 60 | AH61: 60 | AI61: 74 | AJ61: 70 | AK61: 70 | AL61: 70 | AO61: 76 | AP61: 76 | AQ61: 76 | AS61: 50 | AT61: 60 | AU61: 70
A62: 42 | B62: 1 | C62: 1 | D62: 1 | E62: 1 | H62: Projects for Percentage project | Z62: 77 | AA62: 53 | AB62: 50 | AC62: 50 | AD62: 50 | AE62: 63 | AF62: 60 | AG62: 60 | AH62: 60 | AI62: 74 | AJ62: 70 | AK62: 70 | AL62: 70 | AO62: 77 | AP62: 77 | AQ62: 77 | AS62: 50 | AT62: 60 | AU62: 70
A63: 43 | B63: 1 | C63: 1 | D63: 1 | E63: 1 | Z63: 78 | AA63: 53 | AB63: 50 | AC63: 50 | AD63: 50 | AE63: 63 | AF63: 60 | AG63: 60 | AH63: 60 | AI63: 74 | AJ63: 70 | AK63: 70 | AL63: 70 | AO63: 78 | AP63: 78 | AQ63: 78 | AS63: 50 | AT63: 60 | AU63: 70
A64: 44 | B64: 1 | C64: 1 | D64: 1 | E64: 1 | Z64: 79 | AA64: 53 | AB64: 50 | AC64: 50 | AD64: 50 | AE64: 63 | AF64: 60 | AG64: 60 | AH64: 60 | AI64: 74 | AJ64: 70 | AK64: 70 | AL64: 70 | AO64: 79 | AP64: 79 | AQ64: 79 | AS64: 50 | AT64: 60 | AU64: 70
A65: 45 | B65: 1 | C65: 1 | D65: 1 | E65: 1 | Z65: 80 | AA65: 53 | AB65: 50 | AC65: 50 | AD65: 50 | AE65: 63 | AF65: 60 | AG65: 60 | AH65: 60 | AI65: 74 | AJ65: 70 | AK65: 70 | AL65: 70 | AO65: 80 | AP65: 80 | AQ65: 80 | AS65: 50 | AT65: 60 | AU65: 70
A66: 46 | B66: 1 | C66: 1 | D66: 1 | E66: 1 | Z66: 81 | AA66: 53 | AB66: 50 | AC66: 50 | AD66: 50 | AE66: 63 | AF66: 60 | AG66: 60 | AH66: 60 | AI66: 74 | AJ66: 70 | AK66: 70 | AL66: 70 | AO66: 81 | AP66: 81 | AQ66: 81 | AS66: 50 | AT66: 60 | AU66: 70
A67: 47 | B67: 1 | C67: 1 | D67: 1 | E67: 1 | Z67: 82 | AA67: 53 | AB67: 50 | AC67: 50 | AD67: 50 | AE67: 63 | AF67: 60 | AG67: 60 | AH67: 60 | AI67: 74 | AJ67: 70 | AK67: 70 | AL67: 70 | AO67: 82 | AP67: 82 | AQ67: 82 | AS67: 50 | AT67: 60 | AU67: 70
A68: 48 | B68: 1 | C68: 1 | D68: 1 | E68: 1 | Z68: 83 | AA68: 53 | AB68: 50 | AC68: 50 | AD68: 50 | AE68: 63 | AF68: 60 | AG68: 60 | AH68: 60 | AI68: 74 | AJ68: 70 | AK68: 70 | AL68: 70 | AO68: 83 | AP68: 83 | AQ68: 83 | AS68: 50 | AT68: 60 | AU68: 70
A69: 49 | B69: 1 | C69: 1 | D69: 1 | E69: 1 | Z69: 84 | AA69: 53 | AB69: 50 | AC69: 50 | AD69: 50 | AE69: 63 | AF69: 60 | AG69: 60 | AH69: 60 | AI69: 74 | AJ69: 70 | AK69: 70 | AL69: 70 | AO69: 84 | AP69: 84 | AQ69: 84 | AS69: 50 | AT69: 60 | AU69: 70
A70: 50 | B70: 1 | C70: 1 | D70: 1 | E70: 1 | Z70: 85 | AA70: 53 | AB70: 50 | AC70: 50 | AD70: 50 | AE70: 63 | AF70: 60 | AG70: 60 | AH70: 60 | AI70: 74 | AJ70: 70 | AK70: 70 | AL70: 70 | AO70: 85 | AP70: 85 | AQ70: 85 | AS70: =IF(Z70*0.45<$V$4,$V$4,ROUND(0.45*Z70,0)) -> 50 | AT70: =IF(Z70*0.5<$X$4,$X$4,ROUND(0.5*Z70,0)) -> 60 | AU70: =IF(Z70*0.6<$Y$4,$Y$4,ROUND(0.6*Z70,0)) -> 70
A71: 51 | B71: 1 | C71: 1 | D71: 1 | E71: 1 | Z71: 86 | AA71: 53 | AB71: 50 | AC71: 50 | AD71: 50 | AE71: 63 | AF71: 60 | AG71: 60 | AH71: 60 | AI71: 74 | AJ71: 70 | AK71: 70 | AL71: 70 | AO71: 86 | AP71: 86 | AQ71: 86 | AS71: 50 | AT71: 60 | AU71: 70
A72: 52 | B72: 1 | C72: 1 | D72: 1 | E72: 1 | Z72: 87 | AA72: 53 | AB72: 50 | AC72: 50 | AD72: 50 | AE72: 63 | AF72: 60 | AG72: 60 | AH72: 60 | AI72: 74 | AJ72: 70 | AK72: 70 | AL72: 70 | AO72: 87 | AP72: 87 | AQ72: 87 | AS72: 50 | AT72: 60 | AU72: 70
A73: 53 | B73: 1 | C73: 1 | D73: 1 | E73: 1 | Z73: 88 | AA73: 53 | AB73: 50 | AC73: 50 | AD73: 50 | AE73: 63 | AF73: 60 | AG73: 60 | AH73: 60 | AI73: 74 | AJ73: 70 | AK73: 70 | AL73: 70 | AO73: 88 | AP73: 88 | AQ73: 88 | AS73: 50 | AT73: 60 | AU73: 70
A74: 54 | B74: 1 | C74: 1 | D74: 1 | E74: 1 | Z74: 89 | AA74: 53 | AB74: 50 | AC74: 50 | AD74: 50 | AE74: 63 | AF74: 60 | AG74: 60 | AH74: 60 | AI74: 74 | AJ74: 70 | AK74: 70 | AL74: 70 | AO74: 89 | AP74: 89 | AQ74: 89 | AS74: 50 | AT74: 60 | AU74: 70
A75: 55 | B75: 1 | C75: 1 | D75: 1 | E75: 1 | Z75: 90 | AA75: 53 | AB75: 50 | AC75: 50 | AD75: 50 | AE75: 63 | AF75: 60 | AG75: 60 | AH75: 60 | AI75: 74 | AJ75: 70 | AK75: 70 | AL75: 70 | AO75: 90 | AP75: 90 | AQ75: 90 | AS75: 50 | AT75: 60 | AU75: 70
A76: 56 | B76: 1 | C76: 1 | D76: 1 | E76: 1 | Z76: 91 | AA76: 53 | AB76: 50 | AC76: 50 | AD76: 50 | AE76: 63 | AF76: 60 | AG76: 60 | AH76: 60 | AI76: 74 | AJ76: 70 | AK76: 70 | AL76: 70 | AO76: 91 | AP76: 91 | AQ76: 91 | AS76: 50 | AT76: 60 | AU76: 70
A77: 57 | B77: 1 | C77: 1 | D77: 1 | E77: 1 | Z77: 92 | AA77: 53 | AB77: 50 | AC77: 50 | AD77: 50 | AE77: 63 | AF77: 60 | AG77: 60 | AH77: 60 | AI77: 74 | AJ77: 70 | AK77: 70 | AL77: 70 | AO77: 92 | AP77: 92 | AQ77: 92 | AS77: 50 | AT77: 60 | AU77: 70
A78: 58 | B78: 1 | C78: 1 | D78: 1 | E78: 1 | Z78: 93 | AA78: 53 | AB78: 50 | AC78: 50 | AD78: 50 | AE78: 63 | AF78: 60 | AG78: 60 | AH78: 60 | AI78: 74 | AJ78: 70 | AK78: 70 | AL78: 70 | AO78: 93 | AP78: 93 | AQ78: 93 | AS78: 50 | AT78: 60 | AU78: 70
A79: 59 | B79: 1 | C79: 1 | D79: 1 | E79: 1 | Z79: 94 | AA79: 53 | AB79: 50 | AC79: 50 | AD79: 50 | AE79: 63 | AF79: 60 | AG79: 60 | AH79: 60 | AI79: 74 | AJ79: 70 | AK79: 70 | AL79: 70 | AO79: 94 | AP79: 94 | AQ79: 94 | AS79: 50 | AT79: 60 | AU79: 70
A80: 60 | B80: 1.05 | C80: 1 | D80: 1 | E80: 1 | Z80: 95 | AA80: 53 | AB80: 50 | AC80: 50 | AD80: 50 | AE80: 63 | AF80: 60 | AG80: 60 | AH80: 60 | AI80: 74 | AJ80: 70 | AK80: 70 | AL80: 70 | AO80: 95 | AP80: 95 | AQ80: 95 | AS80: 50 | AT80: 60 | AU80: 70
A81: 61 | B81: 1.05 | C81: 1 | D81: 1 | E81: 1 | Z81: 96 | AA81: 55 | AB81: 53 | AC81: 50 | AD81: 50 | AE81: 66 | AF81: 63 | AG81: 60 | AH81: 60 | AI81: 77 | AJ81: 74 | AK81: 70 | AL81: 70 | AO81: 96 | AP81: 96 | AQ81: 96 | AS81: 50 | AT81: 60 | AU81: 70
A82: 62 | B82: 1.05 | C82: 1 | D82: 1 | E82: 1 | Z82: 97 | AA82: 55 | AB82: 53 | AC82: 50 | AD82: 50 | AE82: 66 | AF82: 63 | AG82: 60 | AH82: 60 | AI82: 77 | AJ82: 74 | AK82: 70 | AL82: 70 | AO82: 97 | AP82: 97 | AQ82: 97 | AS82: 50 | AT82: 60 | AU82: 70
A83: 63 | B83: 1.05 | C83: 1 | D83: 1 | E83: 1 | Z83: 98 | AA83: 55 | AB83: 53 | AC83: 50 | AD83: 50 | AE83: 66 | AF83: 63 | AG83: 60 | AH83: 60 | AI83: 77 | AJ83: 74 | AK83: 70 | AL83: 70 | AO83: 98 | AP83: 98 | AQ83: 98 | AS83: 50 | AT83: 60 | AU83: 70
A84: 64 | B84: 1.05 | C84: 1 | D84: 1 | E84: 1 | Z84: 99 | AA84: 55 | AB84: 53 | AC84: 50 | AD84: 50 | AE84: 66 | AF84: 63 | AG84: 60 | AH84: 60 | AI84: 77 | AJ84: 74 | AK84: 70 | AL84: 70 | AO84: 99 | AP84: 99 | AQ84: 99 | AS84: 50 | AT84: 60 | AU84: 70
A85: 65 | B85: 1.05 | C85: 1 | D85: 1 | E85: 1 | Z85: 100 | AA85: 55 | AB85: 53 | AC85: 50 | AD85: 50 | AE85: 66 | AF85: 63 | AG85: 60 | AH85: 60 | AI85: 77 | AJ85: 74 | AK85: 70 | AL85: 70 | AO85: 100 | AP85: 100 | AQ85: 100 | AS85: 50 | AT85: 60 | AU85: 70
A86: 66 | B86: 1.05 | C86: 1 | D86: 1 | E86: 1 | Z86: 101 | AA86: 55 | AB86: 53 | AC86: 50 | AD86: 50 | AE86: 66 | AF86: 63 | AG86: 60 | AH86: 60 | AI86: 77 | AJ86: 74 | AK86: 70 | AL86: 70 | AO86: 101 | AP86: 101 | AQ86: 101 | AS86: 50 | AT86: 60 | AU86: 70
A87: 67 | B87: 1.05 | C87: 1 | D87: 1 | E87: 1 | Z87: 102 | AA87: 55 | AB87: 53 | AC87: 50 | AD87: 50 | AE87: 66 | AF87: 63 | AG87: 60 | AH87: 60 | AI87: 77 | AJ87: 74 | AK87: 70 | AL87: 70 | AO87: 102 | AP87: 102 | AQ87: 102 | AS87: 50 | AT87: 60 | AU87: 70
A88: 68 | B88: 1.05 | C88: 1 | D88: 1 | E88: 1 | Z88: 103 | AA88: 55 | AB88: 53 | AC88: 50 | AD88: 50 | AE88: 66 | AF88: 63 | AG88: 60 | AH88: 60 | AI88: 77 | AJ88: 74 | AK88: 70 | AL88: 70 | AO88: 103 | AP88: 103 | AQ88: 103 | AS88: 50 | AT88: 60 | AU88: 70
A89: 69 | B89: 1.05 | C89: 1 | D89: 1 | E89: 1 | Z89: 104 | AA89: 55 | AB89: 53 | AC89: 50 | AD89: 50 | AE89: 66 | AF89: 63 | AG89: 60 | AH89: 60 | AI89: 77 | AJ89: 74 | AK89: 70 | AL89: 70 | AO89: 104 | AP89: 104 | AQ89: 104 | AS89: 50 | AT89: 60 | AU89: 70
A90: 70 | B90: 1.05 | C90: 1 | D90: 1 | E90: 1 | Z90: 105 | AA90: 55 | AB90: 53 | AC90: 50 | AD90: 50 | AE90: 66 | AF90: 63 | AG90: 60 | AH90: 60 | AI90: 77 | AJ90: 74 | AK90: 70 | AL90: 70 | AO90: 105 | AP90: 105 | AQ90: 105 | AS90: 50 | AT90: 60 | AU90: 70
A91: 71 | B91: 1.05 | C91: 1 | D91: 1 | E91: 1 | Z91: 106 | AA91: 55 | AB91: 53 | AC91: 50 | AD91: 50 | AE91: 66 | AF91: 63 | AG91: 60 | AH91: 60 | AI91: 77 | AJ91: 74 | AK91: 70 | AL91: 70 | AO91: 106 | AP91: 106 | AQ91: 106 | AS91: 50 | AT91: 60 | AU91: 70
A92: 72 | B92: 1.05 | C92: 1 | D92: 1 | E92: 1 | Z92: 107 | AA92: 55 | AB92: 53 | AC92: 50 | AD92: 50 | AE92: 66 | AF92: 63 | AG92: 60 | AH92: 60 | AI92: 77 | AJ92: 74 | AK92: 70 | AL92: 70 | AO92: 107 | AP92: 107 | AQ92: 107 | AS92: 50 | AT92: 60 | AU92: 70
A93: 73 | B93: 1.05 | C93: 1 | D93: 1 | E93: 1 | Z93: 108 | AA93: 55 | AB93: 53 | AC93: 50 | AD93: 50 | AE93: 66 | AF93: 63 | AG93: 60 | AH93: 60 | AI93: 77 | AJ93: 74 | AK93: 70 | AL93: 70 | AO93: 108 | AP93: 108 | AQ93: 108 | AS93: 50 | AT93: 60 | AU93: 70
A94: 74 | B94: 1.05 | C94: 1 | D94: 1 | E94: 1 | Z94: 109 | AA94: 55 | AB94: 53 | AC94: 50 | AD94: 50 | AE94: 66 | AF94: 63 | AG94: 60 | AH94: 60 | AI94: 77 | AJ94: 74 | AK94: 70 | AL94: 70 | AO94: 109 | AP94: 109 | AQ94: 109 | AS94: 50 | AT94: 60 | AU94: 70
A95: 75 | B95: 1.05 | C95: 1 | D95: 1 | E95: 1 | Z95: 110 | AA95: 55 | AB95: 53 | AC95: 50 | AD95: 50 | AE95: 66 | AF95: 63 | AG95: 60 | AH95: 60 | AI95: 77 | AJ95: 74 | AK95: 70 | AL95: 70 | AO95: 110 | AP95: 110 | AQ95: 110 | AS95: 50 | AT95: 60 | AU95: 70
A96: 76 | B96: 1.05 | C96: 1 | D96: 1 | E96: 1 | Z96: 111 | AA96: 55 | AB96: 53 | AC96: 50 | AD96: 50 | AE96: 66 | AF96: 63 | AG96: 60 | AH96: 60 | AI96: 77 | AJ96: 74 | AK96: 70 | AL96: 70 | AO96: 111 | AP96: 111 | AQ96: 111 | AS96: 50 | AT96: 60 | AU96: 70
A97: 77 | B97: 1.05 | C97: 1 | D97: 1 | E97: 1 | Z97: 112 | AA97: 55 | AB97: 53 | AC97: 50 | AD97: 50 | AE97: 66 | AF97: 63 | AG97: 60 | AH97: 60 | AI97: 77 | AJ97: 74 | AK97: 70 | AL97: 70 | AO97: 112 | AP97: 112 | AQ97: 112 | AS97: 50 | AT97: 60 | AU97: 70
A98: 78 | B98: 1.05 | C98: 1 | D98: 1 | E98: 1 | Z98: 113 | AA98: 55 | AB98: 53 | AC98: 50 | AD98: 50 | AE98: 66 | AF98: 63 | AG98: 60 | AH98: 60 | AI98: 77 | AJ98: 74 | AK98: 70 | AL98: 70 | AO98: 113 | AP98: 113 | AQ98: 113 | AS98: 51 | AT98: 60 | AU98: 70
A99: 79 | B99: 1.05 | C99: 1 | D99: 1 | E99: 1 | Z99: 114 | AA99: 55 | AB99: 53 | AC99: 50 | AD99: 50 | AE99: 66 | AF99: 63 | AG99: 60 | AH99: 60 | AI99: 77 | AJ99: 74 | AK99: 70 | AL99: 70 | AO99: 114 | AP99: 114 | AQ99: 114 | AS99: 51 | AT99: 60 | AU99: 70
A100: 80 | B100: 1.05 | C100: 1 | D100: 1 | E100: 1 | Z100: 115 | AA100: 55 | AB100: 53 | AC100: 50 | AD100: 50 | AE100: 66 | AF100: 63 | AG100: 60 | AH100: 60 | AI100: 77 | AJ100: 74 | AK100: 70 | AL100: 70 | AO100: 115 | AP100: 115 | AQ100: 115 | AS100: 52 | AT100: 60 | AU100: 70
A101: 81 | B101: 1.05 | C101: 1 | D101: 1 | E101: 1 | Z101: 116 | AA101: 55 | AB101: 53 | AC101: 50 | AD101: 50 | AE101: 66 | AF101: 63 | AG101: 60 | AH101: 60 | AI101: 77 | AJ101: 74 | AK101: 70 | AL101: 70 | AO101: 116 | AP101: 116 | AQ101: 116 | AS101: 52 | AT101: 60 | AU101: 70
A102: 82 | B102: 1.05 | C102: 1 | D102: 1 | E102: 1 | Z102: 117 | AA102: 55 | AB102: 53 | AC102: 50 | AD102: 50 | AE102: 66 | AF102: 63 | AG102: 60 | AH102: 60 | AI102: 77 | AJ102: 74 | AK102: 70 | AL102: 70 | AO102: 117 | AP102: 117 | AQ102: 117 | AS102: 53 | AT102: 60 | AU102: 70
A103: 83 | B103: 1.05 | C103: 1 | D103: 1 | E103: 1 | Z103: 118 | AA103: 55 | AB103: 53 | AC103: 50 | AD103: 50 | AE103: 66 | AF103: 63 | AG103: 60 | AH103: 60 | AI103: 77 | AJ103: 74 | AK103: 70 | AL103: 70 | AO103: 118 | AP103: 118 | AQ103: 118 | AS103: 53 | AT103: 60 | AU103: 71
A104: 84 | B104: 1.05 | C104: 1 | D104: 1 | E104: 1 | Z104: 119 | AA104: 55 | AB104: 53 | AC104: 50 | AD104: 50 | AE104: 66 | AF104: 63 | AG104: 60 | AH104: 60 | AI104: 77 | AJ104: 74 | AK104: 70 | AL104: 70 | AO104: 119 | AP104: 119 | AQ104: 119 | AS104: 54 | AT104: 60 | AU104: 71
A105: 85 | B105: 1.05 | C105: 1 | D105: 1 | E105: 1 | Z105: 120 | AA105: 55 | AB105: 53 | AC105: 50 | AD105: 50 | AE105: 66 | AF105: 63 | AG105: 60 | AH105: 60 | AI105: 77 | AJ105: 74 | AK105: 70 | AL105: 70 | AO105: 120 | AP105: 120 | AQ105: 120 | AS105: 54 | AT105: 60 | AU105: 72
A106: 86 | B106: 1.05 | C106: 1 | D106: 1 | E106: 1 | Z106: 121 | AA106: 55 | AB106: 53 | AC106: 50 | AD106: 50 | AE106: 66 | AF106: 63 | AG106: 60 | AH106: 60 | AI106: 77 | AJ106: 74 | AK106: 70 | AL106: 70 | AO106: 121 | AP106: 121 | AQ106: 121 | AS106: 54 | AT106: 61 | AU106: 73
A107: 87 | B107: 1.05 | C107: 1 | D107: 1 | E107: 1 | Z107: 122 | AA107: 55 | AB107: 53 | AC107: 50 | AD107: 50 | AE107: 66 | AF107: 63 | AG107: 60 | AH107: 60 | AI107: 77 | AJ107: 74 | AK107: 70 | AL107: 70 | AO107: 122 | AP107: 122 | AQ107: 122 | AS107: 55 | AT107: 61 | AU107: 73
A108: 88 | B108: 1.05 | C108: 1 | D108: 1 | E108: 1 | Z108: 123 | AA108: 55 | AB108: 53 | AC108: 50 | AD108: 50 | AE108: 66 | AF108: 63 | AG108: 60 | AH108: 60 | AI108: 77 | AJ108: 74 | AK108: 70 | AL108: 70 | AO108: 123 | AP108: 123 | AQ108: 123 | AS108: 55 | AT108: 62 | AU108: 74
A109: 89 | B109: 1.05 | C109: 1 | D109: 1 | E109: 1 | Z109: 124 | AA109: 55 | AB109: 53 | AC109: 50 | AD109: 50 | AE109: 66 | AF109: 63 | AG109: 60 | AH109: 60 | AI109: 77 | AJ109: 74 | AK109: 70 | AL109: 70 | AO109: 124 | AP109: 124 | AQ109: 124 | AS109: 56 | AT109: 62 | AU109: 74
A110: 90 | B110: 1.05 | C110: 1 | D110: 1 | E110: 1 | Z110: 125 | AA110: 55 | AB110: 53 | AC110: 50 | AD110: 50 | AE110: 66 | AF110: 63 | AG110: 60 | AH110: 60 | AI110: 77 | AJ110: 74 | AK110: 70 | AL110: 70 | AO110: 125 | AP110: 125 | AQ110: 125 | AS110: 56 | AT110: 63 | AU110: 75
A111: 91 | B111: 1.05 | C111: 1 | D111: 1 | E111: 1 | Z111: 126 | AA111: 55 | AB111: 53 | AC111: 50 | AD111: 50 | AE111: 66 | AF111: 63 | AG111: 60 | AH111: 60 | AI111: 77 | AJ111: 74 | AK111: 70 | AL111: 70 | AO111: 126 | AP111: 126 | AQ111: 126 | AS111: 57 | AT111: 63 | AU111: 76
A112: 92 | B112: 1.05 | C112: 1 | D112: 1 | E112: 1 | Z112: 127 | AA112: 55 | AB112: 53 | AC112: 50 | AD112: 50 | AE112: 66 | AF112: 63 | AG112: 60 | AH112: 60 | AI112: 77 | AJ112: 74 | AK112: 70 | AL112: 70 | AO112: 127 | AP112: 127 | AQ112: 127 | AS112: 57 | AT112: 64 | AU112: 76
A113: 93 | B113: 1.05 | C113: 1 | D113: 1 | E113: 1 | Z113: 128 | AA113: 55 | AB113: 53 | AC113: 50 | AD113: 50 | AE113: 66 | AF113: 63 | AG113: 60 | AH113: 60 | AI113: 77 | AJ113: 74 | AK113: 70 | AL113: 70 | AO113: 128 | AP113: 128 | AQ113: 128 | AS113: 58 | AT113: 64 | AU113: 77
A114: 94 | B114: 1.05 | C114: 1 | D114: 1 | E114: 1 | Z114: 129 | AA114: 55 | AB114: 53 | AC114: 50 | AD114: 50 | AE114: 66 | AF114: 63 | AG114: 60 | AH114: 60 | AI114: 77 | AJ114: 74 | AK114: 70 | AL114: 70 | AO114: 129 | AP114: 129 | AQ114: 129 | AS114: 58 | AT114: 65 | AU114: 77
A115: 95 | B115: 1.1 | C115: 1.05 | D115: 1 | E115: 1 | Z115: 130 | AA115: 55 | AB115: 53 | AC115: 50 | AD115: 50 | AE115: 66 | AF115: 63 | AG115: 60 | AH115: 60 | AI115: 77 | AJ115: 74 | AK115: 70 | AL115: 70 | AO115: 130 | AP115: 130 | AQ115: 130 | AS115: 59 | AT115: 65 | AU115: 78
A116: 96 | B116: 1.1 | C116: 1.05 | D116: 1 | E116: 1 | Z116: 131 | AA116: 55 | AB116: 53 | AC116: 50 | AD116: 50 | AE116: 66 | AF116: 63 | AG116: 60 | AH116: 60 | AI116: 77 | AJ116: 74 | AK116: 70 | AL116: 70 | AO116: 131 | AP116: 131 | AQ116: 131 | AS116: 59 | AT116: 66 | AU116: 79
A117: 97 | B117: 1.1 | C117: 1.05 | D117: 1 | E117: 1 | Z117: 132 | AA117: 55 | AB117: 53 | AC117: 50 | AD117: 50 | AE117: 66 | AF117: 63 | AG117: 60 | AH117: 60 | AI117: 77 | AJ117: 74 | AK117: 70 | AL117: 70 | AO117: 132 | AP117: 132 | AQ117: 132 | AS117: 59 | AT117: 66 | AU117: 79
A118: 98 | B118: 1.1 | C118: 1.05 | D118: 1 | E118: 1 | Z118: 133 | AA118: 55 | AB118: 53 | AC118: 50 | AD118: 50 | AE118: 66 | AF118: 63 | AG118: 60 | AH118: 60 | AI118: 77 | AJ118: 74 | AK118: 70 | AL118: 70 | AO118: 133 | AP118: 133 | AQ118: 133 | AS118: 60 | AT118: 67 | AU118: 80
A119: 99 | B119: 1.1 | C119: 1.05 | D119: 1 | E119: 1 | Z119: 134 | AA119: 55 | AB119: 53 | AC119: 50 | AD119: 50 | AE119: 66 | AF119: 63 | AG119: 60 | AH119: 60 | AI119: 77 | AJ119: 74 | AK119: 70 | AL119: 70 | AO119: 134 | AP119: 134 | AQ119: 134 | AS119: 60 | AT119: 67 | AU119: 80
A120: 100 | B120: 1.1 | C120: 1.05 | D120: 1 | E120: 1 | Z120: 135 | AA120: 55 | AB120: 53 | AC120: 50 | AD120: 50 | AE120: 66 | AF120: 63 | AG120: 60 | AH120: 60 | AI120: 77 | AJ120: 74 | AK120: 70 | AL120: 70 | AO120: 135 | AP120: 135 | AQ120: 135 | AS120: 61 | AT120: 68 | AU120: 81
A121: 101 | B121: 1.1 | C121: 1.05 | D121: 1 | E121: 1 | Z121: 136 | AA121: 55 | AB121: 53 | AC121: 50 | AD121: 50 | AE121: 66 | AF121: 63 | AG121: 60 | AH121: 60 | AI121: 77 | AJ121: 74 | AK121: 70 | AL121: 70 | AO121: 136 | AP121: 136 | AQ121: 136 | AS121: 61 | AT121: 68 | AU121: 82
A122: 102 | B122: 1.1 | C122: 1.05 | D122: 1 | E122: 1 | Z122: 137 | AA122: 55 | AB122: 53 | AC122: 50 | AD122: 50 | AE122: 66 | AF122: 63 | AG122: 60 | AH122: 60 | AI122: 77 | AJ122: 74 | AK122: 70 | AL122: 70 | AO122: 137 | AP122: 137 | AQ122: 137 | AS122: 62 | AT122: 69 | AU122: 82
A123: 103 | B123: 1.1 | C123: 1.05 | D123: 1 | E123: 1 | Z123: 138 | AA123: 55 | AB123: 53 | AC123: 50 | AD123: 50 | AE123: 66 | AF123: 63 | AG123: 60 | AH123: 60 | AI123: 77 | AJ123: 74 | AK123: 70 | AL123: 70 | AO123: 138 | AP123: 138 | AQ123: 138 | AS123: 62 | AT123: 69 | AU123: 83
A124: 104 | B124: 1.1 | C124: 1.05 | D124: 1 | E124: 1 | Z124: 139 | AA124: 55 | AB124: 53 | AC124: 50 | AD124: 50 | AE124: 66 | AF124: 63 | AG124: 60 | AH124: 60 | AI124: 77 | AJ124: 74 | AK124: 70 | AL124: 70 | AO124: 139 | AP124: 139 | AQ124: 139 | AS124: 63 | AT124: 70 | AU124: 83
A125: 105 | B125: 1.1 | C125: 1.05 | D125: 1 | E125: 1 | Z125: 140 | AA125: 55 | AB125: 53 | AC125: 50 | AD125: 50 | AE125: 66 | AF125: 63 | AG125: 60 | AH125: 60 | AI125: 77 | AJ125: 74 | AK125: 70 | AL125: 70 | AO125: 140 | AP125: 140 | AQ125: 140 | AS125: 63 | AT125: 70 | AU125: 84
A126: 106 | B126: 1.1 | C126: 1.05 | D126: 1 | E126: 1 | Z126: 141 | AA126: 55 | AB126: 53 | AC126: 50 | AD126: 50 | AE126: 66 | AF126: 63 | AG126: 60 | AH126: 60 | AI126: 77 | AJ126: 74 | AK126: 70 | AL126: 70 | AO126: 141 | AP126: 141 | AQ126: 141 | AS126: 63 | AT126: 71 | AU126: 85
A127: 107 | B127: 1.1 | C127: 1.05 | D127: 1 | E127: 1 | Z127: 142 | AA127: 55 | AB127: 53 | AC127: 50 | AD127: 50 | AE127: 66 | AF127: 63 | AG127: 60 | AH127: 60 | AI127: 77 | AJ127: 74 | AK127: 70 | AL127: 70 | AO127: 142 | AP127: 142 | AQ127: 142 | AS127: 64 | AT127: 71 | AU127: 85
A128: 108 | B128: 1.1 | C128: 1.05 | D128: 1 | E128: 1 | Z128: 143 | AA128: 55 | AB128: 53 | AC128: 50 | AD128: 50 | AE128: 66 | AF128: 63 | AG128: 60 | AH128: 60 | AI128: 77 | AJ128: 74 | AK128: 70 | AL128: 70 | AO128: 143 | AP128: 143 | AQ128: 143 | AS128: 64 | AT128: 72 | AU128: 86
A129: 109 | B129: 1.1 | C129: 1.05 | D129: 1 | E129: 1 | Z129: 144 | AA129: 55 | AB129: 53 | AC129: 50 | AD129: 50 | AE129: 66 | AF129: 63 | AG129: 60 | AH129: 60 | AI129: 77 | AJ129: 74 | AK129: 70 | AL129: 70 | AO129: 144 | AP129: 144 | AQ129: 144 | AS129: 65 | AT129: 72 | AU129: 86
A130: 110 | B130: 1.1 | C130: 1.05 | D130: 1 | E130: 1 | Z130: 145 | AA130: 55 | AB130: 53 | AC130: 50 | AD130: 50 | AE130: 66 | AF130: 63 | AG130: 60 | AH130: 60 | AI130: 77 | AJ130: 74 | AK130: 70 | AL130: 70 | AO130: 145 | AP130: 145 | AQ130: 145 | AS130: 65 | AT130: 73 | AU130: 87
A131: 111 | B131: 1.1 | C131: 1.05 | D131: 1 | E131: 1 | Z131: 146 | AA131: 55 | AB131: 53 | AC131: 50 | AD131: 50 | AE131: 66 | AF131: 63 | AG131: 60 | AH131: 60 | AI131: 77 | AJ131: 74 | AK131: 70 | AL131: 70 | AO131: 146 | AP131: 146 | AQ131: 146 | AS131: 66 | AT131: 73 | AU131: 88
A132: 112 | B132: 1.1 | C132: 1.05 | D132: 1 | E132: 1 | Z132: 147 | AA132: 55 | AB132: 53 | AC132: 50 | AD132: 50 | AE132: 66 | AF132: 63 | AG132: 60 | AH132: 60 | AI132: 77 | AJ132: 74 | AK132: 70 | AL132: 70 | AO132: 147 | AP132: 147 | AQ132: 147 | AS132: 66 | AT132: 74 | AU132: 88
A133: 113 | B133: 1.1 | C133: 1.05 | D133: 1 | E133: 1 | Z133: 148 | AA133: 55 | AB133: 53 | AC133: 50 | AD133: 50 | AE133: 66 | AF133: 63 | AG133: 60 | AH133: 60 | AI133: 77 | AJ133: 74 | AK133: 70 | AL133: 70 | AO133: 148 | AP133: 148 | AQ133: 148 | AS133: 67 | AT133: 74 | AU133: 89
A134: 114 | B134: 1.1 | C134: 1.05 | D134: 1 | E134: 1 | Z134: 149 | AA134: 55 | AB134: 53 | AC134: 50 | AD134: 50 | AE134: 66 | AF134: 63 | AG134: 60 | AH134: 60 | AI134: 77 | AJ134: 74 | AK134: 70 | AL134: 70 | AO134: 149 | AP134: 149 | AQ134: 149 | AS134: =IF(Z134*0.45<$V$4,$V$4,ROUND(0.45*Z134,0)) -> 67 | AT134: =IF(Z134*0.5<$X$4,$X$4,ROUND(0.5*Z134,0)) -> 75 | AU134: =IF(Z134*0.6<$Y$4,$Y$4,ROUND(0.6*Z134,0)) -> 89
A135: 115 | B135: 1.1 | C135: 1.05 | D135: 1 | E135: 1 | Z135: 150 | AA135: 55 | AB135: 53 | AC135: 50 | AD135: 50 | AE135: 66 | AF135: 63 | AG135: 60 | AH135: 60 | AI135: 77 | AJ135: 74 | AK135: 70 | AL135: 70 | AO135: 150 | AP135: 150 | AQ135: 150 | AS135: 68 | AT135: 75 | AU135: 90
A136: 116 | B136: 1.1 | C136: 1.05 | D136: 1 | E136: 1 | Z136: 151 | AA136: 55 | AB136: 53 | AC136: 50 | AD136: 50 | AE136: 66 | AF136: 63 | AG136: 60 | AH136: 60 | AI136: 77 | AJ136: 74 | AK136: 70 | AL136: 70 | AO136: 151 | AP136: 151 | AQ136: 151 | AS136: 68 | AT136: 76 | AU136: 91
A137: 117 | B137: 1.1 | C137: 1.05 | D137: 1 | E137: 1 | Z137: 152 | AA137: 55 | AB137: 53 | AC137: 50 | AD137: 50 | AE137: 66 | AF137: 63 | AG137: 60 | AH137: 60 | AI137: 77 | AJ137: 74 | AK137: 70 | AL137: 70 | AO137: 152 | AP137: 152 | AQ137: 152 | AS137: 68 | AT137: 76 | AU137: 91
A138: 118 | B138: 1.1 | C138: 1.05 | D138: 1 | E138: 1 | Z138: 153 | AA138: 55 | AB138: 53 | AC138: 50 | AD138: 50 | AE138: 66 | AF138: 63 | AG138: 60 | AH138: 60 | AI138: 77 | AJ138: 74 | AK138: 70 | AL138: 70 | AO138: 153 | AP138: 153 | AQ138: 153 | AS138: 69 | AT138: 77 | AU138: 92
A139: 119 | B139: 1.1 | C139: 1.05 | D139: 1 | E139: 1 | Z139: 154 | AA139: 55 | AB139: 53 | AC139: 50 | AD139: 50 | AE139: 66 | AF139: 63 | AG139: 60 | AH139: 60 | AI139: 77 | AJ139: 74 | AK139: 70 | AL139: 70 | AO139: 154 | AP139: 154 | AQ139: 154 | AS139: 69 | AT139: 77 | AU139: 92
A140: 120 | B140: 1.1 | C140: 1.05 | D140: 1 | E140: 1 | Z140: 155 | AA140: 55 | AB140: 53 | AC140: 50 | AD140: 50 | AE140: 66 | AF140: 63 | AG140: 60 | AH140: 60 | AI140: 77 | AJ140: 74 | AK140: 70 | AL140: 70 | AO140: 155 | AP140: 155 | AQ140: 155 | AS140: 70 | AT140: 78 | AU140: 93
A141: 121 | B141: 1.1 | C141: 1.05 | D141: 1 | E141: 1 | Z141: 156 | AA141: 55 | AB141: 53 | AC141: 50 | AD141: 50 | AE141: 66 | AF141: 63 | AG141: 60 | AH141: 60 | AI141: 77 | AJ141: 74 | AK141: 70 | AL141: 70 | AO141: 156 | AP141: 156 | AQ141: 156 | AS141: 70 | AT141: 78 | AU141: 94
A142: 122 | B142: 1.1 | C142: 1.05 | D142: 1 | E142: 1 | Z142: 157 | AA142: 55 | AB142: 53 | AC142: 50 | AD142: 50 | AE142: 66 | AF142: 63 | AG142: 60 | AH142: 60 | AI142: 77 | AJ142: 74 | AK142: 70 | AL142: 70 | AO142: 157 | AP142: 157 | AQ142: 157 | AS142: 71 | AT142: 79 | AU142: 94
A143: 123 | B143: 1.1 | C143: 1.05 | D143: 1 | E143: 1 | Z143: 158 | AA143: 55 | AB143: 53 | AC143: 50 | AD143: 50 | AE143: 66 | AF143: 63 | AG143: 60 | AH143: 60 | AI143: 77 | AJ143: 74 | AK143: 70 | AL143: 70 | AO143: 158 | AP143: 158 | AQ143: 158 | AS143: 71 | AT143: 79 | AU143: 95
A144: 124 | B144: 1.1 | C144: 1.05 | D144: 1 | E144: 1 | Z144: 159 | AA144: 55 | AB144: 53 | AC144: 50 | AD144: 50 | AE144: 66 | AF144: 63 | AG144: 60 | AH144: 60 | AI144: 77 | AJ144: 74 | AK144: 70 | AL144: 70 | AO144: 159 | AP144: 159 | AQ144: 159 | AS144: 72 | AT144: 80 | AU144: 95
A145: 125 | B145: 1.1 | C145: 1.05 | D145: 1 | E145: 1 | Z145: 160 | AA145: 55 | AB145: 53 | AC145: 50 | AD145: 50 | AE145: 66 | AF145: 63 | AG145: 60 | AH145: 60 | AI145: 77 | AJ145: 74 | AK145: 70 | AL145: 70 | AO145: 160 | AP145: 160 | AQ145: 160 | AS145: 72 | AT145: 80 | AU145: 96
A146: 126 | B146: 1.1 | C146: 1.05 | D146: 1 | E146: 1 | Z146: 161 | AA146: 55 | AB146: 53 | AC146: 50 | AD146: 50 | AE146: 66 | AF146: 63 | AG146: 60 | AH146: 60 | AI146: 77 | AJ146: 74 | AK146: 70 | AL146: 70 | AO146: 161 | AP146: 161 | AQ146: 161 | AS146: 72 | AT146: 81 | AU146: 97
A147: 127 | B147: 1.1 | C147: 1.05 | D147: 1 | E147: 1 | Z147: 162 | AA147: 55 | AB147: 53 | AC147: 50 | AD147: 50 | AE147: 66 | AF147: 63 | AG147: 60 | AH147: 60 | AI147: 77 | AJ147: 74 | AK147: 70 | AL147: 70 | AO147: 162 | AP147: 162 | AQ147: 162 | AS147: 73 | AT147: 81 | AU147: 97
A148: 128 | B148: 1.1 | C148: 1.05 | D148: 1 | E148: 1 | Z148: 163 | AA148: 55 | AB148: 53 | AC148: 50 | AD148: 50 | AE148: 66 | AF148: 63 | AG148: 60 | AH148: 60 | AI148: 77 | AJ148: 74 | AK148: 70 | AL148: 70 | AO148: 163 | AP148: 163 | AQ148: 163 | AS148: 73 | AT148: 82 | AU148: 98
A149: 129 | B149: 1.1 | C149: 1.05 | D149: 1 | E149: 1 | Z149: 164 | AA149: 55 | AB149: 53 | AC149: 50 | AD149: 50 | AE149: 66 | AF149: 63 | AG149: 60 | AH149: 60 | AI149: 77 | AJ149: 74 | AK149: 70 | AL149: 70 | AO149: 164 | AP149: 164 | AQ149: 164 | AS149: 74 | AT149: 82 | AU149: 98
A150: 130 | B150: 1.1 | C150: 1.05 | D150: 1 | E150: 1 | Z150: 165 | AA150: 55 | AB150: 53 | AC150: 50 | AD150: 50 | AE150: 66 | AF150: 63 | AG150: 60 | AH150: 60 | AI150: 77 | AJ150: 74 | AK150: 70 | AL150: 70 | AO150: 165 | AP150: 165 | AQ150: 165 | AS150: 74 | AT150: 83 | AU150: 99
A151: 131 | B151: 1.1 | C151: 1.05 | D151: 1 | E151: 1 | Z151: 166 | AA151: 55 | AB151: 53 | AC151: 50 | AD151: 50 | AE151: 66 | AF151: 63 | AG151: 60 | AH151: 60 | AI151: 77 | AJ151: 74 | AK151: 70 | AL151: 70 | AO151: 166 | AP151: 166 | AQ151: 166 | AS151: 75 | AT151: 83 | AU151: 100
A152: 132 | B152: 1.1 | C152: 1.05 | D152: 1 | E152: 1 | Z152: 167 | AA152: 55 | AB152: 53 | AC152: 50 | AD152: 50 | AE152: 66 | AF152: 63 | AG152: 60 | AH152: 60 | AI152: 77 | AJ152: 74 | AK152: 70 | AL152: 70 | AO152: 167 | AP152: 167 | AQ152: 167 | AS152: 75 | AT152: 84 | AU152: 100
A153: 133 | B153: 1.1 | C153: 1.05 | D153: 1 | E153: 1 | Z153: 168 | AA153: 55 | AB153: 53 | AC153: 50 | AD153: 50 | AE153: 66 | AF153: 63 | AG153: 60 | AH153: 60 | AI153: 77 | AJ153: 74 | AK153: 70 | AL153: 70 | AO153: 168 | AP153: 168 | AQ153: 168 | AS153: 76 | AT153: 84 | AU153: 101
A154: 134 | B154: 1.1 | C154: 1.05 | D154: 1 | E154: 1 | Z154: 169 | AA154: 55 | AB154: 53 | AC154: 50 | AD154: 50 | AE154: 66 | AF154: 63 | AG154: 60 | AH154: 60 | AI154: 77 | AJ154: 74 | AK154: 70 | AL154: 70 | AO154: 169 | AP154: 169 | AQ154: 169 | AS154: 76 | AT154: 85 | AU154: 101
A155: 135 | B155: 1.1 | C155: 1.05 | D155: 1 | E155: 1 | Z155: 170 | AA155: 55 | AB155: 53 | AC155: 50 | AD155: 50 | AE155: 66 | AF155: 63 | AG155: 60 | AH155: 60 | AI155: 77 | AJ155: 74 | AK155: 70 | AL155: 70 | AO155: 170 | AP155: 170 | AQ155: 170 | AS155: 77 | AT155: 85 | AU155: 102
A156: 136 | B156: 1.1 | C156: 1.05 | D156: 1 | E156: 1 | Z156: 171 | AA156: 109 | AB156: 55 | AC156: 53 | AD156: 50 | AE156: 109 | AF156: 66 | AG156: 63 | AH156: 60 | AI156: 109 | AJ156: 77 | AK156: 74 | AL156: 70 | AO156: 171 | AP156: 171 | AQ156: 171 | AS156: 77 | AT156: 86 | AU156: 103
A157: 137 | B157: 1.1 | C157: 1.05 | D157: 1 | E157: 1 | Z157: 172 | AA157: 110 | AB157: 55 | AC157: 53 | AD157: 50 | AE157: 110 | AF157: 66 | AG157: 63 | AH157: 60 | AI157: 110 | AJ157: 77 | AK157: 74 | AL157: 70 | AO157: 172 | AP157: 172 | AQ157: 172 | AS157: 77 | AT157: 86 | AU157: 103
A158: 138 | B158: 1.1 | C158: 1.05 | D158: 1 | E158: 1 | Z158: 173 | AA158: 111 | AB158: 55 | AC158: 53 | AD158: 50 | AE158: 111 | AF158: 66 | AG158: 63 | AH158: 60 | AI158: 111 | AJ158: 77 | AK158: 74 | AL158: 70 | AO158: 173 | AP158: 173 | AQ158: 173 | AS158: 78 | AT158: 87 | AU158: 104
A159: 139 | B159: 1.1 | C159: 1.05 | D159: 1 | E159: 1 | Z159: 174 | AA159: 111 | AB159: 55 | AC159: 53 | AD159: 50 | AE159: 111 | AF159: 66 | AG159: 63 | AH159: 60 | AI159: 111 | AJ159: 77 | AK159: 74 | AL159: 70 | AO159: 174 | AP159: 174 | AQ159: 174 | AS159: 78 | AT159: 87 | AU159: 104
A160: 140 | B160: 1.1 | C160: 1.05 | D160: 1 | E160: 1 | Z160: 175 | AA160: 112 | AB160: 55 | AC160: 53 | AD160: 50 | AE160: 112 | AF160: 66 | AG160: 63 | AH160: 60 | AI160: 112 | AJ160: 77 | AK160: 74 | AL160: 70 | AO160: 175 | AP160: 175 | AQ160: 175 | AS160: 79 | AT160: 88 | AU160: 105
A161: 141 | B161: 1.1 | C161: 1.05 | D161: 1 | E161: 1 | Z161: 176 | AA161: 113 | AB161: 55 | AC161: 53 | AD161: 50 | AE161: 113 | AF161: 66 | AG161: 63 | AH161: 60 | AI161: 113 | AJ161: 77 | AK161: 74 | AL161: 70 | AO161: 176 | AP161: 176 | AQ161: 176 | AS161: 79 | AT161: 88 | AU161: 106
A162: 142 | B162: 1.1 | C162: 1.05 | D162: 1 | E162: 1 | Z162: 177 | AA162: 113 | AB162: 55 | AC162: 53 | AD162: 50 | AE162: 113 | AF162: 66 | AG162: 63 | AH162: 60 | AI162: 113 | AJ162: 77 | AK162: 74 | AL162: 70 | AO162: 177 | AP162: 177 | AQ162: 177 | AS162: 80 | AT162: 89 | AU162: 106
A163: 143 | B163: 1.1 | C163: 1.05 | D163: 1 | E163: 1 | Z163: 178 | AA163: 114 | AB163: 55 | AC163: 53 | AD163: 50 | AE163: 114 | AF163: 66 | AG163: 63 | AH163: 60 | AI163: 114 | AJ163: 77 | AK163: 74 | AL163: 70 | AO163: 178 | AP163: 178 | AQ163: 178 | AS163: 80 | AT163: 89 | AU163: 107
A164: 144 | B164: 1.1 | C164: 1.05 | D164: 1 | E164: 1 | Z164: 179 | AA164: 115 | AB164: 55 | AC164: 53 | AD164: 50 | AE164: 115 | AF164: 66 | AG164: 63 | AH164: 60 | AI164: 115 | AJ164: 77 | AK164: 74 | AL164: 70 | AO164: 179 | AP164: 179 | AQ164: 179 | AS164: 81 | AT164: 90 | AU164: 107
A165: 145 | B165: 1.1 | C165: 1.05 | D165: 1 | E165: 1 | Z165: 180 | AA165: 115 | AB165: 55 | AC165: 53 | AD165: 50 | AE165: 115 | AF165: 66 | AG165: 63 | AH165: 60 | AI165: 115 | AJ165: 77 | AK165: 74 | AL165: 70 | AO165: 180 | AP165: 180 | AQ165: 180 | AS165: 81 | AT165: 90 | AU165: 108
A166: 146 | B166: 1.1 | C166: 1.05 | D166: 1 | E166: 1 | Z166: 181 | AA166: 116 | AB166: 55 | AC166: 53 | AD166: 50 | AE166: 116 | AF166: 66 | AG166: 63 | AH166: 60 | AI166: 116 | AJ166: 77 | AK166: 74 | AL166: 70 | AO166: 181 | AP166: 181 | AQ166: 181 | AS166: 81 | AT166: 91 | AU166: 109
A167: 147 | B167: 1.1 | C167: 1.05 | D167: 1 | E167: 1 | Z167: 182 | AA167: 116 | AB167: 55 | AC167: 53 | AD167: 50 | AE167: 116 | AF167: 66 | AG167: 63 | AH167: 60 | AI167: 116 | AJ167: 77 | AK167: 74 | AL167: 70 | AO167: 182 | AP167: 182 | AQ167: 182 | AS167: 82 | AT167: 91 | AU167: 109
A168: 148 | B168: 1.1 | C168: 1.05 | D168: 1 | E168: 1 | Z168: 183 | AA168: 117 | AB168: 55 | AC168: 53 | AD168: 50 | AE168: 117 | AF168: 66 | AG168: 63 | AH168: 60 | AI168: 117 | AJ168: 77 | AK168: 74 | AL168: 70 | AO168: 183 | AP168: 183 | AQ168: 183 | AS168: 82 | AT168: 92 | AU168: 110
A169: 149 | B169: 1.1 | C169: 1.05 | D169: 1 | E169: 1 | Z169: 184 | AA169: 118 | AB169: 55 | AC169: 53 | AD169: 50 | AE169: 118 | AF169: 66 | AG169: 63 | AH169: 60 | AI169: 118 | AJ169: 77 | AK169: 74 | AL169: 70 | AO169: 184 | AP169: 184 | AQ169: 184 | AS169: 83 | AT169: 92 | AU169: 110
A170: 150 | B170: 1.1 | C170: 1.05 | D170: 1 | E170: 1 | Z170: 185 | AA170: 118 | AB170: 55 | AC170: 53 | AD170: 50 | AE170: 118 | AF170: 66 | AG170: 63 | AH170: 60 | AI170: 118 | AJ170: 77 | AK170: 74 | AL170: 70 | AO170: 185 | AP170: 185 | AQ170: 185 | AS170: 83 | AT170: 93 | AU170: 111
A171: 151 | B171: 1.1 | C171: 1.05 | D171: 1 | E171: 1 | Z171: 186 | AA171: 119 | AB171: 55 | AC171: 53 | AD171: 50 | AE171: 119 | AF171: 66 | AG171: 63 | AH171: 60 | AI171: 119 | AJ171: 77 | AK171: 74 | AL171: 70 | AO171: 186 | AP171: 186 | AQ171: 186 | AS171: 84 | AT171: 93 | AU171: 112
A172: 152 | B172: 1.1 | C172: 1.05 | D172: 1 | E172: 1 | Z172: 187 | AA172: 120 | AB172: 55 | AC172: 53 | AD172: 50 | AE172: 120 | AF172: 66 | AG172: 63 | AH172: 60 | AI172: 120 | AJ172: 77 | AK172: 74 | AL172: 70 | AO172: 187 | AP172: 187 | AQ172: 187 | AS172: 84 | AT172: 94 | AU172: 112
A173: 153 | B173: 1.1 | C173: 1.05 | D173: 1 | E173: 1 | Z173: 188 | AA173: 120 | AB173: 55 | AC173: 53 | AD173: 50 | AE173: 120 | AF173: 66 | AG173: 63 | AH173: 60 | AI173: 120 | AJ173: 77 | AK173: 74 | AL173: 70 | AO173: 188 | AP173: 188 | AQ173: 188 | AS173: 85 | AT173: 94 | AU173: 113
A174: 154 | B174: 1.1 | C174: 1.05 | D174: 1 | E174: 1 | Z174: 189 | AA174: 121 | AB174: 55 | AC174: 53 | AD174: 50 | AE174: 121 | AF174: 66 | AG174: 63 | AH174: 60 | AI174: 121 | AJ174: 77 | AK174: 74 | AL174: 70 | AO174: 189 | AP174: 189 | AQ174: 189 | AS174: 85 | AT174: 95 | AU174: 113
A175: 155 | B175: 1.1 | C175: 1.05 | D175: 1 | E175: 1 | Z175: 190 | AA175: 122 | AB175: 55 | AC175: 53 | AD175: 50 | AE175: 122 | AF175: 66 | AG175: 63 | AH175: 60 | AI175: 122 | AJ175: 77 | AK175: 74 | AL175: 70 | AO175: 190 | AP175: 190 | AQ175: 190 | AS175: 86 | AT175: 95 | AU175: 114
A176: 156 | B176: 1.1 | C176: 1.05 | D176: 1 | E176: 1 | Z176: 191 | AA176: 122 | AB176: 55 | AC176: 53 | AD176: 50 | AE176: 122 | AF176: 66 | AG176: 63 | AH176: 60 | AI176: 122 | AJ176: 77 | AK176: 74 | AL176: 70 | AO176: 191 | AP176: 191 | AQ176: 191 | AS176: 86 | AT176: 96 | AU176: 115
A177: 157 | B177: 1.1 | C177: 1.05 | D177: 1 | E177: 1 | Z177: 192 | AA177: 123 | AB177: 55 | AC177: 53 | AD177: 50 | AE177: 123 | AF177: 66 | AG177: 63 | AH177: 60 | AI177: 123 | AJ177: 77 | AK177: 74 | AL177: 70 | AO177: 192 | AP177: 192 | AQ177: 192 | AS177: 86 | AT177: 96 | AU177: 115
A178: 158 | B178: 1.1 | C178: 1.05 | D178: 1 | E178: 1 | Z178: 193 | AA178: 124 | AB178: 55 | AC178: 53 | AD178: 50 | AE178: 124 | AF178: 66 | AG178: 63 | AH178: 60 | AI178: 124 | AJ178: 77 | AK178: 74 | AL178: 70 | AO178: 193 | AP178: 193 | AQ178: 193 | AS178: 87 | AT178: 97 | AU178: 116
A179: 159 | B179: 1.1 | C179: 1.05 | D179: 1 | E179: 1 | Z179: 194 | AA179: 124 | AB179: 55 | AC179: 53 | AD179: 50 | AE179: 124 | AF179: 66 | AG179: 63 | AH179: 60 | AI179: 124 | AJ179: 77 | AK179: 74 | AL179: 70 | AO179: 194 | AP179: 194 | AQ179: 194 | AS179: 87 | AT179: 97 | AU179: 116
A180: 160 | B180: 1.1 | C180: 1.05 | D180: 1 | E180: 1 | Z180: 195 | AA180: 125 | AB180: 55 | AC180: 53 | AD180: 50 | AE180: 125 | AF180: 66 | AG180: 63 | AH180: 60 | AI180: 125 | AJ180: 77 | AK180: 74 | AL180: 70 | AO180: 195 | AP180: 195 | AQ180: 195 | AS180: 88 | AT180: 98 | AU180: 117
A181: 161 | B181: 1.1 | C181: 1.05 | D181: 1 | E181: 1 | Z181: 196 | AA181: 125 | AB181: 55 | AC181: 53 | AD181: 50 | AE181: 125 | AF181: 66 | AG181: 63 | AH181: 60 | AI181: 125 | AJ181: 77 | AK181: 74 | AL181: 70 | AO181: 196 | AP181: 196 | AQ181: 196 | AS181: 88 | AT181: 98 | AU181: 118
A182: 162 | B182: 1.1 | C182: 1.05 | D182: 1 | E182: 1 | Z182: 197 | AA182: 126 | AB182: 55 | AC182: 53 | AD182: 50 | AE182: 126 | AF182: 66 | AG182: 63 | AH182: 60 | AI182: 126 | AJ182: 77 | AK182: 74 | AL182: 70 | AO182: 197 | AP182: 197 | AQ182: 197 | AS182: 89 | AT182: 99 | AU182: 118
A183: 163 | B183: 1.1 | C183: 1.05 | D183: 1 | E183: 1 | Z183: 198 | AA183: 127 | AB183: 55 | AC183: 53 | AD183: 50 | AE183: 127 | AF183: 66 | AG183: 63 | AH183: 60 | AI183: 127 | AJ183: 77 | AK183: 74 | AL183: 70 | AO183: 198 | AP183: 198 | AQ183: 198 | AS183: 89 | AT183: 99 | AU183: 119
A184: 164 | B184: 1.1 | C184: 1.05 | D184: 1 | E184: 1 | Z184: 199 | AA184: 127 | AB184: 55 | AC184: 53 | AD184: 50 | AE184: 127 | AF184: 66 | AG184: 63 | AH184: 60 | AI184: 127 | AJ184: 77 | AK184: 74 | AL184: 70 | AO184: 199 | AP184: 199 | AQ184: 199 | AS184: 90 | AT184: 100 | AU184: 119
A185: 165 | B185: 1.1 | C185: 1.05 | D185: 1 | E185: 1 | Z185: 200 | AA185: 128 | AB185: 55 | AC185: 53 | AD185: 50 | AE185: 128 | AF185: 66 | AG185: 63 | AH185: 60 | AI185: 128 | AJ185: 77 | AK185: 74 | AL185: 70 | AO185: 200 | AP185: 200 | AQ185: 200 | AS185: 90 | AT185: 100 | AU185: 120
A186: 166 | B186: 1.1 | C186: 1.05 | D186: 1 | E186: 1 | Z186: 201 | AA186: =ROUND(Z186*0.64,0) -> 129 | AB186: 58 | AC186: 55 | AD186: 50 | AE186: 129 | AF186: 69 | AG186: 66 | AH186: 60 | AI186: 129 | AJ186: 81 | AK186: 77 | AL186: 70 | AO186: 201 | AP186: 201 | AQ186: 201 | AS186: 90 | AT186: 101 | AU186: 121
A187: 167 | B187: 1.1 | C187: 1.05 | D187: 1 | E187: 1 | Z187: 202 | AA187: =ROUND(Z187*0.64,0) -> 129 | AB187: 58 | AC187: 55 | AD187: 50 | AE187: 129 | AF187: 69 | AG187: 66 | AH187: 60 | AI187: 129 | AJ187: 81 | AK187: 77 | AL187: 70 | AO187: 202 | AP187: 202 | AQ187: 202 | AS187: 91 | AT187: 101 | AU187: 121
A188: 168 | B188: 1.1 | C188: 1.05 | D188: 1 | E188: 1 | Z188: 203 | AA188: 130 | AB188: 58 | AC188: 55 | AD188: 50 | AE188: 130 | AF188: 69 | AG188: 66 | AH188: 60 | AI188: 130 | AJ188: 81 | AK188: 77 | AL188: 70 | AO188: 203 | AP188: 203 | AQ188: 203 | AS188: 91 | AT188: 102 | AU188: 122
A189: 169 | B189: 1.1 | C189: 1.05 | D189: 1 | E189: 1 | Z189: 204 | AA189: 131 | AB189: 58 | AC189: 55 | AD189: 50 | AE189: 131 | AF189: 69 | AG189: 66 | AH189: 60 | AI189: 131 | AJ189: 81 | AK189: 77 | AL189: 70 | AO189: 204 | AP189: 204 | AQ189: 204 | AS189: 92 | AT189: 102 | AU189: 122
A190: 170 | B190: 1.15 | C190: 1.1 | D190: 1.05 | E190: 1 | Z190: 205 | AA190: 131 | AB190: 58 | AC190: 55 | AD190: 50 | AE190: 131 | AF190: 69 | AG190: 66 | AH190: 60 | AI190: 131 | AJ190: 81 | AK190: 77 | AL190: 70 | AO190: 205 | AP190: 205 | AQ190: 205 | AS190: 92 | AT190: 103 | AU190: 123
A191: 171 | B191: 1.15 | C191: 1.1 | D191: 1.05 | E191: 1 | Z191: 206 | AA191: 132 | AB191: 58 | AC191: 55 | AD191: 50 | AE191: 132 | AF191: 69 | AG191: 66 | AH191: 60 | AI191: 132 | AJ191: 81 | AK191: 77 | AL191: 70 | AO191: 206 | AP191: 206 | AQ191: 206 | AS191: 93 | AT191: 103 | AU191: 124
A192: 172 | B192: 1.15 | C192: 1.1 | D192: 1.05 | E192: 1 | Z192: 207 | AA192: 132 | AB192: 58 | AC192: 55 | AD192: 50 | AE192: 132 | AF192: 69 | AG192: 66 | AH192: 60 | AI192: 132 | AJ192: 81 | AK192: 77 | AL192: 70 | AO192: 207 | AP192: 207 | AQ192: 207 | AS192: 93 | AT192: 104 | AU192: 124
A193: 173 | B193: 1.15 | C193: 1.1 | D193: 1.05 | E193: 1 | Z193: 208 | AA193: 133 | AB193: 58 | AC193: 55 | AD193: 50 | AE193: 133 | AF193: 69 | AG193: 66 | AH193: 60 | AI193: 133 | AJ193: 81 | AK193: 77 | AL193: 70 | AO193: 208 | AP193: 208 | AQ193: 208 | AS193: 94 | AT193: 104 | AU193: 125
A194: 174 | B194: 1.15 | C194: 1.1 | D194: 1.05 | E194: 1 | Z194: 209 | AA194: 134 | AB194: 58 | AC194: 55 | AD194: 50 | AE194: 134 | AF194: 69 | AG194: 66 | AH194: 60 | AI194: 134 | AJ194: 81 | AK194: 77 | AL194: 70 | AO194: 209 | AP194: 209 | AQ194: 209 | AS194: 94 | AT194: 105 | AU194: 125
A195: 175 | B195: 1.15 | C195: 1.1 | D195: 1.05 | E195: 1 | Z195: 210 | AA195: 134 | AB195: 58 | AC195: 55 | AD195: 50 | AE195: 134 | AF195: 69 | AG195: 66 | AH195: 60 | AI195: 134 | AJ195: 81 | AK195: 77 | AL195: 70 | AO195: 210 | AP195: 210 | AQ195: 210 | AS195: 95 | AT195: 105 | AU195: 126
A196: 176 | B196: 1.15 | C196: 1.1 | D196: 1.05 | E196: 1 | Z196: 211 | AA196: 135 | AB196: 58 | AC196: 55 | AD196: 50 | AE196: 135 | AF196: 69 | AG196: 66 | AH196: 60 | AI196: 135 | AJ196: 81 | AK196: 77 | AL196: 70 | AO196: 211 | AP196: 211 | AQ196: 211 | AS196: 95 | AT196: 106 | AU196: 127
A197: 177 | B197: 1.15 | C197: 1.1 | D197: 1.05 | E197: 1 | Z197: 212 | AA197: 136 | AB197: 58 | AC197: 55 | AD197: 50 | AE197: 136 | AF197: 69 | AG197: 66 | AH197: 60 | AI197: 136 | AJ197: 81 | AK197: 77 | AL197: 70 | AO197: 212 | AP197: 212 | AQ197: 212 | AS197: 95 | AT197: 106 | AU197: 127
A198: 178 | B198: 1.15 | C198: 1.1 | D198: 1.05 | E198: 1 | Z198: 213 | AA198: 136 | AB198: 58 | AC198: 55 | AD198: 50 | AE198: 136 | AF198: 69 | AG198: 66 | AH198: 60 | AI198: 136 | AJ198: 81 | AK198: 77 | AL198: 70 | AO198: 213 | AP198: 213 | AQ198: 213 | AS198: =IF(Z198*0.45<$V$4,$V$4,ROUND(0.45*Z198,0)) -> 96 | AT198: =IF(Z198*0.5<$X$4,$X$4,ROUND(0.5*Z198,0)) -> 107 | AU198: =IF(Z198*0.6<$Y$4,$Y$4,ROUND(0.6*Z198,0)) -> 128
A199: 179 | B199: 1.15 | C199: 1.1 | D199: 1.05 | E199: 1 | Z199: 214 | AA199: 137 | AB199: 58 | AC199: 55 | AD199: 50 | AE199: 137 | AF199: 69 | AG199: 66 | AH199: 60 | AI199: 137 | AJ199: 81 | AK199: 77 | AL199: 70 | AO199: 214 | AP199: 214 | AQ199: 214 | AS199: 96 | AT199: 107 | AU199: 128
A200: 180 | B200: 1.15 | C200: 1.1 | D200: 1.05 | E200: 1 | Z200: 215 | AA200: 138 | AB200: 58 | AC200: 55 | AD200: 50 | AE200: 138 | AF200: 69 | AG200: 66 | AH200: 60 | AI200: 138 | AJ200: 81 | AK200: 77 | AL200: 70 | AO200: 215 | AP200: 215 | AQ200: 215 | AS200: 97 | AT200: 108 | AU200: 129
... 1263 more rows

Sheet HiddenData (hidden)
A1: Ending Row Number in table NB under Localized Factor Worksheet | H1: = | I1: 15
A2: Starting Row Number in table NB under Localized Factor Worksheet | H2: = | I2: 37
A3: Scroll Limit | I3: =I2+36 -> 73

Sheet Blank (hidden)

Sheet BLANK EXCLUSION SHEET (hidden)
A1: ='Calculation sheet'!AO19 -> from MP To MP and from MP To MP | F1: =A1 -> from MP To MP and from MP To MP
A3: ='Calculation sheet'!C8 -> 0 | F3: ='Calculation sheet'!E8 -> 0
A4: Localized Factor | B4: From | C4: To | D4: Lane | E4: Remarks | F4: Localized Factor | G4: From | H4: To | I4: Lane | J4: Remarks

Sheet Sample Input (hidden)
A1: NEW JERSEY DEPARTMENT OF TRANSPORTATION
A2: SAMPLE LOCALIZED FACTORS INPUT IN RQR SOFTWARE
A3: =Instructions!A3 -> Version: 3.00W
A4: =Instructions!A4 -> Information last updated on: April 30, 2014
A6: Impediments (IM):
A8: Enter approximate location of Impediment (Mile post or Station).
A33: Short Section (SS)
A53: Structure (SR):
A77: Transverse Joint (TJ):
A99: Rail Road (RR):
A115: For any question, send email to RQSPECSUPPORT@DOT.STATE.NJ.US

Sheet Localized Factors Summary (hidden)
A1: FROM LOCALIZED FACTOR WORKSHEET
A2: TOTAL EXCLUSIONS | J2: TOTAL EXCLUSIONS
A3: ='Localized Factor Worksheet'!B12 -> 0 | J3: ='Localized Factor Worksheet'!Q12 -> 0
A4: Lane No. from left in the dir of traffic | D4: ='Localized Factor Worksheet'!F49 -> 1 | E4: ='Localized Factor Worksheet'!G49 ->  | F4: ='Localized Factor Worksheet'!H49 ->  | G4: ='Localized Factor Worksheet'!I49 ->  | H4: ='Localized Factor Worksheet'!J49 ->  | J4: Lane No. from left in the dir of traffic | M4: ='Localized Factor Worksheet'!T49 -> 1 | N4: ='Localized Factor Worksheet'!U49 ->  | O4: ='Localized Factor Worksheet'!V49 ->  | P4: ='Localized Factor Worksheet'!W49 ->  | Q4: ='Localized Factor Worksheet'!X49 -> 
A5: IM (Manholes, Inlets) | B5: No. of Occurances | D5: ='Localized Factor Worksheet'!F55 -> 0 | E5: ='Localized Factor Worksheet'!G55 -> 0 | F5: ='Localized Factor Worksheet'!H55 -> 0 | G5: ='Localized Factor Worksheet'!I55 -> 0 | H5: ='Localized Factor Worksheet'!J55 -> 0 | J5: IM (Manholes, Inlets) | K5: No. of Occurances | M5: ='Localized Factor Worksheet'!T55 -> 0 | N5: ='Localized Factor Worksheet'!U55 -> 0 | O5: ='Localized Factor Worksheet'!V55 -> 0 | P5: ='Localized Factor Worksheet'!W55 -> 0 | Q5: ='Localized Factor Worksheet'!X55 -> 0
B6: No. of Exclusions | D6: ='Localized Factor Worksheet'!F56 -> 0 | E6: ='Localized Factor Worksheet'!G56 -> - | F6: ='Localized Factor Worksheet'!H56 -> - | G6: ='Localized Factor Worksheet'!I56 -> - | H6: ='Localized Factor Worksheet'!J56 -> - | K6: No. of Exclusions | M6: ='Localized Factor Worksheet'!T56 -> 0 | N6: ='Localized Factor Worksheet'!U56 -> - | O6: ='Localized Factor Worksheet'!V56 -> - | P6: ='Localized Factor Worksheet'!W56 -> - | Q6: ='Localized Factor Worksheet'!X56 -> -
A7: SS (Short Sections) | B7: No. of Occurances | D7: ='Localized Factor Worksheet'!F67 -> 0 | E7: ='Localized Factor Worksheet'!G67 -> 0 | F7: ='Localized Factor Worksheet'!H67 -> 0 | G7: ='Localized Factor Worksheet'!I67 -> 0 | H7: ='Localized Factor Worksheet'!J67 -> 0 | J7: SS (Short Sections) | K7: No. of Occurances | M7: ='Localized Factor Worksheet'!T67 -> 0 | N7: ='Localized Factor Worksheet'!U67 -> 0 | O7: ='Localized Factor Worksheet'!V67 -> 0 | P7: ='Localized Factor Worksheet'!W67 -> 0 | Q7: ='Localized Factor Worksheet'!X67 -> 0
B8: No. of Exclusions | D8: ='Localized Factor Worksheet'!F68 -> 0 | E8: ='Localized Factor Worksheet'!G68 -> - | F8: ='Localized Factor Worksheet'!H68 -> - | G8: ='Localized Factor Worksheet'!I68 -> - | H8: ='Localized Factor Worksheet'!J68 -> - | K8: No. of Exclusions | M8: ='Localized Factor Worksheet'!T68 -> 0 | N8: ='Localized Factor Worksheet'!U68 -> - | O8: ='Localized Factor Worksheet'!V68 -> - | P8: ='Localized Factor Worksheet'!W68 -> - | Q8: ='Localized Factor Worksheet'!X68 -> -
A9: SR (Structure) | B9: No. of Occurances | D9: ='Localized Factor Worksheet'!F59 -> 0 | E9: ='Localized Factor Worksheet'!G59 -> 0 | F9: ='Localized Factor Worksheet'!H59 -> 0 | G9: ='Localized Factor Worksheet'!I59 -> 0 | H9: ='Localized Factor Worksheet'!J59 -> 0 | J9: SR (Structure) | K9: No. of Occurances | M9: ='Localized Factor Worksheet'!T59 -> 0 | N9: ='Localized Factor Worksheet'!U59 -> 0 | O9: ='Localized Factor Worksheet'!V59 -> 0 | P9: ='Localized Factor Worksheet'!W59 -> 0 | Q9: ='Localized Factor Worksheet'!X59 -> 0
B10: No. of Exclusions | D10: ='Localized Factor Worksheet'!F60 -> 0 | E10: ='Localized Factor Worksheet'!G60 -> - | F10: ='Localized Factor Worksheet'!H60 -> - | G10: ='Localized Factor Worksheet'!I60 -> - | H10: ='Localized Factor Worksheet'!J60 -> - | K10: No. of Exclusions | M10: ='Localized Factor Worksheet'!T60 -> 0 | N10: ='Localized Factor Worksheet'!U60 -> - | O10: ='Localized Factor Worksheet'!V60 -> - | P10: ='Localized Factor Worksheet'!W60 -> - | Q10: ='Localized Factor Worksheet'!X60 -> -
A11: BDO (Bridge Deck Overlay) | B11: No. of Occurances | D11: ='Localized Factor Worksheet'!F62 -> 0 | E11: ='Localized Factor Worksheet'!G62 -> 0 | F11: ='Localized Factor Worksheet'!H62 -> 0 | G11: ='Localized Factor Worksheet'!I62 -> 0 | H11: ='Localized Factor Worksheet'!J64 -> 0 | J11: BDO (Bridge Deck Overlay) | K11: No. of Occurances | M11: ='Localized Factor Worksheet'!T62 -> 0 | N11: ='Localized Factor Worksheet'!U62 -> 0 | O11: ='Localized Factor Worksheet'!V62 -> 0 | P11: ='Localized Factor Worksheet'!W62 -> 0 | Q11: ='Localized Factor Worksheet'!X62 -> 0
B12: No. of Exclusions | D12: ='Localized Factor Worksheet'!F63 -> 0 | E12: ='Localized Factor Worksheet'!G63 -> 0 | F12: ='Localized Factor Worksheet'!H63 -> 0 | G12: ='Localized Factor Worksheet'!I63 -> 0 | H12: ='Localized Factor Worksheet'!J63 -> 0 | K12: No. of Exclusions | M12: ='Localized Factor Worksheet'!T63 -> 0 | N12: ='Localized Factor Worksheet'!U63 -> 0 | O12: ='Localized Factor Worksheet'!V63 -> 0 | P12: ='Localized Factor Worksheet'!W63 -> 0 | Q12: ='Localized Factor Worksheet'!X63 -> 0
A13: TOTAL EXCLUSIONS | D13: ='Localized Factor Worksheet'!F73 -> 1 | E13: ='Localized Factor Worksheet'!G73 ->  | F13: ='Localized Factor Worksheet'!H73 ->  | G13: ='Localized Factor Worksheet'!I73 ->  | H13: ='Localized Factor Worksheet'!J73 ->  | J13: TOTAL EXCLUSIONS | M13: ='Localized Factor Worksheet'!T73 -> 0 | N13: ='Localized Factor Worksheet'!U73 ->  | O13: ='Localized Factor Worksheet'!V73 ->  | P13: ='Localized Factor Worksheet'!W73 ->  | Q13: ='Localized Factor Worksheet'!X73 -> 
A14: FROM IMPEDIMENTS
A15: TOTAL EXCLUSIONS | J15: TOTAL EXCLUSIONS
A16: =A3 -> 0 | J16: =J3 -> 0
A17: Lane No. from left in the dir of traffic | D17: =Impediments!D37 -> 1 | E17: =Impediments!E37 ->  | F17: =Impediments!F37 ->  | G17: =Impediments!G37 ->  | H17: =Impediments!H37 ->  | J17: Lane No. from left in the dir of traffic | M17: =Impediments!M37 -> 1 | N17: =Impediments!N37 ->  | O17: =Impediments!O37 ->  | P17: =Impediments!P37 ->  | Q17: =Impediments!Q37 -> 
A18: IM (Manholes, Inlets) | B18: No. of Occurances | D18: =Impediments!D38 -> 0 | E18: =Impediments!E38 -> - | F18: =Impediments!F38 -> - | G18: =Impediments!G38 -> - | H18: =Impediments!H38 -> - | J18: IM (Manholes, Inlets) | K18: No. of Occurances | M18: =Impediments!M38 -> 0 | N18: =Impediments!N38 -> - | O18: =Impediments!O38 -> - | P18: =Impediments!P38 ->  | Q18: =Impediments!Q38 -> -
B19: No. of Exclusions | D19: =Impediments!D39 -> 0 | E19: =Impediments!E39 -> - | F19: =Impediments!F39 -> - | G19: =Impediments!G39 -> - | H19: =Impediments!H39 -> - | K19: No. of Exclusions | M19: =Impediments!M39 -> 0 | N19: =Impediments!N39 -> - | O19: =Impediments!O39 -> - | P19: =Impediments!P39 -> - | Q19: =Impediments!Q39 -> -
A20: SS (Short Sections) | B20: No. of Occurances | D20: =Impediments!D40 -> 0 | E20: =Impediments!E40 -> - | F20: =Impediments!F40 -> - | G20: =Impediments!G40 -> - | H20: =Impediments!H40 -> - | J20: SS (Short Sections) | K20: No. of Occurances | M20: =Impediments!M40 -> 0 | N20: =Impediments!N40 -> - | O20: =Impediments!O40 -> - | P20: =Impediments!P40 -> - | Q20: =Impediments!Q40 -> -
B21: No. of Exclusions | D21: =Impediments!D41 -> 0 | E21: =Impediments!E41 -> - | F21: =Impediments!F41 -> - | G21: =Impediments!G41 -> - | H21: =Impediments!H41 -> - | K21: No. of Exclusions | M21: =Impediments!M41 -> 0 | N21: =Impediments!N41 -> - | O21: =Impediments!O41 -> - | P21: =Impediments!P41 -> - | Q21: =Impediments!Q41 -> -
A22: SR(Structure) | B22: No. of Occurances | D22: =Impediments!D42 -> 0 | E22: =Impediments!E42 -> - | F22: =Impediments!F42 -> - | G22: =Impediments!G42 -> - | H22: =Impediments!H42 -> - | J22: SR(Structure) | K22: No. of Occurances | M22: =Impediments!M42 -> 0 | N22: =Impediments!N42 -> - | O22: =Impediments!O42 -> - | P22: =Impediments!P42 -> - | Q22: =Impediments!Q42 -> -
B23: No. of Exclusions | D23: =Impediments!D43 -> 0 | E23: =Impediments!E43 -> - | F23: =Impediments!F43 -> - | G23: =Impediments!G43 -> - | H23: =Impediments!H43 -> - | K23: No. of Exclusions | M23: =Impediments!M43 -> 0 | N23: =Impediments!N43 -> - | O23: =Impediments!O43 -> - | P23: =Impediments!P43 -> - | Q23: =Impediments!Q43 -> -
A24: BDO (Bridge Deck Overlay) | B24: No. of Occurances | D24: =Impediments!D44 -> 0 | E24: =Impediments!E44 ->  | F24: =Impediments!F44 ->  | G24: =Impediments!G44 ->  | H24: =Impediments!H44 ->  | J24: BDO (Bridge Deck Overlay) | K24: No. of Occurances | M24: =Impediments!M44 -> 0 | N24: =Impediments!N44 ->  | O24: =Impediments!O44 ->  | P24: =Impediments!P44 ->  | Q24: =Impediments!Q44 -> 
B25: No. of Exclusions | D25: =Impediments!D45 -> 0 | E25: =Impediments!E45 -> - | F25: =Impediments!F45 -> - | G25: =Impediments!G45 -> - | H25: =Impediments!H45 -> - | K25: No. of Exclusions | M25: =Impediments!M45 -> 0 | N25: =Impediments!N45 -> - | O25: =Impediments!O45 ->  | P25: =Impediments!P45 ->  | Q25: =Impediments!Q45 -> 
A26: TOTAL EXCLUSIONS | D26: =Impediments!D46 -> 1 | E26: =Impediments!E46 -> - | F26: =Impediments!F46 -> - | G26: =Impediments!G46 -> - | H26: =Impediments!H46 -> - | J26: TOTAL EXCLUSIONS | M26: =Impediments!M46 -> 1 | N26: =Impediments!N46 -> - | O26: =Impediments!O46 -> - | P26: =Impediments!P46 -> - | Q26: =Impediments!Q46 -> -
A28: SUMMARY
A29: ='Localized Factor Worksheet'!C48 -> Exclusion Distribution in Lanes | J29: ='Localized Factor Worksheet'!Q48 -> Exclusion Distribution in Lanes
A30: =A16 -> 0 | J30: =J16 -> 0
A31: Lane No. from left in the dir of traffic | D31: 1 | J31: Lane No. from left in the dir of traffic | M31: 1
A32: IM (Manholes, Inlets) | B32: No. of Occurances | D32: 0 | E32: - | F32: - | G32: - | H32: - | I32: =SUM(D32:H32)+1 -> 1 | J32: IM | M32: 0 | N32: - | O32: - | Q32: - | R32: =SUM(M32:Q32)+1 -> 1
B33: No. of Exclusions | D33: 0 | E33: - | F33: - | G33: - | H33: - | I33: =ROUND((SUM(D33:H33)+1)*52.8,0) -> 53 | M33: 0 | N33: - | O33: - | P33: - | Q33: - | R33: =ROUND((SUM(M33:Q33)+1)*52.8,0) -> 53
A34: SS (Short Sections) | B34: No. of Occurances | D34: 0 | E34: - | F34: - | G34: - | H34: - | I34: =SUM(D34:H34) -> 0 | J34: SS | M34: 0 | N34: - | O34: - | P34: - | Q34: - | R34: =SUM(M34:Q34) -> 0
B35: No. of Exclusions | D35: 0 | E35: - | F35: - | G35: - | H35: - | I35: =ROUND((SUM(D35:H35)+0)*52.8,0) -> 0 | M35: 0 | N35: - | O35: - | P35: - | Q35: - | R35: =ROUND((SUM(M35:Q35)+0)*52.8,0) -> 0
A36: SR(Structure) | B36: No. of Occurances | D36: 0 | E36: - | F36: - | G36: - | H36: - | I36: =SUM(D36:H36) -> 0 | J36: SR | M36: 0 | N36: - | O36: - | P36: - | Q36: - | R36: =SUM(M36:Q36) -> 0
B37: No. of Exclusions | D37: 0 | E37: - | F37: - | G37: - | H37: - | I37: =ROUND((SUM(D37:H37)+0)*52.8,0) -> 0 | M37: 0 | N37: - | O37: - | P37: - | Q37: - | R37: =ROUND((SUM(M37:Q37)+0)*52.8,0) -> 0
A38: BDO (Bridge Deck Overlay) | B38: No. of Occurances | D38: 0 | I38: =SUM(D38:H38) -> 0 | J38: BDO | M38: 0 | R38: =SUM(M38:Q38) -> 0
B39: No. of Exclusions | D39: 0 | E39: - | F39: - | G39: - | H39: - | I39: =ROUND((SUM(D39:H39)+0)*52.8,0) -> 0 | M39: 0 | N39: - | R39: =ROUND((SUM(M39:Q39)+0)*52.8,0) -> 0
A40: TOTAL EXCLUSIONS | D40: 1 | E40: - | F40: - | G40: - | H40: - | J40: TOTAL EXCLUSIONS | M40: 1 | N40: - | O40: - | P40: - | Q40: -

Sheet Instructions (hidden)
A1: NEW JERSEY DEPARTMENT OF TRANSPORTATION
A2: RIDE QUALITY REQUIREMENTS (RQR) SOFTWARE
A3: ='Calculation sheet'!B158 -> Version: 3.00W
A4: ='Calculation sheet'!B159 -> Information last updated on: April 30, 2014
A5: GUIDELINES FOR ENTERING LOCALIZED FACTORS
A6: IMPEDIMENTS (IM)
A7: 1 | B7: IM are utility covers, manholes, catch basins, inlets, and any other features. | M7: a
A8: 2 | B8: Enter approximate location of center of IM. Length/diameter of the manhole/inlet/utility covers is not required. RQR will add appropriate threshold length for each entered IM. (See sample input for IM).
A9: 3 | B9: All potential IM should be counted irrespective of the distance between two IMs. For example: If there are one manhole, one utility valve, and one inlet at one location (say Sta. 110+00 or MP 100.00), enter location i.e. Sta 110+00 or MP 100.00 for each one of them. (See figure 1, 3 & 5 of Localized Factors).
A10: 4 | B10: If shoulders (marked or unmarked) or parking lane will be paved with the travel lane in one paving operation, all IMs located in shoulder or parking lane should be included as exclusion in adjacent lane. (See figure 1 of Localized Factors).
A11: 5 | B11: If shoulders (marked or unmarked) will not be paved with the travel lane in one paving operation, all IMs located in shoulder should not be included as exclusion in adjacent lane. (See figure 3 of Localized Factors).
A12: 7 | B12: See Examples on Sheet 1 & 2 of Localized Factors.
B13: Note:-Unmarked shoulder is additional area adjacent to travel way i.e. 12 ft wide avaiable for parking etc and not seperated from travel lane by striping.
B14: SHORT SECTION (SS)
A15: 1 | B15: SS are any segment within the continuous section of paved lane that are excluded from rest of the project due to difficulties associated with achieving target International Roughness Index (IRI). For example :- Intersections, L-turn Lanes (See figure 4 of Localized Factors).
A16: 2 | B16: Unpaved section should not be counted as an exclusion because pay equations will only be used for the tested paved pavement within the project. Unpaved section of pavement will not be tested.
A17: 3 | B17: Enter actual limits of short sections to be considered for exclusion. RQR will add the threshold length of SS to this exclusion length of the short section. | N17: See Examples on Sheet 1 & 2 of Localized Factors.
A18: 4 | B18: See Examples on Sheet 1 & 2 (Figures 2 & 4) of Localized Factors.
A19: 5 | B19: See sample input for "SS".
A21: STRUCTURE (SR)
A22: 1 | B22: SR is concrete deck.
A23: 2 | B23: Enter approximate locations of SR.
A24: 3 | B24: RQR will add the threshold length for each entered structure. If deck carries multiple lanes, enter location for each lane separately so that exclusion for each lane can be calculated.
A25: 4 | B25: Actual limits of concrete deck length not paved will be determined by the department during pay adjustment by video view.
A26: 5 | B26: For Bridge Deck with proposed HMA, do not enter any exclusion since the pay equations in table "401.03.03-7" of the specifications for bridge deck overlay will be used for pay adjustments calculation. Actual length of bridge deck will be determined during pay adjustment by video view.
A27: 6 | B27: If there is any structure with existing HMA overlay and will not be paved in this project, enter approximate location of that structure as an "SR" exclusions.
A28: 7 | B28: If approaches of any structure with existing HMA overlay will not be paved in this project, do not enter any exclusion for "SR". However, enter "TJ" for break in continue paving operation.
A30: TRANSEVERSE JOINT (TJ)
A31: 1 | B31: Transverse Joints (TJ) are break in continue paving operation for FINAL RIDING SURFACE due to change in surface course thickness/mix or due to feature not counted as any other exclusion.
A32: 2 | B32: Enter "TJ" for every break in paving operation. RQR will add the threshold length for each entered transverse Joint.
A33: 3 | B33: Do not enter "TJ" for construction joint at the end of a day paving operation.
A34: 4 | B34: Do not enter "TJ" for the joint at the beginning of project because Joint at the beginning and end of the section is already added at the first row of the table.
A35: 3 | B35: If any approach of a bridge deck is not being paved and causing break in continue paving operation, enter "TJ" at the beginning and end of the structure. Do not enter "TJ", if exclusion as "SR" is already counted for this structure.
A36: 5 | B36: Enter "TJ" for change in surface course thickness or mix.
A37: 6 | B37: Do not enter "TJ" for change in milling depth.
A39: RAIL ROAD (RR)
A40: 1 | B40: RR is any Rail Road crossing in transverse direction that are excluded from rest of the project due to difficulties asociated with achieving target IRI or cause break in continue operation.
A41: 2 | B41: Enter actual limits of rail road segment for exclusion i.e. location of first and last rail road . Program will add the threshold length of RR to this exclusion length. Software will add the threshold for a segment.
A42: 3 | B42: Enter "RR" for each lane seperately. For Example: If any project has three lanes at location of RR crossing, enter "RR" for Lane 1, Lane 2 and Lane 3 seperately.
A43: 4 | B43: Do not enter "RR", if the rail road is not being paved or rail raod segment is excluded from paving. Pay adjustment will be calculated only for paved area. But, enter "TJ" for break in paving operation due to rail road.
B44: NOTE:- If you prefer to enter localized factors based on number of counts, use above guide lines to determine number of impediments, structures and length of short sections. You are advised to save survey sheet for future review.
B46: For any question, send email to RQSPECSUPPORT@DOT.STATE.NJ.US

Sheet Lane (hidden)
B1: ='Calculation sheet'!C8 -> 0 | C1: ='Calculation sheet'!E8 -> 0 | E1: Lane | F1: 1 | G1: 2 | H1: 3 | I1: 4 | J1: 5 | L1: Lane | M1: 1 | N1: 2 | O1: 3 | P1: 4 | Q1: 5 | X1: Search for (Do not Move) | AC1: start | BD1: Calculation Sheet
A2: Project Limits | E2: Count Start | F2: =COUNTIF(C11:C82, "start") -> 0 | G2: =COUNTIF(D11:D82, "start") -> 0 | H2: =COUNTIF(E11:E82, "start") -> 0 | I2: =COUNTIF(F11:F82, "start") -> 0 | J2: =COUNTIF(G11:G82, "start") -> 0 | L2: Count Start | M2: =COUNTIF(K11:K82, "start") -> 0 | N2: =COUNTIF(L11:L82, "start") -> 0 | O2: =COUNTIF(M11:M82, "start") -> 0 | P2: =COUNTIF(N11:N82, "start") -> 0 | Q2: =COUNTIF(O11:O82, "start") -> 0 | AC2: cont
A3: Project Begin | B3: ='Calculation sheet'!C9 -> 0 | C3: ='Calculation sheet'!E9 -> 0 | E3: Count End | F3: =COUNTIF(C12:C82, "end") -> 0 | G3: =COUNTIF(D12:D82, "end") -> 0 | H3: =COUNTIF(E12:E82, "end") -> 0 | I3: =COUNTIF(F12:F82, "end") -> 0 | J3: =COUNTIF(G12:G82, "end") -> 0 | L3: Count End | M3: =COUNTIF(K11:K82, "end") -> 0 | N3: =COUNTIF(L11:L82, "end") -> 0 | O3: =COUNTIF(M11:M82, "end") -> 0 | P3: =COUNTIF(N11:N82, "end") -> 0 | Q3: =COUNTIF(O11:O82, "end") -> 0 | X3: Search for (Do not move) | AC3: end
A4: Project End | B4: ='Calculation sheet'!C10 -> 0 | C4: ='Calculation sheet'!E10 -> 0 | E4: Count cont | F4: =COUNTIF(C12:C82, "cont") -> 0 | G4: =COUNTIF(D12:D82, "cont") -> 0 | H4: =COUNTIF(E12:E82, "cont") -> 0 | I4: =COUNTIF(F12:F82, "cont") -> 0 | J4: =COUNTIF(G12:G82, "cont") -> 0 | L4: Count cont | M4: =COUNTIF(K11:K82, "cont") -> 0 | N4: =COUNTIF(L11:L82, "cont") -> 0 | O4: =COUNTIF(M11:M82, "cont") -> 0 | P4: =COUNTIF(N11:N82, "cont") -> 0 | Q4: =COUNTIF(O11:O82, "cont") -> 0 | AC4: None | AL4: Lane 5 | AZ4: Lane 5
A5: RQ Limits | E5: Total | F5: =SUM(F2:F4)+COUNTIF(C11:C82, "None") -> 0 | G5: =SUM(G2:G4)+COUNTIF(D11:D82, "None") -> 0 | H5: =SUM(H2:H4)+COUNTIF(E11:E82, "None") -> 0 | I5: =SUM(I2:I4)+COUNTIF(F11:F82, "None") -> 0 | J5: =SUM(J2:J4)+COUNTIF(G11:G82, "None") -> 0 | L5: Total | M5: =SUM(M2:M4)+COUNTIF(K11:K82, "None") -> 0 | N5: =SUM(N2:N4)+COUNTIF(L11:L82, "None") -> 0 | O5: =SUM(O2:O4)+COUNTIF(M11:M82, "None") -> 0 | P5: =SUM(P2:P4)+COUNTIF(N11:N82, "None") -> 0 | Q5: =SUM(Q2:Q4)+COUNTIF(O11:O82, "None") -> 0 | X5: Lane length no to be tested | AB5: =1000*0.99/5280 -> 0.1875
A6: Project Begin | B6: =A11 -> 0 | C6: =I11 -> 0 | E6: first start | F6: 16 | H6: 15 | I6: 16 | J6: 15 | L6: first start | M6: 16 | N6: 15 | O6: 15 | P6: 16 | Q6: 15 | V6: 22 | W6: 23 | X6: 24 | Y6: 25 | Z6: 26 | AA6: 27 | AB6: 28 | AC6: 29 | AD6: 30 | AE6: 31 | AF6: 32 | AG6: 33 | AH6: 34 | AI6: 35 | AJ6: 36 | AK6: 37 | AL6: 38 | AM6: 39 | AN6: 40 | AO6: 41 | AP6: 42 | AQ6: 43 | AR6: 44 | AS6: 45 | AT6: 46 | AU6: 47 | AV6: 5 | AW6: =1000*0.99/5280 -> 0.1875 | AX6: 50 | AY6: 51 | AZ6: 52 | BA6: 53 | BB6: 54 | BC6: 55 | BD6: 56 | BE6: 57 | BF6: 58 | BG6: 59 | BH6: 60 | BI6: 61
A7: Project End | B7: =IF(MAX(A11:B82)=I11,I11,MAX(A11:B82)) -> 0 | C7: =IF(MAX(I11:J82)=I11,I11,MAX(I11:J82)) -> 0 | E7: first end | F7: 2 | L7: first end | M7: 13 | V7: =A9 -> 0 | AP7: =I9 -> 0
A8: 1 | E8: # of cycle | F8: 2 | G8: 0 | H8: 0 | I8: 0 | J8: 0 | L8: # of cycle | M8: 0 | N8: 0 | O8: 0 | P8: 0 | Q8: 0 | V8: Lane 1 | Z8: Lane 2 | AD8: Lane 3 | AH8: Lane 4 | AL8: Lane 5 | AP8: Lane 1 | AT8: Lane 2 | AX8: Lane 3 | BB8: Lane 4 | BF8: Lane 5
A9: ='Calculation sheet'!C8 -> 0 | I9: ='Calculation sheet'!E8 -> 0 | P9: =CONCATENATE(P10," ",P11," ",P12," ",P13) -> Please enter mile post limit, where number of lanes is changing. Select "Start" where the lane begin. If lane continue at the eneterd milepost, select "continue". select "End" at the milepost where lane stops. If a lane begin, should also have end to stop that lane. | V9: Begin MP | W9: Ending MP | X9: Mile | Z9: Begin MP | AA9: Ending MP | AB9: Mile | AD9: Begin MP | AE9: Ending MP | AF9: Mile | AH9: Begin MP | AI9: Ending MP | AJ9: Mile | AL9: Begin MP | AM9: Ending MP | AN9: Mile | AP9: Begin MP | AQ9: Ending MP | AR9: Mile | AT9: Begin MP | AU9: Ending MP | AV9: Mile | AX9: Begin MP | AY9: Ending MP | AZ9: Mile | BB9: Begin MP | BC9: Ending MP | BD9: Mile | BF9: Begin MP | BG9: Ending MP | BH9: Mile
A10: MP | C10: Lane 1 | D10: Lane 2 | E10: Lane 3 | F10: Lane 4 | G10: Lane 5 | I10: MP | K10: Lane 1 | L10: Lane 2 | M10: Lane 3 | N10: Lane 4 | O10: Lane 5 | P10: Please enter mile post limit, where number of lanes is changing. | V10: =IF(A96="","",A96) -> 0.75 | W10: =IF(B96="","",B96) -> 1.5 | X10: =IF(V10="","",ROUND(ABS(V10-W10),2)) -> 0.75 | Y10: =CONCATENATE("MP ",V10," - ","MP ",W10) -> MP 0.75 - MP 1.5 | Z10: =IF(D96="","",D96) -> 0.794 | AA10: =IF(E96="","",E96) -> 4 | AB10: =IF(Z10="","",ROUND(ABS(Z10-AA10),2)) -> 3.21 | AC10: =CONCATENATE("MP ",Z10," - ","MP ",AA10) -> MP 0.794 - MP 4 | AD10: =IF(F96="","",F96) -> 0.75 | AE10: =IF(G96="","",G96) -> 0.794 | AF10: =IF(AD10="","",ROUND(ABS(AD10-AE10),2)) -> 0.04 | AG10: =CONCATENATE("MP ",AD10," - ","MP ",AE10) -> MP 0.75 - MP 0.794 | AH10: =IF(I96="","",I96) -> 0.794 | AI10: =IF(J96="","",J96) -> 4 | AJ10: =IF(AH10="","",ROUND(ABS(AH10-AI10),2)) -> 3.21 | AK10: =CONCATENATE("MP ",AH10," - ","MP ",AI10) -> MP 0.794 - MP 4 | AL10: =IF(K96="","",K96) -> 0.75 | AM10: =IF(L96="","",L96) -> 3.6 | AN10: =IF(AL10="","",ROUND(ABS(AL10-AM10),2)) -> 2.85 | AO10: =CONCATENATE("MP ",AL10," - ","MP ",AM10) -> MP 0.75 - MP 3.6 | AP10: =IF(P96="","",P96) -> 0.75 | AQ10: =IF(Q96="","",Q96) -> 1.5 | AR10: =IF(AP10="","",ROUND(ABS(AP10-AQ10),2)) -> 0.75 | AS10: =CONCATENATE("MP ",AP10," - ","MP ",AQ10) -> MP 0.75 - MP 1.5 | AT10: =IF(R96="","",R96) -> 0.794 | AU10: =IF(S96="","",S96) -> 3.6 | AV10: =IF(AT10="","",ROUND(ABS(AT10-AU10),2)) -> 2.81 | AW10: =CONCATENATE("MP ",AT10," - ","MP ",AU10) -> MP 0.794 - MP 3.6 | AX10: =IF(T96="","",T96) -> 0.75 | AY10: =IF(U96="","",U96) -> 0.794 | AZ10: =IF(AX10="","",ROUND(ABS(AX10-AY10),2)) -> 0.04 | BA10: =CONCATENATE("MP ",AX10," - ","MP ",AY10) -> MP 0.75 - MP 0.794 | BB10: =IF(V96="","",V96) -> 0.794 | BC10: =IF(W96="","",W96) -> 4 | BD10: =IF(BB10="","",ROUND(ABS(BB10-BC10),2)) -> 3.21 | BE10: =CONCATENATE("MP ",BB10," - ","MP ",BC10) -> MP 0.794 - MP 4 | BF10: =IF(X96="","",X96) -> 0.75 | BG10: =IF(Y96="","",Y96) -> 3.6 | BH10: =IF(BF10="","",ROUND(ABS(BF10-BG10),2)) -> 2.85 | BI10: =CONCATENATE("MP ",BF10," - ","MP ",BG10) -> MP 0.75 - MP 3.6
P11: Select "Start" where the lane begin. If lane continue at the eneterd milepost, select "continue". | V11: =IF(A97="","",A97) -> 3.6 | W11: =IF(B97="","",B97) -> 4 | X11: =IF(V11="","",ROUND(ABS(V11-W11),2)) -> 0.4 | Y11: =CONCATENATE("MP ",V11," - ","MP ",W11) -> MP 3.6 - MP 4 | Z11: =IF(D97="","",D97) ->  | AB11: =IF(Z11="","",ROUND(ABS(Z11-AA11),2)) ->  | AC11: =CONCATENATE("MP ",Z11," - ","MP ",AA11) -> MP - MP | AD11: =IF(F97="","",F97) -> 3.349 | AE11: 3.6 | AF11: =IF(AD11="","",ROUND(ABS(AD11-AE11),2)) -> 0.25 | AG11: =CONCATENATE("MP ",AD11," - ","MP ",AE11) -> MP 3.349 - MP 3.6 | AH11: =IF(I97="","",I97) ->  | AJ11: =IF(AH11="","",ROUND(ABS(AH11-AI11),2)) ->  | AK11: =CONCATENATE("MP ",AH11," - ","MP ",AI11) -> MP - MP | AL11: =IF(K97="","",K97) ->  | AN11: =IF(AL11="","",ROUND(ABS(AL11-AM11),2)) ->  | AO11: =CONCATENATE("MP ",AL11," - ","MP ",AM11) -> MP - MP | AP11: =IF(P97="","",P97) -> 3.6 | AQ11: 4 | AR11: =IF(AP11="","",ROUND(ABS(AP11-AQ11),2)) -> 0.4 | AS11: =CONCATENATE("MP ",AP11," - ","MP ",AQ11) -> MP 3.6 - MP 4 | AT11: =IF(R97="","",R97) ->  | AV11: =IF(AT11="","",ROUND(ABS(AT11-AU11),2)) ->  | AW11: =CONCATENATE("MP ",AT11," - ","MP ",AU11) -> MP - MP | AX11: =IF(T97="","",T97) -> 3.349 | AY11: 3.6 | AZ11: =IF(AX11="","",ROUND(ABS(AX11-AY11),2)) -> 0.25 | BA11: =CONCATENATE("MP ",AX11," - ","MP ",AY11) -> MP 3.349 - MP 3.6 | BB11: =IF(V97="","",V97) ->  | BD11: =IF(BB11="","",ROUND(ABS(BB11-BC11),2)) ->  | BE11: =CONCATENATE("MP ",BB11," - ","MP ",BC11) -> MP - MP | BF11: =IF(X97="","",X97) ->  | BH11: =IF(BF11="","",ROUND(ABS(BF11-BG11),2)) ->  | BI11: =CONCATENATE("MP ",BF11," - ","MP ",BG11) -> MP - MP
P12: select "End" at the milepost where lane stops. | Y12: =CONCATENATE("MP ",V12," - ","MP ",W12) -> MP - MP | Z12: =IF(D98="","",D98) ->  | AC12: MP - MP | AD12: =IF(F98="","",F98) ->  | AG12: MP - MP | AH12: =IF(I98="","",I98) ->  | AK12: MP - MP | AL12: =IF(K98="","",K98) ->  | AO12: MP - MP | AP12: =IF(P98="","",P98) ->  | AS12: MP - MP | AT12: =IF(R98="","",R98) ->  | AW12: MP - MP | AX12: =IF(T98="","",T98) ->  | BA12: MP - MP | BB12: =IF(V98="","",V98) ->  | BE12: MP - MP | BF12: =IF(X98="","",X98) ->  | BI12: MP - MP
P13: If a lane begin, should also have end to stop that lane. | Y13: MP - MP | Z13: =IF(D99="","",D99) ->  | AC13: MP - MP | AD13: =IF(F99="","",F99) ->  | AG13: MP - MP | AH13: =IF(I99="","",I99) ->  | AK13: MP - MP | AL13: =IF(K99="","",K99) ->  | AO13: MP - MP | AP13: =IF(P99="","",P99) ->  | AS13: MP - MP | AT13: =IF(R99="","",R99) ->  | AW13: MP - MP | AX13: =IF(T99="","",T99) ->  | BA13: MP - MP | BB13: =IF(V99="","",V99) ->  | BE13: MP - MP | BF13: =IF(X99="","",X99) ->  | BI13: MP - MP
Y14: MP - MP | Z14: =IF(D100="","",D100) ->  | AC14: MP - MP | AD14: =IF(F100="","",F100) ->  | AG14: MP - MP | AH14: =IF(I100="","",I100) ->  | AK14: MP - MP | AL14: =IF(K100="","",K100) ->  | AO14: MP - MP | AP14: =IF(P100="","",P100) ->  | AS14: MP - MP | AT14: =IF(R100="","",R100) ->  | AW14: MP - MP | AX14: =IF(T100="","",T100) ->  | BA14: MP - MP | BB14: =IF(V100="","",V100) ->  | BE14: MP - MP | BF14: =IF(X100="","",X100) ->  | BI14: MP - MP
P15: To Check Maximum number of lanes | Y15: MP - MP | Z15: =IF(D101="","",D101) ->  | AC15: MP - MP | AD15: =IF(F101="","",F101) ->  | AG15: MP - MP | AH15: =IF(I101="","",I101) ->  | AK15: MP - MP | AL15: =IF(K101="","",K101) ->  | AO15: MP - MP | AP15: =IF(P101="","",P101) ->  | AS15: MP - MP | AT15: =IF(R101="","",R101) ->  | AW15: MP - MP | AX15: =IF(T101="","",T101) ->  | BA15: MP - MP | BB15: =IF(V101="","",V101) ->  | BE15: MP - MP | BF15: =IF(X101="","",X101) ->  | BI15: MP - MP
P16: =A9 -> 0 | Q16: =IF(AN91>0,5,(IF(AJ91>0,4,(IF(AF91>0,3,(IF(AB91>0,2,1))))))) -> 5 | Y16: MP - MP | Z16: =IF(D102="","",D102) ->  | AC16: MP - MP | AD16: =IF(F102="","",F102) ->  | AG16: MP - MP | AH16: =IF(I102="","",I102) ->  | AK16: MP - MP | AL16: =IF(K102="","",K102) ->  | AO16: MP - MP | AP16: =IF(P102="","",P102) ->  | AS16: MP - MP | AT16: =IF(R102="","",R102) ->  | AW16: MP - MP | AX16: =IF(T102="","",T102) ->  | BA16: MP - MP | BB16: =IF(V102="","",V102) ->  | BE16: MP - MP | BF16: =IF(X102="","",X102) ->  | BI16: MP - MP
P17: =I9 -> 0 | Q17: =IF(BH91>0,5,(IF(BD91>0,4,(IF(AZ91>0,3,(IF(AV91>0,2,1))))))) -> 5 | Y17: MP - MP | Z17: =IF(D103="","",D103) ->  | AC17: MP - MP | AD17: =IF(F103="","",F103) ->  | AG17: MP - MP | AH17: =IF(I103="","",I103) ->  | AK17: MP - MP | AL17: =IF(K103="","",K103) ->  | AO17: MP - MP | AP17: =IF(P103="","",P103) ->  | AS17: MP - MP | AT17: =IF(R103="","",R103) ->  | AW17: MP - MP | AX17: =IF(T103="","",T103) ->  | BA17: MP - MP | BB17: =IF(V103="","",V103) ->  | BE17: MP - MP | BF17: =IF(X103="","",X103) ->  | BI17: MP - MP
Y18: MP - MP | Z18: =IF(D104="","",D104) ->  | AC18: MP - MP | AD18: =IF(F104="","",F104) ->  | AG18: MP - MP | AH18: =IF(I104="","",I104) ->  | AK18: MP - MP | AL18: =IF(K104="","",K104) ->  | AO18: MP - MP | AP18: =IF(P104="","",P104) ->  | AS18: MP - MP | AT18: =IF(R104="","",R104) ->  | AW18: MP - MP | AX18: =IF(T104="","",T104) ->  | BA18: MP - MP | BB18: =IF(V104="","",V104) ->  | BE18: MP - MP | BF18: =IF(X104="","",X104) ->  | BI18: MP - MP
Y19: MP - MP | Z19: =IF(D105="","",D105) ->  | AC19: MP - MP | AD19: =IF(F105="","",F105) ->  | AG19: MP - MP | AH19: =IF(I105="","",I105) ->  | AK19: MP - MP | AL19: =IF(K105="","",K105) ->  | AO19: MP - MP | AP19: =IF(P105="","",P105) ->  | AS19: MP - MP | AT19: =IF(R105="","",R105) ->  | AW19: MP - MP | AX19: =IF(T105="","",T105) ->  | BA19: MP - MP | BB19: =IF(V105="","",V105) ->  | BE19: MP - MP | BF19: =IF(X105="","",X105) ->  | BI19: MP - MP
Y20: MP - MP | Z20: =IF(D106="","",D106) ->  | AC20: MP - MP | AD20: =IF(F106="","",F106) ->  | AG20: MP - MP | AH20: =IF(I106="","",I106) ->  | AK20: MP - MP | AL20: =IF(K106="","",K106) ->  | AO20: MP - MP | AP20: =IF(P106="","",P106) ->  | AS20: MP - MP | AT20: =IF(R106="","",R106) ->  | AW20: MP - MP | AX20: =IF(T106="","",T106) ->  | BA20: MP - MP | BB20: =IF(V106="","",V106) ->  | BE20: MP - MP | BF20: =IF(X106="","",X106) ->  | BI20: MP - MP
Y21: MP - MP | Z21: =IF(D107="","",D107) ->  | AC21: MP - MP | AD21: =IF(F107="","",F107) ->  | AG21: MP - MP | AH21: =IF(I107="","",I107) ->  | AK21: MP - MP | AL21: =IF(K107="","",K107) ->  | AO21: MP - MP | AP21: =IF(P107="","",P107) ->  | AS21: MP - MP | AT21: =IF(R107="","",R107) ->  | AW21: MP - MP | AX21: =IF(T107="","",T107) ->  | BA21: MP - MP | BB21: =IF(V107="","",V107) ->  | BE21: MP - MP | BF21: =IF(X107="","",X107) ->  | BI21: MP - MP
Y22: MP - MP | Z22: =IF(D108="","",D108) ->  | AC22: MP - MP | AD22: =IF(F108="","",F108) ->  | AG22: MP - MP | AH22: =IF(I108="","",I108) ->  | AK22: MP - MP | AL22: =IF(K108="","",K108) ->  | AO22: MP - MP | AP22: =IF(P108="","",P108) ->  | AS22: MP - MP | AT22: =IF(R108="","",R108) ->  | AW22: MP - MP | AX22: =IF(T108="","",T108) ->  | BA22: MP - MP | BB22: =IF(V108="","",V108) ->  | BE22: MP - MP | BF22: =IF(X108="","",X108) ->  | BI22: MP - MP
Y23: MP - MP | Z23: =IF(D109="","",D109) ->  | AC23: MP - MP | AD23: =IF(F109="","",F109) ->  | AG23: MP - MP | AH23: =IF(I109="","",I109) ->  | AK23: MP - MP | AL23: =IF(K109="","",K109) ->  | AO23: MP - MP | AP23: =IF(P109="","",P109) ->  | AS23: MP - MP | AT23: =IF(R109="","",R109) ->  | AW23: MP - MP | AX23: =IF(T109="","",T109) ->  | BA23: MP - MP | BB23: =IF(V109="","",V109) ->  | BE23: MP - MP | BF23: =IF(X109="","",X109) ->  | BI23: MP - MP
Y24: MP - MP | Z24: =IF(D110="","",D110) ->  | AC24: MP - MP | AD24: =IF(F110="","",F110) ->  | AG24: MP - MP | AH24: =IF(I110="","",I110) ->  | AK24: MP - MP | AL24: =IF(K110="","",K110) ->  | AO24: MP - MP | AP24: =IF(P110="","",P110) ->  | AS24: MP - MP | AT24: =IF(R110="","",R110) ->  | AW24: MP - MP | AX24: =IF(T110="","",T110) ->  | BA24: MP - MP | BB24: =IF(V110="","",V110) ->  | BE24: MP - MP | BF24: =IF(X110="","",X110) ->  | BI24: MP - MP
Y25: MP - MP | Z25: =IF(D111="","",D111) ->  | AC25: MP - MP | AD25: =IF(F111="","",F111) ->  | AG25: MP - MP | AH25: =IF(I111="","",I111) ->  | AK25: MP - MP | AL25: =IF(K111="","",K111) ->  | AO25: MP - MP | AP25: =IF(P111="","",P111) ->  | AS25: MP - MP | AT25: =IF(R111="","",R111) ->  | AW25: MP - MP | AX25: =IF(T111="","",T111) ->  | BA25: MP - MP | BB25: =IF(V111="","",V111) ->  | BE25: MP - MP | BF25: =IF(X111="","",X111) ->  | BI25: MP - MP
Y26: MP - MP | Z26: =IF(D112="","",D112) ->  | AC26: MP - MP | AD26: =IF(F112="","",F112) ->  | AG26: MP - MP | AH26: =IF(I112="","",I112) ->  | AK26: MP - MP | AL26: =IF(K112="","",K112) ->  | AO26: MP - MP | AP26: =IF(P112="","",P112) ->  | AS26: MP - MP | AT26: =IF(R112="","",R112) ->  | AW26: MP - MP | AX26: =IF(T112="","",T112) ->  | BA26: MP - MP | BB26: =IF(V112="","",V112) ->  | BE26: MP - MP | BF26: =IF(X112="","",X112) ->  | BI26: MP - MP
Y27: MP - MP | Z27: =IF(D113="","",D113) ->  | AC27: MP - MP | AD27: =IF(F113="","",F113) ->  | AG27: MP - MP | AH27: =IF(I113="","",I113) ->  | AK27: MP - MP | AL27: =IF(K113="","",K113) ->  | AO27: MP - MP | AP27: =IF(P113="","",P113) ->  | AS27: MP - MP | AT27: =IF(R113="","",R113) ->  | AW27: MP - MP | AX27: =IF(T113="","",T113) ->  | BA27: MP - MP | BB27: =IF(V113="","",V113) ->  | BE27: MP - MP | BF27: =IF(X113="","",X113) ->  | BI27: MP - MP
Y28: MP - MP | Z28: =IF(D114="","",D114) ->  | AC28: MP - MP | AD28: =IF(F114="","",F114) ->  | AG28: MP - MP | AH28: =IF(I114="","",I114) ->  | AK28: MP - MP | AL28: =IF(K114="","",K114) ->  | AO28: MP - MP | AP28: =IF(P114="","",P114) ->  | AS28: MP - MP | AT28: =IF(R114="","",R114) ->  | AW28: MP - MP | AX28: =IF(T114="","",T114) ->  | BA28: MP - MP | BB28: =IF(V114="","",V114) ->  | BE28: MP - MP | BF28: =IF(X114="","",X114) ->  | BI28: MP - MP
Y29: MP - MP | Z29: =IF(D115="","",D115) ->  | AC29: MP - MP | AD29: =IF(F115="","",F115) ->  | AG29: MP - MP | AH29: =IF(I115="","",I115) ->  | AK29: MP - MP | AL29: =IF(K115="","",K115) ->  | AO29: MP - MP | AP29: =IF(P115="","",P115) ->  | AS29: MP - MP | AT29: =IF(R115="","",R115) ->  | AW29: MP - MP | AX29: =IF(T115="","",T115) ->  | BA29: MP - MP | BB29: =IF(V115="","",V115) ->  | BE29: MP - MP | BF29: =IF(X115="","",X115) ->  | BI29: MP - MP
Y30: MP - MP | Z30: =IF(D116="","",D116) ->  | AC30: MP - MP | AD30: =IF(F116="","",F116) ->  | AG30: MP - MP | AH30: =IF(I116="","",I116) ->  | AK30: MP - MP | AL30: =IF(K116="","",K116) ->  | AO30: MP - MP | AP30: =IF(P116="","",P116) ->  | AS30: MP - MP | AT30: =IF(R116="","",R116) ->  | AW30: MP - MP | AX30: =IF(T116="","",T116) ->  | BA30: MP - MP | BB30: =IF(V116="","",V116) ->  | BE30: MP - MP | BF30: =IF(X116="","",X116) ->  | BI30: MP - MP
Y31: MP - MP | Z31: =IF(D117="","",D117) ->  | AC31: MP - MP | AD31: =IF(F117="","",F117) ->  | AG31: MP - MP | AH31: =IF(I117="","",I117) ->  | AK31: MP - MP | AL31: =IF(K117="","",K117) ->  | AO31: MP - MP | AP31: =IF(P117="","",P117) ->  | AS31: MP - MP | AT31: =IF(R117="","",R117) ->  | AW31: MP - MP | AX31: =IF(T117="","",T117) ->  | BA31: MP - MP | BB31: =IF(V117="","",V117) ->  | BE31: MP - MP | BF31: =IF(X117="","",X117) ->  | BI31: MP - MP
I32: =J31 -> 0 | Y32: MP - MP | Z32: =IF(D118="","",D118) ->  | AC32: MP - MP | AD32: =IF(F118="","",F118) ->  | AG32: MP - MP | AH32: =IF(I118="","",I118) ->  | AK32: MP - MP | AL32: =IF(K118="","",K118) ->  | AO32: MP - MP | AP32: =IF(P118="","",P118) ->  | AS32: MP - MP | AT32: =IF(R118="","",R118) ->  | AW32: MP - MP | AX32: =IF(T118="","",T118) ->  | BA32: MP - MP | BB32: =IF(V118="","",V118) ->  | BE32: MP - MP | BF32: =IF(X118="","",X118) ->  | BI32: MP - MP
I33: 0 | Y33: MP - MP | Z33: =IF(D119="","",D119) ->  | AC33: MP - MP | AD33: =IF(F119="","",F119) ->  | AG33: MP - MP | AH33: =IF(I119="","",I119) ->  | AK33: MP - MP | AL33: =IF(K119="","",K119) ->  | AO33: MP - MP | AP33: =IF(P119="","",P119) ->  | AS33: MP - MP | AT33: =IF(R119="","",R119) ->  | AW33: MP - MP | AX33: =IF(T119="","",T119) ->  | BA33: MP - MP | BB33: =IF(V119="","",V119) ->  | BE33: MP - MP | BF33: =IF(X119="","",X119) ->  | BI33: MP - MP
I34: 0 | Y34: MP - MP | Z34: =IF(D120="","",D120) ->  | AC34: MP - MP | AD34: =IF(F120="","",F120) ->  | AG34: MP - MP | AH34: =IF(I120="","",I120) ->  | AK34: MP - MP | AL34: =IF(K120="","",K120) ->  | AO34: MP - MP | AP34: =IF(P120="","",P120) ->  | AS34: MP - MP | AT34: =IF(R120="","",R120) ->  | AW34: MP - MP | AX34: =IF(T120="","",T120) ->  | BA34: MP - MP | BB34: =IF(V120="","",V120) ->  | BE34: MP - MP | BF34: =IF(X120="","",X120) ->  | BI34: MP - MP
I35: 0 | Y35: MP - MP | Z35: =IF(D121="","",D121) ->  | AC35: MP - MP | AD35: =IF(F121="","",F121) ->  | AG35: MP - MP | AH35: =IF(I121="","",I121) ->  | AK35: MP - MP | AL35: =IF(K121="","",K121) ->  | AO35: MP - MP | AP35: =IF(P121="","",P121) ->  | AS35: MP - MP | AT35: =IF(R121="","",R121) ->  | AW35: MP - MP | AX35: =IF(T121="","",T121) ->  | BA35: MP - MP | BB35: =IF(V121="","",V121) ->  | BE35: MP - MP | BF35: =IF(X121="","",X121) ->  | BI35: MP - MP
I36: 0 | Y36: MP - MP | Z36: =IF(D122="","",D122) ->  | AC36: MP - MP | AD36: =IF(F122="","",F122) ->  | AG36: MP - MP | AH36: =IF(I122="","",I122) ->  | AK36: MP - MP | AL36: =IF(K122="","",K122) ->  | AO36: MP - MP | AP36: =IF(P122="","",P122) ->  | AS36: MP - MP | AT36: =IF(R122="","",R122) ->  | AW36: MP - MP | AX36: =IF(T122="","",T122) ->  | BA36: MP - MP | BB36: =IF(V122="","",V122) ->  | BE36: MP - MP | BF36: =IF(X122="","",X122) ->  | BI36: MP - MP
I37: 0 | Y37: MP - MP | Z37: =IF(D123="","",D123) ->  | AC37: MP - MP | AD37: =IF(F123="","",F123) ->  | AG37: MP - MP | AH37: =IF(I123="","",I123) ->  | AK37: MP - MP | AL37: =IF(K123="","",K123) ->  | AO37: MP - MP | AP37: =IF(P123="","",P123) ->  | AS37: MP - MP | AT37: =IF(R123="","",R123) ->  | AW37: MP - MP | AX37: =IF(T123="","",T123) ->  | BA37: MP - MP | BB37: =IF(V123="","",V123) ->  | BE37: MP - MP | BF37: =IF(X123="","",X123) ->  | BI37: MP - MP
I38: 0 | Y38: MP - MP | Z38: =IF(D124="","",D124) ->  | AC38: MP - MP | AD38: =IF(F124="","",F124) ->  | AG38: MP - MP | AH38: =IF(I124="","",I124) ->  | AK38: MP - MP | AL38: =IF(K124="","",K124) ->  | AO38: MP - MP | AP38: =IF(P124="","",P124) ->  | AS38: MP - MP | AT38: =IF(R124="","",R124) ->  | AW38: MP - MP | AX38: =IF(T124="","",T124) ->  | BA38: MP - MP | BB38: =IF(V124="","",V124) ->  | BE38: MP - MP | BF38: =IF(X124="","",X124) ->  | BI38: MP - MP
I39: 0 | Y39: MP - MP | Z39: =IF(D125="","",D125) ->  | AC39: MP - MP | AD39: =IF(F125="","",F125) ->  | AG39: MP - MP | AH39: =IF(I125="","",I125) ->  | AK39: MP - MP | AL39: =IF(K125="","",K125) ->  | AO39: MP - MP | AP39: =IF(P125="","",P125) ->  | AS39: MP - MP | AT39: =IF(R125="","",R125) ->  | AW39: MP - MP | AX39: =IF(T125="","",T125) ->  | BA39: MP - MP | BB39: =IF(V125="","",V125) ->  | BE39: MP - MP | BF39: =IF(X125="","",X125) ->  | BI39: MP - MP
I40: 0 | Y40: MP - MP | Z40: =IF(D126="","",D126) ->  | AC40: MP - MP | AD40: =IF(F126="","",F126) ->  | AG40: MP - MP | AH40: =IF(I126="","",I126) ->  | AK40: MP - MP | AL40: =IF(K126="","",K126) ->  | AO40: MP - MP | AP40: =IF(P126="","",P126) ->  | AS40: MP - MP | AT40: =IF(R126="","",R126) ->  | AW40: MP - MP | AX40: =IF(T126="","",T126) ->  | BA40: MP - MP | BB40: =IF(V126="","",V126) ->  | BE40: MP - MP | BF40: =IF(X126="","",X126) ->  | BI40: MP - MP
I41: 0 | Y41: MP - MP | Z41: =IF(D127="","",D127) ->  | AC41: MP - MP | AD41: =IF(F127="","",F127) ->  | AG41: MP - MP | AH41: =IF(I127="","",I127) ->  | AK41: MP - MP | AL41: =IF(K127="","",K127) ->  | AO41: MP - MP | AP41: =IF(P127="","",P127) ->  | AS41: MP - MP | AT41: =IF(R127="","",R127) ->  | AW41: MP - MP | AX41: =IF(T127="","",T127) ->  | BA41: MP - MP | BB41: =IF(V127="","",V127) ->  | BE41: MP - MP | BF41: =IF(X127="","",X127) ->  | BI41: MP - MP
I42: 0 | Y42: MP - MP | Z42: =IF(D128="","",D128) ->  | AC42: MP - MP | AD42: =IF(F128="","",F128) ->  | AG42: MP - MP | AH42: =IF(I128="","",I128) ->  | AK42: MP - MP | AL42: =IF(K128="","",K128) ->  | AO42: MP - MP | AP42: =IF(P128="","",P128) ->  | AS42: MP - MP | AT42: =IF(R128="","",R128) ->  | AW42: MP - MP | AX42: =IF(T128="","",T128) ->  | BA42: MP - MP | BB42: =IF(V128="","",V128) ->  | BE42: MP - MP | BF42: =IF(X128="","",X128) ->  | BI42: MP - MP
I43: 0 | Y43: MP - MP | Z43: =IF(D129="","",D129) ->  | AC43: MP - MP | AD43: =IF(F129="","",F129) ->  | AG43: MP - MP | AH43: =IF(I129="","",I129) ->  | AK43: MP - MP | AL43: =IF(K129="","",K129) ->  | AO43: MP - MP | AP43: =IF(P129="","",P129) ->  | AS43: MP - MP | AT43: =IF(R129="","",R129) ->  | AW43: MP - MP | AX43: =IF(T129="","",T129) ->  | BA43: MP - MP | BB43: =IF(V129="","",V129) ->  | BE43: MP - MP | BF43: =IF(X129="","",X129) ->  | BI43: MP - MP
I44: 0 | Y44: MP - MP | Z44: =IF(D130="","",D130) ->  | AC44: MP - MP | AD44: =IF(F130="","",F130) ->  | AG44: MP - MP | AH44: =IF(I130="","",I130) ->  | AK44: MP - MP | AL44: =IF(K130="","",K130) ->  | AO44: MP - MP | AP44: =IF(P130="","",P130) ->  | AS44: MP - MP | AT44: =IF(R130="","",R130) ->  | AW44: MP - MP | AX44: =IF(T130="","",T130) ->  | BA44: MP - MP | BB44: =IF(V130="","",V130) ->  | BE44: MP - MP | BF44: =IF(X130="","",X130) ->  | BI44: MP - MP
I45: 0 | Y45: MP - MP | Z45: =IF(D131="","",D131) ->  | AC45: MP - MP | AD45: =IF(F131="","",F131) ->  | AG45: MP - MP | AH45: =IF(I131="","",I131) ->  | AK45: MP - MP | AL45: =IF(K131="","",K131) ->  | AO45: MP - MP | AP45: =IF(P131="","",P131) ->  | AS45: MP - MP | AT45: =IF(R131="","",R131) ->  | AW45: MP - MP | AX45: =IF(T131="","",T131) ->  | BA45: MP - MP | BB45: =IF(V131="","",V131) ->  | BE45: MP - MP | BF45: =IF(X131="","",X131) ->  | BI45: MP - MP
I46: 0 | Y46: MP - MP | Z46: =IF(D132="","",D132) ->  | AC46: MP - MP | AD46: =IF(F132="","",F132) ->  | AG46: MP - MP | AH46: =IF(I132="","",I132) ->  | AK46: MP - MP | AL46: =IF(K132="","",K132) ->  | AO46: MP - MP | AP46: =IF(P132="","",P132) ->  | AS46: MP - MP | AT46: =IF(R132="","",R132) ->  | AW46: MP - MP | AX46: =IF(T132="","",T132) ->  | BA46: MP - MP | BB46: =IF(V132="","",V132) ->  | BE46: MP - MP | BF46: =IF(X132="","",X132) ->  | BI46: MP - MP
I47: 0 | Y47: MP - MP | Z47: =IF(D133="","",D133) ->  | AC47: MP - MP | AD47: =IF(F133="","",F133) ->  | AG47: MP - MP | AH47: =IF(I133="","",I133) ->  | AK47: MP - MP | AL47: =IF(K133="","",K133) ->  | AO47: MP - MP | AP47: =IF(P133="","",P133) ->  | AS47: MP - MP | AT47: =IF(R133="","",R133) ->  | AW47: MP - MP | AX47: =IF(T133="","",T133) ->  | BA47: MP - MP | BB47: =IF(V133="","",V133) ->  | BE47: MP - MP | BF47: =IF(X133="","",X133) ->  | BI47: MP - MP
I48: 0 | Y48: MP - MP | Z48: =IF(D134="","",D134) ->  | AC48: MP - MP | AD48: =IF(F134="","",F134) ->  | AG48: MP - MP | AH48: =IF(I134="","",I134) ->  | AK48: MP - MP | AL48: =IF(K134="","",K134) ->  | AO48: MP - MP | AP48: =IF(P134="","",P134) ->  | AS48: MP - MP | AT48: =IF(R134="","",R134) ->  | AW48: MP - MP | AX48: =IF(T134="","",T134) ->  | BA48: MP - MP | BB48: =IF(V134="","",V134) ->  | BE48: MP - MP | BF48: =IF(X134="","",X134) ->  | BI48: MP - MP
I49: 0 | Y49: MP - MP | Z49: =IF(D135="","",D135) ->  | AC49: MP - MP | AD49: =IF(F135="","",F135) ->  | AG49: MP - MP | AH49: =IF(I135="","",I135) ->  | AK49: MP - MP | AL49: =IF(K135="","",K135) ->  | AO49: MP - MP | AP49: =IF(P135="","",P135) ->  | AS49: MP - MP | AT49: =IF(R135="","",R135) ->  | AW49: MP - MP | AX49: =IF(T135="","",T135) ->  | BA49: MP - MP | BB49: =IF(V135="","",V135) ->  | BE49: MP - MP | BF49: =IF(X135="","",X135) ->  | BI49: MP - MP
I50: 0 | Y50: MP - MP | Z50: =IF(D136="","",D136) ->  | AC50: MP - MP | AD50: =IF(F136="","",F136) ->  | AG50: MP - MP | AH50: =IF(I136="","",I136) ->  | AK50: MP - MP | AL50: =IF(K136="","",K136) ->  | AO50: =CONCATENATE("MP ",AL50," - ","MP ",AM50) -> MP - MP | AP50: =IF(P136="","",P136) ->  | AS50: =CONCATENATE("MP ",AP50," - ","MP ",AQ50) -> MP - MP | AT50: =IF(R136="","",R136) ->  | AW50: =CONCATENATE("MP ",AT50," - ","MP ",AU50) -> MP - MP | AX50: =IF(T136="","",T136) ->  | BA50: =CONCATENATE("MP ",AX50," - ","MP ",AY50) -> MP - MP | BB50: =IF(V136="","",V136) ->  | BE50: =CONCATENATE("MP ",BB50," - ","MP ",BC50) -> MP - MP | BF50: =IF(X136="","",X136) ->  | BI50: =CONCATENATE("MP ",BF50," - ","MP ",BG50) -> MP - MP
I51: 0 | Y51: MP - MP | Z51: =IF(D137="","",D137) ->  | AC51: MP - MP | AD51: =IF(F137="","",F137) ->  | AG51: MP - MP | AH51: =IF(I137="","",I137) ->  | AK51: MP - MP | AL51: =IF(K137="","",K137) ->  | AO51: =CONCATENATE("MP ",AL51," - ","MP ",AM51) -> MP - MP | AP51: =IF(P137="","",P137) ->  | AS51: =CONCATENATE("MP ",AP51," - ","MP ",AQ51) -> MP - MP | AT51: =IF(R137="","",R137) ->  | AW51: =CONCATENATE("MP ",AT51," - ","MP ",AU51) -> MP - MP | AX51: =IF(T137="","",T137) ->  | BA51: =CONCATENATE("MP ",AX51," - ","MP ",AY51) -> MP - MP | BB51: =IF(V137="","",V137) ->  | BE51: =CONCATENATE("MP ",BB51," - ","MP ",BC51) -> MP - MP | BF51: =IF(X137="","",X137) ->  | BI51: =CONCATENATE("MP ",BF51," - ","MP ",BG51) -> MP - MP
I52: 0 | Y52: MP - MP | Z52: =IF(D138="","",D138) ->  | AC52: MP - MP | AD52: =IF(F138="","",F138) ->  | AG52: MP - MP | AH52: =IF(I138="","",I138) ->  | AK52: MP - MP | AL52: =IF(K138="","",K138) ->  | AO52: MP - MP | AP52: =IF(P138="","",P138) ->  | AS52: MP - MP | AT52: =IF(R138="","",R138) ->  | AW52: MP - MP | AX52: =IF(T138="","",T138) ->  | BA52: MP - MP | BB52: =IF(V138="","",V138) ->  | BE52: MP - MP | BF52: =IF(X138="","",X138) ->  | BI52: MP - MP
I53: 0 | Y53: MP - MP | Z53: =IF(D139="","",D139) ->  | AC53: MP - MP | AD53: =IF(F139="","",F139) ->  | AG53: MP - MP | AH53: =IF(I139="","",I139) ->  | AK53: MP - MP | AL53: =IF(K139="","",K139) ->  | AO53: MP - MP | AP53: =IF(P139="","",P139) ->  | AS53: MP - MP | AT53: =IF(R139="","",R139) ->  | AW53: MP - MP | AX53: =IF(T139="","",T139) ->  | BA53: MP - MP | BB53: =IF(V139="","",V139) ->  | BE53: MP - MP | BF53: =IF(X139="","",X139) ->  | BI53: MP - MP
I54: 0 | Y54: MP - MP | Z54: =IF(D140="","",D140) ->  | AC54: MP - MP | AD54: =IF(F140="","",F140) ->  | AG54: MP - MP | AH54: =IF(I140="","",I140) ->  | AK54: MP - MP | AL54: =IF(K140="","",K140) ->  | AO54: MP - MP | AP54: =IF(P140="","",P140) ->  | AS54: MP - MP | AT54: =IF(R140="","",R140) ->  | AW54: MP - MP | AX54: =IF(T140="","",T140) ->  | BA54: MP - MP | BB54: =IF(V140="","",V140) ->  | BE54: MP - MP | BF54: =IF(X140="","",X140) ->  | BI54: MP - MP
I55: 0 | Y55: MP - MP | Z55: =IF(D141="","",D141) ->  | AC55: MP - MP | AD55: =IF(F141="","",F141) ->  | AG55: MP - MP | AH55: =IF(I141="","",I141) ->  | AK55: MP - MP | AL55: =IF(K141="","",K141) ->  | AO55: MP - MP | AP55: =IF(P141="","",P141) ->  | AS55: MP - MP | AT55: =IF(R141="","",R141) ->  | AW55: MP - MP | AX55: =IF(T141="","",T141) ->  | BA55: MP - MP | BB55: =IF(V141="","",V141) ->  | BE55: MP - MP | BF55: =IF(X141="","",X141) ->  | BI55: MP - MP
I56: 0 | Y56: MP - MP | Z56: =IF(D142="","",D142) ->  | AC56: MP - MP | AD56: =IF(F142="","",F142) ->  | AG56: MP - MP | AH56: =IF(I142="","",I142) ->  | AK56: MP - MP | AL56: =IF(K142="","",K142) ->  | AO56: MP - MP | AP56: =IF(P142="","",P142) ->  | AS56: MP - MP | AT56: =IF(R142="","",R142) ->  | AW56: MP - MP | AX56: =IF(T142="","",T142) ->  | BA56: MP - MP | BB56: =IF(V142="","",V142) ->  | BE56: MP - MP | BF56: =IF(X142="","",X142) ->  | BI56: MP - MP
I57: 0 | Y57: MP - MP | Z57: =IF(D143="","",D143) ->  | AC57: MP - MP | AD57: =IF(F143="","",F143) ->  | AG57: MP - MP | AH57: =IF(I143="","",I143) ->  | AK57: MP - MP | AL57: =IF(K143="","",K143) ->  | AO57: MP - MP | AP57: =IF(P143="","",P143) ->  | AS57: MP - MP | AT57: =IF(R143="","",R143) ->  | AW57: MP - MP | AX57: =IF(T143="","",T143) ->  | BA57: MP - MP | BB57: =IF(V143="","",V143) ->  | BE57: MP - MP | BF57: =IF(X143="","",X143) ->  | BI57: MP - MP
I58: 0 | Y58: MP - MP | Z58: =IF(D144="","",D144) ->  | AC58: MP - MP | AD58: =IF(F144="","",F144) ->  | AG58: MP - MP | AH58: =IF(I144="","",I144) ->  | AK58: MP - MP | AL58: =IF(K144="","",K144) ->  | AO58: MP - MP | AP58: =IF(P144="","",P144) ->  | AS58: MP - MP | AT58: =IF(R144="","",R144) ->  | AW58: MP - MP | AX58: =IF(T144="","",T144) ->  | BA58: MP - MP | BB58: =IF(V144="","",V144) ->  | BE58: MP - MP | BF58: =IF(X144="","",X144) ->  | BI58: MP - MP
I59: 0 | Y59: MP - MP | Z59: =IF(D145="","",D145) ->  | AC59: MP - MP | AD59: =IF(F145="","",F145) ->  | AG59: MP - MP | AH59: =IF(I145="","",I145) ->  | AK59: MP - MP | AL59: =IF(K145="","",K145) ->  | AO59: MP - MP | AP59: =IF(P145="","",P145) ->  | AS59: MP - MP | AT59: =IF(R145="","",R145) ->  | AW59: MP - MP | AX59: =IF(T145="","",T145) ->  | BA59: MP - MP | BB59: =IF(V145="","",V145) ->  | BE59: MP - MP | BF59: =IF(X145="","",X145) ->  | BI59: MP - MP
I60: 0 | Y60: MP - MP | Z60: =IF(D146="","",D146) ->  | AC60: MP - MP | AD60: =IF(F146="","",F146) ->  | AG60: MP - MP | AH60: =IF(I146="","",I146) ->  | AK60: MP - MP | AL60: =IF(K146="","",K146) ->  | AO60: MP - MP | AP60: =IF(P146="","",P146) ->  | AS60: MP - MP | AT60: =IF(R146="","",R146) ->  | AW60: MP - MP | AX60: =IF(T146="","",T146) ->  | BA60: MP - MP | BB60: =IF(V146="","",V146) ->  | BE60: MP - MP | BF60: =IF(X146="","",X146) ->  | BI60: MP - MP
I61: 0 | Y61: MP - MP | Z61: =IF(D147="","",D147) ->  | AC61: MP - MP | AD61: =IF(F147="","",F147) ->  | AG61: MP - MP | AH61: =IF(I147="","",I147) ->  | AK61: MP - MP | AL61: =IF(K147="","",K147) ->  | AO61: MP - MP | AP61: =IF(P147="","",P147) ->  | AS61: MP - MP | AT61: =IF(R147="","",R147) ->  | AW61: MP - MP | AX61: =IF(T147="","",T147) ->  | BA61: MP - MP | BB61: =IF(V147="","",V147) ->  | BE61: MP - MP | BF61: =IF(X147="","",X147) ->  | BI61: MP - MP
I62: 0 | Y62: MP - MP | Z62: =IF(D148="","",D148) ->  | AC62: MP - MP | AD62: =IF(F148="","",F148) ->  | AG62: MP - MP | AH62: =IF(I148="","",I148) ->  | AK62: MP - MP | AL62: =IF(K148="","",K148) ->  | AO62: MP - MP | AP62: =IF(P148="","",P148) ->  | AS62: MP - MP | AT62: =IF(R148="","",R148) ->  | AW62: MP - MP | AX62: =IF(T148="","",T148) ->  | BA62: MP - MP | BB62: =IF(V148="","",V148) ->  | BE62: MP - MP | BF62: =IF(X148="","",X148) ->  | BI62: MP - MP
I63: 0 | Y63: MP - MP | Z63: =IF(D149="","",D149) ->  | AC63: MP - MP | AD63: =IF(F149="","",F149) ->  | AG63: MP - MP | AH63: =IF(I149="","",I149) ->  | AK63: MP - MP | AL63: =IF(K149="","",K149) ->  | AO63: MP - MP | AP63: =IF(P149="","",P149) ->  | AS63: MP - MP | AT63: =IF(R149="","",R149) ->  | AW63: MP - MP | AX63: =IF(T149="","",T149) ->  | BA63: MP - MP | BB63: =IF(V149="","",V149) ->  | BE63: MP - MP | BF63: =IF(X149="","",X149) ->  | BI63: MP - MP
I64: 0 | Y64: MP - MP | Z64: =IF(D150="","",D150) ->  | AC64: MP - MP | AD64: =IF(F150="","",F150) ->  | AG64: MP - MP | AH64: =IF(I150="","",I150) ->  | AK64: MP - MP | AL64: =IF(K150="","",K150) ->  | AO64: MP - MP | AP64: =IF(P150="","",P150) ->  | AS64: MP - MP | AT64: =IF(R150="","",R150) ->  | AW64: MP - MP | AX64: =IF(T150="","",T150) ->  | BA64: MP - MP | BB64: =IF(V150="","",V150) ->  | BE64: MP - MP | BF64: =IF(X150="","",X150) ->  | BI64: MP - MP
I65: 0 | Y65: MP - MP | Z65: =IF(D151="","",D151) ->  | AC65: MP - MP | AD65: =IF(F151="","",F151) ->  | AG65: MP - MP | AH65: =IF(I151="","",I151) ->  | AK65: MP - MP | AL65: =IF(K151="","",K151) ->  | AO65: MP - MP | AP65: =IF(P151="","",P151) ->  | AS65: MP - MP | AT65: =IF(R151="","",R151) ->  | AW65: MP - MP | AX65: =IF(T151="","",T151) ->  | BA65: MP - MP | BB65: =IF(V151="","",V151) ->  | BE65: MP - MP | BF65: =IF(X151="","",X151) ->  | BI65: MP - MP
I66: 0 | Y66: MP - MP | Z66: =IF(D152="","",D152) ->  | AC66: MP - MP | AD66: =IF(F152="","",F152) ->  | AG66: MP - MP | AH66: =IF(I152="","",I152) ->  | AK66: MP - MP | AL66: =IF(K152="","",K152) ->  | AO66: MP - MP | AP66: =IF(P152="","",P152) ->  | AS66: MP - MP | AT66: =IF(R152="","",R152) ->  | AW66: MP - MP | AX66: =IF(T152="","",T152) ->  | BA66: MP - MP | BB66: =IF(V152="","",V152) ->  | BE66: MP - MP | BF66: =IF(X152="","",X152) ->  | BI66: MP - MP
I67: 0 | Y67: MP - MP | Z67: =IF(D153="","",D153) ->  | AC67: MP - MP | AD67: =IF(F153="","",F153) ->  | AG67: MP - MP | AH67: =IF(I153="","",I153) ->  | AK67: MP - MP | AL67: =IF(K153="","",K153) ->  | AO67: MP - MP | AP67: =IF(P153="","",P153) ->  | AS67: MP - MP | AT67: =IF(R153="","",R153) ->  | AW67: MP - MP | AX67: =IF(T153="","",T153) ->  | BA67: MP - MP | BB67: =IF(V153="","",V153) ->  | BE67: MP - MP | BF67: =IF(X153="","",X153) ->  | BI67: MP - MP
I68: 0 | Y68: MP - MP | Z68: =IF(D154="","",D154) ->  | AC68: MP - MP | AD68: =IF(F154="","",F154) ->  | AG68: MP - MP | AH68: =IF(I154="","",I154) ->  | AK68: MP - MP | AL68: =IF(K154="","",K154) ->  | AO68: MP - MP | AP68: =IF(P154="","",P154) ->  | AS68: MP - MP | AT68: =IF(R154="","",R154) ->  | AW68: MP - MP | AX68: =IF(T154="","",T154) ->  | BA68: MP - MP | BB68: =IF(V154="","",V154) ->  | BE68: MP - MP | BF68: =IF(X154="","",X154) ->  | BI68: MP - MP
I69: 0 | Y69: MP - MP | Z69: =IF(D155="","",D155) ->  | AC69: MP - MP | AD69: =IF(F155="","",F155) ->  | AG69: MP - MP | AH69: =IF(I155="","",I155) ->  | AK69: MP - MP | AL69: =IF(K155="","",K155) ->  | AO69: MP - MP | AP69: =IF(P155="","",P155) ->  | AS69: MP - MP | AT69: =IF(R155="","",R155) ->  | AW69: MP - MP | AX69: =IF(T155="","",T155) ->  | BA69: MP - MP | BB69: =IF(V155="","",V155) ->  | BE69: MP - MP | BF69: =IF(X155="","",X155) ->  | BI69: MP - MP
I70: 0 | Y70: MP - MP | Z70: =IF(D156="","",D156) ->  | AC70: MP - MP | AD70: =IF(F156="","",F156) ->  | AG70: MP - MP | AH70: =IF(I156="","",I156) ->  | AK70: MP - MP | AL70: =IF(K156="","",K156) ->  | AO70: MP - MP | AP70: =IF(P156="","",P156) ->  | AS70: MP - MP | AT70: =IF(R156="","",R156) ->  | AW70: MP - MP | AX70: =IF(T156="","",T156) ->  | BA70: MP - MP | BB70: =IF(V156="","",V156) ->  | BE70: MP - MP | BF70: =IF(X156="","",X156) ->  | BI70: MP - MP
I71: 0 | Y71: MP - MP | Z71: =IF(D157="","",D157) ->  | AC71: MP - MP | AD71: =IF(F157="","",F157) ->  | AG71: MP - MP | AH71: =IF(I157="","",I157) ->  | AK71: MP - MP | AL71: =IF(K157="","",K157) ->  | AO71: MP - MP | AP71: =IF(P157="","",P157) ->  | AS71: MP - MP | AT71: =IF(R157="","",R157) ->  | AW71: MP - MP | AX71: =IF(T157="","",T157) ->  | BA71: MP - MP | BB71: =IF(V157="","",V157) ->  | BE71: MP - MP | BF71: =IF(X157="","",X157) ->  | BI71: MP - MP
I72: 0 | Y72: MP - MP | Z72: =IF(D158="","",D158) ->  | AC72: MP - MP | AD72: =IF(F158="","",F158) ->  | AG72: MP - MP | AH72: =IF(I158="","",I158) ->  | AK72: MP - MP | AL72: =IF(K158="","",K158) ->  | AO72: MP - MP | AP72: =IF(P158="","",P158) ->  | AS72: MP - MP | AT72: =IF(R158="","",R158) ->  | AW72: MP - MP | AX72: =IF(T158="","",T158) ->  | BA72: MP - MP | BB72: =IF(V158="","",V158) ->  | BE72: MP - MP | BF72: =IF(X158="","",X158) ->  | BI72: MP - MP
I73: 0 | Y73: MP - MP | Z73: =IF(D159="","",D159) ->  | AC73: MP - MP | AD73: =IF(F159="","",F159) ->  | AG73: MP - MP | AH73: =IF(I159="","",I159) ->  | AK73: MP - MP | AL73: =IF(K159="","",K159) ->  | AO73: MP - MP | AP73: =IF(P159="","",P159) ->  | AS73: MP - MP | AT73: =IF(R159="","",R159) ->  | AW73: MP - MP | AX73: =IF(T159="","",T159) ->  | BA73: MP - MP | BB73: =IF(V159="","",V159) ->  | BE73: MP - MP | BF73: =IF(X159="","",X159) ->  | BI73: MP - MP
I74: 0 | Y74: MP - MP | Z74: =IF(D160="","",D160) ->  | AC74: MP - MP | AD74: =IF(F160="","",F160) ->  | AG74: MP - MP | AH74: =IF(I160="","",I160) ->  | AK74: MP - MP | AL74: =IF(K160="","",K160) ->  | AO74: MP - MP | AP74: =IF(P160="","",P160) ->  | AS74: MP - MP | AT74: =IF(R160="","",R160) ->  | AW74: MP - MP | AX74: =IF(T160="","",T160) ->  | BA74: MP - MP | BB74: =IF(V160="","",V160) ->  | BE74: MP - MP | BF74: =IF(X160="","",X160) ->  | BI74: MP - MP
I75: 0 | V75: =IF(A161="","",A161) ->  | W75: =IF(B161="","",B161) ->  | X75: =IF(V75="","",ROUND(ABS(V75-W75),2)) ->  | Y75: =CONCATENATE("MP ",V75," - ","MP ",W75) -> MP - MP | Z75: =IF(D161="","",D161) ->  | AB75: =IF(Z75="","",ROUND(ABS(Z75-AA75),2)) ->  | AC75: =CONCATENATE("MP ",Z75," - ","MP ",AA75) -> MP - MP | AD75: =IF(F161="","",F161) ->  | AF75: =IF(AD75="","",ROUND(ABS(AD75-AE75),2)) ->  | AG75: =CONCATENATE("MP ",AD75," - ","MP ",AE75) -> MP - MP | AH75: =IF(I161="","",I161) ->  | AJ75: =IF(AH75="","",ROUND(ABS(AH75-AI75),2)) ->  | AK75: =CONCATENATE("MP ",AH75," - ","MP ",AI75) -> MP - MP | AL75: =IF(K161="","",K161) ->  | AN75: =IF(AL75="","",ROUND(ABS(AL75-AM75),2)) ->  | AO75: =CONCATENATE("MP ",AL75," - ","MP ",AM75) -> MP - MP | AP75: =IF(P161="","",P161) ->  | AR75: =IF(AP75="","",ROUND(ABS(AP75-AQ75),2)) ->  | AS75: =CONCATENATE("MP ",AP75," - ","MP ",AQ75) -> MP - MP | AT75: =IF(R161="","",R161) ->  | AV75: =IF(AT75="","",ROUND(ABS(AT75-AU75),2)) ->  | AW75: =CONCATENATE("MP ",AT75," - ","MP ",AU75) -> MP - MP | AX75: =IF(T161="","",T161) ->  | AZ75: =IF(AX75="","",ROUND(ABS(AX75-AY75),2)) ->  | BA75: =CONCATENATE("MP ",AX75," - ","MP ",AY75) -> MP - MP | BB75: =IF(V161="","",V161) ->  | BD75: =IF(BB75="","",ROUND(ABS(BB75-BC75),2)) ->  | BE75: =CONCATENATE("MP ",BB75," - ","MP ",BC75) -> MP - MP | BF75: =IF(X161="","",X161) ->  | BH75: =IF(BF75="","",ROUND(ABS(BF75-BG75),2)) ->  | BI75: =CONCATENATE("MP ",BF75," - ","MP ",BG75) -> MP - MP
I76: 0 | Y76: MP - MP | Z76: =IF(D162="","",D162) ->  | AC76: MP - MP | AD76: =IF(F162="","",F162) ->  | AG76: MP - MP | AH76: =IF(I162="","",I162) ->  | AK76: MP - MP | AL76: =IF(K162="","",K162) ->  | AO76: MP - MP | AP76: =IF(P162="","",P162) ->  | AS76: MP - MP | AT76: =IF(R162="","",R162) ->  | AW76: MP - MP | AX76: =IF(T162="","",T162) ->  | BA76: MP - MP | BB76: =IF(V162="","",V162) ->  | BE76: MP - MP | BF76: =IF(X162="","",X162) ->  | BI76: MP - MP
I77: =J76 -> 0 | Y77: MP - MP | Z77: =IF(D163="","",D163) ->  | AC77: MP - MP | AD77: =IF(F163="","",F163) ->  | AG77: MP - MP | AH77: =IF(I163="","",I163) ->  | AK77: MP - MP | AL77: =IF(K163="","",K163) ->  | AO77: MP - MP | AP77: =IF(P163="","",P163) ->  | AS77: MP - MP | AT77: =IF(R163="","",R163) ->  | AW77: MP - MP | AX77: =IF(T163="","",T163) ->  | BA77: MP - MP | BB77: =IF(V163="","",V163) ->  | BE77: MP - MP | BF77: =IF(X163="","",X163) ->  | BI77: MP - MP
I78: 0 | Y78: MP - MP | Z78: =IF(D164="","",D164) ->  | AC78: MP - MP | AD78: =IF(F164="","",F164) ->  | AG78: MP - MP | AH78: =IF(I164="","",I164) ->  | AK78: MP - MP | AL78: =IF(K164="","",K164) ->  | AO78: MP - MP | AP78: =IF(P164="","",P164) ->  | AS78: MP - MP | AT78: =IF(R164="","",R164) ->  | AW78: MP - MP | AX78: =IF(T164="","",T164) ->  | BA78: MP - MP | BB78: =IF(V164="","",V164) ->  | BE78: MP - MP | BF78: =IF(X164="","",X164) ->  | BI78: MP - MP
I79: 0 | Y79: MP - MP | Z79: =IF(D165="","",D165) ->  | AC79: MP - MP | AD79: =IF(F165="","",F165) ->  | AG79: MP - MP | AH79: =IF(I165="","",I165) ->  | AK79: MP - MP | AL79: =IF(K165="","",K165) ->  | AO79: MP - MP | AP79: =IF(P165="","",P165) ->  | AS79: MP - MP | AT79: =IF(R165="","",R165) ->  | AW79: MP - MP | AX79: =IF(T165="","",T165) ->  | BA79: MP - MP | BB79: =IF(V165="","",V165) ->  | BE79: MP - MP | BF79: =IF(X165="","",X165) ->  | BI79: MP - MP
I80: 0 | Y80: MP - MP | Z80: =IF(D166="","",D166) ->  | AC80: MP - MP | AD80: =IF(F166="","",F166) ->  | AG80: MP - MP | AH80: =IF(I166="","",I166) ->  | AK80: MP - MP | AL80: =IF(K166="","",K166) ->  | AO80: MP - MP | AP80: =IF(P166="","",P166) ->  | AS80: MP - MP | AT80: =IF(R166="","",R166) ->  | AW80: MP - MP | AX80: =IF(T166="","",T166) ->  | BA80: MP - MP | BB80: =IF(V166="","",V166) ->  | BE80: MP - MP | BF80: =IF(X166="","",X166) ->  | BI80: MP - MP
I81: 0 | Y81: MP - MP | Z81: =IF(D167="","",D167) ->  | AC81: MP - MP | AD81: =IF(F167="","",F167) ->  | AG81: MP - MP | AH81: =IF(I167="","",I167) ->  | AK81: MP - MP | AL81: =IF(K167="","",K167) ->  | AO81: MP - MP | AP81: =IF(P167="","",P167) ->  | AS81: MP - MP | AT81: =IF(R167="","",R167) ->  | AW81: MP - MP | AX81: =IF(T167="","",T167) ->  | BA81: MP - MP | BB81: =IF(V167="","",V167) ->  | BE81: MP - MP | BF81: =IF(X167="","",X167) ->  | BI81: MP - MP
I82: 0 | Y82: MP - MP | Z82: =IF(D168="","",D168) ->  | AC82: MP - MP | AD82: =IF(F168="","",F168) ->  | AG82: MP - MP | AH82: =IF(I168="","",I168) ->  | AK82: MP - MP | AL82: =IF(K168="","",K168) ->  | AO82: MP - MP | AP82: =IF(P168="","",P168) ->  | AS82: MP - MP | AT82: =IF(R168="","",R168) ->  | AW82: MP - MP | AX82: =IF(T168="","",T168) ->  | BA82: MP - MP | BB82: =IF(V168="","",V168) ->  | BE82: MP - MP | BF82: =IF(X168="","",X168) ->  | BI82: MP - MP
Y83: MP - MP | Z83: =IF(D169="","",D169) ->  | AC83: MP - MP | AD83: =IF(F169="","",F169) ->  | AG83: MP - MP | AH83: =IF(I169="","",I169) ->  | AK83: MP - MP | AL83: =IF(K169="","",K169) ->  | AO83: MP - MP | AP83: =IF(P169="","",P169) ->  | AS83: MP - MP | AT83: =IF(R169="","",R169) ->  | AW83: MP - MP | AX83: =IF(T169="","",T169) ->  | BA83: MP - MP | BB83: =IF(V169="","",V169) ->  | BE83: MP - MP | BF83: =IF(X169="","",X169) ->  | BI83: MP - MP
Y84: MP - MP | Z84: =IF(D170="","",D170) ->  | AC84: MP - MP | AD84: =IF(F170="","",F170) ->  | AG84: MP - MP | AH84: =IF(I170="","",I170) ->  | AK84: MP - MP | AL84: =IF(K170="","",K170) ->  | AO84: MP - MP | AP84: =IF(P170="","",P170) ->  | AS84: MP - MP | AT84: =IF(R170="","",R170) ->  | AW84: MP - MP | AX84: =IF(T170="","",T170) ->  | BA84: MP - MP | BB84: =IF(V170="","",V170) ->  | BE84: MP - MP | BF84: =IF(X170="","",X170) ->  | BI84: MP - MP
Y85: MP - MP | Z85: =IF(D171="","",D171) ->  | AC85: MP - MP | AD85: =IF(F171="","",F171) ->  | AG85: MP - MP | AH85: =IF(I171="","",I171) ->  | AK85: MP - MP | AL85: =IF(K171="","",K171) ->  | AO85: MP - MP | AP85: =IF(P171="","",P171) ->  | AS85: MP - MP | AT85: =IF(R171="","",R171) ->  | AW85: MP - MP | AX85: =IF(T171="","",T171) ->  | BA85: MP - MP | BB85: =IF(V171="","",V171) ->  | BE85: MP - MP | BF85: =IF(X171="","",X171) ->  | BI85: MP - MP
Y86: MP - MP | Z86: =IF(D172="","",D172) ->  | AC86: MP - MP | AD86: =IF(F172="","",F172) ->  | AG86: MP - MP | AH86: =IF(I172="","",I172) ->  | AK86: MP - MP | AL86: =IF(K172="","",K172) ->  | AO86: MP - MP | AP86: =IF(P172="","",P172) ->  | AS86: MP - MP | AT86: =IF(R172="","",R172) ->  | AW86: MP - MP | AX86: =IF(T172="","",T172) ->  | BA86: MP - MP | BB86: =IF(V172="","",V172) ->  | BE86: MP - MP | BF86: =IF(X172="","",X172) ->  | BI86: MP - MP
Y87: MP - MP | Z87: =IF(D173="","",D173) ->  | AC87: MP - MP | AD87: =IF(F173="","",F173) ->  | AG87: MP - MP | AH87: =IF(I173="","",I173) ->  | AK87: MP - MP | AL87: =IF(K173="","",K173) ->  | AO87: MP - MP | AP87: =IF(P173="","",P173) ->  | AS87: MP - MP | AT87: =IF(R173="","",R173) ->  | AW87: MP - MP | AX87: =IF(T173="","",T173) ->  | BA87: MP - MP | BB87: =IF(V173="","",V173) ->  | BE87: MP - MP | BF87: =IF(X173="","",X173) ->  | BI87: MP - MP
Y88: MP - MP | Z88: =IF(D174="","",D174) ->  | AC88: MP - MP | AD88: =IF(F174="","",F174) ->  | AG88: MP - MP | AH88: =IF(I174="","",I174) ->  | AK88: MP - MP | AL88: =IF(K174="","",K174) ->  | AO88: MP - MP | AP88: =IF(P174="","",P174) ->  | AS88: MP - MP | AT88: =IF(R174="","",R174) ->  | AW88: MP - MP | AX88: =IF(T174="","",T174) ->  | BA88: MP - MP | BB88: =IF(V174="","",V174) ->  | BE88: MP - MP | BF88: =IF(X174="","",X174) ->  | BI88: MP - MP
Y89: MP - MP | Z89: =IF(D175="","",D175) ->  | AC89: MP - MP | AD89: =IF(F175="","",F175) ->  | AG89: MP - MP | AH89: =IF(I175="","",I175) ->  | AK89: MP - MP | AL89: =IF(K175="","",K175) ->  | AO89: MP - MP | AP89: =IF(P175="","",P175) ->  | AS89: MP - MP | AT89: =IF(R175="","",R175) ->  | AW89: MP - MP | AX89: =IF(T175="","",T175) ->  | BA89: MP - MP | BB89: =IF(V175="","",V175) ->  | BE89: MP - MP | BF89: =IF(X175="","",X175) ->  | BI89: MP - MP
Y90: =CONCATENATE("MP ",V90," - ","MP ",W90) -> MP - MP | Z90: =IF(D176="","",D176) ->  | AC90: =CONCATENATE("MP ",Z90," - ","MP ",AA90) -> MP - MP | AD90: =IF(F176="","",F176) ->  | AG90: =CONCATENATE("MP ",AD90," - ","MP ",AE90) -> MP - MP | AH90: =IF(I176="","",I176) ->  | AK90: =CONCATENATE("MP ",AH90," - ","MP ",AI90) -> MP - MP | AL90: =IF(K176="","",K176) ->  | AO90: =CONCATENATE("MP ",AL90," - ","MP ",AM90) -> MP - MP | AP90: =IF(P176="","",P176) ->  | AS90: =CONCATENATE("MP ",AP90," - ","MP ",AQ90) -> MP - MP | AT90: =IF(R176="","",R176) ->  | AW90: =CONCATENATE("MP ",AT90," - ","MP ",AU90) -> MP - MP | AX90: =IF(T176="","",T176) ->  | BA90: =CONCATENATE("MP ",AX90," - ","MP ",AY90) -> MP - MP | BB90: =IF(V176="","",V176) ->  | BE90: =CONCATENATE("MP ",BB90," - ","MP ",BC90) -> MP - MP | BF90: =IF(X176="","",X176) ->  | BI90: =CONCATENATE("MP ",BF90," - ","MP ",BG90) -> MP - MP
X91: =(COUNTIF(X10:X90,">0"))+0 -> 2 | AB91: =(COUNTIF(AB10:AB90,">0"))+0 -> 1 | AF91: =(COUNTIF(AF10:AF90,">0"))+0 -> 2 | AJ91: =(COUNTIF(AJ10:AJ90,">0"))+0 -> 1 | AN91: =(COUNTIF(AN10:AN90,">0"))+0 -> 1 | AR91: =(COUNTIF(AR10:AR90,">0"))+0 -> 2 | AV91: =(COUNTIF(AV10:AV90,">0"))+0 -> 1 | AZ91: =(COUNTIF(AZ10:AZ90,">0"))+0 -> 2 | BD91: =(COUNTIF(BD10:BD90,">0"))+0 -> 1 | BH91: =(COUNTIF(BH10:BH90,">0"))+0 -> 1
C92: 96 | V92: Lane 1 | X92: Lane 2 | Z92: Lane 3 | AB92: Lane 4 | AD92: Lane 5
A93: Summary table start at = | D93: 96 | Z93: Begin | AA93: End | AB93: Begin | AC93: End | AD93: Begin | AE93: End
A94: 1 | B94: 2 | D94: 4 | E94: 5 | F94: 6 | G94: 7 | I94: 9 | J94: 10 | K94: 11 | L94: 12 | P94: 16 | Q94: 17 | R94: 18 | S94: 19 | T94: 20 | U94: 21 | V94: 22 | W94: 23 | X94: 24 | Y94: 25
A95: Lane 1 | D95: Lane2 | F95: Lane 3 | I95: Lane 4 | K95: Lane 5 | P95: Lane 1 | R95: Lane 2 | T95: Lane 3 | V95: Lane 4 | X95: Lane5 | AD95: Primary | AE95: Sec | AG95: =COUNT((X91,AB91,AF91,AN91,AJ91)) -> 5 | AH95: =MAX(AG95:AG96) -> 5
A96: 0.75 | B96: 1.5 | D96: 0.794 | E96: 4 | F96: 0.75 | G96: 0.794 | I96: 0.794 | J96: 4 | K96: 0.75 | L96: 3.6 | P96: 0.75 | Q96: 1.5 | R96: 0.794 | S96: 3.6 | T96: 0.75 | U96: 0.794 | V96: 0.794 | W96: 4 | X96: 0.75 | Y96: 3.6 | AD96: =COUNTIF(X10:X90,">.1875") -> 2 | AE96: =COUNTIF(AR10:AR90,">0.1875") -> 2 | AG96: =COUNT(AR91,AV91,AZ91,BD91,BH91) -> 5
A97: 3.6 | B97: 4 | F97: 3.349 | G97: 3.6 | P97: 3.6 | Q97: 4 | T97: 3.349 | U97: 3.6 | AD97: =COUNTIF(AB10:AB90,">.1875") -> 1 | AE97: =COUNTIF(AV10:AV90,">0.1875") -> 1
AD98: =COUNTIF(AF10:AF90,">.1875") -> 1 | AE98: =COUNTIF(AZ10:AZ90,">0.1875") -> 1
AD99: =COUNTIF(AJ10:AJ90,">.1875") -> 1 | AE99: =COUNTIF(BD10:BD90,">0.1875") -> 1
AD100: =COUNTIF(AN10:AN90,">.1875") -> 1 | AE100: =COUNTIF(BH10:BH90,">0.1875") -> 1
AC101: Total Counts Rows | AD101: =MAX(AD96:AD100) -> 2 | AE101: =MAX(AE96:AE100) -> 2 | AF101: =SUM(AD101+AE101) -> 4
AC102: # of Col | AD102: =COUNTIF(AD96:AD100,">0") -> 5 | AE102: =COUNTIF(AE96:AE100,">0") -> 5
AC103: Maximum Lanes | AD103: =MAX(AD102:AE102) -> 5

Sheet LaneExample (hidden)

Sheet Table_Calculation (hidden)
AT1: Route | AV1: =IF('Calculation sheet'!C1="","",'Calculation sheet'!C1) -> 
AT2: County: | AV2: =IF('Calculation sheet'!C2="","",'Calculation sheet'!C2) -> 
AT3: Township | AV3: ='Calculation sheet'!C3 -> 0
AT4: Highway Classification | AV4: ='Calculation sheet'!C4 -> Freeways/Limited Access Highways
AT5: Designer's Initial | AV5: ='Calculation sheet'!C5 -> 0
AT6: PROJECT DATA
A7: INPUT | AT7: INPUT
A8: Name of Project - | F8: =CONCATENATE("Route ",AV1,", ",AV2," County, ",AV3," Township, ") -> Route , County, 0 Township, | AT8: Direction | AV8: ='Calculation sheet'!C8 -> 0 | AX8: ='Calculation sheet'!E8 -> 0
A9: Base IRI Classification - | F9: =AV4 -> Freeways/Limited Access Highways | AT9: MP Begin | AV9: ='Calculation sheet'!C9 -> 0 | AX9: ='Calculation sheet'!E9 -> 0
A10: Type of Project - | F10: =AV16 -> Re-surfacing | AT10: MP End | AV10: ='Calculation sheet'!C10 -> 0 | AX10: ='Calculation sheet'!E10 -> 0
F11: Existing IRI | H11: Type of Pavement | K11: HMA>8-inch | AT11: No. of Lanes | AV11: ='Calculation sheet'!C11 -> 0 | AX11: ='Calculation sheet'!E11 -> 0
A12: =CONCATENATE("Route ",AV1," ",AV8," from MP ",AV9," to MP ",AV10) -> Route 0 from MP 0 to MP 0 | F12: ='Calculation sheet'!$C$19 -> 0 | H12: =IF('Calculation sheet'!$C$22="Yes", "Composite","Flexible") -> Flexible | K12: ='Calculation sheet'!C23 -> 0
A13: =CONCATENATE("Route ",AV1," ",AX8," from MP ",AX9," to MP ",AX10) -> Route 0 from MP 0 to MP 0 | F13: ='Calculation sheet'!$E$19 -> 0 | H13: =IF('Calculation sheet'!$E$22="Yes", "Composite","Flexible") -> Flexible | K13: ='Calculation sheet'!E22 -> 0 | AT13: GENERALIZED FACTORS
A14: Output
G15: Target IRI | AT15: INPUT
A16: =A12 -> Route 0 from MP 0 to MP 0 | G16: =AV27 ->  | H16: Inch/Mile | AT16: Type of Project | AV16: Re-surfacing
A17: =A13 -> Route 0 from MP 0 to MP 0 | G17: =AX27 ->  | H17: Inch/Mile | AT17: Direction | AV17: ='Calculation sheet'!C17 -> 0 | AX17: ='Calculation sheet'!E17 -> 0
A18: =IF('Calculation sheet'!P14>0,(CONCATENATE('Calculation sheet'!G6," has either error in input or Percentage of Exclusions is greater than threshold value.")),"") -> NB has either error in input or Percentage of Exclusions is greater than threshold value. | AT18: ='Calculation sheet'!A18 -> Pre-Construction
A19: =IF('Calculation sheet'!Q14>0,(CONCATENATE('Calculation sheet'!K6," has either error in input or Percentage of Exclusions is greater than threshold value.")),"") -> SB has either error in input or Percentage of Exclusions is greater than threshold value. | AT19: Existing IRI | AV19: ='Calculation sheet'!C19 -> 0 | AX19: ='Calculation sheet'!E19 -> 0
A20: Table 401.03.03-7 | AT20: Milling Proposed | AV20: ='Calculation sheet'!C20 -> 0 | AX20: ='Calculation sheet'!E20 -> 0
E21: Excluded Lots | H21: Pay Equation(s) | AT21: Number of Lifts | AV21: ='Calculation sheet'!C21 -> 0 | AX21: ='Calculation sheet'!E21 -> 0
A22: ='Calculation sheet'!A33 -> Route from MP to MP | E22: ='Calculation sheet'!B33 -> Lane 1- 1 | H22: PA on Lots of 0.01 mile length | AT22: Composite? | AV22: ='Calculation sheet'!C22 -> 0 | AX22: ='Calculation sheet'!E22 -> 0
H23: A | I23: + | J23: A | AT23: Will the composite pavement have final HMA thickness >=8" AND joints sealed AND joints stabilized? | AV23: ='Calculation sheet'!C23 -> 0 | AX23: ='Calculation sheet'!E23 -> 0
H24: 38.4523 | J24: -37.75347*Ln(IRI)+194.87 | R24: =B189 -> 5 | S24: =C189 -> 5
A25: ='Calculation sheet'!A37 -> Route from MP to MP | E25: ='Calculation sheet'!B37 -> Lane 1- 0 | H25: A | I25: + | J25: A | R25: =B190 -> 5 | AT25: OUTPUT
H26: 35.0178 | J26: -37.75347*Ln(IRI)+194.87 | AT26: Direction | AV26: ='Calculation sheet'!C28 -> 0 | AX26: ='Calculation sheet'!E28 -> 0
E27: M= Bide Price of Milling, SY | AT27: IRISpecified | AV27: ='Calculation sheet'!C29 ->  | AX27: ='Calculation sheet'!E29 -> 
E28: N= Bid Price of last lift of the pavement structure to be evaluated, Ton. | S28: 200 | T28: =A200 -> 38 | U28: =B200 -> 37 | V28: =C200 -> 37 | W28: =D200 -> 37 | X28: =E200 -> 37
E29: D= Average thickness of last lift to be evaluated, Inch | S29: 202 | T29: =A202 -> 38
S30: 201 | T30: =A201 -> 41 | U30: =B201 -> 40 | V30: =C201 -> 40 | W30: =D201 -> 40 | X30: =E201 -> 40
S31: 203 | T31: =A203 -> 41
A32: LIMITS OF EXCLUSION CALCULATIONS
F34: Lane 1 | H34: Lane 2 | J34: Lane 3 | L34: Lane 4 | N34: Lane 5
A35: Route Rt 1 SB from MP 9 to MP 7 | F35: MP 0.75 - MP 1.5 | H35: MP 0.794 - MP 4 | J35: MP 3.349 - MP 3.6 | L35: MP 0.794 - MP 4 | N35: MP 0.75 - MP 3.6
F36: MP 3.6 - MP 4 | H36: MP - MP | J36: MP - MP | L36: MP - MP | N36: MP - MP
F37: MP - MP
F38: MP 0.75 - MP 1.5 | H38: MP 0.794 - MP 3.6 | J38: MP 3.349 - MP 3.6 | L38: MP 0.794 - MP 4 | N38: MP 0.75 - MP 3.6
F39: MP 3.6 - MP 4 | H39: MP - MP | J39: MP - MP | L39: MP - MP | N39: MP - MP
F40: MP - MP
A42: Note:- If any lane greater than 1000 feet within the ride quality requirements limits is not shown above, will be tested and appropriate pay equation specified | S42: Note:- If any lane greater than 1000 feet within the ride quality requirements limits is not shown above, will be tested and appropriate pay equation specified
A43: in the Special Provisions will be applied for pay adjustment. | S43: in the Special Provisions will be applied for pay adjustment.
E81: Total # of Rows | F81: Primary | G81: =Lane!AD101 -> 2 | H81: =Lane!AE101 -> 2 | I81: =G81+H81 -> 4
E82: # of Col | G82: =Lane!AD102 -> 5 | H82: =Lane!AE102 -> 5
A83: Max Rows | E83: Total Columns | G83: =Lane!AD103 -> 5
B188: Row
B189: 5 | C189: =MAX(B189:B190) -> 5
B190: 5
A199: Lane1 | B199: Lane2 | C199: Lane3 | D199: Lane4 | E199: Lane5
A200: 38 | B200: 37 | C200: 37 | D200: 37 | E200: 37
A201: 41 | B201: 40 | C201: 40 | D201: 40 | E201: 40
A202: =MAX(A200:E200) -> 38
A203: =MAX(A201:E201) -> 41
B1190: 5

Sheet Table_Calculation(Percentage) (hidden)
AT1: Route | AV1: =IF('Calculation sheet'!C1="","",'Calculation sheet'!C1) -> 
AT2: County: | AV2: =IF('Calculation sheet'!C2="","",'Calculation sheet'!C2) -> 
AT3: Township | AV3: ='Calculation sheet'!C3 -> 0
AT4: Highway Classification | AV4: ='Calculation sheet'!C4 -> Freeways/Limited Access Highways
AT5: Designer's Initial | AV5: ='Calculation sheet'!C5 -> 0
AT6: PROJECT DATA
A7: INPUT | AT7: INPUT
A8: Name of Project - | F8: =CONCATENATE("Route ",AV1,", ",AV2," County, ",AV3," Township, ") -> Route , County, 0 Township, | AT8: Direction | AV8: ='Calculation sheet'!C8 -> 0 | AX8: ='Calculation sheet'!E8 -> 0
A9: Base IRI Classification - | F9: =AV4 -> Freeways/Limited Access Highways | AT9: MP Begin | AV9: ='Calculation sheet'!C9 -> 0 | AX9: ='Calculation sheet'!E9 -> 0
A10: Type of Project - | F10: =AV16 -> Re-surfacing | AT10: MP End | AV10: ='Calculation sheet'!C10 -> 0 | AX10: ='Calculation sheet'!E10 -> 0
F11: Existing IRI | H11: Type of Pavement | K11: HMA>8-inch | AT11: No. of Lanes | AV11: ='Calculation sheet'!C11 -> 0 | AX11: ='Calculation sheet'!E11 -> 0
A12: =CONCATENATE("Route ",AV1," ",AV8," from MP ",AV9," to MP ",AV10) -> Route 0 from MP 0 to MP 0 | F12: ='Calculation sheet'!$C$19 -> 0 | H12: =IF('Calculation sheet'!$C$22="Yes", "Composite","Flexible") -> Flexible | K12: ='Calculation sheet'!C23 -> 0
A13: =CONCATENATE("Route ",AV1," ",AX8," from MP ",AX9," to MP ",AX10) -> Route 0 from MP 0 to MP 0 | F13: ='Calculation sheet'!$E$19 -> 0 | H13: =IF('Calculation sheet'!$E$22="Yes", "Composite","Flexible") -> Flexible | K13: ='Calculation sheet'!E22 -> 0 | AT13: GENERALIZED FACTORS
A14: Output
G15: Target IRI | AT15: INPUT
A16: =A12 -> Route 0 from MP 0 to MP 0 | G16: =AV27 ->  | H16: Inch/Mile | AT16: Type of Project | AV16: Re-surfacing
A17: =A13 -> Route 0 from MP 0 to MP 0 | G17: =AX27 ->  | H17: Inch/Mile | AT17: Direction | AV17: ='Calculation sheet'!C17 -> 0 | AX17: ='Calculation sheet'!E17 -> 0
A18: =IF('Calculation sheet'!P14>0,(CONCATENATE('Calculation sheet'!G6," has either error in input or Percentage of Exclusions is greater than threshold value.")),"") -> NB has either error in input or Percentage of Exclusions is greater than threshold value. | AT18: ='Calculation sheet'!A18 -> Pre-Construction
A19: =IF('Calculation sheet'!Q14>0,(CONCATENATE('Calculation sheet'!K6," has either error in input or Percentage of Exclusions is greater than threshold value.")),"") -> SB has either error in input or Percentage of Exclusions is greater than threshold value. | AT19: Existing IRI | AV19: ='Calculation sheet'!C19 -> 0 | AX19: ='Calculation sheet'!E19 -> 0
A20: Table 401.03.03-7 | AT20: Milling Proposed | AV20: ='Calculation sheet'!C20 -> 0 | AX20: ='Calculation sheet'!E20 -> 0
E21: Excluded Lots | H21: Pay Equation(s) -PA on lots of .01 mile length | AT21: Number of Lifts | AV21: ='Calculation sheet'!C21 -> 0 | AX21: ='Calculation sheet'!E21 -> 0
A22: ='Cal Sheet-Percentage Impr'!Q37 -> Route 29 NB! from MP 1 to MP 2 | E22: ='Calculation sheet'!B33 -> Lane 1- 1 | H22: ='Cal Sheet-Percentage Impr'!A35 -> IRI <68 | K22: ='Cal Sheet-Percentage Impr'!B35 -> PA = 10 | AT22: Composite? | AV22: ='Calculation sheet'!C22 -> 0 | AX22: ='Calculation sheet'!E22 -> 0
H23: ='Cal Sheet-Percentage Impr'!A36 -> 68<= IRI < 88 | K23: ='Cal Sheet-Percentage Impr'!B36 -> PA = 44 - (0.5 X IRI) | AT23: Will the composite pavement have final HMA thickness >=8" AND joints sealed AND joints stabilized? | AV23: ='Calculation sheet'!C23 -> 0 | AX23: ='Calculation sheet'!E23 -> 0
H24: ='Cal Sheet-Percentage Impr'!A37 -> 88 <= IRI <= 98 | K24: ='Cal Sheet-Percentage Impr'!B37 -> PA= $0 | R24: =B189 -> 5 | S24: =C189 -> 5
H25: ='Cal Sheet-Percentage Impr'!A38 -> 98 < IRI <= 168 | K25: ='Cal Sheet-Percentage Impr'!B38 -> PA = ( IRI - 98 ) X (-1.4286) | R25: =B190 -> 5 | AT25: OUTPUT
H26: ='Cal Sheet-Percentage Impr'!A39 -> IRI > 168 | K26: ='Cal Sheet-Percentage Impr'!B39 -> Remove & Replace | AT26: Direction | AV26: ='Calculation sheet'!C28 -> 0 | AX26: ='Calculation sheet'!E28 -> 0
A27: ='Cal Sheet-Percentage Impr'!R37 -> Route SB! from MP to MP | E27: ='Calculation sheet'!B37 -> Lane 1- 0 | H27: ='Cal Sheet-Percentage Impr'!C35 -> IRI <95 | K27: ='Cal Sheet-Percentage Impr'!D35 -> PA = 50 | AT27: IRISpecified | AV27: ='Calculation sheet'!C29 ->  | AX27: ='Calculation sheet'!E29 -> 
H28: ='Cal Sheet-Percentage Impr'!C36 -> 95<= IRI < 115 | K28: ='Cal Sheet-Percentage Impr'!D36 -> PA = 287.5 - (2.5 X IRI) | S28: 200 | T28: =A200 -> 36 | U28: =B200 -> 36 | V28: =C200 -> 34 | W28: =D200 -> 34 | X28: =E200 -> 34
H29: ='Cal Sheet-Percentage Impr'!C37 -> 115 <= IRI <= 125 | K29: ='Cal Sheet-Percentage Impr'!D37 -> PA= $0 | S29: 202 | T29: =A202 -> 36
H30: ='Cal Sheet-Percentage Impr'!C38 -> 125 < IRI <= 195 | K30: ='Cal Sheet-Percentage Impr'!D38 -> PA = ( IRI - 125 ) X (-7.1429) | S30: 201 | T30: =A201 -> 38 | U30: =B201 -> 36 | V30: =C201 -> 36 | W30: =D201 -> 36 | X30: =E201 -> 36
H31: ='Cal Sheet-Percentage Impr'!C39 -> IRI > 195 | K31: ='Cal Sheet-Percentage Impr'!D39 -> Remove & Replace | S31: 203 | T31: =A203 -> 38
A33: SCHEDULE FOR LANE TESTING
F34: Lane 1 | H34: Lane 2
A35: Route 29 SB from MP 2 to MP 3 | F35: MP 6.63 - MP 8 | H35: MP 0 - MP 2.086
A36: NB has either error in input or Percentage of Exclusions is greater than threshold value. | F36: MP 3.1 - MP 0.553
F37: MP 1 - MP 3
A39: Note:- If any lane greater than 1000 feet within the ride quality requirements limits is not shown above, will be tested and appropriate pay equation specified
S42: Note:- If any lane greater than 1000 feet within the ride quality requirements limits is not shown above, will be tested and appropriate pay equation specified
S43: in the Special Provisions will be applied for pay adjustment.
E81: Total # of Rows | F81: Primary | G81: =Lane!AD101 -> 2 | H81: =Lane!AE101 -> 2 | I81: =G81+H81 -> 4
E82: # of Col | G82: =Lane!AD102 -> 5 | H82: =Lane!AE102 -> 5
A83: Max Rows | E83: Total Columns | G83: =Lane!AD103 -> 5
B188: Row
B189: 5 | C189: =MAX(B189:B190) -> 5
B190: 5
A199: Lane1 | B199: Lane2 | C199: Lane3 | D199: Lane4 | E199: Lane5
A200: 36 | B200: 36 | C200: 34 | D200: 34 | E200: 34
A201: 38 | B201: 36 | C201: 36 | D201: 36 | E201: 36
A202: =MAX(A200:E200) -> 36
A203: =MAX(A201:E201) -> 38
B1190: 5

Sheet LaneSketch (hidden)
A1: NEW JERSEY DEPARTMENT OF TRANSPORTATION | AT1: 46 | AU1: 47 | AV1: 48 | AW1: 49 | AX1: 50 | AY1: 51 | AZ1: 52 | BA1: 53 | BB1: 54 | BC1: 55 | BD1: 56 | BE1: 57 | BF1: 58 | BG1: 59 | BH1: 60 | BI1: 61 | BJ1: 62 | BK1: 63 | BL1: 64 | BM1: 65 | BN1: 66 | BO1: 67 | BP1: 68 | BQ1: 69 | BR1: 70 | BS1: 71 | BT1: 72 | BU1: 73 | BV1: 74 | BW1: 75 | BX1: 76 | BY1: 77 | BZ1: 78 | CA1: 79 | CB1: 80 | CC1: 81 | CD1: 82 | CE1: 83 | CF1: 84 | CG1: 85 | CH1: 86 | CI1: 87 | CJ1: 88 | CK1: 89 | CL1: 90 | CM1: 91 | CN1: 92 | CO1: 93 | CP1: 94 | CQ1: 95 | CR1: 96 | CS1: 97 | CT1: 98 | CU1: 99 | CV1: 100 | CW1: 101 | CX1: 102 | CY1: 103 | CZ1: 104
A2: RIDE QUALITY REQUIREMENTS Version 2.00 | AW2: =Lane!A9 -> 0 | AX2: =Lane!I9 -> 0 | AZ2: =BV2 -> 0 | BJ2: =CG2 -> 0 | BV2: =AW2 -> 0 | CG2: =AX2 -> 0 | CQ2: =BV2 -> 0 | CV2: =CG2 -> 0
A3: SKETCH SHOWING LANE DESIGNATION FOR EXCLUSION CALCULATION | AT3: Beginning MP | AW3: =MIN(BV5:CE85) -> 0.75 | AX3: =MIN(CF5:CO84) -> 0.75 | AZ3: Lane 1 | BB3: Lane 2 | BD3: Lane 3 | BF3: Lane 4 | BH3: Lane 5 | BJ3: Lane 1 | BL3: Lane 2 | BN3: Lane 3 | BP3: Lane 4 | BR3: Lane 5 | BV3: Lane 1 | BX3: Lane 2 | BZ3: Lane 3 | CB3: Lane 4 | CD3: Lane 5 | CF3: Lane 1 | CH3: Lane 2 | CJ3: Lane 3 | CL3: Lane 4 | CN3: Lane 5 | CQ3: Lane 1 | CR3: Lane 2 | CS3: Lane 3 | CT3: Lane 4 | CU3: Lane 5 | CV3: Lane 1 | CW3: Lane 2 | CX3: Lane 3 | CY3: Lane 4 | CZ3: Lane 5
A4: =CONCATENATE('Calculation sheet'!C1," from MilePost ",'Calculation sheet'!C9," to Milepost ",'Calculation sheet'!C10," ",'Calculation sheet'!C8," , from MilePost ",'Calculation sheet'!E9," to milePost ",'Calculation sheet'!E10," ",'Calculation sheet'!E8," ","Designer - ",IF('Calculation sheet'!C5=""," Not Avaiable",'Calculation sheet'!C5)) -> from MilePost to Milepost , from MilePost to milePost Designer - Not Avaiable | AT4: End MP | AW4: =MAX(BV5:CE85) -> 4 | AX4: =MAX(CF5:CO84) -> 4 | AZ4: Begin | BA4: End | BB4: Begin | BC4: End | BD4: Begin | BE4: End | BF4: Begin | BG4: End | BH4: Begin | BI4: End | BJ4: Begin | BK4: End | BL4: Begin | BM4: End | BN4: Begin | BO4: End | BP4: Begin | BQ4: End | BR4: Begin | BS4: End | BV4: Begin | BW4: End | BX4: Begin | BY4: End | BZ4: Begin | CA4: End | CB4: Begin | CC4: End | CD4: Begin | CE4: End | CF4: Begin | CG4: End | CH4: Begin | CI4: End | CJ4: Begin | CK4: End | CL4: Begin | CM4: End | CN4: Begin | CO4: End
A5: =AT17 -> 0 | AT5: Minimum, MP | AW5: =MIN(BV5:CO85) -> 0.75 | AZ5: =IF(BV5="","",ROUNDUP($AW$11+((BV5-$AW$13)/$AW$9),0)) -> 2 | BA5: =IF(BW5="","",IF(ROUNDUP($AW$11-1+((BW5-$AW$13)/$AW$9),0)<AZ5,AZ5,ROUNDUP($AW$11-1+((BW5-$AW$13)/$AW$9),0))) -> 11 | BB5: =IF(BX5="","",ROUNDUP($AW$11+((BX5-$AW$13)/$AW$9),0)) -> 3 | BC5: =IF(BY5="","",IF(ROUNDUP($AW$11-1+((BY5-$AW$13)/$AW$9),0)<BB5,BB5,ROUNDUP($AW$11-1+((BY5-$AW$13)/$AW$9),0))) -> 42 | BD5: =IF(BZ5="","",ROUNDUP($AW$11+((BZ5-$AW$13)/$AW$9),0)) -> 2 | BE5: =IF(CA5="","",IF(ROUNDUP($AW$11-1+((CA5-$AW$13)/$AW$9),0)<BD5,BD5,ROUNDUP($AW$11-1+((CA5-$AW$13)/$AW$9),0))) -> 2 | BF5: =IF(CB5="","",ROUNDUP($AW$11+((CB5-$AW$13)/$AW$9),0)) -> 3 | BG5: =IF(CC5="","",IF(ROUNDUP($AW$11-1+((CC5-$AW$13)/$AW$9),0)<BF5,BF5,ROUNDUP($AW$11-1+((CC5-$AW$13)/$AW$9),0))) -> 42 | BH5: =IF(CD5="","",ROUNDUP($AW$11+((CD5-$AW$13)/$AW$9),0)) -> 2 | BI5: =IF(CE5="","",IF(ROUNDUP($AW$11-1+((CE5-$AW$13)/$AW$9),0)<BH5,BH5,ROUNDUP($AW$11-1+((CE5-$AW$13)/$AW$9),0))) -> 37 | BJ5: =IF(CF5="","",ROUNDUP($AW$11+((CF5-$AW$13)/$AW$9),0)) -> 2 | BK5: =IF(CG5="","",IF(ROUNDUP($AW$11-1+((CG5-$AW$13)/$AW$9),0)<BJ5,BJ5,ROUNDUP($AW$11-1+((CG5-$AW$13)/$AW$9),0))) -> 11 | BL5: =IF(CH5="","",ROUNDUP($AW$11+((CH5-$AW$13)/$AW$9),0)) -> 3 | BM5: =IF(CI5="","",IF(ROUNDUP($AW$11-1+((CI5-$AW$13)/$AW$9),0)<BL5,BL5,ROUNDUP($AW$11-1+((CI5-$AW$13)/$AW$9),0))) -> 37 | BN5: =IF(CJ5="","",ROUNDUP($AW$11+((CJ5-$AW$13)/$AW$9),0)) -> 2 | BO5: =IF(CK5="","",IF(ROUNDUP($AW$11-1+((CK5-$AW$13)/$AW$9),0)<BN5,BN5,ROUNDUP($AW$11-1+((CK5-$AW$13)/$AW$9),0))) -> 2 | BP5: =IF(CL5="","",ROUNDUP($AW$11+((CL5-$AW$13)/$AW$9),0)) -> 3 | BQ5: =IF(CM5="","",IF(ROUNDUP($AW$11-1+((CM5-$AW$13)/$AW$9),0)<BP5,BP5,ROUNDUP($AW$11-1+((CM5-$AW$13)/$AW$9),0))) -> 42 | BR5: =IF(CN5="","",ROUNDUP($AW$11+((CN5-$AW$13)/$AW$9),0)) -> 2 | BS5: =IF(CO5="","",IF(ROUNDUP($AW$11-1+((CO5-$AW$13)/$AW$9),0)<BR5,BR5,ROUNDUP($AW$11-1+((CO5-$AW$13)/$AW$9),0))) -> 37 | BV5: =Lane!V10 -> 0.75 | BW5: =Lane!W10 -> 1.5 | BX5: =Lane!Z10 -> 0.794 | BY5: =Lane!AA10 -> 4 | BZ5: =Lane!AD10 -> 0.75 | CA5: =Lane!AE10 -> 0.794 | CB5: =Lane!AH10 -> 0.794 | CC5: =Lane!AI10 -> 4 | CD5: =Lane!AL10 -> 0.75 | CE5: =Lane!AM10 -> 3.6 | CF5: =Lane!AP10 -> 0.75 | CG5: =Lane!AQ10 -> 1.5 | CH5: =Lane!AT10 -> 0.794 | CI5: =Lane!AU10 -> 3.6 | CJ5: =Lane!AX10 -> 0.75 | CK5: =Lane!AY10 -> 0.794 | CL5: =Lane!BB10 -> 0.794 | CM5: =Lane!BC10 -> 4 | CN5: =Lane!BF10 -> 0.75 | CO5: =Lane!BG10 -> 3.6 | CQ5: =ABS(BW5-BV5) -> 0.75 | CR5: =ABS(BY5-BX5) -> 3.206 | CS5: =ABS(BZ5-CA5) -> 0.044 | CT5: =ABS(CB5-CC5) -> 3.206 | CU5: =ABS(CD5-CE5) -> 2.85 | CV5: =ABS(CF5-CG5) -> 0.75 | CW5: =ABS(CH5-CI5) -> 2.806 | CX5: =ABS(CJ5-CK5) -> 0.044 | CY5: =ABS(CL5-CM5) -> 3.206 | CZ5: =ABS(CN5-CO5) -> 2.85
A6: Lane-1 | B6: 0.75 | K6: 1.5 | AL6: 3.6 | AP6: 4 | AT6: Max MP | AW6: =MAX(BV5:CO85) -> 4 | AZ6: =IF(BV6="","",ROUNDUP($AW$11+((BV6-$AW$13)/$AW$9),0)) -> 38 | BA6: =IF(BW6="","",IF(ROUNDUP($AW$11-1+((BW6-$AW$13)/$AW$9),0)<AZ6,AZ6,ROUNDUP($AW$11-1+((BW6-$AW$13)/$AW$9),0))) -> 42 | BB6: =IF(BX6="","",ROUNDUP($AW$11+((BX6-$AW$13)/$AW$9),0)) ->  | BC6: =IF(BY6="","",IF(ROUNDUP($AW$11-1+((BY6-$AW$13)/$AW$9),0)<BB6,BB6,ROUNDUP($AW$11-1+((BY6-$AW$13)/$AW$9),0))) ->  | BD6: =IF(BZ6="","",ROUNDUP($AW$11+((BZ6-$AW$13)/$AW$9),0)) -> 35 | BE6: =IF(CA6="","",IF(ROUNDUP($AW$11-1+((CA6-$AW$13)/$AW$9),0)<BD6,BD6,ROUNDUP($AW$11-1+((CA6-$AW$13)/$AW$9),0))) -> 37 | BF6: =IF(CB6="","",ROUNDUP($AW$11+((CB6-$AW$13)/$AW$9),0)) ->  | BG6: =IF(CC6="","",IF(ROUNDUP($AW$11-1+((CC6-$AW$13)/$AW$9),0)<BF6,BF6,ROUNDUP($AW$11-1+((CC6-$AW$13)/$AW$9),0))) ->  | BH6: =IF(CD6="","",ROUNDUP($AW$11+((CD6-$AW$13)/$AW$9),0)) ->  | BI6: =IF(CE6="","",IF(ROUNDUP($AW$11-1+((CE6-$AW$13)/$AW$9),0)<BH6,BH6,ROUNDUP($AW$11-1+((CE6-$AW$13)/$AW$9),0))) ->  | BJ6: =IF(CF6="","",ROUNDUP($AW$11+((CF6-$AW$13)/$AW$9),0)) -> 38 | BK6: =IF(CG6="","",IF(ROUNDUP($AW$11-1+((CG6-$AW$13)/$AW$9),0)<BJ6,BJ6,ROUNDUP($AW$11-1+((CG6-$AW$13)/$AW$9),0))) -> 42 | BL6: =IF(CH6="","",ROUNDUP($AW$11+((CH6-$AW$13)/$AW$9),0)) ->  | BM6: =IF(CI6="","",IF(ROUNDUP($AW$11-1+((CI6-$AW$13)/$AW$9),0)<BL6,BL6,ROUNDUP($AW$11-1+((CI6-$AW$13)/$AW$9),0))) ->  | BN6: =IF(CJ6="","",ROUNDUP($AW$11+((CJ6-$AW$13)/$AW$9),0)) -> 35 | BO6: =IF(CK6="","",IF(ROUNDUP($AW$11-1+((CK6-$AW$13)/$AW$9),0)<BN6,BN6,ROUNDUP($AW$11-1+((CK6-$AW$13)/$AW$9),0))) -> 37 | BP6: =IF(CL6="","",ROUNDUP($AW$11+((CL6-$AW$13)/$AW$9),0)) ->  | BQ6: =IF(CM6="","",IF(ROUNDUP($AW$11-1+((CM6-$AW$13)/$AW$9),0)<BP6,BP6,ROUNDUP($AW$11-1+((CM6-$AW$13)/$AW$9),0))) ->  | BR6: =IF(CN6="","",ROUNDUP($AW$11+((CN6-$AW$13)/$AW$9),0)) ->  | BS6: =IF(CO6="","",IF(ROUNDUP($AW$11-1+((CO6-$AW$13)/$AW$9),0)<BR6,BR6,ROUNDUP($AW$11-1+((CO6-$AW$13)/$AW$9),0))) ->  | BV6: =Lane!V11 -> 3.6 | BW6: =Lane!W11 -> 4 | BX6: =Lane!Z11 ->  | BY6: =Lane!AA11 ->  | BZ6: =Lane!AD11 -> 3.349 | CA6: =Lane!AE11 -> 3.6 | CB6: =Lane!AH11 ->  | CC6: =Lane!AI11 ->  | CD6: =Lane!AL11 ->  | CE6: =Lane!AM11 ->  | CF6: =Lane!AP11 -> 3.6 | CG6: =Lane!AQ11 -> 4 | CH6: =Lane!AT11 ->  | CI6: =Lane!AU11 ->  | CJ6: =Lane!AX11 -> 3.349 | CK6: =Lane!AY11 -> 3.6 | CL6: =Lane!BB11 ->  | CM6: =Lane!BC11 ->  | CN6: =Lane!BF11 ->  | CO6: =Lane!BG11 ->  | CQ6: =ABS(BW6-BV6) -> 0.4 | CR6: =ABS(BY6-BX6) ->  | CS6: =ABS(BZ6-CA6) -> 0.251 | CT6: =ABS(CB6-CC6) ->  | CU6: =ABS(CD6-CE6) ->  | CV6: =ABS(CF6-CG6) -> 0.4 | CW6: =ABS(CH6-CI6) ->  | CX6: =ABS(CJ6-CK6) -> 0.251 | CY6: =ABS(CL6-CM6) ->  | CZ6: =ABS(CN6-CO6) -> 
A7: Lane-2 | C7: 0.794 | AP7: 4 | AT7: Total lentgh (Miles) | AW7: =ABS(AW6-AW5) -> 3.25 | BV7: =Lane!V12 ->  | BW7: =Lane!W12 ->  | BX7: =Lane!Z12 ->  | BY7: =Lane!AA12 ->  | BZ7: =Lane!AD12 ->  | CA7: =Lane!AE12 ->  | CB7: =Lane!AH12 ->  | CC7: =Lane!AI12 ->  | CD7: =Lane!AL12 ->  | CE7: =Lane!AM12 ->  | CF7: =Lane!AP12 ->  | CG7: =Lane!AQ12 ->  | CH7: =Lane!AT12 ->  | CI7: =Lane!AU12 ->  | CJ7: =Lane!AX12 ->  | CK7: =Lane!AY12 ->  | CL7: =Lane!BB12 ->  | CM7: =Lane!BC12 ->  | CN7: =Lane!BF12 ->  | CO7: =Lane!BG12 ->  | CR7: =ABS(BY7-BX7) -> 
A8: Lane-3 | B8: 0.75 | C8: 0.794 | AI8: 3.349 | AK8: 3.6 | BV8: =Lane!V13 ->  | BW8: =Lane!W13 ->  | BX8: =Lane!Z13 ->  | BY8: =Lane!AA13 ->  | BZ8: =Lane!AD13 ->  | CA8: =Lane!AE13 ->  | CB8: =Lane!AH13 ->  | CC8: =Lane!AI13 ->  | CD8: =Lane!AL13 ->  | CE8: =Lane!AM13 ->  | CF8: =Lane!AP13 ->  | CG8: =Lane!AQ13 ->  | CH8: =Lane!AT13 ->  | CI8: =Lane!AU13 ->  | CJ8: =Lane!AX13 ->  | CK8: =Lane!AY13 ->  | CL8: =Lane!BB13 ->  | CM8: =Lane!BC13 ->  | CN8: =Lane!BF13 ->  | CO8: =Lane!BG13 -> 
A9: Lane-4 | C9: 0.794 | AP9: 4 | AT9: Each Cell = | AW9: =ROUNDDOWN((AW6-AW5)/40,2) -> 0.08 | AY9: Miles | BV9: =Lane!V14 ->  | BW9: =Lane!W14 ->  | BX9: =Lane!Z14 ->  | BY9: =Lane!AA14 ->  | BZ9: =Lane!AD14 ->  | CA9: =Lane!AE14 ->  | CB9: =Lane!AH14 ->  | CC9: =Lane!AI14 ->  | CD9: =Lane!AL14 ->  | CE9: =Lane!AM14 ->  | CF9: =Lane!AP14 ->  | CG9: =Lane!AQ14 ->  | CH9: =Lane!AT14 ->  | CI9: =Lane!AU14 ->  | CJ9: =Lane!AX14 ->  | CK9: =Lane!AY14 ->  | CL9: =Lane!BB14 ->  | CM9: =Lane!BC14 ->  | CN9: =Lane!BF14 ->  | CO9: =Lane!BG14 -> 
A10: Lane-5 | B10: 0.75 | AK10: 3.6 | AT10: Total Cell needed | AW10: =ROUNDUP(AW7/AW9,0) -> 41 | BV10: =Lane!V15 ->  | BW10: =Lane!W15 ->  | BX10: =Lane!Z15 ->  | BY10: =Lane!AA15 ->  | BZ10: =Lane!AD15 ->  | CA10: =Lane!AE15 ->  | CB10: =Lane!AH15 ->  | CC10: =Lane!AI15 ->  | CD10: =Lane!AL15 ->  | CE10: =Lane!AM15 ->  | CF10: =Lane!AP15 ->  | CG10: =Lane!AQ15 ->  | CH10: =Lane!AT15 ->  | CI10: =Lane!AU15 ->  | CJ10: =Lane!AX15 ->  | CK10: =Lane!AY15 ->  | CL10: =Lane!BB15 ->  | CM10: =Lane!BC15 ->  | CN10: =Lane!BF15 ->  | CO10: =Lane!BG15 -> 
AT11: Beginning Cell | AW11: 2 | BV11: =Lane!V16 ->  | BW11: =Lane!W16 ->  | BX11: =Lane!Z16 ->  | BY11: =Lane!AA16 ->  | BZ11: =Lane!AD16 ->  | CA11: =Lane!AE16 ->  | CB11: =Lane!AH16 ->  | CC11: =Lane!AI16 ->  | CD11: =Lane!AL16 ->  | CE11: =Lane!AM16 ->  | CF11: =Lane!AP16 ->  | CG11: =Lane!AQ16 ->  | CH11: =Lane!AT16 ->  | CI11: =Lane!AU16 ->  | CJ11: =Lane!AX16 ->  | CK11: =Lane!AY16 ->  | CL11: =Lane!BB16 ->  | CM11: =Lane!BC16 ->  | CN11: =Lane!BF16 ->  | CO11: =Lane!BG16 -> 
AT12: Ending Cell | AW12: =ROUNDUP(AW7/AW9,0) -> 41 | BV12: =Lane!V17 ->  | BW12: =Lane!W17 ->  | BX12: =Lane!Z17 ->  | BY12: =Lane!AA17 ->  | BZ12: =Lane!AD17 ->  | CA12: =Lane!AE17 ->  | CB12: =Lane!AH17 ->  | CC12: =Lane!AI17 ->  | CD12: =Lane!AL17 ->  | CE12: =Lane!AM17 ->  | CF12: =Lane!AP17 ->  | CG12: =Lane!AQ17 ->  | CH12: =Lane!AT17 ->  | CI12: =Lane!AU17 ->  | CJ12: =Lane!AX17 ->  | CK12: =Lane!AY17 ->  | CL12: =Lane!BB17 ->  | CM12: =Lane!BC17 ->  | CN12: =Lane!BF17 ->  | CO12: =Lane!BG17 -> 
AT13: First Cell = | AW13: =MIN(BV5:CO85) -> 0.75 | BV13: =Lane!V18 ->  | BW13: =Lane!W18 ->  | BX13: =Lane!Z18 ->  | BY13: =Lane!AA18 ->  | BZ13: =Lane!AD18 ->  | CA13: =Lane!AE18 ->  | CB13: =Lane!AH18 ->  | CC13: =Lane!AI18 ->  | CD13: =Lane!AL18 ->  | CE13: =Lane!AM18 ->  | CF13: =Lane!AP18 ->  | CG13: =Lane!AQ18 ->  | CH13: =Lane!AT18 ->  | CI13: =Lane!AU18 ->  | CJ13: =Lane!AX18 ->  | CK13: =Lane!AY18 ->  | CL13: =Lane!BB18 ->  | CM13: =Lane!BC18 ->  | CN13: =Lane!BF18 ->  | CO13: =Lane!BG18 -> 
AT14: Minimum length for testing | AW14: =Lane!AB5 -> 0.1875 | BV14: =Lane!V19 ->  | BW14: =Lane!W19 ->  | BX14: =Lane!Z19 ->  | BY14: =Lane!AA19 ->  | BZ14: =Lane!AD19 ->  | CA14: =Lane!AE19 ->  | CB14: =Lane!AH19 ->  | CC14: =Lane!AI19 ->  | CD14: =Lane!AL19 ->  | CE14: =Lane!AM19 ->  | CF14: =Lane!AP19 ->  | CG14: =Lane!AQ19 ->  | CH14: =Lane!AT19 ->  | CI14: =Lane!AU19 ->  | CJ14: =Lane!AX19 ->  | CK14: =Lane!AY19 ->  | CL14: =Lane!BB19 ->  | CM14: =Lane!BC19 ->  | CN14: =Lane!BF19 ->  | CO14: =Lane!BG19 -> 
BV15: =Lane!V20 ->  | BW15: =Lane!W20 ->  | BX15: =Lane!Z20 ->  | BY15: =Lane!AA20 ->  | BZ15: =Lane!AD20 ->  | CA15: =Lane!AE20 ->  | CB15: =Lane!AH20 ->  | CC15: =Lane!AI20 ->  | CD15: =Lane!AL20 ->  | CE15: =Lane!AM20 ->  | CF15: =Lane!AP20 ->  | CG15: =Lane!AQ20 ->  | CH15: =Lane!AT20 ->  | CI15: =Lane!AU20 ->  | CJ15: =Lane!AX20 ->  | CK15: =Lane!AY20 ->  | CL15: =Lane!BB20 ->  | CM15: =Lane!BC20 ->  | CN15: =Lane!BF20 ->  | CO15: =Lane!BG20 -> 
AV16: Lane 1 | BV16: =Lane!V21 ->  | BW16: =Lane!W21 ->  | BX16: =Lane!Z21 ->  | BY16: =Lane!AA21 ->  | BZ16: =Lane!AD21 ->  | CA16: =Lane!AE21 ->  | CB16: =Lane!AH21 ->  | CC16: =Lane!AI21 ->  | CD16: =Lane!AL21 ->  | CE16: =Lane!AM21 ->  | CF16: =Lane!AP21 ->  | CG16: =Lane!AQ21 ->  | CH16: =Lane!AT21 ->  | CI16: =Lane!AU21 ->  | CJ16: =Lane!AX21 ->  | CK16: =Lane!AY21 ->  | CL16: =Lane!BB21 ->  | CM16: =Lane!BC21 ->  | CN16: =Lane!BF21 ->  | CO16: =Lane!BG21 -> 
AT17: =AW2 -> 0 | AU17: 11 | AV17: 6 | BV17: =Lane!V22 ->  | BW17: =Lane!W22 ->  | BX17: =Lane!Z22 ->  | BY17: =Lane!AA22 ->  | BZ17: =Lane!AD22 ->  | CA17: =Lane!AE22 ->  | CB17: =Lane!AH22 ->  | CC17: =Lane!AI22 ->  | CD17: =Lane!AL22 ->  | CE17: =Lane!AM22 ->  | CF17: =Lane!AP22 ->  | CG17: =Lane!AQ22 ->  | CH17: =Lane!AT22 ->  | CI17: =Lane!AU22 ->  | CJ17: =Lane!AX22 ->  | CK17: =Lane!AY22 ->  | CL17: =Lane!BB22 ->  | CM17: =Lane!BC22 ->  | CN17: =Lane!BF22 ->  | CO17: =Lane!BG22 -> 
AT18: =AX2 -> 0 | AU18: 23 | AV18: 19 | BV18: =Lane!V23 ->  | BW18: =Lane!W23 ->  | BX18: =Lane!Z23 ->  | BY18: =Lane!AA23 ->  | BZ18: =Lane!AD23 ->  | CA18: =Lane!AE23 ->  | CB18: =Lane!AH23 ->  | CC18: =Lane!AI23 ->  | CD18: =Lane!AL23 ->  | CE18: =Lane!AM23 ->  | CF18: =Lane!AP23 ->  | CG18: =Lane!AQ23 ->  | CH18: =Lane!AT23 ->  | CI18: =Lane!AU23 ->  | CJ18: =Lane!AX23 ->  | CK18: =Lane!AY23 ->  | CL18: =Lane!BB23 ->  | CM18: =Lane!BC23 ->  | CN18: =Lane!BF23 ->  | CO18: =Lane!BG23 -> 
A19: Lane-1 | B19: 0.75 | K19: 1.5 | AL19: 3.6 | AP19: 4 | BV19: =Lane!V24 ->  | BW19: =Lane!W24 ->  | BX19: =Lane!Z24 ->  | BY19: =Lane!AA24 ->  | BZ19: =Lane!AD24 ->  | CA19: =Lane!AE24 ->  | CB19: =Lane!AH24 ->  | CC19: =Lane!AI24 ->  | CD19: =Lane!AL24 ->  | CE19: =Lane!AM24 ->  | CF19: =Lane!AP24 ->  | CG19: =Lane!AQ24 ->  | CH19: =Lane!AT24 ->  | CI19: =Lane!AU24 ->  | CJ19: =Lane!AX24 ->  | CK19: =Lane!AY24 ->  | CL19: =Lane!BB24 ->  | CM19: =Lane!BC24 ->  | CN19: =Lane!BF24 ->  | CO19: =Lane!BG24 -> 
A20: Lane-2 | C20: 0.794 | AK20: 3.6 | AU20: =AT17 -> 0 | AV20: =AT18 -> 0 | AW20: NB | AX20: SB | BV20: =Lane!V25 ->  | BW20: =Lane!W25 ->  | BX20: =Lane!Z25 ->  | BY20: =Lane!AA25 ->  | BZ20: =Lane!AD25 ->  | CA20: =Lane!AE25 ->  | CB20: =Lane!AH25 ->  | CC20: =Lane!AI25 ->  | CD20: =Lane!AL25 ->  | CE20: =Lane!AM25 ->  | CF20: =Lane!AP25 ->  | CG20: =Lane!AQ25 ->  | CH20: =Lane!AT25 ->  | CI20: =Lane!AU25 ->  | CJ20: =Lane!AX25 ->  | CK20: =Lane!AY25 ->  | CL20: =Lane!BB25 ->  | CM20: =Lane!BC25 ->  | CN20: =Lane!BF25 ->  | CO20: =Lane!BG25 -> 
A21: Lane-3 | B21: 0.75 | C21: 0.794 | AI21: 3.349 | AK21: 3.6 | AT21: Lane 1 | AU21: =AZ86 -> 2 | AV21: =BJ86 -> 2 | AW21: =IF(AU21>0,1,0) -> 1 | AX21: =IF(AV21>0,1,0) -> 1 | BV21: =Lane!V26 ->  | BW21: =Lane!W26 ->  | BX21: =Lane!Z26 ->  | BY21: =Lane!AA26 ->  | BZ21: =Lane!AD26 ->  | CA21: =Lane!AE26 ->  | CB21: =Lane!AH26 ->  | CC21: =Lane!AI26 ->  | CD21: =Lane!AL26 ->  | CE21: =Lane!AM26 ->  | CF21: =Lane!AP26 ->  | CG21: =Lane!AQ26 ->  | CH21: =Lane!AT26 ->  | CI21: =Lane!AU26 ->  | CJ21: =Lane!AX26 ->  | CK21: =Lane!AY26 ->  | CL21: =Lane!BB26 ->  | CM21: =Lane!BC26 ->  | CN21: =Lane!BF26 ->  | CO21: =Lane!BG26 -> 
A22: Lane-4 | C22: 0.794 | AP22: 4 | AT22: Lane 2 | AU22: =BB86 -> 1 | AV22: =BL86 -> 1 | AW22: =IF(AU22>0,1,0) -> 1 | AX22: 1 | BV22: =Lane!V27 ->  | BW22: =Lane!W27 ->  | BX22: =Lane!Z27 ->  | BY22: =Lane!AA27 ->  | BZ22: =Lane!AD27 ->  | CA22: =Lane!AE27 ->  | CB22: =Lane!AH27 ->  | CC22: =Lane!AI27 ->  | CD22: =Lane!AL27 ->  | CE22: =Lane!AM27 ->  | CF22: =Lane!AP27 ->  | CG22: =Lane!AQ27 ->  | CH22: =Lane!AT27 ->  | CI22: =Lane!AU27 ->  | CJ22: =Lane!AX27 ->  | CK22: =Lane!AY27 ->  | CL22: =Lane!BB27 ->  | CM22: =Lane!BC27 ->  | CN22: =Lane!BF27 ->  | CO22: =Lane!BG27 -> 
A23: Lane-5 | B23: 0.75 | AK23: 3.6 | AT23: Lane 3 | AU23: =BD86 -> 2 | AV23: =BN86 -> 2 | AW23: 1 | AX23: 1 | BV23: =Lane!V28 ->  | BW23: =Lane!W28 ->  | BX23: =Lane!Z28 ->  | BY23: =Lane!AA28 ->  | BZ23: =Lane!AD28 ->  | CA23: =Lane!AE28 ->  | CB23: =Lane!AH28 ->  | CC23: =Lane!AI28 ->  | CD23: =Lane!AL28 ->  | CE23: =Lane!AM28 ->  | CF23: =Lane!AP28 ->  | CG23: =Lane!AQ28 ->  | CH23: =Lane!AT28 ->  | CI23: =Lane!AU28 ->  | CJ23: =Lane!AX28 ->  | CK23: =Lane!AY28 ->  | CL23: =Lane!BB28 ->  | CM23: =Lane!BC28 ->  | CN23: =Lane!BF28 ->  | CO23: =Lane!BG28 -> 
AT24: Lane 4 | AU24: =BF86 -> 1 | AV24: =BP86 -> 1 | AW24: 1 | AX24: 1 | BV24: =Lane!V29 ->  | BW24: =Lane!W29 ->  | BX24: =Lane!Z29 ->  | BY24: =Lane!AA29 ->  | BZ24: =Lane!AD29 ->  | CA24: =Lane!AE29 ->  | CB24: =Lane!AH29 ->  | CC24: =Lane!AI29 ->  | CD24: =Lane!AL29 ->  | CE24: =Lane!AM29 ->  | CF24: =Lane!AP29 ->  | CG24: =Lane!AQ29 ->  | CH24: =Lane!AT29 ->  | CI24: =Lane!AU29 ->  | CJ24: =Lane!AX29 ->  | CK24: =Lane!AY29 ->  | CL24: =Lane!BB29 ->  | CM24: =Lane!BC29 ->  | CN24: =Lane!BF29 ->  | CO24: =Lane!BG29 -> 
A25: NOTES:- | B25: 1 | C25: Calculate exclusions within the above limits using lane designation shown above. Any lane mark with diagonal lines is a short lane and will not be tested. Do not calculate exclusions within such short lanes. | AT25: Lane 5 | AU25: =BH86 -> 1 | AV25: =BR86 -> 1 | AW25: 1 | AX25: 1 | BV25: =Lane!V30 ->  | BW25: =Lane!W30 ->  | BX25: =Lane!Z30 ->  | BY25: =Lane!AA30 ->  | BZ25: =Lane!AD30 ->  | CA25: =Lane!AE30 ->  | CB25: =Lane!AH30 ->  | CC25: =Lane!AI30 ->  | CD25: =Lane!AL30 ->  | CE25: =Lane!AM30 ->  | CF25: =Lane!AP30 ->  | CG25: =Lane!AQ30 ->  | CH25: =Lane!AT30 ->  | CI25: =Lane!AU30 ->  | CJ25: =Lane!AX30 ->  | CK25: =Lane!AY30 ->  | CL25: =Lane!BB30 ->  | CM25: =Lane!BC30 ->  | CN25: =Lane!BF30 ->  | CO25: =Lane!BG30 -> 
BV26: =Lane!V31 ->  | BW26: =Lane!W31 ->  | BX26: =Lane!Z31 ->  | BY26: =Lane!AA31 ->  | BZ26: =Lane!AD31 ->  | CA26: =Lane!AE31 ->  | CB26: =Lane!AH31 ->  | CC26: =Lane!AI31 ->  | CD26: =Lane!AL31 ->  | CE26: =Lane!AM31 ->  | CF26: =Lane!AP31 ->  | CG26: =Lane!AQ31 ->  | CH26: =Lane!AT31 ->  | CI26: =Lane!AU31 ->  | CJ26: =Lane!AX31 ->  | CK26: =Lane!AY31 ->  | CL26: =Lane!BB31 ->  | CM26: =Lane!BC31 ->  | CN26: =Lane!BF31 ->  | CO26: =Lane!BG31 -> 
AU27: max number of lanes | BV27: =Lane!V32 ->  | BW27: =Lane!W32 ->  | BX27: =Lane!Z32 ->  | BY27: =Lane!AA32 ->  | BZ27: =Lane!AD32 ->  | CA27: =Lane!AE32 ->  | CB27: =Lane!AH32 ->  | CC27: =Lane!AI32 ->  | CD27: =Lane!AL32 ->  | CE27: =Lane!AM32 ->  | CF27: =Lane!AP32 ->  | CG27: =Lane!AQ32 ->  | CH27: =Lane!AT32 ->  | CI27: =Lane!AU32 ->  | CJ27: =Lane!AX32 ->  | CK27: =Lane!AY32 ->  | CL27: =Lane!BB32 ->  | CM27: =Lane!BC32 ->  | CN27: =Lane!BF32 ->  | CO27: =Lane!BG32 -> 
AU28: ='Localized Factor Worksheet'!B12 -> 0 | AV28: ='Localized Factor Worksheet'!GU6 -> 0 | AW28: =SUM(AW21:AW25) -> 5 | BV28: =Lane!V33 ->  | BW28: =Lane!W33 ->  | BX28: =Lane!Z33 ->  | BY28: =Lane!AA33 ->  | BZ28: =Lane!AD33 ->  | CA28: =Lane!AE33 ->  | CB28: =Lane!AH33 ->  | CC28: =Lane!AI33 ->  | CD28: =Lane!AL33 ->  | CE28: =Lane!AM33 ->  | CF28: =Lane!AP33 ->  | CG28: =Lane!AQ33 ->  | CH28: =Lane!AT33 ->  | CI28: =Lane!AU33 ->  | CJ28: =Lane!AX33 ->  | CK28: =Lane!AY33 ->  | CL28: =Lane!BB33 ->  | CM28: =Lane!BC33 ->  | CN28: =Lane!BF33 ->  | CO28: =Lane!BG33 -> 
AU29: ='Localized Factor Worksheet'!Q12 -> 0 | AV29: ='Localized Factor Worksheet'!GV6 -> 0 | AW29: =SUM(AX21:AX25) -> 5 | BV29: =Lane!V34 ->  | BW29: =Lane!W34 ->  | BX29: =Lane!Z34 ->  | BY29: =Lane!AA34 ->  | BZ29: =Lane!AD34 ->  | CA29: =Lane!AE34 ->  | CB29: =Lane!AH34 ->  | CC29: =Lane!AI34 ->  | CD29: =Lane!AL34 ->  | CE29: =Lane!AM34 ->  | CF29: =Lane!AP34 ->  | CG29: =Lane!AQ34 ->  | CH29: =Lane!AT34 ->  | CI29: =Lane!AU34 ->  | CJ29: =Lane!AX34 ->  | CK29: =Lane!AY34 ->  | CL29: =Lane!BB34 ->  | CM29: =Lane!BC34 ->  | CN29: =Lane!BF34 ->  | CO29: =Lane!BG34 -> 
BV30: =Lane!V35 ->  | BW30: =Lane!W35 ->  | BX30: =Lane!Z35 ->  | BY30: =Lane!AA35 ->  | BZ30: =Lane!AD35 ->  | CA30: =Lane!AE35 ->  | CB30: =Lane!AH35 ->  | CC30: =Lane!AI35 ->  | CD30: =Lane!AL35 ->  | CE30: =Lane!AM35 ->  | CF30: =Lane!AP35 ->  | CG30: =Lane!AQ35 ->  | CH30: =Lane!AT35 ->  | CI30: =Lane!AU35 ->  | CJ30: =Lane!AX35 ->  | CK30: =Lane!AY35 ->  | CL30: =Lane!BB35 ->  | CM30: =Lane!BC35 ->  | CN30: =Lane!BF35 ->  | CO30: =Lane!BG35 -> 
AU31: Find Maximum Numbers of lanes | BV31: =Lane!V36 ->  | BW31: =Lane!W36 ->  | BX31: =Lane!Z36 ->  | BY31: =Lane!AA36 ->  | BZ31: =Lane!AD36 ->  | CA31: =Lane!AE36 ->  | CB31: =Lane!AH36 ->  | CC31: =Lane!AI36 ->  | CD31: =Lane!AL36 ->  | CE31: =Lane!AM36 ->  | CF31: =Lane!AP36 ->  | CG31: =Lane!AQ36 ->  | CH31: =Lane!AT36 ->  | CI31: =Lane!AU36 ->  | CJ31: =Lane!AX36 ->  | CK31: =Lane!AY36 ->  | CL31: =Lane!BB36 ->  | CM31: =Lane!BC36 ->  | CN31: =Lane!BF36 ->  | CO31: =Lane!BG36 -> 
AU32: NB | BV32: =Lane!V37 ->  | BW32: =Lane!W37 ->  | BX32: =Lane!Z37 ->  | BY32: =Lane!AA37 ->  | BZ32: =Lane!AD37 ->  | CA32: =Lane!AE37 ->  | CB32: =Lane!AH37 ->  | CC32: =Lane!AI37 ->  | CD32: =Lane!AL37 ->  | CE32: =Lane!AM37 ->  | CF32: =Lane!AP37 ->  | CG32: =Lane!AQ37 ->  | CH32: =Lane!AT37 ->  | CI32: =Lane!AU37 ->  | CJ32: =Lane!AX37 ->  | CK32: =Lane!AY37 ->  | CL32: =Lane!BB37 ->  | CM32: =Lane!BC37 ->  | CN32: =Lane!BF37 ->  | CO32: =Lane!BG37 -> 
AU33: SB | BV33: =Lane!V38 ->  | BW33: =Lane!W38 ->  | BX33: =Lane!Z38 ->  | BY33: =Lane!AA38 ->  | BZ33: =Lane!AD38 ->  | CA33: =Lane!AE38 ->  | CB33: =Lane!AH38 ->  | CC33: =Lane!AI38 ->  | CD33: =Lane!AL38 ->  | CE33: =Lane!AM38 ->  | CF33: =Lane!AP38 ->  | CG33: =Lane!AQ38 ->  | CH33: =Lane!AT38 ->  | CI33: =Lane!AU38 ->  | CJ33: =Lane!AX38 ->  | CK33: =Lane!AY38 ->  | CL33: =Lane!BB38 ->  | CM33: =Lane!BC38 ->  | CN33: =Lane!BF38 ->  | CO33: =Lane!BG38 -> 
BV34: =Lane!V39 ->  | BW34: =Lane!W39 ->  | BX34: =Lane!Z39 ->  | BY34: =Lane!AA39 ->  | BZ34: =Lane!AD39 ->  | CA34: =Lane!AE39 ->  | CB34: =Lane!AH39 ->  | CC34: =Lane!AI39 ->  | CD34: =Lane!AL39 ->  | CE34: =Lane!AM39 ->  | CF34: =Lane!AP39 ->  | CG34: =Lane!AQ39 ->  | CH34: =Lane!AT39 ->  | CI34: =Lane!AU39 ->  | CJ34: =Lane!AX39 ->  | CK34: =Lane!AY39 ->  | CL34: =Lane!BB39 ->  | CM34: =Lane!BC39 ->  | CN34: =Lane!BF39 ->  | CO34: =Lane!BG39 -> 
BV35: =Lane!V40 ->  | BW35: =Lane!W40 ->  | BX35: =Lane!Z40 ->  | BY35: =Lane!AA40 ->  | BZ35: =Lane!AD40 ->  | CA35: =Lane!AE40 ->  | CB35: =Lane!AH40 ->  | CC35: =Lane!AI40 ->  | CD35: =Lane!AL40 ->  | CE35: =Lane!AM40 ->  | CF35: =Lane!AP40 ->  | CG35: =Lane!AQ40 ->  | CH35: =Lane!AT40 ->  | CI35: =Lane!AU40 ->  | CJ35: =Lane!AX40 ->  | CK35: =Lane!AY40 ->  | CL35: =Lane!BB40 ->  | CM35: =Lane!BC40 ->  | CN35: =Lane!BF40 ->  | CO35: =Lane!BG40 -> 
A36: 1 | B36: 2 | C36: 3 | D36: 4 | E36: 5 | F36: 6 | G36: 7 | H36: 8 | I36: 9 | J36: 10 | K36: 11 | L36: 12 | M36: 13 | N36: 14 | O36: 15 | P36: 16 | Q36: 17 | R36: 18 | S36: 19 | T36: 20 | U36: 21 | V36: 22 | W36: 23 | X36: 24 | Y36: 25 | Z36: 26 | AA36: 27 | AB36: 28 | AC36: 29 | AD36: 30 | AE36: 31 | AF36: 32 | AG36: 33 | AH36: 34 | AI36: 35 | AJ36: 36 | AK36: 37 | AL36: 38 | AM36: 39 | AN36: 40 | AO36: 41 | AP36: 42 | AQ36: 43 | AR36: 44 | AS36: 45 | BV36: =Lane!V41 ->  | BW36: =Lane!W41 ->  | BX36: =Lane!Z41 ->  | BY36: =Lane!AA41 ->  | BZ36: =Lane!AD41 ->  | CA36: =Lane!AE41 ->  | CB36: =Lane!AH41 ->  | CC36: =Lane!AI41 ->  | CD36: =Lane!AL41 ->  | CE36: =Lane!AM41 ->  | CF36: =Lane!AP41 ->  | CG36: =Lane!AQ41 ->  | CH36: =Lane!AT41 ->  | CI36: =Lane!AU41 ->  | CJ36: =Lane!AX41 ->  | CK36: =Lane!AY41 ->  | CL36: =Lane!BB41 ->  | CM36: =Lane!BC41 ->  | CN36: =Lane!BF41 ->  | CO36: =Lane!BG41 -> 
AE37: 1 | AF37: 2 | AG37: 3 | AH37: 4 | AI37: 5 | AJ37: 6 | AK37: 7 | AL37: 8 | AM37: 9 | AN37: 10 | AO37: 11 | AP37: 12 | AQ37: 13 | AR37: 14 | AS37: 15 | BV37: =Lane!V42 ->  | BW37: =Lane!W42 ->  | BX37: =Lane!Z42 ->  | BY37: =Lane!AA42 ->  | BZ37: =Lane!AD42 ->  | CA37: =Lane!AE42 ->  | CB37: =Lane!AH42 ->  | CC37: =Lane!AI42 ->  | CD37: =Lane!AL42 ->  | CE37: =Lane!AM42 ->  | CF37: =Lane!AP42 ->  | CG37: =Lane!AQ42 ->  | CH37: =Lane!AT42 ->  | CI37: =Lane!AU42 ->  | CJ37: =Lane!AX42 ->  | CK37: =Lane!AY42 ->  | CL37: =Lane!BB42 ->  | CM37: =Lane!BC42 ->  | CN37: =Lane!BF42 ->  | CO37: =Lane!BG42 -> 
BV38: =Lane!V43 ->  | BW38: =Lane!W43 ->  | BX38: =Lane!Z43 ->  | BY38: =Lane!AA43 ->  | BZ38: =Lane!AD43 ->  | CA38: =Lane!AE43 ->  | CB38: =Lane!AH43 ->  | CC38: =Lane!AI43 ->  | CD38: =Lane!AL43 ->  | CE38: =Lane!AM43 ->  | CF38: =Lane!AP43 ->  | CG38: =Lane!AQ43 ->  | CH38: =Lane!AT43 ->  | CI38: =Lane!AU43 ->  | CJ38: =Lane!AX43 ->  | CK38: =Lane!AY43 ->  | CL38: =Lane!BB43 ->  | CM38: =Lane!BC43 ->  | CN38: =Lane!BF43 ->  | CO38: =Lane!BG43 -> 
BV39: =Lane!V44 ->  | BW39: =Lane!W44 ->  | BX39: =Lane!Z44 ->  | BY39: =Lane!AA44 ->  | BZ39: =Lane!AD44 ->  | CA39: =Lane!AE44 ->  | CB39: =Lane!AH44 ->  | CC39: =Lane!AI44 ->  | CD39: =Lane!AL44 ->  | CE39: =Lane!AM44 ->  | CF39: =Lane!AP44 ->  | CG39: =Lane!AQ44 ->  | CH39: =Lane!AT44 ->  | CI39: =Lane!AU44 ->  | CJ39: =Lane!AX44 ->  | CK39: =Lane!AY44 ->  | CL39: =Lane!BB44 ->  | CM39: =Lane!BC44 ->  | CN39: =Lane!BF44 ->  | CO39: =Lane!BG44 -> 
BV40: =Lane!V45 ->  | BW40: =Lane!W45 ->  | BX40: =Lane!Z45 ->  | BY40: =Lane!AA45 ->  | BZ40: =Lane!AD45 ->  | CA40: =Lane!AE45 ->  | CB40: =Lane!AH45 ->  | CC40: =Lane!AI45 ->  | CD40: =Lane!AL45 ->  | CE40: =Lane!AM45 ->  | CF40: =Lane!AP45 ->  | CG40: =Lane!AQ45 ->  | CH40: =Lane!AT45 ->  | CI40: =Lane!AU45 ->  | CJ40: =Lane!AX45 ->  | CK40: =Lane!AY45 ->  | CL40: =Lane!BB45 ->  | CM40: =Lane!BC45 ->  | CN40: =Lane!BF45 ->  | CO40: =Lane!BG45 -> 
BV41: =Lane!V46 ->  | BW41: =Lane!W46 ->  | BX41: =Lane!Z46 ->  | BY41: =Lane!AA46 ->  | BZ41: =Lane!AD46 ->  | CA41: =Lane!AE46 ->  | CB41: =Lane!AH46 ->  | CC41: =Lane!AI46 ->  | CD41: =Lane!AL46 ->  | CE41: =Lane!AM46 ->  | CF41: =Lane!AP46 ->  | CG41: =Lane!AQ46 ->  | CH41: =Lane!AT46 ->  | CI41: =Lane!AU46 ->  | CJ41: =Lane!AX46 ->  | CK41: =Lane!AY46 ->  | CL41: =Lane!BB46 ->  | CM41: =Lane!BC46 ->  | CN41: =Lane!BF46 ->  | CO41: =Lane!BG46 -> 
BV42: =Lane!V47 ->  | BW42: =Lane!W47 ->  | BX42: =Lane!Z47 ->  | BY42: =Lane!AA47 ->  | BZ42: =Lane!AD47 ->  | CA42: =Lane!AE47 ->  | CB42: =Lane!AH47 ->  | CC42: =Lane!AI47 ->  | CD42: =Lane!AL47 ->  | CE42: =Lane!AM47 ->  | CF42: =Lane!AP47 ->  | CG42: =Lane!AQ47 ->  | CH42: =Lane!AT47 ->  | CI42: =Lane!AU47 ->  | CJ42: =Lane!AX47 ->  | CK42: =Lane!AY47 ->  | CL42: =Lane!BB47 ->  | CM42: =Lane!BC47 ->  | CN42: =Lane!BF47 ->  | CO42: =Lane!BG47 -> 
BV43: =Lane!V48 ->  | BW43: =Lane!W48 ->  | BX43: =Lane!Z48 ->  | BY43: =Lane!AA48 ->  | BZ43: =Lane!AD48 ->  | CA43: =Lane!AE48 ->  | CB43: =Lane!AH48 ->  | CC43: =Lane!AI48 ->  | CD43: =Lane!AL48 ->  | CE43: =Lane!AM48 ->  | CF43: =Lane!AP48 ->  | CG43: =Lane!AQ48 ->  | CH43: =Lane!AT48 ->  | CI43: =Lane!AU48 ->  | CJ43: =Lane!AX48 ->  | CK43: =Lane!AY48 ->  | CL43: =Lane!BB48 ->  | CM43: =Lane!BC48 ->  | CN43: =Lane!BF48 ->  | CO43: =Lane!BG48 -> 
BV44: =Lane!V49 ->  | BW44: =Lane!W49 ->  | BX44: =Lane!Z49 ->  | BY44: =Lane!AA49 ->  | BZ44: =Lane!AD49 ->  | CA44: =Lane!AE49 ->  | CB44: =Lane!AH49 ->  | CC44: =Lane!AI49 ->  | CD44: =Lane!AL49 ->  | CE44: =Lane!AM49 ->  | CF44: =Lane!AP49 ->  | CG44: =Lane!AQ49 ->  | CH44: =Lane!AT49 ->  | CI44: =Lane!AU49 ->  | CJ44: =Lane!AX49 ->  | CK44: =Lane!AY49 ->  | CL44: =Lane!BB49 ->  | CM44: =Lane!BC49 ->  | CN44: =Lane!BF49 ->  | CO44: =Lane!BG49 -> 
BV45: =Lane!V50 ->  | BW45: =Lane!W50 ->  | BX45: =Lane!Z50 ->  | BY45: =Lane!AA50 ->  | BZ45: =Lane!AD50 ->  | CA45: =Lane!AE50 ->  | CB45: =Lane!AH50 ->  | CC45: =Lane!AI50 ->  | CD45: =Lane!AL50 ->  | CE45: =Lane!AM50 ->  | CF45: =Lane!AP50 ->  | CG45: =Lane!AQ50 ->  | CH45: =Lane!AT50 ->  | CI45: =Lane!AU50 ->  | CJ45: =Lane!AX50 ->  | CK45: =Lane!AY50 ->  | CL45: =Lane!BB50 ->  | CM45: =Lane!BC50 ->  | CN45: =Lane!BF50 ->  | CO45: =Lane!BG50 -> 
BV46: =Lane!V51 ->  | BW46: =Lane!W51 ->  | BX46: =Lane!Z51 ->  | BY46: =Lane!AA51 ->  | BZ46: =Lane!AD51 ->  | CA46: =Lane!AE51 ->  | CB46: =Lane!AH51 ->  | CC46: =Lane!AI51 ->  | CD46: =Lane!AL51 ->  | CE46: =Lane!AM51 ->  | CF46: =Lane!AP51 ->  | CG46: =Lane!AQ51 ->  | CH46: =Lane!AT51 ->  | CI46: =Lane!AU51 ->  | CJ46: =Lane!AX51 ->  | CK46: =Lane!AY51 ->  | CL46: =Lane!BB51 ->  | CM46: =Lane!BC51 ->  | CN46: =Lane!BF51 ->  | CO46: =Lane!BG51 -> 
BV47: =Lane!V52 ->  | BW47: =Lane!W52 ->  | BX47: =Lane!Z52 ->  | BY47: =Lane!AA52 ->  | BZ47: =Lane!AD52 ->  | CA47: =Lane!AE52 ->  | CB47: =Lane!AH52 ->  | CC47: =Lane!AI52 ->  | CD47: =Lane!AL52 ->  | CE47: =Lane!AM52 ->  | CF47: =Lane!AP52 ->  | CG47: =Lane!AQ52 ->  | CH47: =Lane!AT52 ->  | CI47: =Lane!AU52 ->  | CJ47: =Lane!AX52 ->  | CK47: =Lane!AY52 ->  | CL47: =Lane!BB52 ->  | CM47: =Lane!BC52 ->  | CN47: =Lane!BF52 ->  | CO47: =Lane!BG52 -> 
AE48: 1 | BV48: =Lane!V53 ->  | BW48: =Lane!W53 ->  | BX48: =Lane!Z53 ->  | BY48: =Lane!AA53 ->  | BZ48: =Lane!AD53 ->  | CA48: =Lane!AE53 ->  | CB48: =Lane!AH53 ->  | CC48: =Lane!AI53 ->  | CD48: =Lane!AL53 ->  | CE48: =Lane!AM53 ->  | CF48: =Lane!AP53 ->  | CG48: =Lane!AQ53 ->  | CH48: =Lane!AT53 ->  | CI48: =Lane!AU53 ->  | CJ48: =Lane!AX53 ->  | CK48: =Lane!AY53 ->  | CL48: =Lane!BB53 ->  | CM48: =Lane!BC53 ->  | CN48: =Lane!BF53 ->  | CO48: =Lane!BG53 -> 
BV49: =Lane!V54 ->  | BW49: =Lane!W54 ->  | BX49: =Lane!Z54 ->  | BY49: =Lane!AA54 ->  | BZ49: =Lane!AD54 ->  | CA49: =Lane!AE54 ->  | CB49: =Lane!AH54 ->  | CC49: =Lane!AI54 ->  | CD49: =Lane!AL54 ->  | CE49: =Lane!AM54 ->  | CF49: =Lane!AP54 ->  | CG49: =Lane!AQ54 ->  | CH49: =Lane!AT54 ->  | CI49: =Lane!AU54 ->  | CJ49: =Lane!AX54 ->  | CK49: =Lane!AY54 ->  | CL49: =Lane!BB54 ->  | CM49: =Lane!BC54 ->  | CN49: =Lane!BF54 ->  | CO49: =Lane!BG54 -> 
BV50: =Lane!V55 ->  | BW50: =Lane!W55 ->  | BX50: =Lane!Z55 ->  | BY50: =Lane!AA55 ->  | BZ50: =Lane!AD55 ->  | CA50: =Lane!AE55 ->  | CB50: =Lane!AH55 ->  | CC50: =Lane!AI55 ->  | CD50: =Lane!AL55 ->  | CE50: =Lane!AM55 ->  | CF50: =Lane!AP55 ->  | CG50: =Lane!AQ55 ->  | CH50: =Lane!AT55 ->  | CI50: =Lane!AU55 ->  | CJ50: =Lane!AX55 ->  | CK50: =Lane!AY55 ->  | CL50: =Lane!BB55 ->  | CM50: =Lane!BC55 ->  | CN50: =Lane!BF55 ->  | CO50: =Lane!BG55 -> 
BV51: =Lane!V56 ->  | BW51: =Lane!W56 ->  | BX51: =Lane!Z56 ->  | BY51: =Lane!AA56 ->  | BZ51: =Lane!AD56 ->  | CA51: =Lane!AE56 ->  | CB51: =Lane!AH56 ->  | CC51: =Lane!AI56 ->  | CD51: =Lane!AL56 ->  | CE51: =Lane!AM56 ->  | CF51: =Lane!AP56 ->  | CG51: =Lane!AQ56 ->  | CH51: =Lane!AT56 ->  | CI51: =Lane!AU56 ->  | CJ51: =Lane!AX56 ->  | CK51: =Lane!AY56 ->  | CL51: =Lane!BB56 ->  | CM51: =Lane!BC56 ->  | CN51: =Lane!BF56 ->  | CO51: =Lane!BG56 -> 
BV52: =Lane!V57 ->  | BW52: =Lane!W57 ->  | BX52: =Lane!Z57 ->  | BY52: =Lane!AA57 ->  | BZ52: =Lane!AD57 ->  | CA52: =Lane!AE57 ->  | CB52: =Lane!AH57 ->  | CC52: =Lane!AI57 ->  | CD52: =Lane!AL57 ->  | CE52: =Lane!AM57 ->  | CF52: =Lane!AP57 ->  | CG52: =Lane!AQ57 ->  | CH52: =Lane!AT57 ->  | CI52: =Lane!AU57 ->  | CJ52: =Lane!AX57 ->  | CK52: =Lane!AY57 ->  | CL52: =Lane!BB57 ->  | CM52: =Lane!BC57 ->  | CN52: =Lane!BF57 ->  | CO52: =Lane!BG57 -> 
BV53: =Lane!V58 ->  | BW53: =Lane!W58 ->  | BX53: =Lane!Z58 ->  | BY53: =Lane!AA58 ->  | BZ53: =Lane!AD58 ->  | CA53: =Lane!AE58 ->  | CB53: =Lane!AH58 ->  | CC53: =Lane!AI58 ->  | CD53: =Lane!AL58 ->  | CE53: =Lane!AM58 ->  | CF53: =Lane!AP58 ->  | CG53: =Lane!AQ58 ->  | CH53: =Lane!AT58 ->  | CI53: =Lane!AU58 ->  | CJ53: =Lane!AX58 ->  | CK53: =Lane!AY58 ->  | CL53: =Lane!BB58 ->  | CM53: =Lane!BC58 ->  | CN53: =Lane!BF58 ->  | CO53: =Lane!BG58 -> 
BV54: =Lane!V59 ->  | BW54: =Lane!W59 ->  | BX54: =Lane!Z59 ->  | BY54: =Lane!AA59 ->  | BZ54: =Lane!AD59 ->  | CA54: =Lane!AE59 ->  | CB54: =Lane!AH59 ->  | CC54: =Lane!AI59 ->  | CD54: =Lane!AL59 ->  | CE54: =Lane!AM59 ->  | CF54: =Lane!AP59 ->  | CG54: =Lane!AQ59 ->  | CH54: =Lane!AT59 ->  | CI54: =Lane!AU59 ->  | CJ54: =Lane!AX59 ->  | CK54: =Lane!AY59 ->  | CL54: =Lane!BB59 ->  | CM54: =Lane!BC59 ->  | CN54: =Lane!BF59 ->  | CO54: =Lane!BG59 -> 
BV55: =Lane!V60 ->  | BW55: =Lane!W60 ->  | BX55: =Lane!Z60 ->  | BY55: =Lane!AA60 ->  | BZ55: =Lane!AD60 ->  | CA55: =Lane!AE60 ->  | CB55: =Lane!AH60 ->  | CC55: =Lane!AI60 ->  | CD55: =Lane!AL60 ->  | CE55: =Lane!AM60 ->  | CF55: =Lane!AP60 ->  | CG55: =Lane!AQ60 ->  | CH55: =Lane!AT60 ->  | CI55: =Lane!AU60 ->  | CJ55: =Lane!AX60 ->  | CK55: =Lane!AY60 ->  | CL55: =Lane!BB60 ->  | CM55: =Lane!BC60 ->  | CN55: =Lane!BF60 ->  | CO55: =Lane!BG60 -> 
BV56: =Lane!V61 ->  | BW56: =Lane!W61 ->  | BX56: =Lane!Z61 ->  | BY56: =Lane!AA61 ->  | BZ56: =Lane!AD61 ->  | CA56: =Lane!AE61 ->  | CB56: =Lane!AH61 ->  | CC56: =Lane!AI61 ->  | CD56: =Lane!AL61 ->  | CE56: =Lane!AM61 ->  | CF56: =Lane!AP61 ->  | CG56: =Lane!AQ61 ->  | CH56: =Lane!AT61 ->  | CI56: =Lane!AU61 ->  | CJ56: =Lane!AX61 ->  | CK56: =Lane!AY61 ->  | CL56: =Lane!BB61 ->  | CM56: =Lane!BC61 ->  | CN56: =Lane!BF61 ->  | CO56: =Lane!BG61 -> 
BV57: =Lane!V62 ->  | BW57: =Lane!W62 ->  | BX57: =Lane!Z62 ->  | BY57: =Lane!AA62 ->  | BZ57: =Lane!AD62 ->  | CA57: =Lane!AE62 ->  | CB57: =Lane!AH62 ->  | CC57: =Lane!AI62 ->  | CD57: =Lane!AL62 ->  | CE57: =Lane!AM62 ->  | CF57: =Lane!AP62 ->  | CG57: =Lane!AQ62 ->  | CH57: =Lane!AT62 ->  | CI57: =Lane!AU62 ->  | CJ57: =Lane!AX62 ->  | CK57: =Lane!AY62 ->  | CL57: =Lane!BB62 ->  | CM57: =Lane!BC62 ->  | CN57: =Lane!BF62 ->  | CO57: =Lane!BG62 -> 
BV58: =Lane!V63 ->  | BW58: =Lane!W63 ->  | BX58: =Lane!Z63 ->  | BY58: =Lane!AA63 ->  | BZ58: =Lane!AD63 ->  | CA58: =Lane!AE63 ->  | CB58: =Lane!AH63 ->  | CC58: =Lane!AI63 ->  | CD58: =Lane!AL63 ->  | CE58: =Lane!AM63 ->  | CF58: =Lane!AP63 ->  | CG58: =Lane!AQ63 ->  | CH58: =Lane!AT63 ->  | CI58: =Lane!AU63 ->  | CJ58: =Lane!AX63 ->  | CK58: =Lane!AY63 ->  | CL58: =Lane!BB63 ->  | CM58: =Lane!BC63 ->  | CN58: =Lane!BF63 ->  | CO58: =Lane!BG63 -> 
BV59: =Lane!V64 ->  | BW59: =Lane!W64 ->  | BX59: =Lane!Z64 ->  | BY59: =Lane!AA64 ->  | BZ59: =Lane!AD64 ->  | CA59: =Lane!AE64 ->  | CB59: =Lane!AH64 ->  | CC59: =Lane!AI64 ->  | CD59: =Lane!AL64 ->  | CE59: =Lane!AM64 ->  | CF59: =Lane!AP64 ->  | CG59: =Lane!AQ64 ->  | CH59: =Lane!AT64 ->  | CI59: =Lane!AU64 ->  | CJ59: =Lane!AX64 ->  | CK59: =Lane!AY64 ->  | CL59: =Lane!BB64 ->  | CM59: =Lane!BC64 ->  | CN59: =Lane!BF64 ->  | CO59: =Lane!BG64 -> 
BV60: =Lane!V65 ->  | BW60: =Lane!W65 ->  | BX60: =Lane!Z65 ->  | BY60: =Lane!AA65 ->  | BZ60: =Lane!AD65 ->  | CA60: =Lane!AE65 ->  | CB60: =Lane!AH65 ->  | CC60: =Lane!AI65 ->  | CD60: =Lane!AL65 ->  | CE60: =Lane!AM65 ->  | CF60: =Lane!AP65 ->  | CG60: =Lane!AQ65 ->  | CH60: =Lane!AT65 ->  | CI60: =Lane!AU65 ->  | CJ60: =Lane!AX65 ->  | CK60: =Lane!AY65 ->  | CL60: =Lane!BB65 ->  | CM60: =Lane!BC65 ->  | CN60: =Lane!BF65 ->  | CO60: =Lane!BG65 -> 
BV61: =Lane!V66 ->  | BW61: =Lane!W66 ->  | BX61: =Lane!Z66 ->  | BY61: =Lane!AA66 ->  | BZ61: =Lane!AD66 ->  | CA61: =Lane!AE66 ->  | CB61: =Lane!AH66 ->  | CC61: =Lane!AI66 ->  | CD61: =Lane!AL66 ->  | CE61: =Lane!AM66 ->  | CF61: =Lane!AP66 ->  | CG61: =Lane!AQ66 ->  | CH61: =Lane!AT66 ->  | CI61: =Lane!AU66 ->  | CJ61: =Lane!AX66 ->  | CK61: =Lane!AY66 ->  | CL61: =Lane!BB66 ->  | CM61: =Lane!BC66 ->  | CN61: =Lane!BF66 ->  | CO61: =Lane!BG66 -> 
BV62: =Lane!V67 ->  | BW62: =Lane!W67 ->  | BX62: =Lane!Z67 ->  | BY62: =Lane!AA67 ->  | BZ62: =Lane!AD67 ->  | CA62: =Lane!AE67 ->  | CB62: =Lane!AH67 ->  | CC62: =Lane!AI67 ->  | CD62: =Lane!AL67 ->  | CE62: =Lane!AM67 ->  | CF62: =Lane!AP67 ->  | CG62: =Lane!AQ67 ->  | CH62: =Lane!AT67 ->  | CI62: =Lane!AU67 ->  | CJ62: =Lane!AX67 ->  | CK62: =Lane!AY67 ->  | CL62: =Lane!BB67 ->  | CM62: =Lane!BC67 ->  | CN62: =Lane!BF67 ->  | CO62: =Lane!BG67 -> 
BV63: =Lane!V68 ->  | BW63: =Lane!W68 ->  | BX63: =Lane!Z68 ->  | BY63: =Lane!AA68 ->  | BZ63: =Lane!AD68 ->  | CA63: =Lane!AE68 ->  | CB63: =Lane!AH68 ->  | CC63: =Lane!AI68 ->  | CD63: =Lane!AL68 ->  | CE63: =Lane!AM68 ->  | CF63: =Lane!AP68 ->  | CG63: =Lane!AQ68 ->  | CH63: =Lane!AT68 ->  | CI63: =Lane!AU68 ->  | CJ63: =Lane!AX68 ->  | CK63: =Lane!AY68 ->  | CL63: =Lane!BB68 ->  | CM63: =Lane!BC68 ->  | CN63: =Lane!BF68 ->  | CO63: =Lane!BG68 -> 
BV64: =Lane!V69 ->  | BW64: =Lane!W69 ->  | BX64: =Lane!Z69 ->  | BY64: =Lane!AA69 ->  | BZ64: =Lane!AD69 ->  | CA64: =Lane!AE69 ->  | CB64: =Lane!AH69 ->  | CC64: =Lane!AI69 ->  | CD64: =Lane!AL69 ->  | CE64: =Lane!AM69 ->  | CF64: =Lane!AP69 ->  | CG64: =Lane!AQ69 ->  | CH64: =Lane!AT69 ->  | CI64: =Lane!AU69 ->  | CJ64: =Lane!AX69 ->  | CK64: =Lane!AY69 ->  | CL64: =Lane!BB69 ->  | CM64: =Lane!BC69 ->  | CN64: =Lane!BF69 ->  | CO64: =Lane!BG69 -> 
BV65: =Lane!V70 ->  | BW65: =Lane!W70 ->  | BX65: =Lane!Z70 ->  | BY65: =Lane!AA70 ->  | BZ65: =Lane!AD70 ->  | CA65: =Lane!AE70 ->  | CB65: =Lane!AH70 ->  | CC65: =Lane!AI70 ->  | CD65: =Lane!AL70 ->  | CE65: =Lane!AM70 ->  | CF65: =Lane!AP70 ->  | CG65: =Lane!AQ70 ->  | CH65: =Lane!AT70 ->  | CI65: =Lane!AU70 ->  | CJ65: =Lane!AX70 ->  | CK65: =Lane!AY70 ->  | CL65: =Lane!BB70 ->  | CM65: =Lane!BC70 ->  | CN65: =Lane!BF70 ->  | CO65: =Lane!BG70 -> 
BV66: =Lane!V71 ->  | BW66: =Lane!W71 ->  | BX66: =Lane!Z71 ->  | BY66: =Lane!AA71 ->  | BZ66: =Lane!AD71 ->  | CA66: =Lane!AE71 ->  | CB66: =Lane!AH71 ->  | CC66: =Lane!AI71 ->  | CD66: =Lane!AL71 ->  | CE66: =Lane!AM71 ->  | CF66: =Lane!AP71 ->  | CG66: =Lane!AQ71 ->  | CH66: =Lane!AT71 ->  | CI66: =Lane!AU71 ->  | CJ66: =Lane!AX71 ->  | CK66: =Lane!AY71 ->  | CL66: =Lane!BB71 ->  | CM66: =Lane!BC71 ->  | CN66: =Lane!BF71 ->  | CO66: =Lane!BG71 -> 
BV67: =Lane!V72 ->  | BW67: =Lane!W72 ->  | BX67: =Lane!Z72 ->  | BY67: =Lane!AA72 ->  | BZ67: =Lane!AD72 ->  | CA67: =Lane!AE72 ->  | CB67: =Lane!AH72 ->  | CC67: =Lane!AI72 ->  | CD67: =Lane!AL72 ->  | CE67: =Lane!AM72 ->  | CF67: =Lane!AP72 ->  | CG67: =Lane!AQ72 ->  | CH67: =Lane!AT72 ->  | CI67: =Lane!AU72 ->  | CJ67: =Lane!AX72 ->  | CK67: =Lane!AY72 ->  | CL67: =Lane!BB72 ->  | CM67: =Lane!BC72 ->  | CN67: =Lane!BF72 ->  | CO67: =Lane!BG72 -> 
BV68: =Lane!V73 ->  | BW68: =Lane!W73 ->  | BX68: =Lane!Z73 ->  | BY68: =Lane!AA73 ->  | BZ68: =Lane!AD73 ->  | CA68: =Lane!AE73 ->  | CB68: =Lane!AH73 ->  | CC68: =Lane!AI73 ->  | CD68: =Lane!AL73 ->  | CE68: =Lane!AM73 ->  | CF68: =Lane!AP73 ->  | CG68: =Lane!AQ73 ->  | CH68: =Lane!AT73 ->  | CI68: =Lane!AU73 ->  | CJ68: =Lane!AX73 ->  | CK68: =Lane!AY73 ->  | CL68: =Lane!BB73 ->  | CM68: =Lane!BC73 ->  | CN68: =Lane!BF73 ->  | CO68: =Lane!BG73 -> 
BV69: =Lane!V74 ->  | BW69: =Lane!W74 ->  | BX69: =Lane!Z74 ->  | BY69: =Lane!AA74 ->  | BZ69: =Lane!AD74 ->  | CA69: =Lane!AE74 ->  | CB69: =Lane!AH74 ->  | CC69: =Lane!AI74 ->  | CD69: =Lane!AL74 ->  | CE69: =Lane!AM74 ->  | CF69: =Lane!AP74 ->  | CG69: =Lane!AQ74 ->  | CH69: =Lane!AT74 ->  | CI69: =Lane!AU74 ->  | CJ69: =Lane!AX74 ->  | CK69: =Lane!AY74 ->  | CL69: =Lane!BB74 ->  | CM69: =Lane!BC74 ->  | CN69: =Lane!BF74 ->  | CO69: =Lane!BG74 -> 
AZ70: =IF(BV70="","",ROUNDUP($AW$11+((BV70-$AW$13)/$AW$9),0)) ->  | BA70: =IF(BW70="","",IF(ROUNDUP($AW$11-1+((BW70-$AW$13)/$AW$9),0)<AZ70,AZ70,ROUNDUP($AW$11-1+((BW70-$AW$13)/$AW$9),0))) ->  | BB70: =IF(BX70="","",ROUNDUP($AW$11+((BX70-$AW$13)/$AW$9),0)) ->  | BC70: =IF(BY70="","",IF(ROUNDUP($AW$11-1+((BY70-$AW$13)/$AW$9),0)<BB70,BB70,ROUNDUP($AW$11-1+((BY70-$AW$13)/$AW$9),0))) ->  | BD70: =IF(BZ70="","",ROUNDUP($AW$11+((BZ70-$AW$13)/$AW$9),0)) ->  | BE70: =IF(CA70="","",IF(ROUNDUP($AW$11-1+((CA70-$AW$13)/$AW$9),0)<BD70,BD70,ROUNDUP($AW$11-1+((CA70-$AW$13)/$AW$9),0))) ->  | BF70: =IF(CB70="","",ROUNDUP($AW$11+((CB70-$AW$13)/$AW$9),0)) ->  | BG70: =IF(CC70="","",IF(ROUNDUP($AW$11-1+((CC70-$AW$13)/$AW$9),0)<BF70,BF70,ROUNDUP($AW$11-1+((CC70-$AW$13)/$AW$9),0))) ->  | BH70: =IF(CD70="","",ROUNDUP($AW$11+((CD70-$AW$13)/$AW$9),0)) ->  | BI70: =IF(CE70="","",IF(ROUNDUP($AW$11-1+((CE70-$AW$13)/$AW$9),0)<BH70,BH70,ROUNDUP($AW$11-1+((CE70-$AW$13)/$AW$9),0))) ->  | BJ70: =IF(CF70="","",ROUNDUP($AW$11+((CF70-$AW$13)/$AW$9),0)) ->  | BK70: =IF(CG70="","",IF(ROUNDUP($AW$11-1+((CG70-$AW$13)/$AW$9),0)<BJ70,BJ70,ROUNDUP($AW$11-1+((CG70-$AW$13)/$AW$9),0))) ->  | BL70: =IF(CH70="","",ROUNDUP($AW$11+((CH70-$AW$13)/$AW$9),0)) ->  | BM70: =IF(CI70="","",IF(ROUNDUP($AW$11-1+((CI70-$AW$13)/$AW$9),0)<BL70,BL70,ROUNDUP($AW$11-1+((CI70-$AW$13)/$AW$9),0))) ->  | BN70: =IF(CJ70="","",ROUNDUP($AW$11+((CJ70-$AW$13)/$AW$9),0)) ->  | BO70: =IF(CK70="","",IF(ROUNDUP($AW$11-1+((CK70-$AW$13)/$AW$9),0)<BN70,BN70,ROUNDUP($AW$11-1+((CK70-$AW$13)/$AW$9),0))) ->  | BP70: =IF(CL70="","",ROUNDUP($AW$11+((CL70-$AW$13)/$AW$9),0)) ->  | BQ70: =IF(CM70="","",IF(ROUNDUP($AW$11-1+((CM70-$AW$13)/$AW$9),0)<BP70,BP70,ROUNDUP($AW$11-1+((CM70-$AW$13)/$AW$9),0))) ->  | BR70: =IF(CN70="","",ROUNDUP($AW$11+((CN70-$AW$13)/$AW$9),0)) ->  | BS70: =IF(CO70="","",IF(ROUNDUP($AW$11-1+((CO70-$AW$13)/$AW$9),0)<BR70,BR70,ROUNDUP($AW$11-1+((CO70-$AW$13)/$AW$9),0))) ->  | BV70: =Lane!V75 ->  | BW70: =Lane!W75 ->  | BX70: =Lane!Z75 ->  | BY70: =Lane!AA75 ->  | BZ70: =Lane!AD75 ->  | CA70: =Lane!AE75 ->  | CB70: =Lane!AH75 ->  | CC70: =Lane!AI75 ->  | CD70: =Lane!AL75 ->  | CE70: =Lane!AM75 ->  | CF70: =Lane!AP75 ->  | CG70: =Lane!AQ75 ->  | CH70: =Lane!AT75 ->  | CI70: =Lane!AU75 ->  | CJ70: =Lane!AX75 ->  | CK70: =Lane!AY75 ->  | CL70: =Lane!BB75 ->  | CM70: =Lane!BC75 ->  | CN70: =Lane!BF75 ->  | CO70: =Lane!BG75 ->  | CQ70: =ABS(BW70-BV70) ->  | CR70: =ABS(BY70-BX70) ->  | CS70: =ABS(BZ70-CA70) ->  | CT70: =ABS(CB70-CC70) ->  | CU70: =ABS(CD70-CE70) ->  | CV70: =ABS(CF70-CG70) ->  | CW70: =ABS(CH70-CI70) ->  | CX70: =ABS(CJ70-CK70) ->  | CY70: =ABS(CL70-CM70) ->  | CZ70: =ABS(CN70-CO70) -> 
BV71: =Lane!V76 ->  | BW71: =Lane!W76 ->  | BX71: =Lane!Z76 ->  | BY71: =Lane!AA76 ->  | BZ71: =Lane!AD76 ->  | CA71: =Lane!AE76 ->  | CB71: =Lane!AH76 ->  | CC71: =Lane!AI76 ->  | CD71: =Lane!AL76 ->  | CE71: =Lane!AM76 ->  | CF71: =Lane!AP76 ->  | CG71: =Lane!AQ76 ->  | CH71: =Lane!AT76 ->  | CI71: =Lane!AU76 ->  | CJ71: =Lane!AX76 ->  | CK71: =Lane!AY76 ->  | CL71: =Lane!BB76 ->  | CM71: =Lane!BC76 ->  | CN71: =Lane!BF76 ->  | CO71: =Lane!BG76 -> 
BV72: =Lane!V77 ->  | BW72: =Lane!W77 ->  | BX72: =Lane!Z77 ->  | BY72: =Lane!AA77 ->  | BZ72: =Lane!AD77 ->  | CA72: =Lane!AE77 ->  | CB72: =Lane!AH77 ->  | CC72: =Lane!AI77 ->  | CD72: =Lane!AL77 ->  | CE72: =Lane!AM77 ->  | CF72: =Lane!AP77 ->  | CG72: =Lane!AQ77 ->  | CH72: =Lane!AT77 ->  | CI72: =Lane!AU77 ->  | CJ72: =Lane!AX77 ->  | CK72: =Lane!AY77 ->  | CL72: =Lane!BB77 ->  | CM72: =Lane!BC77 ->  | CN72: =Lane!BF77 ->  | CO72: =Lane!BG77 -> 
BV73: =Lane!V78 ->  | BW73: =Lane!W78 ->  | BX73: =Lane!Z78 ->  | BY73: =Lane!AA78 ->  | BZ73: =Lane!AD78 ->  | CA73: =Lane!AE78 ->  | CB73: =Lane!AH78 ->  | CC73: =Lane!AI78 ->  | CD73: =Lane!AL78 ->  | CE73: =Lane!AM78 ->  | CF73: =Lane!AP78 ->  | CG73: =Lane!AQ78 ->  | CH73: =Lane!AT78 ->  | CI73: =Lane!AU78 ->  | CJ73: =Lane!AX78 ->  | CK73: =Lane!AY78 ->  | CL73: =Lane!BB78 ->  | CM73: =Lane!BC78 ->  | CN73: =Lane!BF78 ->  | CO73: =Lane!BG78 -> 
BV74: =Lane!V79 ->  | BW74: =Lane!W79 ->  | BX74: =Lane!Z79 ->  | BY74: =Lane!AA79 ->  | BZ74: =Lane!AD79 ->  | CA74: =Lane!AE79 ->  | CB74: =Lane!AH79 ->  | CC74: =Lane!AI79 ->  | CD74: =Lane!AL79 ->  | CE74: =Lane!AM79 ->  | CF74: =Lane!AP79 ->  | CG74: =Lane!AQ79 ->  | CH74: =Lane!AT79 ->  | CI74: =Lane!AU79 ->  | CJ74: =Lane!AX79 ->  | CK74: =Lane!AY79 ->  | CL74: =Lane!BB79 ->  | CM74: =Lane!BC79 ->  | CN74: =Lane!BF79 ->  | CO74: =Lane!BG79 -> 
BV75: =Lane!V80 ->  | BW75: =Lane!W80 ->  | BX75: =Lane!Z80 ->  | BY75: =Lane!AA80 ->  | BZ75: =Lane!AD80 ->  | CA75: =Lane!AE80 ->  | CB75: =Lane!AH80 ->  | CC75: =Lane!AI80 ->  | CD75: =Lane!AL80 ->  | CE75: =Lane!AM80 ->  | CF75: =Lane!AP80 ->  | CG75: =Lane!AQ80 ->  | CH75: =Lane!AT80 ->  | CI75: =Lane!AU80 ->  | CJ75: =Lane!AX80 ->  | CK75: =Lane!AY80 ->  | CL75: =Lane!BB80 ->  | CM75: =Lane!BC80 ->  | CN75: =Lane!BF80 ->  | CO75: =Lane!BG80 -> 
BV76: =Lane!V81 ->  | BW76: =Lane!W81 ->  | BX76: =Lane!Z81 ->  | BY76: =Lane!AA81 ->  | BZ76: =Lane!AD81 ->  | CA76: =Lane!AE81 ->  | CB76: =Lane!AH81 ->  | CC76: =Lane!AI81 ->  | CD76: =Lane!AL81 ->  | CE76: =Lane!AM81 ->  | CF76: =Lane!AP81 ->  | CG76: =Lane!AQ81 ->  | CH76: =Lane!AT81 ->  | CI76: =Lane!AU81 ->  | CJ76: =Lane!AX81 ->  | CK76: =Lane!AY81 ->  | CL76: =Lane!BB81 ->  | CM76: =Lane!BC81 ->  | CN76: =Lane!BF81 ->  | CO76: =Lane!BG81 -> 
BV77: =Lane!V82 ->  | BW77: =Lane!W82 ->  | BX77: =Lane!Z82 ->  | BY77: =Lane!AA82 ->  | BZ77: =Lane!AD82 ->  | CA77: =Lane!AE82 ->  | CB77: =Lane!AH82 ->  | CC77: =Lane!AI82 ->  | CD77: =Lane!AL82 ->  | CE77: =Lane!AM82 ->  | CF77: =Lane!AP82 ->  | CG77: =Lane!AQ82 ->  | CH77: =Lane!AT82 ->  | CI77: =Lane!AU82 ->  | CJ77: =Lane!AX82 ->  | CK77: =Lane!AY82 ->  | CL77: =Lane!BB82 ->  | CM77: =Lane!BC82 ->  | CN77: =Lane!BF82 ->  | CO77: =Lane!BG82 -> 
BV78: =Lane!V83 ->  | BW78: =Lane!W83 ->  | BX78: =Lane!Z83 ->  | BY78: =Lane!AA83 ->  | BZ78: =Lane!AD83 ->  | CA78: =Lane!AE83 ->  | CB78: =Lane!AH83 ->  | CC78: =Lane!AI83 ->  | CD78: =Lane!AL83 ->  | CE78: =Lane!AM83 ->  | CF78: =Lane!AP83 ->  | CG78: =Lane!AQ83 ->  | CH78: =Lane!AT83 ->  | CI78: =Lane!AU83 ->  | CJ78: =Lane!AX83 ->  | CK78: =Lane!AY83 ->  | CL78: =Lane!BB83 ->  | CM78: =Lane!BC83 ->  | CN78: =Lane!BF83 ->  | CO78: =Lane!BG83 -> 
BV79: =Lane!V84 ->  | BW79: =Lane!W84 ->  | BX79: =Lane!Z84 ->  | BY79: =Lane!AA84 ->  | BZ79: =Lane!AD84 ->  | CA79: =Lane!AE84 ->  | CB79: =Lane!AH84 ->  | CC79: =Lane!AI84 ->  | CD79: =Lane!AL84 ->  | CE79: =Lane!AM84 ->  | CF79: =Lane!AP84 ->  | CG79: =Lane!AQ84 ->  | CH79: =Lane!AT84 ->  | CI79: =Lane!AU84 ->  | CJ79: =Lane!AX84 ->  | CK79: =Lane!AY84 ->  | CL79: =Lane!BB84 ->  | CM79: =Lane!BC84 ->  | CN79: =Lane!BF84 ->  | CO79: =Lane!BG84 -> 
BV80: =Lane!V85 ->  | BW80: =Lane!W85 ->  | BX80: =Lane!Z85 ->  | BY80: =Lane!AA85 ->  | BZ80: =Lane!AD85 ->  | CA80: =Lane!AE85 ->  | CB80: =Lane!AH85 ->  | CC80: =Lane!AI85 ->  | CD80: =Lane!AL85 ->  | CE80: =Lane!AM85 ->  | CF80: =Lane!AP85 ->  | CG80: =Lane!AQ85 ->  | CH80: =Lane!AT85 ->  | CI80: =Lane!AU85 ->  | CJ80: =Lane!AX85 ->  | CK80: =Lane!AY85 ->  | CL80: =Lane!BB85 ->  | CM80: =Lane!BC85 ->  | CN80: =Lane!BF85 ->  | CO80: =Lane!BG85 -> 
BV81: =Lane!V86 ->  | BW81: =Lane!W86 ->  | BX81: =Lane!Z86 ->  | BY81: =Lane!AA86 ->  | BZ81: =Lane!AD86 ->  | CA81: =Lane!AE86 ->  | CB81: =Lane!AH86 ->  | CC81: =Lane!AI86 ->  | CD81: =Lane!AL86 ->  | CE81: =Lane!AM86 ->  | CF81: =Lane!AP86 ->  | CG81: =Lane!AQ86 ->  | CH81: =Lane!AT86 ->  | CI81: =Lane!AU86 ->  | CJ81: =Lane!AX86 ->  | CK81: =Lane!AY86 ->  | CL81: =Lane!BB86 ->  | CM81: =Lane!BC86 ->  | CN81: =Lane!BF86 ->  | CO81: =Lane!BG86 -> 
BV82: =Lane!V87 ->  | BW82: =Lane!W87 ->  | BX82: =Lane!Z87 ->  | BY82: =Lane!AA87 ->  | BZ82: =Lane!AD87 ->  | CA82: =Lane!AE87 ->  | CB82: =Lane!AH87 ->  | CC82: =Lane!AI87 ->  | CD82: =Lane!AL87 ->  | CE82: =Lane!AM87 ->  | CF82: =Lane!AP87 ->  | CG82: =Lane!AQ87 ->  | CH82: =Lane!AT87 ->  | CI82: =Lane!AU87 ->  | CJ82: =Lane!AX87 ->  | CK82: =Lane!AY87 ->  | CL82: =Lane!BB87 ->  | CM82: =Lane!BC87 ->  | CN82: =Lane!BF87 ->  | CO82: =Lane!BG87 -> 
BV83: =Lane!V88 ->  | BW83: =Lane!W88 ->  | BX83: =Lane!Z88 ->  | BY83: =Lane!AA88 ->  | BZ83: =Lane!AD88 ->  | CA83: =Lane!AE88 ->  | CB83: =Lane!AH88 ->  | CC83: =Lane!AI88 ->  | CD83: =Lane!AL88 ->  | CE83: =Lane!AM88 ->  | CF83: =Lane!AP88 ->  | CG83: =Lane!AQ88 ->  | CH83: =Lane!AT88 ->  | CI83: =Lane!AU88 ->  | CJ83: =Lane!AX88 ->  | CK83: =Lane!AY88 ->  | CL83: =Lane!BB88 ->  | CM83: =Lane!BC88 ->  | CN83: =Lane!BF88 ->  | CO83: =Lane!BG88 -> 
BV84: =Lane!V89 ->  | BW84: =Lane!W89 ->  | BX84: =Lane!Z89 ->  | BY84: =Lane!AA89 ->  | BZ84: =Lane!AD89 ->  | CA84: =Lane!AE89 ->  | CB84: =Lane!AH89 ->  | CC84: =Lane!AI89 ->  | CD84: =Lane!AL89 ->  | CE84: =Lane!AM89 ->  | CF84: =Lane!AP89 ->  | CG84: =Lane!AQ89 ->  | CH84: =Lane!AT89 ->  | CI84: =Lane!AU89 ->  | CJ84: =Lane!AX89 ->  | CK84: =Lane!AY89 ->  | CL84: =Lane!BB89 ->  | CM84: =Lane!BC89 ->  | CN84: =Lane!BF89 ->  | CO84: =Lane!BG89 -> 
BV85: =Lane!V90 ->  | BW85: =Lane!W90 ->  | BX85: =Lane!Z90 ->  | BY85: =Lane!AA90 ->  | BZ85: =Lane!AD90 ->  | CA85: =Lane!AE90 ->  | CB85: =Lane!AH90 ->  | CC85: =Lane!AI90 ->  | CD85: =Lane!AL90 ->  | CE85: =Lane!AM90 ->  | CF85: =Lane!AP90 ->  | CG85: =Lane!AQ90 ->  | CH85: =Lane!AT90 ->  | CI85: =Lane!AU90 ->  | CJ85: =Lane!AX90 ->  | CK85: =Lane!AY90 ->  | CL85: =Lane!BB90 ->  | CM85: =Lane!BC90 ->  | CN85: =Lane!BF90 ->  | CO85: =Lane!BG90 -> 
AZ86: =COUNT(AZ5:AZ85) -> 2 | BB86: =COUNT(BB5:BB85) -> 1 | BD86: 2 | BF86: 1 | BH86: 1 | BJ86: 2 | BL86: 1 | BN86: 2 | BP86: 1 | BR86: 1
BV87: 1 | BX87: 0 | BZ87: 1 | CB87: 0 | CD87: 0 | CF87: 1 | CH87: 0 | CJ87: 1 | CL87: 0 | CN87: 0
A817: 24
